Workbook

Sheet Aperçu
B1: Calculateur
B2: Calculateur énergie et climat pour les communes
B3: =Ein_Texte!T27 -> Bases
B5: =Ein_Texte!T18 -> Nombre de communes | D5: 1 | F5: =Ein_Texte!T10 -> Année cible 2000 watts / 0 t CO₂ | I5: =Ein_Texte!T32 -> (facultatif)
H6: =IFERROR("("&Ein_Texte!$T$14&Ein_Texte!$T$5&OneSpace&IF(D9>0,D9,P_Konst_Ant!C45)+1&OneSpace&Ein_Texte!$T$6&OneSpace&Ein_Texte!$T$8&")",NoSpace) -> (Choisi librement de 2026 jusqu'à 2049)
B7: =Ein_Texte!T19 -> Nombre d'années de bilan | D7: 1 | F7: =Ein_Texte!T9 -> Nom de la région
B9: =Ein_Texte!T20 -> Année de prévision variable | D9: 2025 | F9: =Ein_Texte!T21 -> Version Bilan | H9: 1.0 | I9: =Ein_Texte!T22 -> Catalogue des modifications
D10: =IFERROR("("&Ein_Texte!$T$14&Ein_Texte!$T$5&OneSpace&jahr_bilanz_max+1&OneSpace&Ein_Texte!$T$6&OneSpace&Ein_Texte!$T$7&")",NoSpace) -> (Choisi librement de 1 jusqu'à 2029)
B17: =Ein_Texte!T28 -> Impressum
B18: =Ein_Texte!T29 -> Office fédéral de l'énergie OFEN
B19: =Ein_Texte!T30 -> Secrétariats régionaux de la Société à 2000 watts
B20: =Ein_Texte!T31 -> Tél. +41 44 305 93 60
B21: Version 2023-10 build 215c, Oktober 2023 | F21: www.2000watt.ch/fr
B24: =IF(D7>1,Ein_Texte!T24,Ein_Texte!T23) -> Année de bilan | D24: =COUNTIFS($B$28:$B$127,">=1000",$B$28:$B$127,"<"&$D$9) -> 0 | F24: =IF(D5>1,Ein_Texte!T26,Ein_Texte!T25) -> Commune | I24: =SUMPRODUCT(1*(LEN(TRIM(Aperçu!$F28:$F127))>0)) -> 0
B25: =Ein_Texte!T15&OneSpace&Aperçu!D9-1&OneSpace&Ein_Texte!T16 -> Max. 2024 (plus faible que l'année de prévision var.)
B27: Année | C27: Remarque | F27: Nom de la commune | G27: N° OFS | H27: Contact | I27: Remarque
G28: =IFERROR(VLOOKUP(F28,GdeListeMitBFS,3,0),NoSpace) ->  | H28: =HYPERLINK(Repr_cmn!$A$5,Ein_Texte!$T$11) -> Représentation communale | J28: 1
H29: =HYPERLINK(Repr_cmn!$A$5,Ein_Texte!$T$11) -> Représentation communale | J29: 2
H30: =HYPERLINK(Repr_cmn!$A$5,Ein_Texte!$T$11) -> Représentation communale | J30: 3
H31: =HYPERLINK(Repr_cmn!$A$5,Ein_Texte!$T$11) -> Représentation communale | J31: 4
H32: =HYPERLINK(Repr_cmn!$A$5,Ein_Texte!$T$11) -> Représentation communale | J32: 5
H33: =HYPERLINK(Repr_cmn!$A$5,Ein_Texte!$T$11) -> Représentation communale | J33: 6
H34: =HYPERLINK(Repr_cmn!$A$5,Ein_Texte!$T$11) -> Représentation communale | J34: 7
H35: =HYPERLINK(Repr_cmn!$A$5,Ein_Texte!$T$11) -> Représentation communale | J35: 8
H36: =HYPERLINK(Repr_cmn!$A$5,Ein_Texte!$T$11) -> Représentation communale | J36: 9
H37: =HYPERLINK(Repr_cmn!$A$5,Ein_Texte!$T$11) -> Représentation communale | J37: 10
H38: =HYPERLINK(Repr_cmn!$A$5,Ein_Texte!$T$11) -> Représentation communale | J38: 11
H39: =HYPERLINK(Repr_cmn!$A$5,Ein_Texte!$T$11) -> Représentation communale | J39: 12
H40: =HYPERLINK(Repr_cmn!$A$5,Ein_Texte!$T$11) -> Représentation communale | J40: 13
H41: =HYPERLINK(Repr_cmn!$A$5,Ein_Texte!$T$11) -> Représentation communale | J41: 14
H42: =HYPERLINK(Repr_cmn!$A$5,Ein_Texte!$T$11) -> Représentation communale | J42: 15
H43: =HYPERLINK(Repr_cmn!$A$5,Ein_Texte!$T$11) -> Représentation communale | J43: 16
H44: =HYPERLINK(Repr_cmn!$A$5,Ein_Texte!$T$11) -> Représentation communale | J44: 17
H45: =HYPERLINK(Repr_cmn!$A$5,Ein_Texte!$T$11) -> Représentation communale | J45: 18
H46: =HYPERLINK(Repr_cmn!$A$5,Ein_Texte!$T$11) -> Représentation communale | J46: 19
H47: =HYPERLINK(Repr_cmn!$A$5,Ein_Texte!$T$11) -> Représentation communale | J47: 20
H48: =HYPERLINK(Repr_cmn!$A$5,Ein_Texte!$T$11) -> Représentation communale | J48: 21
H49: =HYPERLINK(Repr_cmn!$A$5,Ein_Texte!$T$11) -> Représentation communale | J49: 22
H50: =HYPERLINK(Repr_cmn!$A$5,Ein_Texte!$T$11) -> Représentation communale | J50: 23
H51: =HYPERLINK(Repr_cmn!$A$5,Ein_Texte!$T$11) -> Représentation communale | J51: 24
H52: =HYPERLINK(Repr_cmn!$A$5,Ein_Texte!$T$11) -> Représentation communale | J52: 25
H53: =HYPERLINK(Repr_cmn!$A$5,Ein_Texte!$T$11) -> Représentation communale | J53: 26
H54: =HYPERLINK(Repr_cmn!$A$5,Ein_Texte!$T$11) -> Représentation communale | J54: 27
H55: =HYPERLINK(Repr_cmn!$A$5,Ein_Texte!$T$11) -> Représentation communale | J55: 28
H56: =HYPERLINK(Repr_cmn!$A$5,Ein_Texte!$T$11) -> Représentation communale | J56: 29
H57: =HYPERLINK(Repr_cmn!$A$5,Ein_Texte!$T$11) -> Représentation communale | J57: 30
H58: =HYPERLINK(Repr_cmn!$A$5,Ein_Texte!$T$11) -> Représentation communale | J58: 31
H59: =HYPERLINK(Repr_cmn!$A$5,Ein_Texte!$T$11) -> Représentation communale | J59: 32
G60: =IFERROR(VLOOKUP(F60,GdeListeMitBFS,3,0),NoSpace) ->  | H60: =HYPERLINK(Repr_cmn!$A$5,Ein_Texte!$T$11) -> Représentation communale | J60: 33
H61: =HYPERLINK(Repr_cmn!$A$5,Ein_Texte!$T$11) -> Représentation communale | J61: 34
H62: =HYPERLINK(Repr_cmn!$A$5,Ein_Texte!$T$11) -> Représentation communale | J62: 35
H63: =HYPERLINK(Repr_cmn!$A$5,Ein_Texte!$T$11) -> Représentation communale | J63: 36
H64: =HYPERLINK(Repr_cmn!$A$5,Ein_Texte!$T$11) -> Représentation communale | J64: 37
H65: =HYPERLINK(Repr_cmn!$A$5,Ein_Texte!$T$11) -> Représentation communale | J65: 38
H66: =HYPERLINK(Repr_cmn!$A$5,Ein_Texte!$T$11) -> Représentation communale | J66: 39
H67: =HYPERLINK(Repr_cmn!$A$5,Ein_Texte!$T$11) -> Représentation communale | J67: 40
H68: =HYPERLINK(Repr_cmn!$A$5,Ein_Texte!$T$11) -> Représentation communale | J68: 41
H69: =HYPERLINK(Repr_cmn!$A$5,Ein_Texte!$T$11) -> Représentation communale | J69: 42
H70: =HYPERLINK(Repr_cmn!$A$5,Ein_Texte!$T$11) -> Représentation communale | J70: 43
H71: =HYPERLINK(Repr_cmn!$A$5,Ein_Texte!$T$11) -> Représentation communale | J71: 44
H72: =HYPERLINK(Repr_cmn!$A$5,Ein_Texte!$T$11) -> Représentation communale | J72: 45
H73: =HYPERLINK(Repr_cmn!$A$5,Ein_Texte!$T$11) -> Représentation communale | J73: 46
H74: =HYPERLINK(Repr_cmn!$A$5,Ein_Texte!$T$11) -> Représentation communale | J74: 47
H75: =HYPERLINK(Repr_cmn!$A$5,Ein_Texte!$T$11) -> Représentation communale | J75: 48
H76: =HYPERLINK(Repr_cmn!$A$5,Ein_Texte!$T$11) -> Représentation communale | J76: 49
H77: =HYPERLINK(Repr_cmn!$A$5,Ein_Texte!$T$11) -> Représentation communale | J77: 50
H78: =HYPERLINK(Repr_cmn!$A$5,Ein_Texte!$T$11) -> Représentation communale | J78: 51
H79: =HYPERLINK(Repr_cmn!$A$5,Ein_Texte!$T$11) -> Représentation communale | J79: 52
H80: =HYPERLINK(Repr_cmn!$A$5,Ein_Texte!$T$11) -> Représentation communale | J80: 53
H81: =HYPERLINK(Repr_cmn!$A$5,Ein_Texte!$T$11) -> Représentation communale | J81: 54
H82: =HYPERLINK(Repr_cmn!$A$5,Ein_Texte!$T$11) -> Représentation communale | J82: 55
H83: =HYPERLINK(Repr_cmn!$A$5,Ein_Texte!$T$11) -> Représentation communale | J83: 56
H84: =HYPERLINK(Repr_cmn!$A$5,Ein_Texte!$T$11) -> Représentation communale | J84: 57
H85: =HYPERLINK(Repr_cmn!$A$5,Ein_Texte!$T$11) -> Représentation communale | J85: 58
H86: =HYPERLINK(Repr_cmn!$A$5,Ein_Texte!$T$11) -> Représentation communale | J86: 59
H87: =HYPERLINK(Repr_cmn!$A$5,Ein_Texte!$T$11) -> Représentation communale | J87: 60
H88: =HYPERLINK(Repr_cmn!$A$5,Ein_Texte!$T$11) -> Représentation communale | J88: 61
H89: =HYPERLINK(Repr_cmn!$A$5,Ein_Texte!$T$11) -> Représentation communale | J89: 62
H90: =HYPERLINK(Repr_cmn!$A$5,Ein_Texte!$T$11) -> Représentation communale | J90: 63
H91: =HYPERLINK(Repr_cmn!$A$5,Ein_Texte!$T$11) -> Représentation communale | J91: 64
G92: =IFERROR(VLOOKUP(F92,GdeListeMitBFS,3,0),NoSpace) ->  | H92: =HYPERLINK(Repr_cmn!$A$5,Ein_Texte!$T$11) -> Représentation communale | J92: 65
H93: =HYPERLINK(Repr_cmn!$A$5,Ein_Texte!$T$11) -> Représentation communale | J93: 66
H94: =HYPERLINK(Repr_cmn!$A$5,Ein_Texte!$T$11) -> Représentation communale | J94: 67
H95: =HYPERLINK(Repr_cmn!$A$5,Ein_Texte!$T$11) -> Représentation communale | J95: 68
H96: =HYPERLINK(Repr_cmn!$A$5,Ein_Texte!$T$11) -> Représentation communale | J96: 69
H97: =HYPERLINK(Repr_cmn!$A$5,Ein_Texte!$T$11) -> Représentation communale | J97: 70
H98: =HYPERLINK(Repr_cmn!$A$5,Ein_Texte!$T$11) -> Représentation communale | J98: 71
H99: =HYPERLINK(Repr_cmn!$A$5,Ein_Texte!$T$11) -> Représentation communale | J99: 72
H100: =HYPERLINK(Repr_cmn!$A$5,Ein_Texte!$T$11) -> Représentation communale | J100: 73
H101: =HYPERLINK(Repr_cmn!$A$5,Ein_Texte!$T$11) -> Représentation communale | J101: 74
H102: =HYPERLINK(Repr_cmn!$A$5,Ein_Texte!$T$11) -> Représentation communale | J102: 75
H103: =HYPERLINK(Repr_cmn!$A$5,Ein_Texte!$T$11) -> Représentation communale | J103: 76
H104: =HYPERLINK(Repr_cmn!$A$5,Ein_Texte!$T$11) -> Représentation communale | J104: 77
H105: =HYPERLINK(Repr_cmn!$A$5,Ein_Texte!$T$11) -> Représentation communale | J105: 78
H106: =HYPERLINK(Repr_cmn!$A$5,Ein_Texte!$T$11) -> Représentation communale | J106: 79
H107: =HYPERLINK(Repr_cmn!$A$5,Ein_Texte!$T$11) -> Représentation communale | J107: 80
H108: =HYPERLINK(Repr_cmn!$A$5,Ein_Texte!$T$11) -> Représentation communale | J108: 81
H109: =HYPERLINK(Repr_cmn!$A$5,Ein_Texte!$T$11) -> Représentation communale | J109: 82
H110: =HYPERLINK(Repr_cmn!$A$5,Ein_Texte!$T$11) -> Représentation communale | J110: 83
H111: =HYPERLINK(Repr_cmn!$A$5,Ein_Texte!$T$11) -> Représentation communale | J111: 84
H112: =HYPERLINK(Repr_cmn!$A$5,Ein_Texte!$T$11) -> Représentation communale | J112: 85
H113: =HYPERLINK(Repr_cmn!$A$5,Ein_Texte!$T$11) -> Représentation communale | J113: 86
H114: =HYPERLINK(Repr_cmn!$A$5,Ein_Texte!$T$11) -> Représentation communale | J114: 87
H115: =HYPERLINK(Repr_cmn!$A$5,Ein_Texte!$T$11) -> Représentation communale | J115: 88
H116: =HYPERLINK(Repr_cmn!$A$5,Ein_Texte!$T$11) -> Représentation communale | J116: 89
H117: =HYPERLINK(Repr_cmn!$A$5,Ein_Texte!$T$11) -> Représentation communale | J117: 90
H118: =HYPERLINK(Repr_cmn!$A$5,Ein_Texte!$T$11) -> Représentation communale | J118: 91
H119: =HYPERLINK(Repr_cmn!$A$5,Ein_Texte!$T$11) -> Représentation communale | J119: 92
H120: =HYPERLINK(Repr_cmn!$A$5,Ein_Texte!$T$11) -> Représentation communale | J120: 93
H121: =HYPERLINK(Repr_cmn!$A$5,Ein_Texte!$T$11) -> Représentation communale | J121: 94
H122: =HYPERLINK(Repr_cmn!$A$5,Ein_Texte!$T$11) -> Représentation communale | J122: 95
H123: =HYPERLINK(Repr_cmn!$A$5,Ein_Texte!$T$11) -> Représentation communale | J123: 96
G124: =IFERROR(VLOOKUP(F124,GdeListeMitBFS,3,0),NoSpace) ->  | H124: =HYPERLINK(Repr_cmn!$A$5,Ein_Texte!$T$11) -> Représentation communale | J124: 97
H125: =HYPERLINK(Repr_cmn!$A$5,Ein_Texte!$T$11) -> Représentation communale | J125: 98
H126: =HYPERLINK(Repr_cmn!$A$5,Ein_Texte!$T$11) -> Représentation communale | J126: 99
H127: =HYPERLINK(Repr_cmn!$A$5,Ein_Texte!$T$11) -> Représentation communale | J127: 100
I128: 101
I129: 102
I130: 103
I131: 104
I132: 105
I133: 106
I134: 107
I135: 108
I136: 109
I137: 110
I138: 111
I139: 112
I140: 113

Sheet Input
D1: =Ein_Texte!$U$5 -> Input principal
D3: =Ein_Texte!$U$8 -> Commune: | G3: =Ein_Texte!U9 -> Année de bilan: | I3: =Ein_Texte!U25 -> Données obligatoires
D4: =IF(Aperçu!$F$28=0,"",Aperçu!$F$28) ->  | G4: =IF(Aperçu!B28=0,NoSpace,Aperçu!B28) ->  | I4: =Ein_Texte!U26 -> Données facultatives
B5: =SUM($B$13:$B$212) -> 0
B6: =COUNT($B$13:$B$212) -> 0 | D6: =Ein_Texte!U34 -> Table des matières
A11: Idx | H11: =Ein_Texte!I4 -> Année de la collecte | I11: =Ein_Texte!J4 -> Source des données | J11: =Ein_Texte!K4 -> Qualité des données | K11: =Ein_Texte!L4 -> Responsabilité | L11: =Ein_Texte!M4 -> Remarques
D12: =Ein_Texte!D5 -> Habitants
A13: =Ein_Texte!$A$5 -> 1 | D13: =Ein_Texte!F5 -> Nombre d'habitants | F13: hab.
A14: =Ein_Texte!$A$6 -> 2 | D14: =Ein_Texte!F6 -> Nombre d'habitants estimé pour 2025 | F14: hab.
A15: =Ein_Texte!$A$7 -> 3 | D15: =Ein_Texte!F7 -> Nombre d'habitants estimé pour 2035 | F15: hab.
D17: =Ein_Texte!D8 -> Chaleur
D18: =Ein_Texte!E8 -> Chauffage et eau chaude sanitaire
D19: =Ein_Texte!$R$11&IF(F20=F21,OneSpace&IF(F20=Ein_Texte!$O$11,Ein_Texte!$U$22,Ein_Texte!$U$23),NoSpace) -> Chauffage au mazout Puissance inst. | F19: =IF(F20=F21,Ein_Texte!U$13&OneSpace&F20&OneSpace,NoSpace) -> Somme kW | G19: =IF(F20=F21,G20+G21,"-") -> 0
A20: =Ein_Texte!$A$8 -> 14 | D20: =Ein_Texte!F8 -> Chauffage au mazout avec puissance calorifique < 70 kW | F20: kW | I20: Contrôle des installations de combustion | L20: hors chaleur à distance
A21: =Ein_Texte!$A$9 -> 15 | D21: =Ein_Texte!F9 -> Chauffage au mazout avec puissance calorifique >= 70 kW | F21: kW | I21: Contrôle des installations de combustion | L21: hors chaleur à distance
D23: =Ein_Texte!$R$13&IF(F24=F25,OneSpace&IF(F24=Ein_Texte!O11,Ein_Texte!$U$22,OneSpace&Ein_Texte!$U$23),NoSpace) -> Chauffage au charbon Puissance inst. | F23: =IF(F24=F25,Ein_Texte!U$13&OneSpace&F24&OneSpace,NoSpace) -> Somme kW | G23: =IF(F24=F25,G24+G25,"-") -> 0
A24: =Ein_Texte!$A$10 -> 16 | D24: =Ein_Texte!F10 -> Chauffage au charbon avec puissance calorifique < 70 kW | F24: kW | I24: Contrôle des installations de combustion | L24: hors chaleur à distance
A25: =Ein_Texte!$A$11 -> 17 | D25: =Ein_Texte!F11 -> Chauffage au charbon avec puissance calorifique >= 70 kW | F25: kW | I25: Contrôle des installations de combustion | L25: hors chaleur à distance
D27: =Ein_Texte!U24 -> Consommation de gaz naturel (pouvoir calorifique) | F27: =Ein_Texte!U$13&OneSpace&F28&OneSpace -> Somme MWh/an | G27: =G28+G29 -> 0
A28: =Ein_Texte!$A$12 -> 18 | D28: =Ein_Texte!F12 -> Gaz naturel Ménages privés | F28: MWh/an | I28: Centrale à gaz | L28: hors chaleur à distance
A29: =Ein_Texte!$A$13 -> 19 | D29: =Ein_Texte!F13 -> Gaz naturel Industrie et artisanat | F29: MWh/an | I29: Centrale à gaz | L29: hors chaleur à distance
A30: =Ein_Texte!$A$14 -> 20 | D30: =Ein_Texte!F14 -> dont biogaz domestique (certificats et consommation propre, hors CETE) | F30: MWh/an | I30: Centrale à gaz | L30: hors chaleur à distance
A32: =Ein_Texte!$A$15 -> 21 | D32: =Ein_Texte!F15 -> Installations solaires thermiques | F32: m²
A33: =Ein_Texte!$A$16 -> 22 | D33: =Ein_Texte!F16 -> Chauffages et chauffe-eau électriques | F33: kW | I33: Centrales électriques
A34: =Ein_Texte!$A$17 -> 23 | D34: =Ein_Texte!F17&OneSpace&IF(F34=Ein_Texte!N17,Ein_Texte!P17,Ein_Texte!Q17) -> Pompes à chaleur Puissance électrique | F34: kW | I34: Centrales électriques | L34: hors chaleur à distance
A36: =Ein_Texte!$A$18 -> 24 | D36: =Ein_Texte!F18 -> Chaleur locale ou à distance totale | F36: MWh/an | I36: Exploitant du réseau CAD | L36: Définir ici le mix agents énergétiques
D38: =Ein_Texte!$R$22&IF(F39=F40,OneSpace&IF(F39=Ein_Texte!$O$11,Ein_Texte!$U$22,Ein_Texte!$U$23),NoSpace) -> Chauffages à bois Puissance inst. | F38: =IF(F39=F40,Ein_Texte!U$13&OneSpace&F39&OneSpace,NoSpace) -> Somme kW | G38: =IF(F39=F40,G39+G40,"-") -> 0
A39: =Ein_Texte!$A$19 -> 25 | D39: =Ein_Texte!F19 -> Chauffages à bois avec puissance calorifique < 70 kW | F39: kW | I39: Contrôle des installations de combustion | L39: hors chaleur à distance
A40: =Ein_Texte!$A$20 -> 26 | D40: =Ein_Texte!F20 -> Chauffages à bois avec puissance calorifique >= 70 kW | F40: kW | I40: Contrôle des installations de combustion | L40: hors chaleur à distance
A42: =Ein_Texte!$A$21 -> 27 | D42: =Ein_Texte!F21 -> Exploitation des rejets de chaleur | F42: MWh/an
A43: =Ein_Texte!$A$22 -> 28 | D43: =Ein_Texte!F22 -> Autres types de production de chaleur (énergie finale) | F43: MWh/an | L43: Définir ici le facteur EP et GES
D45: =Ein_Texte!E23 -> Chaleur industrielle
A46: =Ein_Texte!$A$23 -> 29 | D46: =Ein_Texte!F23 -> Consommation de gaz en juillet (pouvoir calorifique) | F46: MWh/juillet | I46: Centrale à gaz
D48: =Ein_Texte!E24 -> Degrés-jours de chauffage (20/12)
A49: =Ein_Texte!$A$24 -> 309 | D49: =Ein_Texte!F24 -> Prochaine station de mesure de MétéoSuisse | I49: MétéoSuisse, SIA 381/3
D51: =Ein_Texte!D25 -> Electricité
D52: =Ein_Texte!E37 -> Vente et marquage de l'électricité (y c. vente sur le marché libre en dehors de la zone du bilan)
D53: =Ein_Texte!F37 -> Ménages privés | F53: MWh/an | G53: =Input_électr!E13 -> 0
D54: =Ein_Texte!F38 -> Artisanat et industrie | F54: MWh/an | G54: =Input_électr!E14 -> 0
D55: =Ein_Texte!U38 -> dont vente sur un marché libre hors de la zone du bilan | F55: MWh/an | G55: =Input_électr!E31 -> 0
D56: =Ein_Texte!D203 -> Achat sur le marché libre | F56: MWh/an | G56: =Input_électr!F78 -> 0
D59: =Ein_Texte!E25 -> Production d'électricité locale (électricité produite sur le territoire de la commune)
D60: =Ein_Texte!U15&OneSpace&IF(F68=Ein_Texte!$N$32,Ein_Texte!U39,NoSpace) -> Production totale | F60: =Ein_Texte!U13&OneSpace&F61&OneSpace -> Somme MWh/an | G60: =SUM(G61:G67,G69:G70,IF(F68=Ein_Texte!$N$32,0,Input!G68)) -> 0
A61: =Ein_Texte!$A$25 -> 30 | D61: =Ein_Texte!F25 -> Incinération des ordures ménagères | F61: MWh/an
A62: =Ein_Texte!$A$26 -> 31 | D62: =Ein_Texte!F26 -> Centrale à énergie totale équipée alimentée au diesel | F62: MWh/an
A63: =Ein_Texte!$A$27 -> 32 | D63: =Ein_Texte!F27 -> CETE Gaz naturel | F63: MWh/an
A64: =Ein_Texte!$A$28 -> 33 | D64: =Ein_Texte!F28 -> CETE Biogaz/gaz de digestion | F64: MWh/an
A65: =Ein_Texte!$A$29 -> 34 | D65: =Ein_Texte!F29 -> Centrale de chauffage à bois | F65: MWh/an
A66: =Ein_Texte!$A$30 -> 35 | D66: =Ein_Texte!F30 -> Énergie hydraulique | F66: MWh/an
A67: =Ein_Texte!$A$31 -> 36 | D67: =Ein_Texte!F31 -> Energie éolienne | F67: MWh/an
A68: =Ein_Texte!$A$32 -> 37 | D68: =Ein_Texte!F32 -> Photovoltaïque (y c. autoconsommation) | F68: MWh/an
A69: =Ein_Texte!$A$33 -> 38 | D69: =Ein_Texte!F33 -> Géothermie (centrale) | F69: MWh/an
A70: =Ein_Texte!$A$34 -> 39 | D70: =Ein_Texte!F34 -> Autres | F70: MWh/an | L70: Définir ici le facteur EP et GES
D72: =Ein_Texte!D220 -> Mobilité
D73: =Ein_Texte!E220 -> Voitures particulières immatriculés
D74: =Ein_Texte!U13 -> Somme | F74: =Ein_Texte!U13&OneSpace&F75&OneSpace -> Somme Unité | G74: =SUM(G75:G78) -> 0
A75: =Ein_Texte!$A$220 -> 225 | D75: =Ein_Texte!F220 -> Essence | F75: Unité | I75: =HYPERLINK("http://www.2000watt.ch/fr/nicht-im-menue/contact/","Antenne Société à 2000 watts") -> Antenne Société à 2000 watts
A76: =Ein_Texte!$A$221 -> 226 | D76: =Ein_Texte!F221 -> Diesel | F76: Unité | I76: =HYPERLINK("http://www.2000watt.ch/fr/nicht-im-menue/contact/","Antenne Société à 2000 watts") -> Antenne Société à 2000 watts
A77: =Ein_Texte!$A$222 -> 227 | D77: =Ein_Texte!F222 -> Electricité | F77: Unité | I77: =HYPERLINK("http://www.2000watt.ch/fr/nicht-im-menue/contact/","Antenne Société à 2000 watts") -> Antenne Société à 2000 watts
A78: =Ein_Texte!$A$223 -> 228 | D78: =Ein_Texte!F223 -> Gaz | F78: Unité | I78: =HYPERLINK("http://www.2000watt.ch/fr/nicht-im-menue/contact/","Antenne Société à 2000 watts") -> Antenne Société à 2000 watts
D80: =Ein_Texte!D233 -> Potentiels
D81: =Ein_Texte!E224 -> Surfaces
A82: =Ein_Texte!$A$224 -> 4 | D82: =Ein_Texte!F224 -> Zone d'habitation avec immeubles de 1 à 2 étages | F82: ha | I82: Office des constructions
A83: =Ein_Texte!$A$225 -> 5 | D83: =Ein_Texte!F225 -> Zone d'habitation avec immeubles de 3 à 5 étages | F83: ha | I83: Office des constructions
A84: =Ein_Texte!$A$226 -> 6 | D84: =Ein_Texte!F226 -> Zone d'habitation et d'artisanat (2 étages) | F84: ha | I84: Office des constructions
A85: =Ein_Texte!$A$227 -> 7 | D85: =Ein_Texte!F227 -> Zone d'habitation et d'artisanat (3 étages et plus) | F85: ha | I85: Office des constructions
A86: =Ein_Texte!$A$228 -> 8 | D86: =Ein_Texte!F228 -> Zone d'artisanat | F86: ha | I86: Office des constructions
A87: =Ein_Texte!$A$229 -> 9 | D87: =Ein_Texte!F229 -> Zone industrielle | F87: ha | I87: Office des constructions
A88: =Ein_Texte!$A$230 -> 10 | D88: =Ein_Texte!F230 -> Zone avec bâtiments publics | F88: ha | I88: Office des constructions
A89: =Ein_Texte!$A$231 -> 11 | D89: =Ein_Texte!F231 -> Zone centrale | F89: ha | I89: Office des constructions
A90: =Ein_Texte!$A$232 -> 13 | D90: =Ein_Texte!F232 -> Forêt | F90: ha | I90: Office des constructions
D92: =Ein_Texte!E233 -> Energie solaire
A93: =Ein_Texte!$A$233 -> 229 | D93: =IF(F93=Ein_Texte!N42,Ein_Texte!P42,Ein_Texte!Q42) -> Quelle proportion doivent couvrir les installations photovoltaïques dans l'exploitation du potentiel solaire? | F93: % | G93: 80 | I93: =Ein_Texte!$R$42 -> OFEN: facade-au-soleil.ch | L93: L'unité (% ou GWh/a) permet de choisir si le potentiel doit provenir de facade-au-soleil.ch ou doit être calculé.
A94: =Ein_Texte!$A$234 -> 230 | D94: =IF(F93=Ein_Texte!N43,Ein_Texte!P43,Ein_Texte!Q43) -> Quelle proportion doivent couvrir les installations solaires thermiques dans l'exploitation du potentiel solaire? | F94: =F93 -> % | G94: 20 | I94: =Ein_Texte!$R$42 -> OFEN: facade-au-soleil.ch
D96: =Ein_Texte!E235 -> Rejets de chaleur issus de l'exploitation
A97: =Ein_Texte!$A$235 -> 231 | D97: =Ein_Texte!F235 -> Energie nécessaire au refroidissement des installations de climatisation mises en place (bâtiments de service) | F97: kW | I97: Demande auprès des entreprises
A98: =Ein_Texte!$A$236 -> 232 | D98: =Ein_Texte!F236 -> Energie nécessaire au refroidissement des installations de froid industriel mises en place (entrepôts frigorifiques, centres de calcul, patinoires artificielles, autres installations nécessitant la production de froid sur une longue durée) | F98: kW | I98: Demande auprès des entreprises
A99: =Ein_Texte!$A$237 -> 233 | D99: =Ein_Texte!F237 -> Rejets de chaleur supplémentaires utilisables (hors gaz de procédé) | F99: MWh/an | I99: Demande auprès des entreprises | L99: =HYPERLINK("http://www.bfe.admin.ch/php/modules/publikationen/stream.php?extlang=de&name=de_134659220.pdf","Air comprimé spécial, étude de l'OFEN « Elektrizitaetsverbrauch Druckluft in der Schweiz » (Consommation d'électricité des installations d'air comprimé en Suisse, en allemand, résumé en français, 2014)") -> Air comprimé spécial, étude de l'OFEN « Elektrizitaetsverbrauch Druckluft in der Schweiz » (Consommation d'électricité des installations d'air comprimé en Suisse, en allemand, résumé en français, 2014)
D101: =Ein_Texte!E238 -> Biomasse forestière
A102: =Ein_Texte!$A$238 -> 234 | D102: =IF(F102=Ein_Texte!N46,Ein_Texte!F238,Ein_Texte!P46) -> Quelle est la part de surface forestière non exploitable à des fins énergétiques ? | F102: % | I102: Service des forêts (communal ou cantonal)
D104: =Ein_Texte!E239 -> Biomasse agricole et ménagère
A105: =Ein_Texte!$A$239 -> 235 | D105: =Ein_Texte!F239 -> Bovins | F105: Unité | I105: =HYPERLINK("https://www.pxweb.bfs.admin.ch/pxweb/fr/?rxid=bc4c75f8-565b-4769-942f-efdeff3014bf","Office fédéral de la statistique") -> Office fédéral de la statistique
A106: =Ein_Texte!$A$240 -> 236 | D106: =Ein_Texte!F240 -> Porcs | F106: Unité
A107: =Ein_Texte!$A$241 -> 237 | D107: =Ein_Texte!F241 -> Déchets verts | F107: t/a
D109: =Ein_Texte!E242 -> Energie éolienne
A110: =Ein_Texte!$A$242 -> 238 | D110: =IF(F110=Ein_Texte!N242,Ein_Texte!F242,Ein_Texte!P50) -> Quelle surface de la commune est identifiée comme territoire disposant d'un potentiel éolien? | F110: km² | I110: =HYPERLINK("https://map.geo.admin.ch/?layers=ch.bfe.windenergie-potenzialgebiete,ch.swisstopo.swissboundaries3d-gemeinde-flaeche.fill&topic=ech&lang=fr&bgLayer=ch.swisstopo.pixelkarte-grau&zoom=2&layers_opacity=0.75,1&E=2641693.33&N=1227871.59","map.geo.admin.ch/windpotentialgebiete") -> map.geo.admin.ch/windpotentialgebiete
D112: =Ein_Texte!E243 -> Chaleur des eaux usées
A113: =Ein_Texte!$A$243 -> 239 | D113: =IF(F113=Ein_Texte!N51,Ein_Texte!F243,Ein_Texte!P51) -> Quelle est la somme des débits moyens journaliers par temps sec (minimum 15 l/s) dans les canaux de collecte des eaux usées dans la région d'exploitation ? | F113: l/s | I113: STEP / Office des ponts et chaussées / études éventuelles sur le même thème
A114: =Ein_Texte!$A$244 -> 240 | D114: =IF(F114=Ein_Texte!N51,Ein_Texte!F244,Ein_Texte!P52) -> Quelle est la somme des débits moyens journaliers par temps sec (minimum 15 l/s) à l'arrivée dans la station d'épuration de la commune, située à maximum 1 km des moyens à gros consommateurs de chaleur ? | F114: l/s | I114: STEP / Office des ponts et chaussées / études éventuelles sur le même thème
D116: =Ein_Texte!E245 -> Eaux de surface
A117: =Ein_Texte!$A$245 -> 241 | D117: =IF(F117=Ein_Texte!N53,Ein_Texte!F245,Ein_Texte!P245) -> Exploitation de la chaleur: existe-t-il une étendue d'eau de min. 1 km² à proximité de la région d'exploitation ? Si oui, quelle est la longueur de la rive attenante ou au max. éloignée de 100 m ? | F117: m
A118: =Ein_Texte!$A$246 -> 242 | D118: =IF(F118=Ein_Texte!N54,Ein_Texte!F246,Ein_Texte!P246) -> Exploitation de la chaleur: quel est le débit des cours d'eau de la commune par temps sec (Q347)? | F118: l/s | I118: =HYPERLINK("https://map.geo.admin.ch/?layers=ch.bafu.hydrologie-q347&topic=ech&lang=fr&bgLayer=ch.swisstopo.pixelkarte-grau&X=234032.09&Y=622124.83&zoom=3&layers_opacity=0.75","geo.admin.ch: bases relatives à la détermination du débit Q347") -> geo.admin.ch: bases relatives à la détermination du débit Q347
A119: =Ein_Texte!$A$247 -> 243 | D119: =Ein_Texte!F247 -> Production d'électricité: existe-t-il, sur le territoire de la commune, un cours d'eau qui pourrait être exploité en supplément? Si oui, combien d'énergie finale pourrait ainsi être produite? | F119: MWh/an
D121: =Ein_Texte!E248 -> Géothermie peu profonde et exploitation de la chaleur des eaux souterraines
A122: =Ein_Texte!$A$248 -> 244 | D122: =IF(F122=Ein_Texte!N56,Ein_Texte!F248,Ein_Texte!P56) -> Existe-t-il des zones de protection des eaux souterraines à l'intérieur de la zone habitée ? Si oui, quelle est la taille de la zone de protection (S1 - S3) ? | F122: ha | I122: =HYPERLINK("https://map.geo.admin.ch/?layers=ch.bafu.grundwasserschutzzonen&topic=ech&lang=fr&bgLayer=ch.swisstopo.pixelkarte-grau&X=223586.59&Y=632740.83&zoom=2&layers_opacity=0.75","geo.admin.ch: zones de protection des eaux souterraines") -> geo.admin.ch: zones de protection des eaux souterraines
D124: =Ein_Texte!E249 -> Géothermie profonde
A125: =Ein_Texte!$A$249 -> 245 | D125: =Ein_Texte!F249 -> A-t-on connaissance, sur le territoire de la commune, d'un potentiel supplémentaire/non exploité permettant d'utiliser la géothermie profonde pour produire de la chaleur (chaleur à distance)? Si oui, combien d'énergie finale pourrait ainsi être produite? | F125: MWh/an
A126: =Ein_Texte!$A$250 -> 246 | D126: =Ein_Texte!F250 -> A-t-on connaissance, sur le territoire de la commune, d'un potentiel supplémentaire/non exploité permettant d'utiliser la géothermie profonde pour produire de l'électricité? Si oui, combien de MWh/a pourraient ainsi être produits? | F126: MWh/an
D128: =Ein_Texte!D252 -> Indicateurs | H128: =Ein_Texte!$U$35 -> Vers la table des matières
D129: =Ein_Texte!E251 -> Electricité
A130: =Ein_Texte!$A$251 -> 247 | D130: =Ein_Texte!F251 -> Total consommation courant vert | F130: MWh/an | I130: Entreprise électrique | L130: Mesure 3.1.2, Catalogue Cité de l'énergie 2017
D132: =Ein_Texte!E252 -> Chaleur
A133: =Ein_Texte!$A$252 -> 248 | D133: =Ein_Texte!F252 -> selon la surface de référence énergétique certifiée Minergie dans la commune | F133: m² | I133: =HYPERLINK("https://www.minergie.ch/fr/batiments/","minergie.ch: Bâtiment") -> minergie.ch: Bâtiment | L133: Mesure 6.2.4, Catalogue Cité de l'énergie 2017
A134: =Ein_Texte!$A$253 -> 249 | D134: =Ein_Texte!F253 -> Nombre total de CECB établis sur le territoire communal | F134: Unité | L134: Mesure 6.2.4, Catalogue Cité de l'énergie 2017
A135: =Ein_Texte!$A$254 -> 250 | D135: =Ein_Texte!F254 -> Nombre total de bâtiments sur le territoire communal | F135: Unité | I135: Registre fédéral des bâtiments et des logements (RegBL) | L135: Mesure 6.2.4, Catalogue Cité de l'énergie 2017
D137: =Ein_Texte!E255 -> Mobilité
A138: =Ein_Texte!$A$255 -> 252 | D138: =Ein_Texte!F255 -> Nombre d'utilisateurs de carsharing | F138: Unité | L138: Mesure 4.4.2, Catalogue Cité de l'énergie 2017
A139: =Ein_Texte!$A$256 -> 253 | D139: =Ein_Texte!F256 -> Nombre de départs en transports publics | F139: Unité | L139: Mesure 4.4.1, Catalogue Cité de l'énergie 2017
A140: =Ein_Texte!$A$257 -> 254 | D140: =Ein_Texte!F257 -> Contributions financières aux transports publics | F140: CHF/a | L140: Mesure 4.4.1, Catalogue Cité de l'énergie 2017
D142: =Ein_Texte!E258 -> Eau
A143: =Ein_Texte!$A$258 -> 255 | D143: =Ein_Texte!F258 -> Consommation d'eau potable sur le territoire communal | F143: m³/a | I143: Approvisionnement en eau territoire communal | L143: Mesure 3.2.4, Catalogue Cité de l'énergie 2017
D145: =Ein_Texte!E259 -> Déchets
A146: =Ein_Texte!$A$259 -> 256 | D146: =Ein_Texte!F259 -> Déchets urbains sur le territoire communal | F146: kg/a | I146: Statistiques cantonales des déchets | L146: Mesure 3.2.7, Catalogue Cité de l'énergie 2017
D148: =Ein_Texte!E261 -> Sur le plan qualitatif
A149: =Ein_Texte!$A$260 -> 12 | D149: =Ein_Texte!F260 -> Zone de détente | F149: ha | I149: Office des constructions | L149: Mesure 3.2.5, Catalogue Cité de l'énergie 2017
A150: =Ein_Texte!$A$261 -> 257 | D150: =Ein_Texte!F261 -> Nombre de conseils énergétiques | F150: Nombre/an | L150: Mesure 6.1.3, Catalogue Cité de l'énergie 2017
A151: =Ein_Texte!$A$262 -> 258 | D151: =Ein_Texte!F262 -> Subventions versées issues des encouragements communaux ou d'EAE | F151: CHF/a | L151: Mesure 6.1.4, Catalogue Cité de l'énergie 2017
A152: =Ein_Texte!$A$263 -> 259 | D152: =Ein_Texte!F263 -> Nombre total d'entreprises | F152: Unité | L152: Mesure 6.2.3, Catalogue Cité de l'énergie 2017
A153: =Ein_Texte!$A$264 -> 260 | D153: =Ein_Texte!F264 -> Nombre d'entreprises avec programmes d'efficacité contraignants | F153: Unité | L153: Mesure 6.2.3, Catalogue Cité de l'énergie 2017
A154: =Ein_Texte!$A$265 -> 261 | D154: =Ein_Texte!F265 -> Nombre d'entreprises avec gestion de la mobilité | F154: Unité | I154: « Gestion de la mobilité dans les entreprises », SuisseEnergie | L154: Mesure 6.2.3, Catalogue Cité de l'énergie 2017
D156: =Ein_Texte!D266 -> Paramètres communaux
D157: =Ein_Texte!E266 -> Energie primaire et gaz à effet de serre
A158: =Ein_Texte!$A$266 -> 262 | D158: =Ein_Texte!F266 -> Facteur d'énergie primaire Autres types de production de chaleur | F158: MJéq/MJ | G158: 1
A159: =Ein_Texte!$A$267 -> 263 | D159: =Ein_Texte!F267 -> Facteur d'énergie primaire Autres types de production d'électricité | F159: MJéq/MJ | G159: 1
A160: =Ein_Texte!$A$268 -> 264 | D160: =Ein_Texte!F268 -> Coefficient d'émissions de gaz à effet de serre Autres types de production de chaleur | F160: kg/kWh | G160: 0
A161: =Ein_Texte!$A$269 -> 265 | D161: =Ein_Texte!F269 -> Coefficient d'émissions de gaz à effet de serre Autres types de production d'électricité | F161: kg/kWh | G161: 0
D163: =Ein_Texte!$U$27&OneSpace&Aperçu!$D$9 -> Objectifs de décroissance durant l'année de prévision variable 2025
A164: =Ein_Texte!$A$270 -> 266 | D164: =Ein_Texte!F270&OneSpace&"(min. "&Dauerl_CH_2000W&" W)" -> Puissance continue (min. 2000 W) | F164: W/hab. | L164: Peut être établi après les premiers calculs.
A165: =Ein_Texte!$A$271 -> 267 | D165: =Ein_Texte!F271&" (min. 0.1 t/a)" -> Emissions de gaz à effet de serre (min. 0.1 t/a) | F165: t/hab.
D167: =Ein_Texte!E275 -> Parts de consommation et de production
A168: =Ein_Texte!$A$272 -> 269 | D168: =Ein_Texte!F272 -> CETE Rendement électrique | F168: % | G168: 30
A169: =Ein_Texte!$A$273 -> 270 | D169: =Ein_Texte!F273 -> CETE Rendement thermique | F169: % | G169: 60
A170: =Ein_Texte!$A$274 -> 271 | D170: =Ein_Texte!F274 -> Part de récupération de la chaleur industrielle | F170: % | G170: 15
A171: =Ein_Texte!$A$275 -> 272 | D171: =Ein_Texte!F275 -> Part des pompes à chaleur dans les ménages (part de l'industrie = 100% - part des ménages) | F171: % | G171: 100
A172: =Ein_Texte!$A$276 -> 273 | D172: =Ein_Texte!F276 -> Part de chauffages électriques dans les ménages (part de l'industrie = 100% - part des ménages) | F172: % | G172: 50
A173: =Ein_Texte!$A$277 -> 274 | D173: =Ein_Texte!F277 -> Part d'exploitation des rejets de chaleur dans les ménages (part de l'industrie = 100% - part des ménages) | F173: % | G173: 50
A174: =Ein_Texte!$A$278 -> 275 | D174: =Ein_Texte!F278 -> Autre part de production de chaleur dans les ménages (part de l'industrie = 100% - part des ménages) | F174: % | G174: 50
A175: =Ein_Texte!$A$279 -> 276 | D175: =Ein_Texte!F279 -> Autre part de la production d'électricité dans les ménages (part de l'industrie = 100% - part des ménages) | F175: % | G175: 50
A176: =Ein_Texte!$A$280 -> 277 | D176: =Ein_Texte!F280 -> Part des pompes à chaleur dans l'approvisionnement de base (part du marché libre = 100% - part de l'approvisionnement de base) | F176: % | G176: 100
A177: =Ein_Texte!$A$281 -> 278 | D177: =Ein_Texte!F281 -> Part de la mobilité électrique dans l'approvisionnement de base (part du marché libre = 100% - part de l'approvisionnement de base) | F177: % | G177: 50
A178: =Ein_Texte!$A$282 -> 279 | D178: =Ein_Texte!F282 -> Part de chauffages électriques dans l'approvisionnement de base (part du marché libre = 100% - part de l'approvisionnement de base) | F178: % | G178: 90
D180: =Ein_Texte!E284 -> Chaleur à distance Mix agents énergétiques
A181: =Ein_Texte!$A$283 -> 280 | D181: =Ein_Texte!F283 -> Centrale de chauffage, bois | F181: % | G181: 15.9 | I181: Exploitant du réseau CAD
A182: =Ein_Texte!$A$284 -> 281 | D182: =Ein_Texte!F284 -> Centrale à cogénération, bois | F182: % | G182: 0 | I182: Exploitant du réseau CAD
A183: =Ein_Texte!$A$285 -> 282 | D183: =Ein_Texte!F285 -> Centrale thermique PACE air/eau | F183: % | G183: 6.2 | I183: Exploitant du réseau CAD
A184: =Ein_Texte!$A$286 -> 283 | D184: =Ein_Texte!F286 -> Centrale thermique PACE sonde géothermique | F184: % | G184: 0 | I184: Exploitant du réseau CAD
A185: =Ein_Texte!$A$287 -> 284 | D185: =Ein_Texte!F287 -> Centrale thermique PACE eaux usées | F185: % | G185: 0 | I185: Exploitant du réseau CAD
A186: =Ein_Texte!$A$288 -> 285 | D186: =Ein_Texte!F288 -> Centrale thermique PACE eaux souterraines | F186: % | G186: 0 | I186: Exploitant du réseau CAD
A187: =Ein_Texte!$A$289 -> 286 | D187: =Ein_Texte!F289 -> Centrale de chauffage, géothermie | F187: % | G187: 0 | I187: Exploitant du réseau CAD
A188: =Ein_Texte!$A$290 -> 287 | D188: =Ein_Texte!F290 -> Centrale à cogénération, géothermie | F188: % | G188: 0 | I188: Exploitant du réseau CAD
A189: =Ein_Texte!$A$291 -> 288 | D189: =Ein_Texte!F291 -> Incinération des ordures ménagères | F189: % | G189: 48.5 | I189: Exploitant du réseau CAD
A190: =Ein_Texte!$A$292 -> 289 | D190: =Ein_Texte!F292 -> Centrale à cogénération, biogaz | F190: % | G190: 0 | I190: Exploitant du réseau CAD
A191: =Ein_Texte!$A$293 -> 290 | D191: =Ein_Texte!F293 -> Centrale à cogénération, diesel | F191: % | G191: 0 | I191: Exploitant du réseau CAD
A192: =Ein_Texte!$A$294 -> 291 | D192: =Ein_Texte!F294 -> Centrale à cogénération, gaz | F192: % | G192: 0 | I192: Exploitant du réseau CAD
A193: =Ein_Texte!$A$295 -> 292 | D193: =Ein_Texte!F295 -> Centrale de chauffage, pétrole | F193: % | G193: 3.1 | I193: Exploitant du réseau CAD
A194: =Ein_Texte!$A$296 -> 293 | D194: =Ein_Texte!F296 -> Centrale de chauffage, gaz | F194: % | G194: 26.3 | I194: Exploitant du réseau CAD
D195: =Ein_Texte!U18 -> Contrôle | E195: 1 | F195: =Ein_Texte!U13&OneSpace&F194&OneSpace -> Somme % | G195: =SUM(G181:G194) -> 100 | H195: =IF(G195=100,NoSpace,"("&Ein_Texte!U40&OneSpace&ROUND(100-G195,1)&" %"&")") -> 
A196: =Ein_Texte!$A$297 -> 294 | D196: =Ein_Texte!F297 -> Perte standard dans le réseau de chaleur à distance | F196: % | G196: 20 | I196: Exploitant du réseau CAD
D198: =Ein_Texte!E298 -> Parts de chaleur à distance Ménages par agent énergétique
A199: =Ein_Texte!$A$298 -> 295 | D199: =Ein_Texte!F298 -> Centrale de chauffage, bois | F199: % | G199: 50
A200: =Ein_Texte!$A$299 -> 296 | D200: =Ein_Texte!F299 -> Centrale à cogénération, bois | F200: % | G200: 50
A201: =Ein_Texte!$A$300 -> 297 | D201: =Ein_Texte!F300 -> Centrale thermique PACE air/eau | F201: % | G201: 50
A202: =Ein_Texte!$A$301 -> 298 | D202: =Ein_Texte!F301 -> Centrale thermique PACE sonde géothermique | F202: % | G202: 50
A203: =Ein_Texte!$A$302 -> 299 | D203: =Ein_Texte!F302 -> Centrale thermique PACE eaux usées | F203: % | G203: 50
A204: =Ein_Texte!$A$303 -> 300 | D204: =Ein_Texte!F303 -> Centrale thermique PACE eaux souterraines | F204: % | G204: 50
A205: =Ein_Texte!$A$304 -> 301 | D205: =Ein_Texte!F304 -> Centrale de chauffage, géothermie | F205: % | G205: 50
A206: =Ein_Texte!$A$305 -> 302 | D206: =Ein_Texte!F305 -> Centrale à cogénération, géothermie | F206: % | G206: 50
A207: =Ein_Texte!$A$306 -> 303 | D207: =Ein_Texte!F306 -> Incinération des ordures ménagères | F207: % | G207: 50
A208: =Ein_Texte!$A$307 -> 304 | D208: =Ein_Texte!F307 -> Centrale à cogénération, biogaz | F208: % | G208: 50
A209: =Ein_Texte!$A$308 -> 305 | D209: =Ein_Texte!F308 -> Centrale à cogénération, diesel | F209: % | G209: 50
A210: =Ein_Texte!$A$309 -> 306 | D210: =Ein_Texte!F309 -> Centrale à cogénération, gaz | F210: % | G210: 50
A211: =Ein_Texte!$A$310 -> 307 | D211: =Ein_Texte!F310 -> Centrale de chauffage, pétrole | F211: % | G211: 50
A212: =Ein_Texte!$A$311 -> 308 | D212: =Ein_Texte!F311 -> Centrale de chauffage, gaz | F212: % | G212: 50

Sheet Input_électr
B1: =Ein_Texte!V5 -> Saisie consommation d'électricité
B3: =Input!D3 -> Commune: | F3: =Input!G3 -> Année de bilan: | M3: =Ein_Texte!U25 -> Données obligatoires
M4: =Ein_Texte!U26 -> Données facultatives
I5: Indx | J5: =SUM(J9:J86) -> 0 | O5: Indx | P5: =SUM(P9:P61) -> 0 | U5: Indx | V5: =SUM(V9:V61) -> 0 | AA5: Indx | AB5: =SUM(AB9:AB61) -> 0
B6: =Ein_Texte!D37 -> Marquage de l'électricité entreprises d'approvisionnement en énergie (EAE)
E7: =Ein_Texte!V11 -> Total | F7: =Ein_Texte!$V$10&OneSpace&"1" -> EAE 1 | G7: =Ein_Texte!$I$4 -> Année de la collecte | H7: =Ein_Texte!$J$4 -> Source des données | L7: =Ein_Texte!$V$10&OneSpace&"2" -> EAE 2 | M7: =Ein_Texte!$I$4 -> Année de la collecte | N7: =Ein_Texte!$J$4 -> Source des données | R7: =Ein_Texte!$V$10&OneSpace&"3" -> EAE 3 | S7: =Ein_Texte!$I$4 -> Année de la collecte | T7: =Ein_Texte!$J$4 -> Source des données | X7: =Ein_Texte!$V$10&OneSpace&"4" -> EAE 4 | Y7: =Ein_Texte!$I$4 -> Année de la collecte | Z7: =Ein_Texte!$J$4 -> Source des données
B8: =Ein_Texte!D35 -> Données relatives à l'EAE
B9: =Ein_Texte!E35 -> Nom | F9: EAE 1 | I9: =Ein_Texte!$A$35 -> 40 | L9: EAE 2 | O9: =Ein_Texte!$A$77 -> 82 | R9: EAE 3 | U9: =Ein_Texte!$A$119 -> 124 | X9: EAE 4 | AA9: =Ein_Texte!$A$161 -> 166
B10: =Ein_Texte!E36 -> Description succincte | I10: =Ein_Texte!$A$36 -> 41 | O10: =Ein_Texte!$A$78 -> 83 | U10: =Ein_Texte!$A$120 -> 125 | AA10: =Ein_Texte!$A$162 -> 167
B12: =Ein_Texte!E37 -> Vente et marquage de l'électricité (y c. vente sur le marché libre en dehors de la zone du bilan)
B13: =Ein_Texte!F37 -> Ménages privés | D13: =Ein_Texte!G37 -> MWh/an | E13: =F13+L13+R13+X13 -> 0 | H13: Centrales électriques | I13: =Ein_Texte!$A$37 -> 42 | N13: Centrales électriques | O13: =Ein_Texte!$A$79 -> 84 | T13: Centrales électriques | U13: =Ein_Texte!$A$121 -> 126 | Z13: Centrales électriques | AA13: =Ein_Texte!$A$163 -> 168
B14: =Ein_Texte!F38 -> Artisanat et industrie | D14: =Ein_Texte!G38 -> MWh/an | E14: =F14+L14+R14+X14 -> 0 | H14: Centrales électriques | I14: =Ein_Texte!$A$38 -> 43 | N14: Centrales électriques | O14: =Ein_Texte!$A$80 -> 85 | T14: Centrales électriques | U14: =Ein_Texte!$A$122 -> 127 | Z14: Centrales électriques | AA14: =Ein_Texte!$A$164 -> 169
B16: =Ein_Texte!$F$39 -> Énergie hydraulique | D16: =Ein_Texte!G39 -> % | E16: =IFERROR(((SUM($F$13:$F$14)*F16)+(SUM($L$13:$L$14)*L16)+(SUM($R$13:$R$14)*R16)+(SUM($X$13:$X$14)*X16))/SUM($E$13:$E$14),0) -> 0 | H16: Centrales électriques | I16: =Ein_Texte!$A$39 -> 44 | N16: Centrales électriques | O16: =Ein_Texte!$A$81 -> 86 | T16: Centrales électriques | U16: =Ein_Texte!$A$123 -> 128 | Z16: Centrales électriques | AA16: =Ein_Texte!$A$165 -> 170
B17: =Ein_Texte!$F$40 -> Energie solaire (PV) | D17: =Ein_Texte!G40 -> % | E17: 0 | H17: ou | I17: =Ein_Texte!$A$40 -> 45 | N17: ou | O17: =Ein_Texte!$A$82 -> 87 | T17: ou | U17: =Ein_Texte!$A$124 -> 129 | Z17: ou | AA17: =Ein_Texte!$A$166 -> 171
B18: =Ein_Texte!$F$41 -> Energie éolienne | D18: =Ein_Texte!G41 -> % | E18: 0 | H18: =HYPERLINK("http://http://www.stromkennzeichnung.ch/fr/recherche.html","www.stromkennzeichnung.ch") -> www.stromkennzeichnung.ch | I18: =Ein_Texte!$A$41 -> 46 | N18: =HYPERLINK("http://http://www.stromkennzeichnung.ch/fr/recherche.html","www.stromkennzeichnung.ch") -> www.stromkennzeichnung.ch | O18: =Ein_Texte!$A$83 -> 88 | T18: =HYPERLINK("http://http://www.stromkennzeichnung.ch/fr/recherche.html","www.stromkennzeichnung.ch") -> www.stromkennzeichnung.ch | U18: =Ein_Texte!$A$125 -> 130 | Z18: =HYPERLINK("http://http://www.stromkennzeichnung.ch/fr/recherche.html","www.stromkennzeichnung.ch") -> www.stromkennzeichnung.ch | AA18: =Ein_Texte!$A$167 -> 172
B19: =Ein_Texte!$F$42 -> Biomasse | D19: =Ein_Texte!G42 -> % | E19: 0 | I19: =Ein_Texte!$A$42 -> 47 | O19: =Ein_Texte!$A$84 -> 89 | U19: =Ein_Texte!$A$126 -> 131 | AA19: =Ein_Texte!$A$168 -> 173
B20: =Ein_Texte!$F$43 -> Géothermie | D20: =Ein_Texte!G43 -> % | E20: 0 | I20: =Ein_Texte!$A$43 -> 48 | O20: =Ein_Texte!$A$85 -> 90 | U20: =Ein_Texte!$A$127 -> 132 | AA20: =Ein_Texte!$A$169 -> 174
B21: =Ein_Texte!$F$44 -> Courant subventionné (RPC) | D21: =Ein_Texte!G44 -> % | E21: 0 | F21: =KEV_aktuell -> 6.1 | G21: =IF(Input!$G$4<MIN(P_PEF_THG_KEV!$A$5:$A$19),MIN(P_PEF_THG_KEV!$A$5:$A$19),MIN(Input!$G$4,MAX(P_PEF_THG_KEV!$A$5:$A$19))) -> 2022 | I21: =Ein_Texte!$A$44 -> 1049 | L21: =KEV_aktuell -> 6.1 | M21: =IF(Input!$G$4<MIN(P_PEF_THG_KEV!$A$5:$A$19),MIN(P_PEF_THG_KEV!$A$5:$A$19),MIN(Input!$G$4,MAX(P_PEF_THG_KEV!$A$5:$A$19))) -> 2022 | O21: =Ein_Texte!$A$86 -> 1091 | R21: =KEV_aktuell -> 6.1 | S21: =IF(Input!$G$4<MIN(P_PEF_THG_KEV!$A$5:$A$19),MIN(P_PEF_THG_KEV!$A$5:$A$19),MIN(Input!$G$4,MAX(P_PEF_THG_KEV!$A$5:$A$19))) -> 2022 | U21: =Ein_Texte!$A$128 -> 1133 | X21: =KEV_aktuell -> 6.1 | Y21: =IF(Input!$G$4<MIN(P_PEF_THG_KEV!$A$5:$A$19),MIN(P_PEF_THG_KEV!$A$5:$A$19),MIN(Input!$G$4,MAX(P_PEF_THG_KEV!$A$5:$A$19))) -> 2022 | AA21: =Ein_Texte!$A$170 -> 1175
B22: =Ein_Texte!$F$45 -> Energie nucléaire | D22: =Ein_Texte!G45 -> % | E22: 0 | I22: =Ein_Texte!$A$45 -> 50 | O22: =Ein_Texte!$A$87 -> 92 | U22: =Ein_Texte!$A$129 -> 134 | AA22: =Ein_Texte!$A$171 -> 176
B23: =Ein_Texte!$F$46 -> Pétrole | D23: =Ein_Texte!G46 -> % | E23: 0 | I23: =Ein_Texte!$A$46 -> 51 | O23: =Ein_Texte!$A$88 -> 93 | U23: =Ein_Texte!$A$130 -> 135 | AA23: =Ein_Texte!$A$172 -> 177
B24: =Ein_Texte!$F$47 -> Gaz naturel | D24: =Ein_Texte!G47 -> % | E24: 0 | I24: =Ein_Texte!$A$47 -> 52 | O24: =Ein_Texte!$A$89 -> 94 | U24: =Ein_Texte!$A$131 -> 136 | AA24: =Ein_Texte!$A$173 -> 178
B25: =Ein_Texte!$F$48 -> Charbon / coke | D25: =Ein_Texte!G48 -> % | E25: 0 | I25: =Ein_Texte!$A$48 -> 53 | O25: =Ein_Texte!$A$90 -> 95 | U25: =Ein_Texte!$A$132 -> 137 | AA25: =Ein_Texte!$A$174 -> 179
B26: =Ein_Texte!$F$49 -> Déchets (incinération des ordures ménagères) | D26: =Ein_Texte!G49 -> % | E26: 0 | I26: =Ein_Texte!$A$49 -> 54 | O26: =Ein_Texte!$A$91 -> 96 | U26: =Ein_Texte!$A$133 -> 138 | AA26: =Ein_Texte!$A$175 -> 180
B27: =Ein_Texte!$F$50 -> Agents énergétiques non vérifiables (mix ENTSO-E) | D27: =Ein_Texte!G50 -> % | E27: 0 | F27: =MAX(0,100-SUM(F16:F26)) -> 93.9 | I27: =Ein_Texte!$A$50 -> 1055 | L27: =MAX(0,100-SUM(L16:L26)) -> 93.9 | O27: =Ein_Texte!$A$92 -> 1097 | R27: =MAX(0,100-SUM(R16:R26)) -> 93.9 | U27: =Ein_Texte!$A$134 -> 1139 | X27: =MAX(0,100-SUM(X16:X26)) -> 93.9 | AA27: =Ein_Texte!$A$176 -> 1181
B28: Total | D28: =Ein_Texte!G50 -> % | E28: =SUM(E16:E27) -> 0 | F28: =SUM(F16:F27) -> 100 | L28: =SUM(L16:L27) -> 100 | R28: =SUM(R16:R27) -> 100 | X28: =SUM(X16:X27) -> 100
B30: =Ein_Texte!E51 -> Vente sur un marché libre hors de la zone du bilan
B31: =Ein_Texte!F51 -> Vente d'électricité | D31: =Ein_Texte!G51 -> MWh/an | E31: =F31+L31+R31+X31 -> 0 | H31: Centrales électriques | I31: =Ein_Texte!$A$51 -> 56 | N31: Centrales électriques | O31: =Ein_Texte!$A$93 -> 98 | T31: Centrales électriques | U31: =Ein_Texte!$A$135 -> 140 | Z31: Centrales électriques | AA31: =Ein_Texte!$A$177 -> 182
B33: =Ein_Texte!F52 -> Énergie hydraulique | D33: =Ein_Texte!G52 -> % | E33: =IFERROR((($F$31*F33)+($L$31*L33)+($R$31*R33)+($X$31*X33))/$E$31,0) -> 0 | H33: Centrales électriques | I33: =Ein_Texte!$A$52 -> 57 | N33: Centrales électriques | O33: =Ein_Texte!$A$94 -> 99 | T33: Centrales électriques | U33: =Ein_Texte!$A$136 -> 141 | Z33: Centrales électriques | AA33: =Ein_Texte!$A$178 -> 183
B34: =Ein_Texte!F53 -> Energie solaire (PV) | D34: =Ein_Texte!G53 -> % | E34: =IFERROR((($F$31*F34)+($L$31*L34)+($R$31*R34)+($X$31*X34))/$E$31,0) -> 0 | H34: ou | I34: =Ein_Texte!$A$53 -> 58 | N34: ou | O34: =Ein_Texte!$A$95 -> 100 | T34: ou | U34: =Ein_Texte!$A$137 -> 142 | Z34: ou | AA34: =Ein_Texte!$A$179 -> 184
B35: =Ein_Texte!F54 -> Energie éolienne | D35: =Ein_Texte!G54 -> % | E35: 0 | H35: =HYPERLINK("http://http://www.stromkennzeichnung.ch/fr/recherche.html","www.stromkennzeichnung.ch") -> www.stromkennzeichnung.ch | I35: =Ein_Texte!$A$54 -> 59 | N35: =HYPERLINK("http://http://www.stromkennzeichnung.ch/fr/recherche.html","www.stromkennzeichnung.ch") -> www.stromkennzeichnung.ch | O35: =Ein_Texte!$A$96 -> 101 | T35: =HYPERLINK("http://http://www.stromkennzeichnung.ch/fr/recherche.html","www.stromkennzeichnung.ch") -> www.stromkennzeichnung.ch | U35: =Ein_Texte!$A$138 -> 143 | Z35: =HYPERLINK("http://http://www.stromkennzeichnung.ch/fr/recherche.html","www.stromkennzeichnung.ch") -> www.stromkennzeichnung.ch | AA35: =Ein_Texte!$A$180 -> 185
B36: =Ein_Texte!F55 -> Biomasse | D36: =Ein_Texte!G55 -> % | E36: 0 | I36: =Ein_Texte!$A$55 -> 60 | O36: =Ein_Texte!$A$97 -> 102 | U36: =Ein_Texte!$A$139 -> 144 | AA36: =Ein_Texte!$A$181 -> 186
B37: =Ein_Texte!F56 -> Géothermie | D37: =Ein_Texte!G56 -> % | E37: 0 | I37: =Ein_Texte!$A$56 -> 61 | O37: =Ein_Texte!$A$98 -> 103 | U37: =Ein_Texte!$A$140 -> 145 | AA37: =Ein_Texte!$A$182 -> 187
B38: =Ein_Texte!F57 -> Courant subventionné (RPC) | D38: =Ein_Texte!G57 -> % | E38: =IFERROR((($F$31*F38)+($L$31*L38)+($R$31*R38)+($X$31*X38))/$E$31,0) -> 0 | F38: =KEV_aktuell -> 6.1 | G38: =IF(Input!$G$4<MIN(P_PEF_THG_KEV!$A$5:$A$19),MIN(P_PEF_THG_KEV!$A$5:$A$19),MIN(Input!$G$4,MAX(P_PEF_THG_KEV!$A$5:$A$19))) -> 2022 | I38: =Ein_Texte!$A$57 -> 1062 | L38: =KEV_aktuell -> 6.1 | M38: =IF(Input!$G$4<MIN(P_PEF_THG_KEV!$A$5:$A$19),MIN(P_PEF_THG_KEV!$A$5:$A$19),MIN(Input!$G$4,MAX(P_PEF_THG_KEV!$A$5:$A$19))) -> 2022 | O38: =Ein_Texte!$A$99 -> 1104 | R38: =KEV_aktuell -> 6.1 | S38: =IF(Input!$G$4<MIN(P_PEF_THG_KEV!$A$5:$A$19),MIN(P_PEF_THG_KEV!$A$5:$A$19),MIN(Input!$G$4,MAX(P_PEF_THG_KEV!$A$5:$A$19))) -> 2022 | U38: =Ein_Texte!$A$141 -> 1146 | X38: =KEV_aktuell -> 6.1 | Y38: =IF(Input!$G$4<MIN(P_PEF_THG_KEV!$A$5:$A$19),MIN(P_PEF_THG_KEV!$A$5:$A$19),MIN(Input!$G$4,MAX(P_PEF_THG_KEV!$A$5:$A$19))) -> 2022 | AA38: =Ein_Texte!$A$183 -> 1188
B39: =Ein_Texte!F58 -> Energie nucléaire | D39: =Ein_Texte!G58 -> % | E39: 0 | I39: =Ein_Texte!$A$58 -> 63 | O39: =Ein_Texte!$A$100 -> 105 | U39: =Ein_Texte!$A$142 -> 147 | AA39: =Ein_Texte!$A$184 -> 189
B40: =Ein_Texte!F59 -> Pétrole | D40: =Ein_Texte!G59 -> % | E40: 0 | I40: =Ein_Texte!$A$59 -> 64 | O40: =Ein_Texte!$A$101 -> 106 | U40: =Ein_Texte!$A$143 -> 148 | AA40: =Ein_Texte!$A$185 -> 190
B41: =Ein_Texte!F60 -> Gaz naturel | D41: =Ein_Texte!G60 -> % | E41: 0 | I41: =Ein_Texte!$A$60 -> 65 | O41: =Ein_Texte!$A$102 -> 107 | U41: =Ein_Texte!$A$144 -> 149 | AA41: =Ein_Texte!$A$186 -> 191
B42: =Ein_Texte!F61 -> Charbon / coke | D42: =Ein_Texte!G61 -> % | E42: 0 | I42: =Ein_Texte!$A$61 -> 66 | O42: =Ein_Texte!$A$103 -> 108 | U42: =Ein_Texte!$A$145 -> 150 | AA42: =Ein_Texte!$A$187 -> 192
B43: =Ein_Texte!F62 -> Déchets (incinération des ordures ménagères) | D43: =Ein_Texte!G62 -> % | E43: 0 | I43: =Ein_Texte!$A$62 -> 67 | O43: =Ein_Texte!$A$104 -> 109 | U43: =Ein_Texte!$A$146 -> 151 | AA43: =Ein_Texte!$A$188 -> 193
B44: =Ein_Texte!F63 -> Agents énergétiques non vérifiables (mix ENTSO-E) | D44: =Ein_Texte!G63 -> % | E44: 0 | F44: =MAX(0,100-SUM(F33:F43)) -> 93.9 | I44: =Ein_Texte!$A$63 -> 1068 | L44: =MAX(0,100-SUM(L33:L43)) -> 93.9 | O44: =Ein_Texte!$A$105 -> 1110 | R44: =MAX(0,100-SUM(R33:R43)) -> 93.9 | U44: =Ein_Texte!$A$147 -> 1152 | X44: =MAX(0,100-SUM(X33:X43)) -> 93.9 | AA44: =Ein_Texte!$A$189 -> 1194
B45: Total | D45: =Ein_Texte!G63 -> % | E45: =SUM(E33:E44) -> 0 | F45: =SUM(F33:F44) -> 100 | L45: =SUM(L33:L44) -> 100 | R45: =SUM(R33:R44) -> 100 | X45: =SUM(X33:X44) -> 100
B47: =Ein_Texte!D65 -> Mix standard
B48: =Ein_Texte!F64 -> Vente d'électricité | D48: =Ein_Texte!G64 -> MWh/an | E48: =F48+L48+R48+X48 -> 0 | H48: Centrales électriques | I48: =Ein_Texte!$A$64 -> 69 | N48: Centrales électriques | O48: =Ein_Texte!$A$106 -> 111 | T48: Centrales électriques | U48: =Ein_Texte!$A$148 -> 153 | Z48: Centrales électriques | AA48: =Ein_Texte!$A$190 -> 195
B50: =Ein_Texte!F65 -> Énergie hydraulique | D50: =Ein_Texte!G65 -> % | E50: =IFERROR((($F$48*F50)+($L$48*L50)+($R$48*R50)+($X$48*X50))/$E$48,0) -> 0 | H50: Centrales électriques | I50: =Ein_Texte!$A$65 -> 70 | N50: Centrales électriques | O50: =Ein_Texte!$A$107 -> 112 | T50: Centrales électriques | U50: =Ein_Texte!$A$149 -> 154 | Z50: Centrales électriques | AA50: =Ein_Texte!$A$191 -> 196
B51: =Ein_Texte!F66 -> Energie solaire (PV) | D51: =Ein_Texte!G66 -> % | E51: 0 | H51: ou | I51: =Ein_Texte!$A$66 -> 71 | N51: ou | O51: =Ein_Texte!$A$108 -> 113 | T51: ou | U51: =Ein_Texte!$A$150 -> 155 | Z51: ou | AA51: =Ein_Texte!$A$192 -> 197
B52: =Ein_Texte!F67 -> Energie éolienne | D52: =Ein_Texte!G67 -> % | E52: 0 | H52: =HYPERLINK("http://http://www.stromkennzeichnung.ch/fr/recherche.html","www.stromkennzeichnung.ch") -> www.stromkennzeichnung.ch | I52: =Ein_Texte!$A$67 -> 72 | N52: =HYPERLINK("http://http://www.stromkennzeichnung.ch/fr/recherche.html","www.stromkennzeichnung.ch") -> www.stromkennzeichnung.ch | O52: =Ein_Texte!$A$109 -> 114 | T52: =HYPERLINK("http://http://www.stromkennzeichnung.ch/fr/recherche.html","www.stromkennzeichnung.ch") -> www.stromkennzeichnung.ch | U52: =Ein_Texte!$A$151 -> 156 | Z52: =HYPERLINK("http://http://www.stromkennzeichnung.ch/fr/recherche.html","www.stromkennzeichnung.ch") -> www.stromkennzeichnung.ch | AA52: =Ein_Texte!$A$193 -> 198
B53: =Ein_Texte!F68 -> Biomasse | D53: =Ein_Texte!G68 -> % | E53: 0 | I53: =Ein_Texte!$A$68 -> 73 | O53: =Ein_Texte!$A$110 -> 115 | U53: =Ein_Texte!$A$152 -> 157 | AA53: =Ein_Texte!$A$194 -> 199
B54: =Ein_Texte!F69 -> Géothermie | D54: =Ein_Texte!G69 -> % | E54: 0 | I54: =Ein_Texte!$A$69 -> 74 | O54: =Ein_Texte!$A$111 -> 116 | U54: =Ein_Texte!$A$153 -> 158 | AA54: =Ein_Texte!$A$195 -> 200
B55: =Ein_Texte!F70 -> Courant subventionné (RPC) | D55: =Ein_Texte!G70 -> % | E55: =IFERROR((($F$48*F55)+($L$48*L55)+($R$48*R55)+($X$48*X55))/$E$48,0) -> 0 | F55: =KEV_aktuell -> 6.1 | G55: =IF(Input!$G$4<MIN(P_PEF_THG_KEV!$A$5:$A$19),MIN(P_PEF_THG_KEV!$A$5:$A$19),MIN(Input!$G$4,MAX(P_PEF_THG_KEV!$A$5:$A$19))) -> 2022 | I55: =Ein_Texte!$A$70 -> 1075 | L55: =KEV_aktuell -> 6.1 | M55: =IF(Input!$G$4<MIN(P_PEF_THG_KEV!$A$5:$A$19),MIN(P_PEF_THG_KEV!$A$5:$A$19),MIN(Input!$G$4,MAX(P_PEF_THG_KEV!$A$5:$A$19))) -> 2022 | O55: =Ein_Texte!$A$112 -> 1117 | R55: =KEV_aktuell -> 6.1 | S55: =IF(Input!$G$4<MIN(P_PEF_THG_KEV!$A$5:$A$19),MIN(P_PEF_THG_KEV!$A$5:$A$19),MIN(Input!$G$4,MAX(P_PEF_THG_KEV!$A$5:$A$19))) -> 2022 | U55: =Ein_Texte!$A$154 -> 1159 | X55: =KEV_aktuell -> 6.1 | Y55: =IF(Input!$G$4<MIN(P_PEF_THG_KEV!$A$5:$A$19),MIN(P_PEF_THG_KEV!$A$5:$A$19),MIN(Input!$G$4,MAX(P_PEF_THG_KEV!$A$5:$A$19))) -> 2022 | AA55: =Ein_Texte!$A$196 -> 1201
B56: =Ein_Texte!F71 -> Energie nucléaire | D56: =Ein_Texte!G71 -> % | E56: 0 | I56: =Ein_Texte!$A$71 -> 76 | O56: =Ein_Texte!$A$113 -> 118 | U56: =Ein_Texte!$A$155 -> 160 | AA56: =Ein_Texte!$A$197 -> 202
B57: =Ein_Texte!F72 -> Pétrole | D57: =Ein_Texte!G72 -> % | E57: 0 | I57: =Ein_Texte!$A$72 -> 77 | O57: =Ein_Texte!$A$114 -> 119 | U57: =Ein_Texte!$A$156 -> 161 | AA57: =Ein_Texte!$A$198 -> 203
B58: =Ein_Texte!F73 -> Gaz naturel | D58: =Ein_Texte!G73 -> % | E58: 0 | I58: =Ein_Texte!$A$73 -> 78 | O58: =Ein_Texte!$A$115 -> 120 | U58: =Ein_Texte!$A$157 -> 162 | AA58: =Ein_Texte!$A$199 -> 204
B59: =Ein_Texte!F74 -> Charbon / coke | D59: =Ein_Texte!G74 -> % | E59: 0 | I59: =Ein_Texte!$A$74 -> 79 | O59: =Ein_Texte!$A$116 -> 121 | U59: =Ein_Texte!$A$158 -> 163 | AA59: =Ein_Texte!$A$200 -> 205
B60: =Ein_Texte!F75 -> Déchets (incinération des ordures ménagères) | D60: =Ein_Texte!G75 -> % | E60: 0 | I60: =Ein_Texte!$A$75 -> 80 | O60: =Ein_Texte!$A$117 -> 122 | U60: =Ein_Texte!$A$159 -> 164 | AA60: =Ein_Texte!$A$201 -> 206
B61: =Ein_Texte!F76 -> Agents énergétiques non vérifiables (mix ENTSO-E) | D61: =Ein_Texte!G76 -> % | E61: =IFERROR((($F$48*F61)+($L$48*L61)+($R$48*R61)+($X$48*X61))/$E$48,0) -> 0 | F61: =MAX(0,100-SUM(F50:F60)) -> 93.9 | I61: =Ein_Texte!$A$76 -> 1081 | L61: =MAX(0,100-SUM(L50:L60)) -> 93.9 | O61: =Ein_Texte!$A$118 -> 1123 | R61: =MAX(0,100-SUM(R50:R60)) -> 93.9 | U61: =Ein_Texte!$A$160 -> 1165 | X61: =MAX(0,100-SUM(X50:X60)) -> 93.9 | AA61: =Ein_Texte!$A$202 -> 1207
B62: Total | D62: =Ein_Texte!G76 -> % | E62: =SUM(E50:E61) -> 0 | F62: =SUM(F50:F61) -> 100 | L62: =SUM(L50:L61) -> 100 | R62: =SUM(R50:R61) -> 100 | X62: =SUM(X50:X61) -> 100
B64: =Ein_Texte!D203 -> Achat sur le marché libre
B65: =Ein_Texte!E209 -> Achat sur le territoire communal à partir du marché libre | G65: =Ein_Texte!$I$4 -> Année de la collecte | H65: =Ein_Texte!$J$4 -> Source des données
B66: =Ein_Texte!$F$39 -> Énergie hydraulique | E66: =Ein_Texte!G203 -> MWh/an | H66: Centrales électriques | I66: =Ein_Texte!$A$203 -> 208
B67: =Ein_Texte!$F$40 -> Energie solaire (PV) | E67: =Ein_Texte!G204 -> MWh/an | H67: ou | I67: =Ein_Texte!$A$204 -> 209
B68: =Ein_Texte!$F$41 -> Energie éolienne | E68: =Ein_Texte!G205 -> MWh/an | H68: Gros consommateurs | I68: =Ein_Texte!$A$205 -> 210
B69: =Ein_Texte!$F$42 -> Biomasse | E69: =Ein_Texte!G206 -> MWh/an | I69: =Ein_Texte!$A$206 -> 211
B70: =Ein_Texte!$F$43 -> Géothermie | E70: =Ein_Texte!G207 -> MWh/an | I70: =Ein_Texte!$A$207 -> 212
B71: =Ein_Texte!$F$44 -> Courant subventionné (RPC) | E71: =Ein_Texte!G208 -> MWh/an | I71: =Ein_Texte!$A$208 -> 213
B72: =Ein_Texte!$F$45 -> Energie nucléaire | E72: =Ein_Texte!G209 -> MWh/an | I72: =Ein_Texte!$A$209 -> 214
B73: =Ein_Texte!$F$46 -> Pétrole | E73: =Ein_Texte!G210 -> MWh/an | I73: =Ein_Texte!$A$210 -> 215
B74: =Ein_Texte!$F$47 -> Gaz naturel | E74: =Ein_Texte!G211 -> MWh/an | I74: =Ein_Texte!$A$211 -> 216
B75: =Ein_Texte!$F$48 -> Charbon / coke | E75: =Ein_Texte!G212 -> MWh/an | I75: =Ein_Texte!$A$212 -> 217
B76: =Ein_Texte!$F$49 -> Déchets (incinération des ordures ménagères) | E76: =Ein_Texte!G213 -> MWh/an | I76: =Ein_Texte!$A$213 -> 218
B77: =Ein_Texte!$F$50 -> Agents énergétiques non vérifiables (mix ENTSO-E) | E77: =Ein_Texte!G214 -> MWh/an | I77: =Ein_Texte!$A$214 -> 219
B78: Total | E78: =Ein_Texte!G214 -> MWh/an | F78: =SUM(F66:F77) -> 0
B80: =Ein_Texte!D218 -> Certificats
B81: =Ein_Texte!E217 -> Certificats achetés (non pris en compte pour le marquage de l'électricité) | G81: =Ein_Texte!$I$4 -> Année de la collecte | H81: =Ein_Texte!$J$4 -> Source des données
B82: =Ein_Texte!F215 -> Énergie hydraulique | E82: =Ein_Texte!G215 -> MWh/an | I82: =Ein_Texte!$A$215 -> 220
B83: =Ein_Texte!F216 -> Energie éolienne | E83: =Ein_Texte!G216 -> MWh/an | I83: =Ein_Texte!$A$216 -> 221
B84: =Ein_Texte!F217 -> Biomasse | E84: =Ein_Texte!G217 -> MWh/an | I84: =Ein_Texte!$A$217 -> 222
B85: =Ein_Texte!F218 -> Energie solaire (PV) | E85: =Ein_Texte!G218 -> MWh/an | I85: =Ein_Texte!$A$218 -> 223
B86: =Ein_Texte!F219 -> Autres | E86: =Ein_Texte!G219 -> MWh/an | I86: =Ein_Texte!$A$219 -> 224
B87: Total | E87: =Ein_Texte!G219 -> MWh/an | F87: =SUM(F82:F86) -> 0

Sheet Aperçu_résultats
B1: =Ein_Texte!$W$46 -> Aperçu des résultats
B4: =Ein_Texte!$W$47 -> Illustrations et tableaux de données | K4: =Bilanzierungsstatus -> 
B32: =Ein_Texte!$W$48 -> Exhaustivité des données
C34: Taux de remplissage (y c. valeurs facultatives)
C35: 0
B36: 0

Sheet Fig_1
A1: =Ein_Texte!W5&OneSpace&B1 -> Figure 1 | B1: 1 | C1: =Ein_Texte!W6&OneSpace&$B$1&".1" -> Figure 1.1 | D1: =A2&OneSpace&Ein_Texte!W10&CHAR(10)&Ein_Texte!W44 -> Consommation de chaleur par agent énergétique (absolu) Energie finale | E1: =Ein_Texte!W6&OneSpace&$B$1&".2" -> Figure 1.2 | F1: =A2&OneSpace&CHAR(10)&Ein_Texte!W44 -> Consommation de chaleur par agent énergétique Energie finale | J1: [GWh/a] | K1: [DJC (20/12)]
A2: =Ein_Texte!W15 -> Consommation de chaleur par agent énergétique | H2: =Ein_Texte!$T$12 -> Retour vers | I2: =Ein_Texte!$W$46 -> Aperçu des résultats
A4: =Ein_Texte!W7 -> Figures | J4: =Bilanzierungsstatus -> 
L8: =Ein_Texte!$W$14 -> Notes personnelles:
BA9: Grandeur de calcul | BB9: Consommation de chaleur | BU9: Grandeur de calcul | BV9: Consommation de chaleur
BA11: EnFin [MWh/a] | BU11: EnFin [MWh/a]
BB12: Charbon | BC12: Mazout | BD12: Gaz naturel | BE12: Chaleur à distance (non renouvelable) | BF12: Chaleur à distance (renouvelable/déchet) | BG12: Bois | BH12: Biogaz/Gaz de digestion | BI12: Chaleur de l'environnement | BJ12: Exploitation des rejets de chaleur | BK12: Energie solaire (thermique) | BL12: Autres types de production de chaleur | BM12: Electricité (PACél + électricité) | BV12: Charbon | BW12: Mazout | BX12: Gaz naturel | BY12: Chaleur à distance (non renouvelable) | BZ12: Chaleur à distance (renouvelable/déchet) | CA12: Bois | CB12: Biogaz/Gaz de digestion | CC12: Chaleur de l'environnement | CD12: Exploitation des rejets de chaleur | CE12: Energie solaire (thermique) | CF12: Autres types de production de chaleur | CG12: Electricité (PACél + électricité)
BA13: 0 | BU13: 0
BA14: 0 | BU14: 0
A75: =Ein_Texte!W8 -> Tableau de données | J75: =Bilanzierungsstatus -> 
B77: EnFin [MWh/a] | D77: EnFi [%] | F77: EP [MWh/a] | H77: EP [%] | J77: GES [t/a] | L77: GES [%]
B78: 0 | C78: 2007 | D78: 0 | E78: 2007 | F78: 0 | G78: 2007 | H78: 0 | I78: 2007 | J78: 0 | K78: 2007 | L78: 0 | M78: 2007
A79: Chaleur
A80: 0
A81: Consommation de chaleur
A82: Charbon
A83: Mazout
A84: Gaz naturel
A85: Chaleur à distance (non renouvelable)
A86: Chaleur à distance (renouvelable/déchet)
A87: Bois
A88: Biogaz/Gaz de digestion
A89: Chaleur de l'environnement
A90: Exploitation des rejets de chaleur
A91: Energie solaire (thermique)
A92: Autres types de production de chaleur
A93: Electricité (PACél + électricité)
A94: Degrés-jours de chauffage (20/12)
A95: Degrés-jours de chauffage (20/12)
A96: 'Suisse
A97: Degrés-jours de chauffage (20/12)
A98: Degrés-jours de chauffage (20/12)

Sheet Fig_2
A1: =Ein_Texte!W5&OneSpace&B1 -> Figure 2 | B1: 2 | C1: =Ein_Texte!W6&OneSpace&$B$1&".1" -> Figure 2.1 | D1: =A2&OneSpace&Ein_Texte!W10&CHAR(10)&Ein_Texte!W44 -> Consommation de courant par agent énergétique (absolu) Energie finale | E1: =Ein_Texte!W6&OneSpace&$B$1&".2" -> Figure 2.2 | F1: =Ein_Texte!W17&OneSpace&Ein_Texte!W11&CHAR(10)&Ein_Texte!W44 -> Mix électr. (en pourcentage) Energie finale | H1: [GWh/a]
A2: =Ein_Texte!W16 -> Consommation de courant par agent énergétique | H2: =Ein_Texte!$T$12 -> Retour vers | I2: =Ein_Texte!$W$46 -> Aperçu des résultats
A4: =Ein_Texte!W7 -> Figures | J4: =Bilanzierungsstatus -> 
L8: =Ein_Texte!$W$14 -> Notes personnelles:
BB9: EnFin [MWh/a]
BC10: Charbon | BD10: Pétrole | BE10: Gaz naturel | BF10: Agents énergétiques n. v. (mix ENTSO) | BG10: Energie nucléaire | BH10: Incinération des ordures ménagères | BI10: Biomasse | BJ10: Géothermie | BK10: Énergie hydraulique | BL10: Energie solaire (PV) | BM10: Energie éolienne
BB11: Mix électr.
BB12: 0 | BQ12: Summe von EnFin [%]
BB13: 0 | BR13: Charbon | BS13: Pétrole | BT13: Gaz naturel | BU13: Agents énergétiques n. v. (mix ENTSO) | BV13: Energie nucléaire | BW13: Incinération des ordures ménagères | BX13: Courant subventionné (RPC) | BY13: Biomasse | BZ13: Géothermie | CA13: Énergie hydraulique | CB13: Energie solaire (PV) | CC13: Energie éolienne
BB14: 'Suisse | BQ14: 0
BB15: 2007 | BQ15: 0
BQ16: Mix électr.
BQ17: Mix standard
BQ18: 'Suisse
BQ19: 2007
BQ20: Mix électr.
A75: =Ein_Texte!W8 -> Tableau de données | J75: =Bilanzierungsstatus -> 
B77: EnFin [MWh/a] | D77: EnFin [%] | F77: EP [MWh/a] | H77: EP [%] | J77: GES [t/a] | L77: GES [%]
B78: 0 | C78: 2007 | D78: 0 | E78: 2007 | F78: 0 | G78: 2007 | H78: 0 | I78: 2007 | J78: 0 | K78: 2007 | L78: 0 | M78: 2007
A79: Electricité
A80: 0
A81: Mix électr.
A82: Charbon
A83: Pétrole
A84: Gaz naturel
A85: Incinération des ordures ménagères
A86: Energie nucléaire
A87: Courant subventionné (RPC)
A88: Biomasse
A89: Géothermie
A90: Énergie hydraulique
A91: Energie solaire (PV)
A92: Energie éolienne
A93: Agents énergétiques n. v. (mix ENTSO)
A94: Achat marché libre
A95: Charbon
A96: Pétrole
A97: Gaz naturel
A98: Incinération des ordures ménagères
A99: Energie nucléaire
A100: Courant subventionné (RPC)
A101: Biomasse
A102: Géothermie
A103: Énergie hydraulique
A104: Energie solaire (PV)
A105: Energie éolienne
A106: Agents énergétiques n. v. (mix ENTSO)
A107: Certificats
A108: Biomasse
A109: Énergie hydraulique
A110: Energie solaire (PV)
A111: Energie éolienne
A112: Autres types de production d'électricité
A113: Mix standard
A114: Charbon
A115: Pétrole
A116: Gaz naturel
A117: Incinération des ordures ménagères
A118: Energie nucléaire
A119: Courant subventionné (RPC)
A120: Biomasse
A121: Géothermie
A122: Énergie hydraulique
A123: Energie solaire (PV)
A124: Energie éolienne
A125: Agents énergétiques n. v. (mix ENTSO)
A126: Production
A127: Incinération des ordures ménagères
A128: Centrale de chauffage à bois
A129: CETE Biogaz/gaz de digestion
A130: CETE Diesel
A131: CETE Gaz naturel
A132: Géothermie
A133: Énergie hydraulique
A134: Energie solaire (PV)
A135: Energie éolienne
A136: Autres types de production d'électricité
A137: 'Suisse
A138: Mix électr.
A139: Charbon
A140: Pétrole
A141: Gaz naturel
A142: Incinération des ordures ménagères
A143: Energie nucléaire
A144: Courant subventionné (RPC)
A145: Biomasse
A146: Géothermie
A147: Énergie hydraulique
A148: Energie solaire (PV)
A149: Energie éolienne
A150: Agents énergétiques n. v. (mix ENTSO)

Sheet Fig_3
A1: =Ein_Texte!W5&OneSpace&B1 -> Figure 3 | B1: 3 | C1: =Ein_Texte!W6&OneSpace&$B$1&".1" -> Figure 3.1 | D1: =A2&OneSpace&Ein_Texte!W10 -> Consommation d'énergie primaire et d'énergie finale et émissions de gaz à effet de serre par agent énergétique (absolu) | E1: =Ein_Texte!W6&OneSpace&$B$1&".2" -> Figure 3.2 | F1: =A2&OneSpace&Ein_Texte!W12 -> Consommation d'énergie primaire et d'énergie finale et émissions de gaz à effet de serre par agent énergétique par hab. | G1: =A2&CHAR(10)&"par hab." -> Consommation d'énergie primaire et d'énergie finale et émissions de gaz à effet de serre par agent énergétique par hab. | H1: [GWh/a] | I1: [MWh/hab.] | J1: [kt/a] | K1: [t/hab.]
A2: =Ein_Texte!W18 -> Consommation d'énergie primaire et d'énergie finale et émissions de gaz à effet de serre par agent énergétique | K2: =Ein_Texte!$T$12 -> Retour vers | L2: =Ein_Texte!$W$46 -> Aperçu des résultats
A4: =Ein_Texte!W7 -> Figures | M4: =Bilanzierungsstatus -> 
O8: =Ein_Texte!$W$14 -> Notes personnelles:
BA9: Struktur und Ort dieser Tabelle nicht verändern!!!!! | DC9: Struktur und Ort dieser Tabelle nicht verändern!!!!!
BE13: Charbon | BG13: Mazout (combustible) | BI13: Mazout (carburant) | BK13: Gaz naturel | BM13: Energie nucléaire | BO13: Incinération des ordures ménagères | BQ13: Biomasse | BS13: Chaleur de l'environnement | BU13: Exploitation des rejets de chaleur | BW13: Énergie hydraulique | BY13: Energie solaire | CA13: Energie éolienne | CC13: Non vérifiable / autres | DF13: Charbon | DH13: Mazout (combustible) | DJ13: Mazout (carburant) | DL13: Gaz naturel | DN13: Energie nucléaire | DP13: Incinération des ordures ménagères | DR13: Biomasse | DT13: Chaleur de l'environnement | DV13: Exploitation des rejets de chaleur | DX13: Énergie hydraulique | DZ13: Energie solaire | EB13: Energie éolienne | ED13: Non vérifiable / autres
BE14: GES [t/a] | BF14: EndE, PE [MWh/a] | BG14: GES [t/a] | BH14: EndE, PE [MWh/a] | BI14: GES [t/a] | BJ14: EndE, PE [MWh/a] | BK14: GES [t/a] | BL14: EndE, PE [MWh/a] | BM14: GES [t/a] | BN14: EndE, PE [MWh/a] | BO14: GES [t/a] | BP14: EndE, PE [MWh/a] | BQ14: GES [t/a] | BR14: EndE, PE [MWh/a] | BS14: GES [t/a] | BT14: EndE, PE [MWh/a] | BU14: GES [t/a] | BV14: EndE, PE [MWh/a] | BW14: GES [t/a] | BX14: EndE, PE [MWh/a] | BY14: GES [t/a] | BZ14: EndE, PE [MWh/a] | CA14: GES [t/a] | CB14: EndE, PE [MWh/a] | CC14: GES [t/a] | CD14: EndE, PE [MWh/a] | DF14: Summe von GES [t/(hab.·a)] | DG14: Summe von [MWh/(hab.·a)] | DH14: Summe von GES [t/(hab.·a)] | DI14: Summe von [MWh/(hab.·a)] | DJ14: Summe von GES [t/(hab.·a)] | DK14: Summe von [MWh/(hab.·a)] | DL14: Summe von GES [t/(hab.·a)] | DM14: Summe von [MWh/(hab.·a)] | DN14: Summe von GES [t/(hab.·a)] | DO14: Summe von [MWh/(hab.·a)] | DP14: Summe von GES [t/(hab.·a)] | DQ14: Summe von [MWh/(hab.·a)] | DR14: Summe von GES [t/(hab.·a)] | DS14: Summe von [MWh/(hab.·a)] | DT14: Summe von GES [t/(hab.·a)] | DU14: Summe von [MWh/(hab.·a)] | DV14: Summe von GES [t/(hab.·a)] | DW14: Summe von [MWh/(hab.·a)] | DX14: Summe von GES [t/(hab.·a)] | DY14: Summe von [MWh/(hab.·a)] | DZ14: Summe von GES [t/(hab.·a)] | EA14: Summe von [MWh/(hab.·a)] | EB14: Summe von GES [t/(hab.·a)] | EC14: Summe von [MWh/(hab.·a)] | ED14: Summe von GES [t/(hab.·a)] | EE14: Summe von [MWh/(hab.·a)]
BA15: Consommation | BB15: Energie finale | BC15: 0 | BD15: 0 | DC15: Energie finale | DD15: 0 | DE15: 0
BC16: 'Suisse | BD16: 2007 | DD16: 'Suisse | DE16: 2007
BB17: Energie primaire | BC17: 0 | BD17: 0 | DC17: Energie primaire | DD17: 0 | DE17: 0
BC18: 'Suisse | BD18: 2007 | DD18: 'Suisse | DE18: 2007
BB19: Gaz à effet de serre | BC19: 0 | BD19: 0 | DC19: Gaz à effet de serre | DD19: 0 | DE19: 0
BC20: 'Suisse | BD20: 2007 | DD20: 'Suisse | DE20: 2007
A81: =Ein_Texte!W8 -> Tableau de données | M81: =Bilanzierungsstatus -> 
B83: EnFi, EP [MWh/a] | D83: EnFi, PE [MWh/(hab.·a)] | F83: EnFin [%] | H83: EP [%] | J83: GES [t/a] | L83: GES [t/(hab.·a)] | N83: GES [%]
B84: 0 | C84: 2007 | D84: 0 | E84: 2007 | F84: 0 | G84: 2007 | H84: 0 | I84: 2007 | J84: 0 | K84: 2007 | L84: 0 | M84: 2007 | N84: 0 | O84: 2007
A85: Consommation
A86: 0
A87: Energie finale
A88: Biomasse
A89: Chaleur de l'environnement
A90: Charbon
A91: Energie éolienne
A92: Énergie hydraulique
A93: Energie nucléaire
A94: Energie solaire
A95: Exploitation des rejets de chaleur
A96: Gaz naturel
A97: Incinération des ordures ménagères
A98: Mazout (carburant)
A99: Mazout (combustible)
A100: Non vérifiable / autres
A101: Energie primaire
A102: Biomasse
A103: Chaleur de l'environnement
A104: Charbon
A105: Energie éolienne
A106: Énergie hydraulique
A107: Energie nucléaire
A108: Energie solaire
A109: Exploitation des rejets de chaleur
A110: Gaz naturel
A111: Incinération des ordures ménagères
A112: Mazout (carburant)
A113: Mazout (combustible)
A114: Non vérifiable / autres
A115: Gaz à effet de serre
A116: Biomasse
A117: Chaleur de l'environnement
A118: Charbon
A119: Energie éolienne
A120: Énergie hydraulique
A121: Energie nucléaire
A122: Energie solaire
A123: Exploitation des rejets de chaleur
A124: Gaz naturel
A125: Incinération des ordures ménagères
A126: Mazout (carburant)
A127: Mazout (combustible)
A128: Non vérifiable / autres
A129: 'Suisse
A130: Energie finale
A131: Biomasse
A132: Chaleur de l'environnement
A133: Charbon
A134: Energie éolienne
A135: Énergie hydraulique
A136: Energie nucléaire
A137: Energie solaire
A138: Exploitation des rejets de chaleur
A139: Gaz naturel
A140: Incinération des ordures ménagères
A141: Mazout (carburant)
A142: Mazout (combustible)
A143: Non vérifiable / autres
A144: Energie primaire
A145: Biomasse
A146: Chaleur de l'environnement
A147: Charbon
A148: Energie éolienne
A149: Énergie hydraulique
A150: Energie nucléaire
A151: Energie solaire
A152: Exploitation des rejets de chaleur
A153: Gaz naturel
A154: Incinération des ordures ménagères
A155: Mazout (carburant)
A156: Mazout (combustible)
A157: Non vérifiable / autres
A158: Gaz à effet de serre
A159: Biomasse
A160: Chaleur de l'environnement
A161: Charbon
A162: Energie éolienne
A163: Énergie hydraulique
A164: Energie nucléaire
A165: Energie solaire
A166: Exploitation des rejets de chaleur
A167: Gaz naturel
A168: Incinération des ordures ménagères
A169: Mazout (carburant)
A170: Mazout (combustible)
A171: Non vérifiable / autres

Sheet Fig_4
A1: =Ein_Texte!W5&OneSpace&B1 -> Figure 4 | B1: 4 | C1: =Ein_Texte!W6&OneSpace&$B$1&".1" -> Figure 4.1 | D1: =Ein_Texte!W81&OneSpace&Ein_Texte!W10&CHAR(10)&Ein_Texte!W38&OneSpace&Ein_Texte!W39&OneSpace&Ein_Texte!W37 -> Consommation d'énergie finale (absolu) par type d'utilisation et Secteurs | E1: =Ein_Texte!W6&OneSpace&$B$1&".2" -> Figure 4.2 | F1: =Ein_Texte!W81&OneSpace&Ein_Texte!W12&CHAR(10)&Ein_Texte!W38&OneSpace&Ein_Texte!W39&OneSpace&Ein_Texte!W37 -> Consommation d'énergie finale par hab. par type d'utilisation et Secteurs | G1: [GWh/a] | H1: [MWh/hab.]
A2: =Ein_Texte!W19 -> Consommation d'énergie finale par type d'utilisation et secteur | H2: =Ein_Texte!$T$12 -> Retour vers | I2: =Ein_Texte!$W$46 -> Aperçu des résultats
A4: =Ein_Texte!W7 -> Figures | J4: =Bilanzierungsstatus -> 
L8: =Ein_Texte!$W$14 -> Notes personnelles:
BB10: Grandeur de calcul | BC10: Consommation
BK11: Grandeur de calcul | BL11: Consommation
BB12: Summe von [MWh/(hab.·a)]
BC13: Mobilité | BD13: Chaleur | BF13: Electricité (hors chaleur et mobilité) | BK13: EnFin [MWh/a]
BC14: Transports | BD14: Artisanat / Industrie | BE14: Ménages privés | BF14: Artisanat / Industrie | BG14: Ménages privés | BL14: Mobilité | BM14: Chaleur | BO14: Electricité (hors chaleur et mobilité)
BB15: 0 | BL15: Transports | BM15: Artisanat / Industrie | BN15: Ménages privés | BO15: Artisanat / Industrie | BP15: Ménages privés
BB16: 0 | BK16: 0
BB17: 'Suisse | BK17: 0
BB18: 2014 | BK18: 'Suisse
BK19: 2014
A75: =Ein_Texte!W8 -> Tableau de données | J75: =Bilanzierungsstatus -> 
B77: [MWh/a] | D77: [MWh/(hab.·a)] | F77: [%]
B78: 0 | C78: 2014 | D78: 0 | E78: 2014 | F78: 0 | G78: 2014
A79: Consommation
A80: 0
A81: Electricité (hors chaleur et mobilité)
A82: Artisanat / Industrie
A83: Ménages privés
A84: Chaleur
A85: Artisanat / Industrie
A86: Ménages privés
A87: Mobilité
A88: Transports
A89: Circulation routière
A90: Diesel
A91: Electricité
A92: Essence
A93: Gaz
A94: Supplément carburant aérien (kérosène)
A95: Supplément rail, trafic à longue distance et transport de marchandises (électricité)
A96: 'Suisse
A97: Electricité (hors chaleur et mobilité)
A98: Artisanat / Industrie
A99: Ménages privés
A100: Chaleur
A101: Artisanat / Industrie
A102: Ménages privés
A103: Mobilité
A104: Transports
A105: tous les moyens de transport

Sheet Fig_5
A1: =Ein_Texte!W5&OneSpace&B1 -> Figure 5 | B1: 5 | C1: =Ein_Texte!W6&OneSpace&$B$1&".1" -> Figure 5.1 | D1: =A2&CHAR(10)&Ein_Texte!W38&OneSpace&Ein_Texte!W39&OneSpace&Ein_Texte!W37 -> Puissance continue par personne (énergie primaire, objectif: 2000 watts) par type d'utilisation et Secteurs | E1: =Ein_Texte!W6&OneSpace&$B$1&".2" -> Figure 5.2 | F1: =A2&CHAR(10)&Ein_Texte!W40&OneSpace&Ein_Texte!W41 -> Puissance continue par personne (énergie primaire, objectif: 2000 watts) par Agent énergétique | G1: [W/hab.] | H1: [DJC (20/12)]
A2: =Ein_Texte!W20 -> Puissance continue par personne (énergie primaire, objectif: 2000 watts) | H2: =Ein_Texte!$T$12 -> Retour vers | I2: =Ein_Texte!$W$46 -> Aperçu des résultats
A4: =Ein_Texte!W7 -> Figures | J4: =Bilanzierungsstatus -> 
L8: =Ein_Texte!$W$14 -> Notes personnelles:
BC10: Grandeur de calcul | BD10: Puissance continue par personne | BK10: Divers | BL10: Puissance continue par agent énergétique
BC12: Summe von [W/hab.] | BK12: Summe von [W/hab.]
BD13: Mobilité | BE13: Chaleur | BG13: Electricité (hors chaleur et mobilité) | BL13: Charbon | BM13: Mazout (combustible) | BN13: Mazout (carburant) | BO13: Gaz naturel | BP13: Energie nucléaire | BQ13: Incinération des ordures ménagères | BR13: Biomasse | BS13: Chaleur de l'environnement | BT13: Exploitation des rejets de chaleur | BU13: Énergie hydraulique | BV13: Energie solaire | BW13: Energie éolienne | BX13: Non vérifiable / autres
BD14: Transports | BE14: Artisanat / Industrie | BF14: Ménages privés | BG14: Approvisionnement de base | BH14: Marché libre | BK14: 0
BC15: 0 | BK15: 0
BC16: 0 | BK16: 'Suisse
BK17: 2007
A75: =Ein_Texte!W8 -> Tableau de données | J75: =Bilanzierungsstatus -> 
B77: EP [%] | C77: EP [W/hab.]
B78: 0 | C78: 0
B79: 0 | C79: 0
A80: Puissance continue par personne
A81: Electricité (hors chaleur et mobilité)
A82: Marché libre
A83: Approvisionnement de base
A84: Chaleur
A85: Ménages privés
A86: Artisanat / Industrie
A87: Mobilité
A88: Transports
B91: EP [W/hab.] | D91: EP [%]
B92: 0 | C92: 2007 | D92: 0 | E92: 2007
A93: 0
A94: Puissance continue par agent énergétique
A95: Biomasse
A96: Chaleur de l'environnement
A97: Charbon
A98: Energie éolienne
A99: Énergie hydraulique
A100: Energie nucléaire
A101: Energie solaire
A102: Exploitation des rejets de chaleur
A103: Gaz naturel
A104: Incinération des ordures ménagères
A105: Mazout (carburant)
A106: Mazout (combustible)
A107: Non vérifiable / autres
A108: Degrés-jours de chauffage (20/12)
A109: 'Suisse
A110: Puissance continue par agent énergétique
A111: Biomasse
A112: Chaleur de l'environnement
A113: Charbon
A114: Energie éolienne
A115: Énergie hydraulique
A116: Energie nucléaire
A117: Energie solaire
A118: Exploitation des rejets de chaleur
A119: Gaz naturel
A120: Incinération des ordures ménagères
A121: Mazout (carburant)
A122: Mazout (combustible)
A123: Non vérifiable / autres
A124: Degrés-jours de chauffage (20/12)

Sheet Fig_6
A1: =Ein_Texte!W5&OneSpace&B1 -> Figure 6 | B1: 6 | C1: =Ein_Texte!W6&OneSpace&$B$1&".1" -> Figure 6.1 | D1: =A2&CHAR(10)&Ein_Texte!W38&OneSpace&Ein_Texte!W39&OneSpace&Ein_Texte!W37 -> Emissions de gaz à effet de serre par personne et par an (objectif: 0 tonnes) par type d'utilisation et Secteurs | E1: =Ein_Texte!W6&OneSpace&$B$1&".2" -> Figure 6.2 | F1: =A2&CHAR(10)&OneSpace&"par agent énergétique" -> Emissions de gaz à effet de serre par personne et par an (objectif: 0 tonnes) par agent énergétique | G1: [t/hab.]
A2: =Ein_Texte!W21 -> Emissions de gaz à effet de serre par personne et par an (objectif: 0 tonnes) | H2: =Ein_Texte!$T$12 -> Retour vers | I2: =Ein_Texte!$W$46 -> Aperçu des résultats
A4: =Ein_Texte!W7 -> Figures | J4: =Bilanzierungsstatus -> 
L8: =Ein_Texte!$W$14 -> Notes personnelles:
BC10: Grandeur de calcul | BD10: Emissions de gaz à effet de serre par personne
BM11: Pondération | BN11: Gaz à effet de serre
BC12: Summe von GES [t/(hab.·a)]
BD13: Mobilité | BE13: Chaleur | BG13: Electricité (hors chaleur et mobilité) | BM13: Summe von GES [t/(hab.·a)]
BD14: Transports | BE14: Ménages privés | BF14: Artisanat / Industrie | BG14: Approvisionnement de base | BH14: Marché libre | BN14: Charbon | BO14: Mazout (combustible) | BP14: Mazout (carburant) | BQ14: Gaz naturel | BR14: Energie nucléaire | BS14: Chaleur de l'environnement | BT14: Exploitation des rejets de chaleur | BU14: Incinération des ordures ménagères | BV14: Biomasse | BW14: Énergie hydraulique | BX14: Energie solaire | BY14: Energie éolienne | BZ14: Non vérifiable / autres
BC15: 0 | BM15: 0
BC16: 0 | BM16: 0
BM17: 'Suisse
BM18: 2007
A75: =Ein_Texte!W8 -> Tableau de données | J75: =Bilanzierungsstatus -> 
B77: 0
B78: GES [t/(hab.·a)] | C78: GES [%]
B79: 0 | C79: 0
A80: Emissions de gaz à effet de serre par personne
A81: Electricité (hors chaleur et mobilité)
A82: Marché libre
A83: Approvisionnement de base
A84: Chaleur
A85: Ménages privés
A86: Artisanat / Industrie
A87: Mobilité
A88: Transports
B91: GES [t/(hab.·a)] | D91: GES [%]
B92: 0 | C92: 2007 | D92: 0 | E92: 2007
A93: 0
A94: Emission GES par agent énergétique
A95: Biomasse
A96: Chaleur de l'environnement
A97: Charbon
A98: Energie éolienne
A99: Énergie hydraulique
A100: Energie nucléaire
A101: Energie solaire
A102: Exploitation des rejets de chaleur
A103: Gaz naturel
A104: Incinération des ordures ménagères
A105: Mazout (carburant)
A106: Mazout (combustible)
A107: Non vérifiable / autres
A108: Degrés-jours de chauffage (20/12)
A109: 'Suisse
A110: Degrés-jours de chauffage (20/12)

Sheet Fig_7
A1: =Ein_Texte!W5&OneSpace&B1 -> Figure 7 | B1: 7 | C1: =Ein_Texte!W6&OneSpace&$B$1&".1" -> Figure 7.1 | D1: =A2&CHAR(10)&Ein_Texte!W44&" - "&Ein_Texte!W23 -> Production actuelle et potentielle issue de sources renouvelables dans la zone du bilan Energie finale - Chaleur | E1: =Ein_Texte!W6&OneSpace&$B$1&".2" -> Figure 7.2 | F1: =A2&CHAR(10)&Ein_Texte!W44&" - "&Ein_Texte!W24 -> Production actuelle et potentielle issue de sources renouvelables dans la zone du bilan Energie finale - Electricité | G1: =Ein_Texte!W6&OneSpace&$B$1&".3" -> Figure 7.3 | H1: =A2&CHAR(10)&Ein_Texte!W44&" - "&Ein_Texte!W25&OneSpace&Ein_Texte!W66 -> Production actuelle et potentielle issue de sources renouvelables dans la zone du bilan Energie finale - Total y c. mobilité) | I1: [GWh/a]
A2: =Ein_Texte!W22 -> Production actuelle et potentielle issue de sources renouvelables dans la zone du bilan | G2: =Ein_Texte!$T$12 -> Retour vers | H2: =Ein_Texte!$W$46 -> Aperçu des résultats
A4: =Ein_Texte!W7 -> Figures | L4: =Bilanzierungsstatus -> 
O8: =Ein_Texte!$W$14 -> Notes personnelles:
BC9: Grandeur de calcul | BD9: Production actuelle et potentielle issue de sources renouvelables dans la zone du bilan | BT9: Grandeur de calcul | BU9: Production actuelle et potentielle issue de sources renouvelables dans la zone du bilan | CP9: Grandeur de calcul | CQ9: Production actuelle et potentielle issue de sources renouvelables dans la zone du bilan
BC11: Summe von EnFin [MWh/a] | BT11: Summe von EnFin [MWh/a] | CP11: Summe von EnFin [MWh/a]
BD12: Importation / sobriété | BE12: Incinération des ordures ménagères | BF12: Biomasse | BG12: Géothermie (centrale) | BH12: Énergie hydraulique | BI12: Photovoltaïque | BJ12: Energie éolienne | BK12: Autres types de production d'électricité | BL12: Efficacité énergétique | BM12: Demande sans efficacité énergétique | BN12: Demande avec efficacité énergétique | BU12: Importation / sobriété, air ambiant | BV12: Electricité issue de la zone du bilan pour la chaleur | BW12: Incinération des ordures ménagères | BX12: Bois (privé et centrale thermique) | BY12: Biogaz/Gaz de digestion | BZ12: Exploitation de la chaleur de l'environnement | CA12: Géothermie | CB12: Géothermie peu profonde et exploitation des eaux souterraines | CC12: Exploitation des eaux de surface | CD12: Valorisation de la chaleur des eaux usées | CE12: Exploitation des rejets de chaleur | CF12: Solaire thermique (sans stockage saisonnier) | CG12: Solaire thermique en cas de stockage saisonnier en sous-sol | CH12: Autres types de production de chaleur | CI12: Efficacité énergétique | CJ12: Demande sans efficacité énergétique | CK12: Demande avec efficacité énergétique | CQ12: Importation / sobriété | CR12: Incinération des ordures ménagères | CS12: Biomasse | CT12: Exploitation de la chaleur de l'environnement | CU12: Géothermie | CV12: Géothermie peu profonde et exploitation des eaux souterraines | CW12: Exploitation des eaux de surface | CX12: Valorisation de la chaleur des eaux usées | CY12: Exploitation des rejets de chaleur | CZ12: Énergie hydraulique | DA12: Solaire thermique (sans stockage sais.) + installation PV | DB12: Solaire thermique en cas de stockage saisonnier en sous-sol | DC12: Energie éolienne | DD12: Autres | DE12: Efficacité énergétique | DF12: Demande sans efficacité énergétique | DG12: Demande avec efficacité énergétique
BC13: Electricité | BT13: Chaleur | CP13: Total
BC14: 0 | BT14: 0 | CP14: 0
BC15: 0 | BT15: 0 | CP15: 0
BC16: 2025 | BT16: 2025 | CP16: 2025
BC17: 2035 | BT17: 2035 | CP17: 2035
BC18: 2050 | BT18: 2050 | CP18: 2050
A81: =Ein_Texte!W8 -> Tableau de données | B81: =Bilanzierungsstatus -> 
B83: EnFin [MWh/a] | F83: Part [%]
B84: 0 | C84: 2025 | D84: 2035 | E84: 2050 | F84: 0 | G84: 2025 | H84: 2035 | I84: 2050
A85: 0
A86: Production actuelle et potentielle issue de sources renouvelables dans la zone du bilan
A87: Chaleur
A88: Demande avec efficacité énergétique
A89: Demande sans efficacité énergétique
A90: Efficacité énergétique
A91: Production locale renouvelable
A92: Biogaz/Gaz de digestion
A93: Bois (privé et centrale thermique)
A94: Electricité issue de la zone du bilan pour la chaleur
A95: Exploitation de la chaleur de l'environnement
A96: Exploitation des eaux de surface
A97: Exploitation des rejets de chaleur
A98: Géothermie
A99: Géothermie peu profonde et exploitation des eaux souterraines
A100: Incinération des ordures ménagères
A101: Solaire thermique (sans stockage saisonnier)
A102: Solaire thermique en cas de stockage saisonnier en sous-sol
A103: Valorisation de la chaleur des eaux usées
A104: Autres types de production de chaleur
A105: Electricité
A106: Demande avec efficacité énergétique
A107: Demande sans efficacité énergétique
A108: Efficacité énergétique
A109: Importation / sobriété
A110: Production locale renouvelable
A111: Biomasse
A112: Energie éolienne
A113: Énergie hydraulique
A114: Géothermie (centrale)
A115: Incinération des ordures ménagères
A116: Photovoltaïque
A117: Autres types de production d'électricité
A118: Mobilité
A119: Demande avec efficacité énergétique
A120: Demande sans efficacité énergétique
A121: Efficacité énergétique
A122: Importation / sobriété
A123: Total
A124: Demande avec efficacité énergétique
A125: Demande sans efficacité énergétique
A126: Efficacité énergétique
A127: Importation / sobriété
A128: Production locale renouvelable
A129: Biomasse
A130: Energie éolienne
A131: Énergie hydraulique
A132: Exploitation de la chaleur de l'environnement
A133: Exploitation des eaux de surface
A134: Exploitation des rejets de chaleur
A135: Géothermie
A136: Géothermie peu profonde et exploitation des eaux souterraines
A137: Incinération des ordures ménagères
A138: Solaire thermique (sans stockage sais.) + installation PV
A139: Solaire thermique en cas de stockage saisonnier en sous-sol
A140: Valorisation de la chaleur des eaux usées
A141: Autres

Sheet Fig_8
A1: =Ein_Texte!W5&OneSpace&B1 -> Figure 8 | B1: 8 | C1: =Ein_Texte!W6&OneSpace&$B$1&".1" -> Figure 8.1 | D1: =A2&CHAR(10)&Ein_Texte!W67 -> Taux d'énergies renouvelables dans l'énergie finale (total y c. mobilité) | E1: [GWh/a]
A2: =Ein_Texte!W26 -> Taux d'énergies renouvelables dans l'énergie finale | K2: =Ein_Texte!$T$12 -> Retour vers | L2: =Ein_Texte!$W$46 -> Aperçu des résultats
A4: =Ein_Texte!W7 -> Figures | M4: =Bilanzierungsstatus -> 
O8: =Ein_Texte!$W$14 -> Notes personnelles:
BB15: Summe von [%]
BC16: Part d'approvisionnement en énergies renouvelables | BD16: Part de l'approvisionnement en énergie non renouvelable
BB17: 0
BB18: Electricité
BB19: 0
BB20: Chaleur (hors électricité)
BB21: 0
BB22: Total
BB23: 0
A44: =Ein_Texte!W8 -> Tableau de données | M44: =Bilanzierungsstatus -> 
B46: 0
B47: [MWh/a] | C47: [%]
A48: 0
A49: Electricité
A50: Consommation d'énergies renouvelables
A51: Consommation d'énergies non renouvelables
A52: Part d'approvisionnement en énergies renouvelables
A53: Part de l'approvisionnement en énergie non renouvelable
A54: Chaleur (hors électricité)
A55: Consommation d'énergies renouvelables
A56: Consommation d'énergies non renouvelables
A57: Part d'approvisionnement en énergies renouvelables
A58: Part de l'approvisionnement en énergie non renouvelable
A59: Mobilité (hors électricité)
A60: Consommation d'énergies renouvelables
A61: Consommation d'énergies non renouvelables
A62: Part d'approvisionnement en énergies renouvelables
A63: Part de l'approvisionnement en énergie non renouvelable
A64: Total
A65: Consommation d'énergies renouvelables
A66: Consommation d'énergies non renouvelables
A67: Part d'approvisionnement en énergies renouvelables
A68: Part de l'approvisionnement en énergie non renouvelable

Sheet Fig_9
A1: =Ein_Texte!W5&OneSpace&B1 -> Figure 9 | B1: 9 | C1: =Ein_Texte!W6&OneSpace&$B$1&".1" -> Figure 9.1 | D1: =A2&CHAR(10)&Ein_Texte!W23&OneSpace&Ein_Texte!W39&OneSpace&Ein_Texte!W24&OneSpace&Ein_Texte!W10 -> Production de valeur de la consommation d'énergie Chaleur et Electricité (absolu) | E1: =Ein_Texte!W6&OneSpace&$B$1&".2" -> Figure 9.2 | F1: =A2&CHAR(10)&Ein_Texte!W23&OneSpace&Ein_Texte!W39&OneSpace&Ein_Texte!W24&OneSpace&Ein_Texte!W11 -> Production de valeur de la consommation d'énergie Chaleur et Electricité (en pourcentage) | G1: [mio. CHF/a]
A2: =Ein_Texte!W27 -> Production de valeur de la consommation d'énergie | H2: =Ein_Texte!$T$12 -> Retour vers | I2: =Ein_Texte!$W$46 -> Aperçu des résultats
A4: =Ein_Texte!W7 -> Figures | J4: =Bilanzierungsstatus -> 
L8: =Ein_Texte!$W$14 -> Notes personnelles: | BK8: Grandeur de calcul | BL8: Création de valeur de la consommation locale d'énergie
BK10: Summe von mio. [CHF/a]
BA11: Summe von mio. [CHF/a] | BL11: Suisse | BM11: Etranger. | BN11: Région
BB12: Etranger | BC12: Suisse | BD12: Région | BK12: 0
BA13: Création de valeur de la consommation locale d'énergie | BK13: 0
BA14: 0 | BK14: 2025
BA15: 0 | BK15: 2035
BA16: 2025 | BK16: 2050
BA17: 2035
BA18: 2050
A75: =Ein_Texte!W8 -> Tableau de données | J75: =Bilanzierungsstatus -> 
B77: mio. [CHF/a] | F77: [%]
B78: 0 | C78: 2025 | D78: 2035 | E78: 2050 | F78: 0 | G78: 2025 | H78: 2035 | I78: 2050
A79: Création de valeur de la consommation locale d'énergie
A80: 0
A81: Suisse
A82: Electricité
A83: Chaleur
A84: Efficacité énergétique
A85: Etranger
A86: Electricité
A87: Chaleur
A88: Efficacité énergétique
A89: Région
A90: Electricité
A91: Chaleur
A92: Efficacité énergétique

Sheet Fig_10
A1: =Ein_Texte!W5&OneSpace&B1 -> Figure 10 | B1: 10 | C1: =Ein_Texte!W6&OneSpace&$B$1&".1a" -> Figure 10.1a | D1: =Ein_Texte!W28&OneSpace&Ein_Texte!W29&CHAR(10)&Ein_Texte!W13 -> Courbe de décroissance Puissance continue (énergie primaire) | E1: =Ein_Texte!W6&OneSpace&$B$1&".1b" -> Figure 10.1b | F1: =Ein_Texte!W28&OneSpace&Ein_Texte!W29&OneSpace&Ein_Texte!W13&CHAR(10)&Ein_Texte!W40&OneSpace&Ein_Texte!W37 -> Courbe de décroissance Puissance continue (énergie primaire) par Secteurs | G1: =Ein_Texte!W6&OneSpace&$B$1&".2a" -> Figure 10.2a | H1: =Ein_Texte!W28&OneSpace&Ein_Texte!W30 -> Courbe de décroissance Emissions de gaz à effet de serre | I1: =Ein_Texte!W6&OneSpace&$B$1&".2b" -> Figure 10.2b | J1: =Ein_Texte!W28&OneSpace&Ein_Texte!W30&CHAR(10)&Ein_Texte!W40&OneSpace&Ein_Texte!W37 -> Courbe de décroissance Emissions de gaz à effet de serre par Secteurs | P1: [W/hab.] | Q1: [t/hab.]
A2: =Ein_Texte!W42 -> Courbe de décroissance de la société à 2000 watts | P2: =Ein_Texte!$T$12 -> Retour vers | Q2: =Ein_Texte!$W$46 -> Aperçu des résultats
A4: =Ein_Texte!W7 -> Figures | R4: =Bilanzierungsstatus -> 
T8: =Ein_Texte!$W$14 -> Notes personnelles:
BD10: Grandeur de calcul | BE10: Puissance continue par personne | BN10: Grandeur de calcul | BO10: Puissance continue par personne | BV10: Grandeur de calcul | BW10: Emissions de gaz à effet de serre par personne | CF10: Grandeur de calcul | CG10: Emissions de gaz à effet de serre par personne
BD12: Summe von [W/hab.] | BN12: Summe von [W/hab.] | BV12: Summe von GES [t/(hab.·a)] | CF12: Summe von GES [t/(hab.·a)]
BE13: Valeur réelle | BG13: Valeur cible | BI13: Objectifs individuels | BP13: Valeur réelle | BS13: Objectifs individuels | BW13: Valeur réelle | BY13: Valeur cible | CA13: Objectifs individuels | CH13: Valeur réelle | CK13: Objectifs individuels
BE14: Suisse | BF14: Zone du bilan | BG14: Suisse | BH14: Zone du bilan | BI14: Zone du bilan | BP14: Zone du bilan | BS14: Zone du bilan | BW14: Suisse | BX14: Zone du bilan | BY14: Suisse | BZ14: Zone du bilan | CA14: Zone du bilan | CH14: Zone du bilan | CK14: Zone du bilan
BD15: 0 | BP15: Transports | BQ15: Ménages privés | BR15: Artisanat / Industrie | BS15: Total | BV15: 0 | CH15: Transports | CI15: Ménages privés | CJ15: Artisanat / Industrie | CK15: Total
BD16: 0 | BN16: 0 | BO16: 0 | BP16: 0 | BQ16: 0 | BR16: 0 | BS16: 0 | BV16: 0 | CF16: 0 | CG16: 0 | CH16: 0 | CI16: 0 | CJ16: 0 | CK16: 0
BD17: 2005 | BO17: 2025 | BP17: 0 | BQ17: 0 | BR17: 0 | BS17: 0 | BV17: 2005 | CG17: 2025 | CH17: 0 | CI17: 0 | CJ17: 0 | CK17: 0
BD18: 2025 | BO18: 2035 | BP18: 0 | BQ18: 0 | BR18: 0 | BS18: 0 | BV18: 2025 | CG18: 2035 | CH18: 0 | CI18: 0 | CJ18: 0 | CK18: 0
BD19: 2035 | BO19: 2050 | BP19: 0 | BQ19: 0 | BR19: 0 | BS19: 0 | BV19: 2035 | CG19: 2050 | CH19: 0 | CI19: 0 | CJ19: 0 | CK19: 0
BD20: 2050 | BO20: 2100 | BP20: 0 | BQ20: 0 | BR20: 0 | BS20: 0 | BV20: 2050 | CG20: 2100 | CH20: 0 | CI20: 0 | CJ20: 0 | CK20: 0
BD21: 2100 | BO21: 9999 | BP21: 0 | BQ21: 0 | BR21: 0 | BS21: 0 | CG21: 9999 | CH21: 0 | CI21: 0 | CJ21: 0 | CK21: 0
BD22: 9999
A75: =Ein_Texte!W8 -> Tableau de données | B75: =Bilanzierungsstatus -> 
B77: 0 | C77: 2005 | D77: 2025 | E77: 2035 | F77: 2050 | G77: 2100
A78: Suisse.
A79: EP [W/hab.]
A80: Valeur cible
A81: Valeur réelle
A82: GES [t/(hab.·a)]
A83: Valeur cible
A84: Valeur réelle
B86: 0 | C86: 2016 | D86: 2020 | E86: 2025 | F86: 2035 | G86: 2050 | H86: 2100 | I86: 9999
A87: Zone du bilan
A88: 0
A89: PE [W/hab.]
A90: Valeur réelle
A91: Artisanat / Industrie
A92: Ménages privés
A93: Transports
A94: Objectifs individuels
A95: Valeur cible
A96: GES [t/(hab.·a)]
A97: Valeur réelle
A98: Artisanat / Industrie
A99: Ménages privés
A100: Transports
A101: Objectifs individuels
A102: Valeur cible

Sheet Fig_11
A1: =Ein_Texte!W5&OneSpace&B1 -> Figure 11 | B1: 11 | C1: =Ein_Texte!W6&OneSpace&$B$1&".1a" -> Figure 11.1a | D1: =Ein_Texte!W43&CHAR(10)&Ein_Texte!W44&" - "&Ein_Texte!W25 -> Objectifs Stratégie énergétique 2050 Energie finale - Total | E1: =Ein_Texte!W6&OneSpace&$B$1&".1b" -> Figure 11.1b | F1: =Ein_Texte!W43&CHAR(10)&Ein_Texte!W44&" - "&Ein_Texte!W40&OneSpace&Ein_Texte!W37 -> Objectifs Stratégie énergétique 2050 Energie finale - par Secteurs | G1: =Ein_Texte!W6&OneSpace&$B$1&".2a" -> Figure 11.2a | H1: =Ein_Texte!W43&CHAR(10)&Ein_Texte!W44&" - "&Ein_Texte!W24 -> Objectifs Stratégie énergétique 2050 Energie finale - Electricité | K1: =Ein_Texte!W6&OneSpace&$B$1&".2b" -> Figure 11.2b | L1: =Ein_Texte!W43&CHAR(10)&Ein_Texte!W44&" - "&Ein_Texte!W24&" - "&Ein_Texte!W40&OneSpace&Ein_Texte!W37 -> Objectifs Stratégie énergétique 2050 Energie finale - Electricité - par Secteurs | M1: =Ein_Texte!W6&OneSpace&$B$1&".3" -> Figure 11.3 | N1: =Ein_Texte!W43&CHAR(10)&Ein_Texte!W45 -> Objectifs Stratégie énergétique 2050 Production de courant renouvelable (hors énergie hydraulique) | P1: [MWh/hab.]
A2: =Ein_Texte!W43 -> Objectifs Stratégie énergétique 2050 | J2: =Ein_Texte!$T$12 -> Retour vers | K2: =Ein_Texte!$W$46 -> Aperçu des résultats
A4: =Ein_Texte!W7 -> Figures | R4: =Bilanzierungsstatus -> 
T8: =Ein_Texte!$W$14 -> Notes personnelles:
BM9: Aides pour le tri | BN9: SE 2050 | CM9: Aides pour le tri | CN9: SE 2050 - Electricité
BD10: Aides pour le tri | BE10: SE 2050 | BM10: Répartition spatiale | BN10: Zone du bilan | CD10: Aides pour le tri | CE10: SE 2050 - Electricité | CM10: Répartition spatiale | CN10: Zone du bilan | CX10: Aides pour le tri | CY10: SE 2050
BD12: Summe von [MWh/(hab.·a)] | BM12: Summe von [MWh/(hab.·a)] | CD12: Summe von [MWh/(hab.·a)] | CM12: Summe von [MWh/(hab.·a)] | CX12: Summe von [MWh/(hab.·a)]
BE13: Consommation d'énergie finale | BG13: Valeur cible | BN13: Consommation d'énergie finale | BQ13: Demande avec efficacité énergétique | BR13: Demande sans efficacité énergétique | BS13: Valeur cible | CE13: Consommation d'énergie finale | CG13: Valeur cible | CN13: Consommation d'énergie finale | CQ13: Demande avec efficacité énergétique | CR13: Demande sans efficacité énergétique | CS13: Valeur cible | CY13: Biomasse | CZ13: Photovoltaïque | DA13: Géothermie (centrale) | DB13: Incinération des ordures ménagères | DC13: Energie éolienne | DD13: Valeur cible
BE14: Suisse | BF14: Zone du bilan | BG14: Suisse | BH14: Zone du bilan | BN14: Transports | BO14: Ménages privés | BP14: Artisanat / Industrie | BQ14: Total | BR14: Total | BS14: Total | CE14: Suisse | CF14: Zone du bilan | CG14: Suisse | CH14: Zone du bilan | CN14: Transports | CO14: Ménages privés | CP14: Artisanat / Industrie | CQ14: Total | CR14: Total | CS14: Total | CY14: Zone du bilan | CZ14: Zone du bilan | DA14: Zone du bilan | DB14: Zone du bilan | DC14: Zone du bilan | DD14: Zone du bilan | DE14: Suisse
BD15: 0 | BM15: 0 | CD15: 0 | CM15: 0 | CX15: 0
BD16: 0 | BM16: 0 | CD16: 0 | CM16: 0 | CX16: 0 | CY16: 0 | CZ16: 0 | DA16: 0 | DB16: 0 | DC16: 0 | DD16: 0 | DE16: 0
BD17: 2000 | BM17: 2016 | CD17: 2000 | CM17: 2016 | CX17: 2015 | CY17: 0 | CZ17: 0 | DA17: 0 | DB17: 0 | DC17: 0 | DD17: 0 | DE17: 0
BD18: 2016 | BM18: 2020 | CD18: 2016 | CM18: 2020 | CX18: 2020 | CY18: 0 | CZ18: 0 | DA18: 0 | DB18: 0 | DC18: 0 | DD18: 0 | DE18: 0
BD19: 2020 | BM19: 2025 | CD19: 2020 | CM19: 2025 | CX19: 2025 | CY19: 0 | CZ19: 0 | DA19: 0 | DB19: 0 | DC19: 0 | DD19: 0 | DE19: 0
BD20: 2025 | BM20: 2035 | CD20: 2025 | CM20: 2035 | CX20: 2035 | CY20: 0 | CZ20: 0 | DA20: 0 | DB20: 0 | DC20: 0 | DD20: 0 | DE20: 0
BD21: 2035 | CD21: 2035
A106: =Ein_Texte!W8 -> Tableau de données | B106: =Bilanzierungsstatus -> 
A108: =Ein_Texte!W44&" - "&Ein_Texte!W25 -> Energie finale - Total | E108: =Ein_Texte!W44&" - "&Ein_Texte!W24 -> Energie finale - Electricité | I108: =Ein_Texte!W45 -> Production de courant renouvelable (hors énergie hydraulique)
A109: [MWh/(hab.·a)] | E109: [MWh/(hab.·a)] | I109: [MWh/(hab.·a)]
B110: Zone du bilan | C110: Suisse | F110: Zone du bilan | G110: Suisse | J110: Zone du bilan | K110: Suisse
A111: 0 | E111: 0 | I111: 0
A112: SE 2050 | E112: SE 2050 - Electricité | I112: SE 2050
A113: Consommation d'énergie finale | E113: Consommation d'énergie finale | I113: Biomasse
A114: 0 | E114: 0 | I114: 0
A115: 2000 | E115: 2000 | I115: 2020
A116: 2016 | E116: 2016 | I116: 2025
A117: Valeur cible | E117: Valeur cible | I117: 2035
A118: 0 | E118: 0 | I118: Géothermie (centrale)
A119: 2000 | E119: 2000 | I119: 0
A120: 2016 | E120: 2016 | I120: 2020
A121: 2020 | E121: 2020 | I121: 2025
A122: 2025 | E122: 2025 | I122: 2035
A123: 2035 | E123: 2035 | I123: Incinération des ordures ménagères
I124: 0
I125: 2020
I126: 2025
I127: 2035
I128: Photovoltaïque
I129: 0
I130: 2020
I131: 2025
I132: 2035
I133: Energie éolienne
I134: 0
I135: 2020
I136: 2025
I137: 2035
I138: Valeur cible
I139: 0
I140: 2015
I141: 2020
I142: 2025
I143: 2035

Sheet Indicateurs
A1: =Ein_Texte!W31 -> Indicateurs | B1: Ind. | C1: =Ein_Texte!W6&OneSpace&$B$1&" 1"&" ("&Ein_Texte!W74&")" -> Figure Ind. 1 (Indicateurs W9 et W10) | D1: =Ein_Texte!W24&OneSpace&Ein_Texte!W68&CHAR(10)&Ein_Texte!W35 -> Electricité Consommation par habitant et part d'énergie renouvelable | E1: =Ein_Texte!$W$6&OneSpace&$B$1&" 2"&" ("&Ein_Texte!W75&")" -> Figure Ind. 2 (Indicateurs H6 et W11) | F1: =Ein_Texte!W24&OneSpace&Ein_Texte!W69&CHAR(10)&Ein_Texte!W33 -> Electricité Production Puissance photovoltaïque et courant vert | G1: =Ein_Texte!$W$6&OneSpace&$B$1&" 3"&" ("&Ein_Texte!W76&")" -> Figure Ind. 3 (Indicateurs H7 et H9) | H1: =Ein_Texte!$W$23&OneSpace&Ein_Texte!W68&CHAR(10)&Ein_Texte!$W$35 -> Chaleur Consommation par habitant et part d'énergie renouvelable | I1: =Ein_Texte!$W$6&OneSpace&$B$1&" 4"&" ("&Ein_Texte!$W$77&")" -> Figure Ind. 4 (Indicateurs W12 et W14) | J1: =Ein_Texte!$W$72&CHAR(10)&Ein_Texte!$W$73 -> Exploitation du potentiel Electricité et rejets de chaleur/anergie | K1: =Ein_Texte!$W$6&OneSpace&$B$1&" 5"&" ("&Ein_Texte!W78&")" -> Figure Ind. 5 (Indicateurs W15 et W18) | L1: =Ein_Texte!W70&CHAR(10)&Ein_Texte!W36 -> Mobilité Voitures particulières et carsharing pour 1000 hab. | M1: =Ein_Texte!$W$6&OneSpace&$B$1&" 6"&" ("&Ein_Texte!W79&")" -> Figure Ind. 6 (Indicateurs W13 et H8) | N1: =Ein_Texte!W71 -> Minergie et CECB | O1: [kW/hab.] | P1: [kWh/(hab.·a)] | Q1: [%] | R1: [nombre/1000 hab.] | S1: [m²/hab.]
A2: =Ein_Texte!W32 -> Indicateurs Cité de l'énergie pour tout le territoire communal | H2: =Ein_Texte!$T$12 -> Retour vers | I2: =Ein_Texte!$W$46 -> Aperçu des résultats
A4: =Ein_Texte!W7&OneSpace&Ein_Texte!W65 -> Figures Indicateurs | J4: =Bilanzierungsstatus -> 
L8: =Ein_Texte!$W$14 -> Notes personnelles:
BF11: Summe von Valeur | BM11: Summe von Valeur | BT11: Summe von Valeur | CA11: Summe von Valeur | CF11: Summe von Valeur | CJ11: Summe von Valeur
BG12: Consommation de chaleur par habitant et par année [kWh/(hab.·a)] | BH12: Part de chaleur issue des énergies renouvelables par rapport à la consommation finale de chaleur [%] | BN12: Nombre de voitures particulières enregistrées pour 1000 habitants sur le territoire communal [nombre/1000 hab.] | BO12: Nombre d'utilisateurs de carsharing pour 1000 habitants [nombre/1000 hab.] | BU12: Consommation d'électricité par hab, et par année [kWh/(hab.·a)] | BV12: Part de la consommation de courant issu des énergies renouvelables par rapport à la consommation de courant totale [%] | CB12: Part de courant vert par rapport à la consommation de courant totale [%] | CC12: Puissance photovoltaïque installée par hab. sur le territoire communal [kWp/hab.] | CG12: Nombre de CECB par rapport au nombre de bâtiments [%] | CH12: selon la surface de référence énergétique certifiée par hab. [m²/hab] | CK12: Potentiel de production de courant utilisé issu des énergies renouvelables [%] | CL12: Rejets de chaleur/anergie utilisés par rapport au potentiel [%]
BF13: 0 | BM13: 0 | BT13: 0 | CA13: 0 | CF13: 0 | CJ13: 0
BF14: 0 | BM14: 0 | BT14: 0 | CA14: 0 | CF14: 0 | CJ14: 0
BF15: 'Suisse | BM15: 'Suisse | BT15: 'Suisse | CA15: 'Suisse | CF15: 'Suisse | CJ15: 'Suisse
BF16: 2013 | BM16: 2013 | BT16: 2013 | CA16: 2013 | CF16: 2013 | CJ16: 2013
A109: =Ein_Texte!W8 -> Tableau de données | B109: =Bilanzierungsstatus -> 
A111: Summe von Valeur
B112: 0 | C112: 'Suisse
B113: 0 | C113: 2013
A114: Indicateurs principaux
A115: Electricité
A116: Puissance photovoltaïque installée par hab. sur le territoire communal [kWp/hab.]
A117: Indicateur H6, mesure: 3.2.1, Catalogue Cité de l'énergie 2017
A118: Chaleur
A119: Consommation de chaleur par habitant et par année [kWh/(hab.·a)]
A120: Indicateur H7, mesure: 1.1.3 & 3.2.3, Catalogue Cité de l'énergie 2017
A121: Part de chaleur issue des énergies renouvelables par rapport à la consommation finale de chaleur [%]
A122: Indicateur H9, mesure: 3.2.3, Catalogue Cité de l'énergie 2017
A123: selon la surface de référence énergétique certifiée par hab. [m²/hab]
A124: Indicateur H8, mesure: 6.2.4, Catalogue Cité de l'énergie 2017
A125: Indicateurs à choix
A126: Electricité
A127: Consommation d'électricité par hab, et par année [kg/(hab.·a)]
A128: Indicateur W9, mesure: 1.1.3, Catalogue Cité de l'énergie 2017
A129: Part de courant vert par rapport à la consommation de courant totale [%]
A130: Indicateur W11, mesure: 3.1.2, Catalogue Cité de l'énergie 2017
A131: Part de la consommation de courant issu des énergies renouvelables par rapport à la consommation de courant totale [%]
A132: Indicateur W10, mesure: 3.1.2, Catalogue Cité de l'énergie 2017
A133: Potentiel de production de courant utilisé issu des énergies renouvelables [%]
A134: Indicateur W12, mesure: 3.2.1, Catalogue Cité de l'énergie 2017
A135: Consommation d'électricité par hab, et par année [kWh/(hab.·a)]
A136: Indicateur W9, mesure: 1.1.3, Catalogue Cité de l'énergie 2017
A137: Chaleur
A138: Nombre de CECB par rapport au nombre de bâtiments [%]
A139: Indicateur W13, mesure: 6.2.4, Catalogue Cité de l'énergie 2017
A140: Rejets de chaleur/anergie utilisés par rapport au potentiel [%]
A141: Indicateur W14, mesure: 3.2.2, Catalogue Cité de l'énergie 2017, en se référant à 2050 pot.
A142: Mobilité
A143: Contributions financières aux transports publics [CHF/(1000 hab·a)]
A144: Indicateur W17, Catalogue Cité de l'énergie 2017
A145: Nombre de départs en transports publics pour 1000 habitants [nombre/(1000 hab.·a)]
A146: Indicateur W16, mesure: 4.4.1, Catalogue Cité de l'énergie 2017
A147: Nombre de voitures particulières enregistrées pour 1000 habitants sur le territoire communal [nombre/1000 hab.]
A148: Indicateur W18, Catalogue Cité de l'énergie 2017
A149: Nombre d'utilisateurs de carsharing pour 1000 habitants [nombre/1000 hab.]
A150: Indicateur W15, mesure: 4.4.2, Catalogue Cité de l'énergie 2017
A151: Eau
A152: Consommation d'eau potable par hab. et par année [m³/(hab.·a)]
A153: Indicateur W19, Catalogue Cité de l'énergie 2017
A154: Déchet
A155: Déchets urbains par hab. et année [kg/(hab.·a)]
A156: Indicateur W20, mesure: 1.1.5, Catalogue Cité de l'énergie 2017
A157: Sur le plan qualitatif
A158: Conseils énergétiques par hab. et année [nombre/(hab.·a)]
A159: Indicateur W21, mesure: 6.1.3, Catalogue Cité de l'énergie 2017
A160: Nombre d'entreprises avec gestion de la mobilité rapporté au nombre d'entreprises [%]
A161: Indicateur W25, mesure: 6.2.3, Catalogue Cité de l'énergie 2017
A162: Nombre d'entreprises avec programmes d'efficacité contraignants rapporté au nombre d'entreprises [%]
A163: Indicateur W24, mesure: 6.2.3, Catalogue Cité de l'énergie 2017
A164: Subventions versées par hab. et année [CHF/(hab.·a)]
A165: Indicateur W22, Catalogue Cité de l'énergie 2017
A166: Surfaces zones de détente et espaces verts par hab. [m²/hab.]
A167: Indicateur W23, mesure: 4.2.2, Catalogue Cité de l'énergie 2017
A168: Société à 2000 watts
A169: Consommation d'énergie primaire [W/hab.]
A170: Indicateur W27, mesure: 1.1.3, Catalogue Cité de l'énergie 2017
A171: Emissions de gaz à effet de serre par habitant [tCO2eq/(hab.·a)]
A172: Indicateur W26, mesure: 1.1.3, Catalogue Cité de l'énergie 2017

Sheet P_ETraeger
A1: Paramètres
A2: Agent énergétique
A4: Agent énergétique | E4: Remarques | F4: Valeurs par défaut
A5: Chaudières à énergies fossiles
A6: Heures de pleine charge Chauffages à mazout et à charbon (ménages privés et petits artisans) | C6: 1500 | D6: h/a | F6: 1500
A7: Heures de pleine charge Chauffages à mazout et à charbon (artisanat et industrie) | C7: 1750 | D7: h/a | F7: 1750
A8: Energie solaire
A9: Production spécifique d'électricité photovoltaïque | C9: 120 | D9: kWh/(m²·a) | F9: 120
A10: Production spécifique de chaleur par l'énergie solaire thermique aujourd'hui | C10: 480 | D10: kWh/(m²·a) | F10: 480
A11: Production spécifique de chaleur par l'énergie solaire thermique à l'avenir (valeur standard: avec stockage saisonnier) | C11: 700 | D11: kWh/(m²·a) | F11: 700
A12: Heures à pleine charge installation photovoltaïque | C12: 1000 | D12: h/a | F12: 1000
A13: Biomasse
A14: Heures de pleine charge Chauffages à bois | C14: 1750 | D14: h | F14: 1750
A15: Supplément forêt de feuillus | C15: 4.2 | D15: m³/ha | F15: 4.2
A16: Pouvoir calorifique du bois de feuillus | C16: 1050 | D16: kWh/Sm³
A17: Supplément forêt de résineux | C17: 4.6 | D17: m³/ha | F17: 4.6
A18: Pouvoir calorifique du bois de résineux | C18: 700 | D18: kWh/Sm³
A19: Biogaz par unité de gros bétail (1 bovin = 1 UGB) | C19: 1.2 | D19: m³/d
A20: Pouvoir calorifique du biogaz issu de l'élevage d'animaux | C20: 6.6 | D20: kWh/m³
A21: Production de biogaz par tonne de déchets verts | C21: 110 | D21: m³/t | F21: 110
A22: Pouvoir calorifique du biogaz issu de déchets verts | C22: 8.81 | D22: kWh/m³
A23: Chauffage électrique
A24: Heures à pleine charge chauffages et chauffe-eau électriques | C24: 1500 | D24: h/a | F24: 1500
A25: Année du changement complet des chauffages et chauffe-eau électriques (après le MoPEC 2014) | C25: 2030 | F25: 2030
A26: Energie éolienne
A27: Surface au sol minimale nécessaire par éolienne | C27: 0.49 | D27: km² | F27: 0.49
A28: Puissance nominale par éolienne | C28: 3 | D28: MW | E28: Modèle Enercon E-115 | F28: 3
A29: Heures à pleine charge installations éoliennes | C29: 1000 | D29: h/a | F29: 1000
A30: Chaleur de l'environnement et des eaux usées, et rejets de chaleur
A31: Heures de pleine charge Pompes à chaleur | C31: 1750 | D31: h | F31: 1750
A32: Heures de pleine charge Eaux usées - pompes à chaleur | C32: 1750 | D32: h | F32: 1750
A33: Heures de pleine charge Installations de climatisation | C33: 420 | D33: h | F33: 420
A34: Heures de pleine charge Installations de froid industriel | C34: 3000 | D34: h | F34: 3000
A35: Extraction durable et spécifique de la chaleur par sonde géothermique sans régénération | C35: 4.2 | D35: MWh/a
A36: Coefficient de performance annuel des pompes à chaleur aujourd'hui | C36: 3 | F36: 3
A37: Coefficient de performance annuel des pompes à chaleur à l'avenir | C37: 4 | F37: 4
A38: Baisse de la température du cours d'eau | C38: 1 | D38: K | F38: 1
A39: Débit minimal des cours d'eau - Utilisation thermique | C39: 500 | D39: l/s | F39: 500
A40: Longueur de rive par pompe à chaleur puisant l'eau du lac | C40: 600 | D40: m | F40: 600
A41: Puissance calorifique d'une pompe à chaleur d'eau de lac par point de raccordement | C41: 500 | D41: kW | F41: 500
A42: Baisse de la température des eaux usées dans les canaux de collecte avant la STEP | C42: 2 | D42: K | F42: 2
A43: Baisse de la température des eaux usées après la STEP | C43: 5 | D43: K | F43: 5
A44: Coefficient de performance annuel des machines frigorifiques | C44: 10 | F44: 10
A45: Indicateurs du potentiel pour la géothermie peu profonde et l'énergie solaire
A46: Zone à bâtir | C46: Indice de qualité solaire [m² de toit utilisable / m² de zone constructible] | D46: [EWS/ha]
A47: Zone d'habitation avec immeubles de 1 à 2 étages | C47: 0.04 | D47: 12
A48: Zone d'habitation avec immeubles de 3 à 5 étages | C48: 0.08 | D48: 10
A49: Zone d'habitation et d'artisanat (2 étages) | C49: 0.1 | D49: 12
A50: Zone d'habitation et d'artisanat (3 étages et plus) | C50: 0.19 | D50: 11
A51: Zone d'artisanat | C51: 0.26 | D51: 5
A52: Zone industrielle | C52: 0.26 | D52: 5
A53: Zone avec bâtiments publics | C53: 0.12 | D53: 6
A54: Zone centrale | C54: 0.14 | D54: 8
A55: Source: BMVBS, Prof. Genske (2009). Nutzung städtischer Freiflächen für erneuerbare Energien (Utilisation des surfaces urbaines libres pour les énergies renouvelables, en allemand).

Sheet P_Konst_Ant
A1: =P_ETraeger!A1 -> Paramètres
A2: Constantes et parts
A4: Valeurs constantes
A5: Constantes
A6: Mètre cube de copeaux par mètre cube de bois | C6: 2.8 | D6: Sm³/m³
A7: Unités de gros bétail par porc (1 porc = 0,2 UGB) | C7: 0.2 | D7: UGB/animal
A8: Capacité de chaleur spécifique de l'eau à 10-15°C (température extérieure moyenne et température moyenne des eaux usées) | C8: 4.19 | D8: kJ/(kg·K)
A10: Objectifs Suisse
A11: Puissance continue (domaine de l'énergie primaire) objectif 2000 watts | C11: 2000 | D11: W/hab.
A12: Puissance continue (domaine de l'énergie primaire) 2005 | C12: 6320 | D12: W/hab.
A13: Puissance continue (domaine de l'énergie primaire) 2015 | C13: 4810 | D13: W/hab.
A14: Puissance continue (domaine de l'énergie primaire) 2030 | C14: 3000 | D14: W/hab.
A15: Puissance continue (domaine de l'énergie primaire) 2050 | C15: 2000 | D15: W/hab.
A16: Puissance continue (domaine de l'énergie primaire) 2100 | C16: 2000 | D16: W/hab.
A17: Emissions de gaz à effet de serre objectif 2000 watts | C17: 0.01 | D17: t CO₂ éq/(hab.·a)
A18: Emissions de gaz à effet de serre 2006 | C18: 8.3 | D18: t CO₂ éq/(hab.·a)
A19: Emissions de gaz à effet de serre 2015 | C19: 6.6 | D19: t CO₂ éq/(hab.·a)
A20: Emissions de gaz à effet de serre 2030 | C20: 3 | D20: t CO₂ éq/(hab.·a)
A21: Emissions de gaz à effet de serre 2050 | C21: 0.01 | D21: t CO₂ éq/(hab.·a)
A22: Emissions de gaz à effet de serre 2100 | C22: 0.01 | D22: t CO₂ éq/(hab.·a)
A23: Consommation d'énergie finale 2000 | C23: 237817.5 | D23: GWh
A24: Consommation d'énergie finale 2000 | C24: =($C$23*1000)/C49 -> 33.01161637 | D24: MWh/hab.
A25: Consommation d'énergie finale 2016 | C25: =SUM(P_Vergl_CH!O6:O51)/C61 -> 29.26511463 | D25: MWh/hab.
A26: Consommation d'énergie finale 2020 (-16% par rapport à 2000) | C26: =($C$23*1000*(1-0.16))/C67 -> 22.66114299 | D26: MWh/hab.
A27: Consommation d'énergie finale 2035 (-43% par rapport à 2000) | C27: =($C$23*1000*(1-0.43))/C68 -> 13.75225474 | D27: MWh/hab.
A28: Consommation d'électricité (EnFin) 2000 | C28: 54346.1 | D28: GWh
A29: Consommation d'électricité (EnFin) 2000 | C29: =($C$28*1000)/C49 -> 7.543820806 | D29: MWh/hab.
A30: Consommation d'électricité (EnFin) 2016 | C30: =SUM(P_Vergl_CH!O36:O51)/C61 -> 7.345672633 | D30: MWh/hab.
A31: Consommation d'énergie (EnFin) 2020 (-3% par rapport à 2000) | C31: =($C$28*1000*(1-0.03))/C65 -> 6.080033794 | D31: MWh/hab.
A32: Consommation d'énergie (EnFin) 2035 (-13% par rapport à 2000) | C32: =($C$28*1000*(1-0.13))/C68 -> 4.796703561 | D32: MWh/hab.
A33: Production d'énergies renouvelables (hors énergie hydraulique) en 2000 | C33: =846/C49*1000 -> 0.1174338619 | D33: MWh/hab.
A34: Production d'énergies renouvelables (hors énergie hydraulique) en 2005 | C34: =1045/C50*1000 -> 0.1400968049 | D34: MWh/hab.
A35: Production d'énergies renouvelables (hors énergie hydraulique) en 2015 | C35: =2831/C60*1000 -> 0.3399732393 | D35: MWh/hab.
A36: Production d'énergies renouvelables (hors énergie hydraulique) en 2020 | C36: =4400/C67*1000 -> 0.4991273779 | D36: MWh/hab.
A37: Production d'énergies renouvelables (hors énergie hydraulique) en 2035 | C37: =11400/C68*1000 -> 1.156538501 | D37: MWh/hab.
A38: Production d'énergie hydraulique (sans pompage-turbinage) en 2000 | C38: =28980/C49*1000 -> 4.022734418 | D38: MWh/hab.
A39: Production d'énergie hydraulique (sans pompage-turbinage) en 2005 | C39: =30128/C50*1000 -> 4.039078026 | D39: MWh/hab.
A40: Production d'énergie hydraulique (sans pompage-turbinage) en 2015 | C40: =37190/C60*1000 -> 4.466126728 | D40: MWh/hab.
A41: Production d'énergie hydraulique (sans pompage-turbinage) en 2035 | C41: =37400/C68*1000 -> 3.794257888 | D41: MWh/hab.
A42: Quelle: Fachstelle 2000-Watt-Gesellschaft, Bilanzierungskonzept 2000-Watt-Gesellschaft, September 2014; BFE, Schweizerische Statistik der erneuerbaren Energien Ausgabe 2015, Anhang B, Stand September 2016; BFE, Schweizerische Gesamtenergiestatistik, Stand: September 2016; UVEK, Energiegesetz, Energiestrategie 2050, Stand: Mai 2017
A44: Valeurs par défaut
A45: Année de prévision variable par défaut | C45: 2025
A46: Année cible par défaut société à 2000 watts | C46: 2050
A48: Habitants Suisse (population résidante permanente)
A49: 2000 | B49: Habitants Suisse | C49: 7204055 | D49: hab.
A50: 2005 | B50: Habitants Suisse | C50: 7459128 | D50: hab.
A51: 2006 | B51: Habitants Suisse | C51: 7508739 | D51: hab.
A52: 2007 | B52: Habitants Suisse | C52: 7593494 | D52: hab.
A53: 2008 | B53: Habitants Suisse | C53: 7701856 | D53: hab.
A54: 2009 | B54: Habitants Suisse | C54: 7785806 | D54: hab.
A55: 2010 | B55: Habitants Suisse | C55: 7870134 | D55: hab.
A56: 2011 | B56: Habitants Suisse | C56: 7954662 | D56: hab.
A57: 2012 | B57: Habitants Suisse | C57: 8039060 | D57: hab.
A58: 2013 | B58: Habitants Suisse | C58: 8139631 | D58: hab.
A59: 2014 | B59: Habitants Suisse | C59: 8237666 | D59: hab.
A60: 2015 | B60: Habitants Suisse | C60: 8327126 | D60: hab.
A61: 2016 | B61: Habitants Suisse | C61: 8417730 | D61: hab.
A62: 2017 | B62: Habitants Suisse | C62: 8484130 | D62: hab.
A63: 2018 | B63: Habitants Suisse | C63: 8544527 | D63: hab.
A64: 2019 | B64: Habitants Suisse | C64: 8606033 | D64: hab.
A65: 2020 | B65: Habitants Suisse | C65: 8670300 | D65: hab.
A66: 2021 | B66: Habitants Suisse | C66: 8738791 | D66: hab.
A67: 2022 | B67: Habitants Suisse | C67: 8815385 | D67: hab.
A68: 2035 | B68: Habitants Suisse | C68: 9857000 | D68: hab.
A69: Source: OFS. Population - Evolution future pour la Suisse, « scénario de référence », état: juin 2015; OFS, Statistique de la population, su-d-1.1.1.4, état: 2022
A70: Parts | F70: =P_ETraeger!E4 -> Remarques | G70: =P_ETraeger!F4 -> Valeurs par défaut
A71: Biomasse
A72: CETE Rendement électrique | C72: 0.3 | F72: Paramètres communaux, voir Mode d'emploi | G72: 0.3
A73: CETE Rendement thermique | C73: 0.6 | F73: Paramètres communaux, voir Mode d'emploi | G73: 0.6
A74: Chaleur de l'environnement et des eaux usées, et rejets de chaleur
A75: =D75&C76&D76 -> Part d'exploitation des cours d'eau, commune <1000 hab. | C75: 0.001 | D75: Part d'exploitation des cours d'eau, commune < | G75: 0.001
A76: Habitants commune limite inférieure | C76: 1000 | D76: hab.
A77: =D77&C78&D76 -> Part d'exploitation des cours d'eau, commune >20000 hab. | C77: 0.02 | D77: Part d'exploitation des cours d'eau, commune > | G77: 0.02
A78: Habitants commune limite supérieure | C78: 20000
A79: Part de récupération de la chaleur industrielle | C79: 0.15 | F79: Paramètres communaux, voir Mode d'emploi | G79: 0.15
A80: Parts de consommation et de production
A81: Part de centrales à énergie totale équipée (CETE) alimentées au bois par rapport à l'électricité produite à partir de la biomasse [Basée sur les parts de mix électrique suisse produit par les centrales à bois et à biogaz (46% / 54%)] | C81: 0.5 | G81: 0.5
A82: Part de centrales à énergie totale équipée (CETE) alimentées au biogaz par rapport à l'électricité produite à partir de la biomasse [Basée sur les parts de mix électrique suisse produit par les centrales à bois et à biogaz (46% / 54%)] | C82: 0.5 | G82: 0.5
A83: Part de centrales à énergie totale équipée (CETE) alimentées au gaz par rapport à l'électricité produite à partir de gaz naturel [Selon les parts de production d'électricité à partir de gaz naturel en Suisse et à l'étranger] | C83: 0.25 | G83: 0.25
A84: Part de centrales à énergie totale alimentées au diesel par rapport à l'électricité produite à partir du pétrole | C84: 0.3 | G84: 0.3
A85: Part de centrales à cycles combinés alimentée au gaz naturel (GuD) par rapport à l'électricité produite à partir de gaz naturel [Selon les parts d'électricité produite à partir de gaz naturel en Suisse et à l'étranger] | C85: 0.75 | G85: 0.75
A86: Part globale de ménages raccordés au réseau de chaleur à distance | C86: 0.5 | G86: 0.5
A87: Part des pompes à chaleur dans les ménages (part de l'industrie = 100% - part des ménages) | C87: 1 | F87: Paramètres communaux, voir Mode d'emploi | G87: 1
A88: Part de la mobilité électrique dans les ménages (part de l'industrie = 100% - part des ménages) | C88: 0.5 | G88: 0.5
A89: Part de chauffages électriques dans les ménages (part de l'industrie = 100% - part des ménages) | C89: 0.5 | F89: Paramètres communaux, voir Mode d'emploi | G89: 0.5
A90: Part d'exploitation des rejets de chaleur dans les ménages (part de l'industrie = 100% - part des ménages) | C90: 0.5 | F90: Paramètres communaux, voir Mode d'emploi | G90: 0.5
A91: Autre part de production de chaleur dans les ménages (part de l'industrie = 100% - part des ménages) | C91: 0.5 | F91: Paramètres communaux, voir Mode d'emploi | G91: 0.5
A92: Autre part de la production d'électricité dans les ménages (part de l'industrie = 100% - part des ménages) | C92: 0.5 | F92: Paramètres communaux, voir Mode d'emploi | G92: 0.5
A93: Part des pompes à chaleur dans l'approvisionnement de base (part du marché libre = 100% - part de l'approvisionnement de base) | C93: 1 | F93: Paramètres communaux, voir Mode d'emploi | G93: 1
A94: Part de la mobilité électrique dans l'approvisionnement de base (part du marché libre = 100% - part de l'approvisionnement de base) | C94: 0.5 | F94: Paramètres communaux, voir Mode d'emploi | G94: 0.5
A95: Part de chauffages électriques dans l'approvisionnement de base (part du marché libre = 100% - part de l'approvisionnement de base) | C95: 0.9 | F95: Paramètres communaux, voir Mode d'emploi | G95: 0.9
A96: Chaleur à distance | C96: Mix agents énergétiques | D96: Part des ménages | E96: Part de l'industrie
A97: Centrale de chauffage, bois | C97: 0.159 | D97: 0.5 | E97: =1-D97 -> 0.5 | F97: Par défaut: moyenne CH, 2012 | G97: 0.5
A98: Centrale à cogénération, bois | C98: 0 | D98: 0.5 | E98: =1-D98 -> 0.5 | F98: Source: treeze.ch, 2017 | G98: 0.5
A99: Centrale thermique PACE air/eau | C99: 0 | D99: 0.5 | E99: 0.5 | F99: (parts HH paramètres communaux, voir Mode d'emploi) | G99: 0.5
A100: Centrale thermique PACE sonde géothermique | C100: 0.062 | D100: 0.5 | E100: 0.5 | G100: 0.5
A101: Centrale thermique PACE eaux usées | C101: 0 | D101: 0.5 | E101: 0.5 | G101: 0.5
A102: Centrale thermique PACE eaux souterraines | C102: 0 | D102: 0.5 | E102: 0.5 | G102: 0.5
A103: Centrale de chauffage, géothermie | C103: 0 | D103: 0.5 | E103: 0.5 | G103: 0.5
A104: Centrale à cogénération, géothermie | C104: 0 | D104: 0.5 | E104: 0.5 | G104: 0.5
A105: Incinération des ordures ménagères | C105: 0.485 | D105: 0.5 | E105: 0.5 | G105: 0.5
A106: Centrale à cogénération, biogaz | C106: 0 | D106: 0.5 | E106: 0.5 | G106: 0.5
A107: Centrale à cogénération, diesel | C107: 0 | D107: 0.5 | E107: 0.5 | G107: 0.5
A108: Centrale à cogénération, gaz | C108: 0 | D108: 0.5 | E108: 0.5 | G108: 0.5
A109: Centrale de chauffage, pétrole | C109: 0.031 | D109: 0.5 | E109: 0.5 | G109: 0.5
A110: Centrale de chauffage, gaz | C110: 0.263 | D110: 0.5 | E110: 0.5 | G110: 0.5
A111: Perte standard dans le réseau de chaleur à distance | C111: 0.2 | D111: 0.5 | E111: 0.5 | G111: 0.5
A112: Parts des agents énergétiques locaux et renouvelables | C112: Local | D112: Renouvelable | E112: Part de déchets
A113: Déchet (chaleur à distance provenant d'une UIOM) | C113: 0.5 | D113: 1 | E113: 0.58 | G113: 50/100/58%
A114: Déchet (électricité provenant d'une UIOM) | C114: 0.5 | D114: 1 | E114: 1 | G114: 50/100/100%
A115: Chaleur à distance (bois) | C115: 0.5 | D115: 1 | G115: 0.005
A116: Chauffages individuels au bois | C116: 0.5 | D116: 1 | G116: 0.005
A117: Centrale de chauffage à bois | C117: 0.5 | D117: 1 | G117: 0.005
A118: Biogaz (CETE) [chaleur] / CETE Biogaz et gaz de digestion [électricité] | C118: 1 | D118: 1 | G118: 0.01
A119: Biogaz (certificats, hors CETE) [chaleur] | C119: 0 | D119: 1 | G119: 0/100%
A120: Mix ENTSO-E | C120: 0 | D120: 0
A121: Potentiel de biomasse chaleur/électricité | C121: 1 | D121: 1
A122: Rejets de chaleur artisanat | C122: 1 | D122: 1
A123: Géothermie profonde | C123: 1 | D123: 1
A124: Déchets (courant UIOM), Catalogue Cité de l'énergie 2017 | D124: 0.5
A125: Parts des agents énergétiques locaux et renouvelables (valeurs historiques)
A126: Etat | C126: Local | D126: Renouvelable
A127: 2012 | B127: Autres types de production de chaleur | C127: 0.5 | D127: 0.5 | G127: 0.01
A128: =A127 -> 2012 | B128: Autres types de production d'électricité | C128: 0.5 | D128: 1 | G128: 0.005
B129: =B127 -> Autres types de production de chaleur
B130: =B128 -> Autres types de production d'électricité
B131: =B129 -> Autres types de production de chaleur
B132: =B130 -> Autres types de production d'électricité
A134: Reduktionsfaktoren | C134: 2030 | D134: 2050
A135: 2000 | B135: Dauerleistung (Stufe Primärenergie) | C135: 52.30524642 | D135: 68.20349762
A136: 2005 | B136: Dauerleistung (Stufe Primärenergie) | C136: 52.53164557 | D136: 68.35443038
A137: 2010 | B137: Dauerleistung (Stufe Primärenergie) | C137: 50.33112583 | D137: 66.88741722
A138: 2011 | B138: Dauerleistung (Stufe Primärenergie) | C138: 46.14003591 | D138: 64.09335727
A139: 2012 | B139: Dauerleistung (Stufe Primärenergie) | C139: 45.75045208 | D139: 63.83363472
A140: 2013 | B140: Dauerleistung (Stufe Primärenergie) | C140: 44.75138122 | D140: 63.16758748
A141: 2014 | B141: Dauerleistung (Stufe Primärenergie) | C141: 37.62993763 | D141: 58.41995842
A142: 2015 | B142: Dauerleistung (Stufe Primärenergie) | C142: 37.62993763 | D142: 58.41995842
A143: 2016 | B143: Dauerleistung (Stufe Primärenergie) | C143: 36.84210526 | D143: 57.89473684
A144: 2017 | B144: Dauerleistung (Stufe Primärenergie) | C144: 34.7826087 | D144: 56.52173913
A145: 2018 | B145: Dauerleistung (Stufe Primärenergie) | C145: 32.12669683 | D145: 54.75113122
A146: 2019 | B146: Dauerleistung (Stufe Primärenergie) | C146: 31.81818182 | D146: 54.54545455
A147: 2020 | B147: Dauerleistung (Stufe Primärenergie) | C147: 23.66412214 | D147: 49.10941476
A148: 2021 | B148: Dauerleistung (Stufe Primärenergie) | C148: 25.55831266 | D148: 50.37220844
A149: 2022 | B149: Dauerleistung (Stufe Primärenergie) | C149: 23.46938776 | D149: 48.97959184
A150: 2023 | B150: Dauerleistung (Stufe Primärenergie) | C150: 23.46938776 | D150: 48.97959184
A151: 1990 | B151: Treibhausgasemissionen | C151: 65.90909091 | D151: 100
A152: 1995 | B152: Treibhausgasemissionen | C152: 64.70588235 | D152: 100
A153: 2000 | B153: Treibhausgasemissionen | C153: 65.11627907 | D153: 100
A154: 2005 | B154: Treibhausgasemissionen | C154: 64.70588235 | D154: 100
A155: 2010 | B155: Treibhausgasemissionen | C155: 61.53846154 | D155: 100
A156: 2011 | B156: Treibhausgasemissionen | C156: 57.14285714 | D156: 100
A157: 2012 | B157: Treibhausgasemissionen | C157: 58.33333333 | D157: 100
A158: 2013 | B158: Treibhausgasemissionen | C158: 58.33333333 | D158: 100
A159: 2014 | B159: Treibhausgasemissionen | C159: 54.54545455 | D159: 100
A160: 2015 | B160: Treibhausgasemissionen | C160: 54.54545455 | D160: 100
A161: 2016 | B161: Treibhausgasemissionen | C161: 54.54545455 | D161: 100
A162: 2017 | B162: Treibhausgasemissionen | C162: 53.125 | D162: 100
A163: 2018 | B163: Treibhausgasemissionen | C163: 50 | D163: 100
A164: 2019 | B164: Treibhausgasemissionen | C164: 49.15254237 | D164: 100
A165: 2020 | B165: Treibhausgasemissionen | C165: 37.5 | D165: 100
A166: 2021 | B166: Treibhausgasemissionen | C166: 46.42857143 | D166: 100
A167: 2022 | B167: Treibhausgasemissionen | C167: 47.36842105 | D167: 100
A168: 2023 | B168: Treibhausgasemissionen | C168: 47.36842105 | D168: 100
A169: Quelle: Leitkonzept 2000-Watt-Gesellschaft, S. 66

Sheet P_Effi_Mobi
A1: =P_Konst_Ant!A1 -> Paramètres
A2: Potentiels d'efficacité et mobilité
A4: Potentiels d'efficacité énergétique | E4: =P_Konst_Ant!F70 -> Remarques | F4: =P_Konst_Ant!G70 -> Valeurs par défaut
A5: Taux de rénovation de bâtiments par an | C5: 0.02 | F5: 0.02
A6: Economie d'énergie réalisée par bâtiment rénové | C6: 0.65 | F6: 0.65
A7: Potentiel d'efficacité énergétique pour chaleur industrielle en 2020, au moment de l'année d'établissement du bilan | C7: 0.2
A8: Potentiel d'efficacité énergétique pour chaleur industrielle en 2035, au moment de l'année d'établissement du bilan | C8: 0.25
A9: Potentiel d'efficacité énergétique pour chaleur industrielle en 2050, au moment de l'année d'établissement du bilan | C9: 0.3
A10: Potentiel d'efficacité énergétique pour chauffage/ECS en 2020, au moment de l'année d'établissement du bilan | C10: 0.15
A11: Potentiel d'efficacité énergétique pour chauffage/ECS en 2035, au moment de l'année d'établissement du bilan | C11: 0.2
A12: Potentiel d'efficacité énergétique pour chauffage/ECS en 2050, au moment de l'année d'établissement du bilan | C12: 0.25
A13: Potentiel d'efficacité énergétique pour la consommation d'électricité en 2020, au moment de l'année d'établissement du bilan | C13: 0.1
A14: Potentiel d'efficacité énergétique pour la consommation d'électricité en 2035, au moment de l'année d'établissement du bilan | C14: 0.15
A15: Potentiel d'efficacité énergétique pour la consommation d'électricité en 2050, au moment de l'année d'établissement du bilan | C15: 0.2
A17: Mobilité
A18: Consommation d'électricité 2014 | C18: 11.4 | D18: PJ
A19: Consommation d'électricité 2050, selon la Stratégie énergétique 2050 (scénario NPE) | C19: 41 | D19: PJ
A20: Consommation énergétique 2014 | C20: 249.5 | D20: PJ
A21: Consommation énergétique 2020, selon la Stratégie énergétique 2050 (scénario NPE) | C21: 206.9 | D21: PJ
A22: Consommation énergétique 2035, selon la Stratégie énergétique 2050 (scénario NPE) | C22: 142.8 | D22: PJ
A23: Consommation énergétique 2050, selon la Stratégie énergétique 2050 (scénario NPE) | C23: 115.6 | D23: PJ
A24: Valeurs historiques
A25: 2010 | B25: Consommation d'énergie primaire des transports routiers par véhicule immatriculé | C25: 2300 | D25: W/véhicule | E25: Sources: OFS, GES 2010, T01, T04; OFEN, Statistique suisse de l'électricité 2016, T21; secrétariats régionaux de la société à 2000 watts, 2010; CFF, Communication 2017
A26: 2010 | B26: Supplément sur l'énergie primaire pour le trafic aérien | C26: 300 | D26: W/pers.
A27: 2010 | B27: Supplément sur l'énergie primaire pour le transport ferroviaire de marchandises et le transport ferroviaire longue distance ainsi que le transport ferroviaire local (électricité) | C27: 80 | D27: W/pers.
A28: 2011 | B28: Consommation d'énergie primaire des transports routiers par véhicule immatriculé | C28: 2230 | D28: W/véhicule | E28: Sources: OFS, GES 2011, T01, T04; OFEN, Statistique suisse de l'électricité 2016, T21; secrétariats régionaux de la société à 2000 watts, 2011; CFF, Communication 2017
A29: 2011 | B29: Supplément sur l'énergie primaire pour le trafic aérien | C29: 310 | D29: W/pers.
A30: 2011 | B30: Supplément sur l'énergie primaire pour le transport ferroviaire de marchandises et le transport ferroviaire longue distance ainsi que le transport ferroviaire local (électricité) | C30: 90 | D30: W/pers.
A31: 2012 | B31: Consommation d'énergie primaire des transports routiers par véhicule immatriculé | C31: 2190 | D31: W/véhicule | E31: Sources: OFS, GES 2012, T01, T04; OFEN, Statistique suisse de l'électricité 2016, T21; secrétariats régionaux de la société à 2000 watts, 2012; CFF, Communication 2017
A32: 2012 | B32: Supplément sur l'énergie primaire pour le trafic aérien | C32: 320 | D32: W/pers.
A33: 2012 | B33: Supplément sur l'énergie primaire pour le transport ferroviaire de marchandises et le transport ferroviaire longue distance ainsi que le transport ferroviaire local (électricité) | C33: 70 | D33: W/pers.
A34: 2013 | B34: Consommation d'énergie primaire des transports routiers par véhicule immatriculé | C34: 2150 | D34: W/véhicule | E34: Sources: OFS, GES 2013, T01, T04; OFEN, Statistique suisse de l'électricité 2016, T21; secrétariats régionaux de la société à 2000 watts, 2013; CFF, Communication 2017
A35: 2013 | B35: Supplément sur l'énergie primaire pour le trafic aérien | C35: 320 | D35: W/pers.
A36: 2013 | B36: Supplément sur l'énergie primaire pour le transport ferroviaire de marchandises et le transport ferroviaire longue distance ainsi que le transport ferroviaire local (électricité) | C36: 50 | D36: W/pers.
A37: 2014 | B37: Consommation d'énergie primaire des transports routiers par véhicule immatriculé | C37: 2070 | D37: W/véhicule | E37: Sources: OFS, GES 2014, T01, T04; OFEN, Statistique suisse de l'électricité 2016, T21; secrétariats régionaux de la société à 2000 watts, 2014; CFF, Communication 2017
A38: 2014 | B38: Supplément sur l'énergie primaire pour le trafic aérien | C38: 340 | D38: W/pers.
A39: 2014 | B39: Supplément sur l'énergie primaire pour le transport ferroviaire de marchandises et le transport ferroviaire longue distance ainsi que le transport ferroviaire local (électricité) | C39: 60 | D39: W/pers.
A40: 2015 | B40: Consommation d'énergie primaire des transports routiers par véhicule immatriculé | C40: 1930 | D40: W/véhicule | E40: Sources: OFS, GES 2015, T01, T04; OFEN, Statistique suisse de l'électricité 2016, T21; secrétariats régionaux de la société à 2000 watts, 2015; CFF, Communication 2017
A41: 2015 | B41: Supplément sur l'énergie primaire pour le trafic aérien | C41: 340 | D41: W/pers.
A42: 2015 | B42: Supplément sur l'énergie primaire pour le transport ferroviaire de marchandises et le transport ferroviaire longue distance ainsi que le transport ferroviaire local (électricité) | C42: 50 | D42: W/pers.
A43: 2016 | B43: Consommation d'énergie primaire des transports routiers par véhicule immatriculé | C43: 1910 | D43: W/véhicule | E43: Sources: OFS, GES 2016, T01, T04; OFEN, Statistique suisse de l'électricité 2016, T21; secrétariats régionaux de la société à 2000 watts, 2016; CFF, Communication 2017
A44: 2016 | B44: Supplément sur l'énergie primaire pour le trafic aérien | C44: 340 | D44: W/pers.
A45: 2016 | B45: Supplément sur l'énergie primaire pour le transport ferroviaire de marchandises et le transport ferroviaire longue distance ainsi que le transport ferroviaire local (électricité) | C45: 60 | D45: W/pers.
A46: 2017 | B46: Consommation d'énergie primaire des transports routiers par véhicule immatriculé | C46: 1870 | D46: W/véhicule | E46: Sources: OFS, GES 2017, T01, T04; OFEN, Statistique suisse de l'électricité 2016, T21; secrétariats régionaux de la société à 2000 watts, 2017; CFF, Communication 2017
A47: 2017 | B47: Supplément sur l'énergie primaire pour le trafic aérien | C47: 340 | D47: W/pers.
A48: 2017 | B48: Supplément sur l'énergie primaire pour le transport ferroviaire de marchandises et le transport ferroviaire longue distance ainsi que le transport ferroviaire local (électricité) | C48: 60 | D48: W/pers.
A49: 2018 | B49: Consommation d'énergie primaire des transports routiers par véhicule immatriculé | C49: 1860 | D49: W/véhicule | E49: Sources: OFS, GES 2018, T01, T04; OFEN, Statistique suisse de l'électricité 2016, T21; secrétariats régionaux de la société à 2000 watts, 2018; CFF, Communication 2018
A50: 2018 | B50: Supplément sur l'énergie primaire pour le trafic aérien | C50: 360 | D50: W/pers.
A51: 2018 | B51: Supplément sur l'énergie primaire pour le transport ferroviaire de marchandises et le transport ferroviaire longue distance ainsi que le transport ferroviaire local (électricité) | C51: 60 | D51: W/pers.
A52: 2019 | B52: Consommation d'énergie primaire des transports routiers par véhicule immatriculé | C52: 1840 | D52: W/véhicule | E52: Sources: OFS, GES 2019, T01, T04; OFEN, Statistique suisse de l'électricité 2019, T21; secrétariats régionaux de la société à 2000 watts, 2018; CFF, Communication 2019
A53: 2019 | B53: Supplément sur l'énergie primaire pour le trafic aérien | C53: 360 | D53: W/pers.
A54: 2019 | B54: Supplément sur l'énergie primaire pour le transport ferroviaire de marchandises et le transport ferroviaire longue distance ainsi que le transport ferroviaire local (électricité) | C54: 60 | D54: W/pers.
A55: 2020 | B55: Consommation d'énergie primaire des transports routiers par véhicule immatriculé | C55: 1680 | D55: W/véhicule | E55: Sources: OFS, GES 2020, T01, T04; OFEN, Statistique suisse de l'électricité 2020, T21; Recommandations KBOB; Marquage de l'électricité
A56: 2020 | B56: Supplément sur l'énergie primaire pour le trafic aérien | C56: 140 | D56: W/pers.
A57: 2020 | B57: Supplément sur l'énergie primaire pour le transport ferroviaire de marchandises et le transport ferroviaire longue distance ainsi que le transport ferroviaire local (électricité) | C57: 50 | D57: W/pers.
A58: 2021 | B58: Consommation d'énergie primaire des transports routiers par véhicule immatriculé | C58: 1690 | D58: W/véhicule | E58: Sources: OFS, GES 2021, T01, T04; OFEN, Statistique suisse de l'électricité 2021, T21; Recommandations KBOB; Marquage de l'électricité
A59: 2021 | B59: Supplément sur l'énergie primaire pour le trafic aérien | C59: 150 | D59: W/pers.
A60: 2021 | B60: Supplément sur l'énergie primaire pour le transport ferroviaire de marchandises et le transport ferroviaire longue distance ainsi que le transport ferroviaire local (électricité) | C60: 60 | D60: W/pers.
A61: 2022 | B61: Consommation d'énergie primaire des transports routiers par véhicule immatriculé | C61: 1650 | D61: W/véhicule | E61: Sources: OFS, GES 2022, T01, T04; OFEN, Statistique suisse de l'électricité 2022, T21; Recommandations KBOB; Marquage de l'électricité
A62: 2022 | B62: Supplément sur l'énergie primaire pour le trafic aérien | C62: 270 | D62: W/pers.
A63: 2022 | B63: Supplément sur l'énergie primaire pour le transport ferroviaire de marchandises et le transport ferroviaire longue distance ainsi que le transport ferroviaire local (électricité) | C63: 60 | D63: W/pers.
A64: Pour une extension de données liées à la mobilité, insérer de nouvelles valeurs en amont.

Sheet P_Werts
A1: =P_Effi_Mobi!A1 -> Paramètres
A2: Production de valeur | K2: 0.25
G3: =P_Effi_Mobi!F4 -> Valeurs par défaut
A4: Production de valeur (prix de revient) | B4: 2010 | C4: 2020 | D4: 2035 | E4: 2050 | F4: =P_Effi_Mobi!E4 -> Remarques | G4: =B4 -> 2010 | H4: =C4 -> 2020 | I4: =D4 -> 2035 | J4: =E4 -> 2050
A5: Chaleur | B5: mio. CHF/GWh = ct./kWh | F5: =Ein_Texte!AB5&100*Beschrankung_Werts&"%" -> Restriction (+/-): 25%
A6: Solaire thermique | B6: 0.23 | C6: 0.21 | D6: 0.19 | E6: 0.19 | G6: 0.23 | H6: 0.21 | I6: 0.19 | J6: 0.19
A7: Biomasse (chaleur) | B7: 0.16 | C7: 0.18 | D7: 0.16 | E7: 0.16 | G7: 0.16 | H7: 0.18 | I7: 0.16 | J7: 0.16
A8: Pompes à chaleur | B8: 0.2 | C8: 0.2 | D8: 0.19 | E8: 0.19 | G8: 0.2 | H8: 0.2 | I8: 0.19 | J8: 0.19
A9: Rejets de chaleur Artisanat / Industrie | B9: 0.2 | C9: 0.2 | D9: 0.19 | E9: 0.19 | G9: 0.2 | H9: 0.2 | I9: 0.19 | J9: 0.19
A10: Incinération des ordures ménagères | B10: 0.14 | C10: 0.17 | D10: 0.21 | E10: 0.27 | G10: 0.14 | H10: 0.17 | I10: 0.21 | J10: 0.27
A11: Chauffages électriques
A12: Mazout | B12: 0.14 | C12: 0.17 | D12: 0.21 | E12: 0.27 | G12: 0.14 | H12: 0.17 | I12: 0.21 | J12: 0.27
A13: Gaz | B13: 0.14 | C13: 0.17 | D13: 0.21 | E13: 0.27 | G13: 0.14 | H13: 0.17 | I13: 0.21 | J13: 0.27
A14: Charbon / coke | B14: 0.14 | C14: 0.17 | D14: 0.21 | E14: 0.27 | G14: 0.14 | H14: 0.17 | I14: 0.21 | J14: 0.27
A15: Electricité
A16: Photovoltaïque | B16: 0.55 | C16: 0.25 | D16: 0.16 | E16: 0.14 | G16: 0.55 | H16: 0.25 | I16: 0.16 | J16: 0.14
A17: Biomasse (électricité) | B17: 0.4 | C17: 0.25 | D17: 0.2 | E17: 0.18 | G17: 0.4 | H17: 0.25 | I17: 0.2 | J17: 0.18
A18: Energie éolienne | B18: 0.21 | C18: 0.21 | D18: 0.19 | E18: 0.18 | G18: 0.21 | H18: 0.21 | I18: 0.19 | J18: 0.18
A19: Énergie hydraulique | B19: 0.14 | C19: 0.22 | D19: 0.18 | E19: 0.16 | G19: 0.14 | H19: 0.22 | I19: 0.18 | J19: 0.16
A20: Mix électr. | B20: 0.07 | C20: 0.1 | D20: 0.13 | E20: 0.15 | G20: 0.07 | H20: 0.1 | I20: 0.13 | J20: 0.15
A21: Efficacité énergétique des bâtiments
A22: Assainissement du parc immobilier | B22: 0.26 | C22: 0.25 | D22: 0.23 | E22: 0.23 | G22: 0.26 | H22: 0.25 | I22: 0.23 | J22: 0.23
A24: Répartition territoriale de la production de valeur | B24: Région | C24: Suisse | D24: Etranger | F24: =F4 -> Remarques | G24: =B24 -> Région | H24: =C24 -> Suisse | I24: =D24 -> Etranger
A25: Chaleur | B25: CHF/CHF | E25: =F5 -> Restriction (+/-): 25%
A26: Solaire thermique | B26: 0.7 | C26: 0.2 | D26: 0.1 | G26: 0.7 | H26: 0.2 | I26: 0.1
A27: Biomasse (chaleur) | B27: 0.7 | C27: 0.2 | D27: 0.1 | G27: 0.7 | H27: 0.2 | I27: 0.1
A28: Pompes à chaleur | B28: 0.5 | C28: 0.45 | D28: 0.05 | G28: 0.5 | H28: 0.45 | I28: 0.05
A29: Rejets de chaleur Artisanat / Industrie | B29: 0.5 | C29: 0.45 | D29: 0.05 | G29: 0.5 | H29: 0.45 | I29: 0.05
A30: Incinération des ordures ménagères | B30: 0.5 | C30: 0.45 | D30: 0.05 | G30: 0.5 | H30: 0.45 | I30: 0.05
A31: Chauffages électriques
A32: Mazout | B32: 0.1 | C32: 0.15 | D32: 0.75 | G32: 0.1 | H32: 0.15 | I32: 0.75
A33: Gaz | B33: 0.1 | C33: 0.15 | D33: 0.75 | G33: 0.1 | H33: 0.15 | I33: 0.75
A34: Charbon / coke | B34: 0.1 | C34: 0.15 | D34: 0.75 | G34: 0.1 | H34: 0.15 | I34: 0.75
A35: Electricité
A36: Photovoltaïque | B36: 0.35 | C36: 0.35 | D36: 0.3 | G36: 0.35 | H36: 0.35 | I36: 0.3
A37: Biomasse (électricité) | B37: 0.6 | C37: 0.3 | D37: 0.1 | G37: 0.6 | H37: 0.3 | I37: 0.1
A38: Energie éolienne | B38: 0.2 | C38: 0.45 | D38: 0.35 | G38: 0.2 | H38: 0.45 | I38: 0.35
A39: Énergie hydraulique | B39: 0.45 | C39: 0.5 | D39: 0.05 | G39: 0.45 | H39: 0.5 | I39: 0.05
A40: Mix électr. | B40: 0.1 | C40: 0.75 | D40: 0.15 | G40: 0.1 | H40: 0.75 | I40: 0.15
A41: Efficacité énergétique des bâtiments
A42: Assainissement du parc immobilier | B42: 0.6 | C42: 0.3 | D42: 0.1 | G42: 0.6 | H42: 0.3 | I42: 0.1
A43: Source: ARE, OFAG, OFEN, SECO, regiosuisse (2012). Regionalökonomische Potenziale und Erfolgsfaktoren für den Aufbau und Betrieb von Energieregionen (Potentiels économiques régionaux et facteurs de réussite pour la construction et l'exploitation des Régions-Energie, en allemand).

Sheet P_PEF_THGF
A1: =P_Werts!A1 -> Paramètres
A2: Energie primaire et gaz à effet de serre | E2: Lien vers | F2: Input
C3: Facteur d'énergie primaire | D3: Coefficient d'émissions de gaz à effet de serre | F3: =P_Effi_Mobi!E4 -> Remarques
C4: MJéq/MJ | D4: kg/MJ | E4: kg/kWh
B5: Autres types de production de chaleur | C5: 1 | D5: 0 | E5: =(D5*3.6) -> 0 | F5: Paramètres comm.
B6: Autres types de production d'électricité | C6: 1 | D6: 0 | E6: =(D6*3.6) -> 0 | F6: Paramètres comm.
A8: Energie | H8: Mobilité
A9: Valeurs historiques | C9: Facteur d'énergie primaire | D9: Coefficient d'émissions de gaz à effet de serre | F9: Remarques | H9: Valeurs historiques | J9: Facteur d'énergie primaire | K9: Coefficient d'émissions de gaz à effet de serre | M9: Remarques
C10: MJéq/MJ | D10: kg/MJ | E10: kg/kWh | J10: MJéq/MJ | K10: kg/MJ | L10: kg/kWh
A11: 2021 | B11: Combustibles | H11: 2021 | I11: Carburants
A12: =A11 -> 2021 | B12: Mazout | C12: 1.2636 | D12: 0.09 | E12: 0.324 | F12: EL (extra léger) | H12: =H11 -> 2021 | I12: Essence dans les véhicules privés | J12: 1.2739 | K12: 0.09388888889 | L12: 0.338
A13: =A12 -> 2021 | B13: Gaz naturel | C13: 1.0529 | D13: 0.06388888889 | E13: 0.23 | H13: =H12 -> 2021 | I13: Diesel dans les véhicules | J13: 1.20525 | K13: 0.09138888889 | L13: 0.329
A14: 2021 | B14: Charbon / coke | C14: 1.4443 | D14: 0.1208333333 | E14: 0.435 | H14: =H13 -> 2021 | I14: Gaz naturel pour les véhicules | J14: 1.1311 | K14: 0.06583333333 | L14: 0.237
A15: 2021 | B15: Copeaux ou plaquettes de bois | C15: 1.0608 | D15: 0.003055555556 | E15: 0.011 | H15: =H14 -> 2021 | I15: Kérosène dans les avions | J15: 1.22532 | K15: 0.1847222222 | L15: 0.665
A16: 2021 | B16: Pellets | C16: 1.178 | D16: 0.007777777778 | E16: 0.028 | H16: =H15 -> 2021 | I16: Supplément rail, trafic à longue distance et transport de marchandises (électricité) | J16: 1.487753704 | K16: 0.004512799622 | L16: 0.01624607864
A17: 2021 | B17: Biogaz | C17: 0.3213 | D17: 0.03444444444 | E17: 0.124 | I17: Source: KBOB, eco-bau, IPB (2022). Données des écobilans dans la construction. 2009/1, état 2022; concept pour l'établissement du bilan de la société à 2000 watts; secrétariats régionaux de la société à 2000 watts, concept pour l'établissement du bilan de la société à 2000 watts, septembre 2014
A18: 2021 | B18: Chaleur à distance
A19: 2021 | B19: Centrale thermique pétrole | C19: 1.5812 | D19: 0.1116666667 | E19: 0.402 | H19: 2018 | I19: Carburants
A20: 2021 | B20: Centrale thermique gaz | C20: 1.4145 | D20: 0.08388888889 | E20: 0.302 | H20: =H19 -> 2018 | I20: Essence dans les véhicules privés | J20: 1.27424 | K20: 0.0889 | L20: =(K20*3.6) -> 0.32004
A21: 2021 | B21: Centrale thermique à bois | C21: 1.605 | D21: 0.006944444444 | E21: 0.025 | H21: =H20 -> 2018 | I21: Diesel dans les véhicules | J21: 1.21314 | K21: 0.0843 | L21: =(K21*3.6) -> 0.30348
A22: 2021 | B22: Centrale de chauffage à bois | C22: 1.301 | D22: 0.006111111111 | E22: 0.022 | H22: =H21 -> 2018 | I22: Gaz naturel pour les véhicules | J22: 1.12919 | K22: 0.0638 | L22: =(K22*3.6) -> 0.22968
A23: 2021 | B23: Centrale thermique PACE air/eau (COPA 2.8) | C23: 0 | D23: 0 | E23: 0 | H23: =H22 -> 2018 | I23: Kérosène dans les avions | J23: 1.20306 | K23: 0.0832 | L23: =(K23*3.6) -> 0.29952
A24: 2021 | B24: Centrale thermique PACE sonde géothermique (COPA 3.9) | C24: 1.156 | D24: 0.01783333333 | E24: 0.0642 | H24: =H23 -> 2018 | I24: Supplément rail, trafic à longue distance et transport de marchandises (électricité) | J24: 1.500608 | K24: 0.0131 | L24: 0.04716
A25: 2021 | B25: Centrale thermique PACE eaux usées (COPA 3.4) | C25: 0.874 | D25: 0.01280555556 | E25: 0.0461 | I25: Source: KBOB, eco-bau, IPB (2017). Données des écobilans dans la construction. 2009/1, état 2016; concept pour l'établissement du bilan de la société à 2000 watts; secrétariats régionaux de la société à 2000 watts, concept pour l'établissement du bilan de la société à 2000 watts, septembre 2014
A26: 2021 | B26: Centrale thermique PACE eaux souterraines (COPA 3.4) | C26: 1.121 | D26: 0.01558333333 | E26: 0.0561
A27: 2021 | B27: Centrale géothermique | C27: 1.406 | D27: 0.005555555556 | E27: 0.02 | J27: MJéq/MJ | K27: kg/MJ | L27: kg/kWh
A28: 2021 | B28: Centrale de chauffage géothermique | C28: 0.544 | D28: 0.004027777778 | E28: 0.0145 | H28: 2016 | I28: Carburants
A29: 2021 | B29: Incinération des ordures ménagères | C29: 0.0531 | D29: 0.0009277777778 | E29: 0.00334 | H29: =H28 -> 2016 | I29: Essence dans les véhicules privés | J29: 1.27 | K29: 0.09 | L29: =(K29*3.6) -> 0.324
A30: 2021 | B30: Centrale à énergie totale équipée alimentée au diesel | C30: 0.5474 | D30: 0.03638888889 | E30: 0.131 | H30: =H29 -> 2016 | I30: Diesel dans les véhicules | J30: 1.21 | K30: 0.08 | L30: =(K30*3.6) -> 0.288
A31: 2021 | B31: Centrale à énergie totale équipée alimentée au gaz | C31: 0.507 | D31: 0.02944444444 | E31: 0.106 | H31: =H30 -> 2016 | I31: Gaz naturel pour les véhicules | J31: 1.12 | K31: 0.06 | L31: =(K31*3.6) -> 0.216
A32: 2021 | B32: Centrale à énergie totale équipée alimentée au biogaz | C32: 0.1938 | D32: 0.01680555556 | E32: 0.0605 | H32: =H31 -> 2016 | I32: Kérosène dans les avions | J32: 1.2 | K32: 0.08 | L32: =(K32*3.6) -> 0.288
A33: 2021 | B33: Chaleur à distance, moyenne réseaux CH | C33: 0.829 | D33: 0.01855555556 | E33: 0.0668 | H33: =H32 -> 2016 | I33: Supplément rail, trafic à longue distance et transport de marchandises (électricité) | J33: 1.44337 | K33: 0.01257 | L33: 0.045252
A34: 2021 | B34: Total transport chaleur à distance | C34: 0 | D34: 0 | E34: 0 | I34: Source: KBOB, eco-bau, IPB (2017). Données des écobilans dans la construction. 2009/1, état 2016; concept pour l'établissement du bilan de la société à 2000 watts; secrétariats régionaux de la société à 2000 watts, concept pour l'établissement du bilan de la société à 2000 watts, septembre 2014
A35: 2021 | B35: Chaleur de l'environnement/rejets de chaleur
A36: 2021 | B36: Solaire thermique | C36: 1.6 | D36: 0.01 | E36: 0.036 | H36: 2014 | I36: Carburants
A37: 2021 | B37: Chaleur de l'environnement (air ambiant, eaux de surface, géothermie peu profonde) | C37: 0.6666666667 | D37: 0.008333333333 | E37: 0.03 | H37: =H36 -> 2014 | I37: Essence dans les véhicules privés | J37: 1.27 | K37: 0.0886 | L37: =(K37*3.6) -> 0.31896
A38: 2021 | B38: Rejets de chaleur Artisanat / Industrie et chaleur des eaux usées | C38: 0 | D38: 0 | E38: 0 | H38: =H37 -> 2014 | I38: Diesel dans les véhicules | J38: 1.21 | K38: 0.084 | L38: =(K38*3.6) -> 0.3024
A39: 2021 | B39: Electricité provenant du réseau | H39: =H38 -> 2014 | I39: Gaz naturel pour les véhicules | J39: 1.14 | K39: 0.064 | L39: =(K39*3.6) -> 0.2304
A40: 2021 | B40: Centrale nucléaire | C40: 4.21542 | D40: 0.006638888889 | E40: 0.0239 | H40: =H39 -> 2014 | I40: Kérosène dans les avions | J40: 1.17 | K40: 0.0804 | L40: =(K40*3.6) -> 0.28944
A41: 2021 | B41: Centrale à cycles combinés alimentée au gaz naturel (GuD) | C41: 2.2375 | D41: 0.1333333333 | E41: 0.48 | H41: =H40 -> 2014 | I41: Supplément rail, trafic à longue distance et transport de marchandises (électricité) | J41: 1.297 | K41: 0.102 | L41: 0.3672
A42: 2021 | B42: Centrale à charbon (houille) | C42: 3.92855 | D42: 0.3597222222 | E42: 1.295 | H42: =H40 -> 2014 | I42: Source: KBOB, eco-bau, IPB (2014). Données des écobilans dans la construction. 2009/1, état juillet 2014; secrétariats régionaux de la société à 2000 watts, concept pour l'établissement du bilan de la société à 2000 watts, septembre 2014
A43: 2021 | B43: Centrale à mazout (lourd) | C43: 3.7509 | D43: 0.2972222222 | E43: 1.07 | H43: =H42 -> 2014
A44: 2021 | B44: Incinération des ordures ménagères - Electricité | C44: 0.01625 | D44: 0.001963888889 | E44: 0.00707 | H44: 2008 | I44: Carburants
A45: 2021 | B45: Centrale de chauffage à bois | C45: 2.055 | D45: 0.01041666667 | E45: 0.0375 | H45: =H44 -> 2008 | I45: Essence dans les véhicules privés | J45: 1.29 | K45: 0.08 | L45: =(K45*3.6) -> 0.288
A46: 2021 | B46: Centrale à énergie totale équipée alimentée au diesel et à l'électricité | C46: 3.2399 | D46: 0.2336111111 | E46: 0.841 | H46: =H45 -> 2008 | I46: Diesel dans les véhicules | J46: 1.22 | K46: 0.08 | L46: =(K46*3.6) -> 0.288
A47: 2021 | B47: Centrale à énergie totale équipée alimentée au gaz et à l'électricité | C47: 2.8407 | D47: 0.18 | E47: 0.648 | H47: =H46 -> 2008 | I47: Gaz naturel pour les véhicules | J47: 1.17 | K47: 0.06 | L47: =(K47*3.6) -> 0.216
A48: 2021 | B48: Centrale à énergie totale équipée alimentée au biogaz et à l'électricité | C48: 0.8976 | D48: 0.1011111111 | E48: 0.364 | H48: =H47 -> 2008 | I48: Kérosène dans les avions | J48: 1.19 | K48: 0.08 | L48: =(K48*3.6) -> 0.288
A49: 2021 | B49: Photovoltaïque | C49: 1.359 | D49: 0.01322222222 | E49: 0.0476 | H49: =H48 -> 2008 | I49: Supplément rail, trafic à longue distance et transport de marchandises (électricité) | J49: 1.73766 | K49: 0.01543 | L49: 0.055548
A50: 2021 | B50: Energie éolienne | C50: 1.2874 | D50: 0.007888888889 | E50: 0.0284 | H50: =H48 -> 2008 | I50: Source: treeze Ltd (2008). Primärenergiefaktoren von Energiesystemen, v. 1.4, tab. 1.1 (Facteurs d'énergie primaire des systèmes énergétiques, en allemand), état décembre 2008; secrétariats régionaux de la société à 2000 watts, concept pour l'établissement du bilan de la société à 2000 watts, septembre 2014
A51: 2021 | B51: Énergie hydraulique | C51: 1.1948 | D51: 0.003444444444 | E51: 0.0124
A52: 2021 | B52: Centrale de chauffage géothermique à électricité | C52: 3.361 | D52: 0.008583333333 | E52: 0.0309
A53: 2021 | B53: Mix d'électricité livré au consommateur CH | C53: 2.636 | D53: 0.03472222222 | E53: 0.125
A54: 2021 | B54: Mix ENTSO-E (anciennement mix UCTE) | C54: 3.145 | D54: 0.1452777778 | E54: 0.523
A55: 2021 | B55: Autres types de production d'électricité *
A56: 2021 | B56: Facteur RPC | C56: =IF(P_PEF_THGF!$A57<=MIN(P_PEF_THG_KEV!$A$3:$A$19),NoSpace,VLOOKUP(P_PEF_THGF!$A57,P_PEF_THG_KEV!$A$22:$D$35,2,FALSE)) -> 1.1265234 | D56: =IFERROR(E56/3.6,NoSpace) -> 0.03741577778 | E56: =IF(P_PEF_THGF!$A57<=MIN(P_PEF_THG_KEV!$A$5:$A$19),NoSpace,VLOOKUP(P_PEF_THGF!$A57,P_PEF_THG_KEV!$A$22:$D$36,4,FALSE)) -> 0.1346968
A57: 2021 | B57: * Berechnungen/Annahmen Begleitgruppe Quelle: treeze Ltd (2017). Primärenergiefaktoren von Energiesystemen v. 2.22, Tab 2.1, Stand 2016; KBOB, eco-bau, IPB (2022). Ökobilanzdaten im Baubereich. 2009/1, 2022; Fachstelle 2000-Watt-Gesellschaft, Bilanzierungskonzept 2000-Watt-Gesellschaft, September 2014
A59: 2018 | B59: Combustibles
A60: =A59 -> 2018 | B60: Mazout | C60: 1.23902 | D60: 0.0835 | E60: =(D60*3.6) -> 0.3006 | F60: EL (extra léger)
A61: =A60 -> 2018 | B61: Gaz naturel | C61: 1.06447 | D61: 0.0633 | E61: 0.22788
A62: =A61 -> 2018 | B62: Charbon / coke | C62: 1.4632 | D62: 0.122 | E62: 0.4392
A63: 2018 | B63: Copeaux ou plaquettes de bois | C63: 1.1128 | D63: 0.00298 | E63: 0.010728
A64: 2018 | B64: Pellets | C64: 1.197 | D64: 0.00756 | E64: 0.027216
A65: 2018 | B65: Biogaz | C65: 0.3311 | D65: 0.036 | E65: 0.1296
A66: 2018 | B66: Chaleur à distance
A67: 2018 | B67: Centrale thermique pétrole | C67: 1.6955 | D67: 0.113 | E67: =(D67*3.6) -> 0.4068
A68: 2018 | B68: Centrale thermique gaz | C68: 1.5247 | D68: 0.0872 | E68: 0.31392
A69: 2018 | B69: Centrale thermique à bois | C69: 1.723 | D69: 0.0138 | E69: 0.04968
A70: 2018 | B70: Centrale de chauffage à bois | C70: 1.458 | D70: 0.0117 | E70: 0.04212
A71: 2018 | B71: Centrale thermique PACE air/eau (COPA 2.8) | C71: 2.131 | D71: 0.0217 | E71: 0.07812
A72: 2018 | B72: Centrale thermique PACE sonde géothermique (COPA 3.9) | C72: 1.899 | D72: 0.0159 | E72: 0.05724
A73: 2018 | B73: Centrale thermique PACE eaux usées (COPA 3.4) | C73: 1.066 | D73: 0.0113 | E73: 0.04068
A74: 2018 | B74: Centrale thermique PACE eaux souterraines (COPA 3.4) | C74: 1.993 | D74: 0.0172 | E74: 0.06192
A75: 2018 | B75: Centrale géothermique | C75: 1.522 | D75: 0.00576 | E75: 0.020736
A76: 2018 | B76: Centrale de chauffage géothermique | C76: 0.59 | D76: 0.00411 | E76: 0.014796
A77: 2018 | B77: Incinération des ordures ménagères | C77: 0.05971 | D77: 0.000749 | E77: 0.0026964
A78: 2018 | B78: Centrale à énergie totale équipée alimentée au diesel | C78: 0.6285 | D78: 0.0402 | E78: 0.14472
A79: 2018 | B79: Centrale à énergie totale équipée alimentée au gaz | C79: 0.6065 | D79: 0.0351 | E79: 0.12636
A80: 2018 | B80: Centrale à énergie totale équipée alimentée au biogaz | C80: 0.2327 | D80: 0.0218 | E80: 0.07848
A81: 2018 | B81: Chaleur à distance, moyenne réseaux CH | C81: 0.875 | D81: 0.03 | E81: 0.108
A82: 2018 | B82: Total transport chaleur à distance | C82: 0.061 | D82: 0.0009 | E82: 0.00324
A83: 2018 | B83: Chaleur de l'environnement/rejets de chaleur
A84: 2018 | B84: Solaire thermique | C84: 1.6 | D84: 0.01 | E84: =(D84*3.6) -> 0.036
A85: 2018 | B85: Chaleur de l'environnement (air ambiant, eaux de surface, géothermie peu profonde) | C85: =1-(1/JAZ_WP_heute) -> 0.6666666667 | D85: 0.013 | E85: =(D85*3.6) -> 0.0468
A86: 2018 | B86: Rejets de chaleur Artisanat / Industrie et chaleur des eaux usées | C86: 0 | D86: 0 | E86: =(D86*3.6) -> 0
A87: 2018 | B87: Electricité provenant du réseau
A88: 2018 | B88: Centrale nucléaire | C88: 4.21508 | D88: 0.00647 | E88: =(D88*3.6) -> 0.023292
A89: 2018 | B89: Centrale à cycles combinés alimentée au gaz naturel (GuD) | C89: 2.22585 | D89: 0.129 | E89: 0.4644
A90: 2018 | B90: Centrale à charbon (houille) | C90: 3.94735 | D90: 0.3605 | E90: 1.2978
A91: 2018 | B91: Centrale à mazout (lourd) | C91: 3.8329 | D91: 0.281 | E91: 1.0116
A92: 2018 | B92: Incinération des ordures ménagères - Electricité | C92: 0.01787 | D92: 0.00192 | E92: 0.006912
A93: 2018 | B93: Centrale de chauffage à bois | C93: 3.88 | D93: 0.0327 | E93: 0.11772
A94: 2018 | B94: Centrale à énergie totale équipée alimentée au diesel et à l'électricité | C94: 3.2835 | D94: 0.229 | E94: 0.8244
A95: 2018 | B95: Centrale à énergie totale équipée alimentée au gaz et à l'électricité | C95: 2.94786 | D95: 0.186 | E95: 0.6696
A96: 2018 | B96: Centrale à énergie totale équipée alimentée au biogaz et à l'électricité | C96: 0.55415 | D96: 0.08065 | E96: 0.29034
A97: 2018 | B97: Photovoltaïque | C97: 1.554 | D97: 0.0268 | E97: 0.09648
A98: 2018 | B98: Energie éolienne | C98: 1.2937 | D98: 0.00723 | E98: 0.026028
A99: 2018 | B99: Énergie hydraulique | C99: 1.199 | D99: 0.0034 | E99: 0.01224
A100: 2018 | B100: Centrale de chauffage géothermique à électricité | C100: 3.361 | D100: 0.00858 | E100: 0.030888
A101: 2018 | B101: Mix d'électricité livré au consommateur CH | C101: 3.008 | D101: 0.0283 | E101: 0.10188
A102: 2018 | B102: Mix ENTSO-E (anciennement mix UCTE) | C102: 3.189 | D102: 0.146 | E102: 0.5256
A103: 2018 | B103: Autres types de production d'électricité *
A104: 2018 | B104: Facteur RPC | C104: =IF(P_PEF_THGF!$A104<=MIN(P_PEF_THG_KEV!$A$3:$A$19),NoSpace,VLOOKUP(P_PEF_THGF!$A104,P_PEF_THG_KEV!$A$22:$D$35,2,FALSE)) -> 1.05565595 | D104: =IFERROR(E104/3.6,NoSpace) -> 0.03304636 | E104: =IF(P_PEF_THGF!$A104<=MIN(P_PEF_THG_KEV!$A$5:$A$19),NoSpace,VLOOKUP(P_PEF_THGF!$A104,P_PEF_THG_KEV!$A$22:$D$36,4,FALSE)) -> 0.118966896
B105: * Berechnungen/Annahmen Begleitgruppe Quelle: treeze Ltd (2017). Primärenergiefaktoren von Energiesystemen v. 2.22, Tab 2.1, Stand 2016; KBOB, eco-bau, IPB (2014). Ökobilanzdaten im Baubereich. 2009/1, 2016; Fachstelle 2000-Watt-Gesellschaft, Bilanzierungskonzept 2000-Watt-Gesellschaft, September 2014
A107: 2016 | B107: Combustibles
A108: =A107 -> 2016 | B108: Mazout | C108: 1.24 | D108: 0.084 | E108: =(D108*3.6) -> 0.3024 | F108: EL (extra léger)
A109: =A108 -> 2016 | B109: Gaz naturel | C109: 1.07 | D109: 0.063 | E109: 0.2268
A110: =A109 -> 2016 | B110: Charbon / coke | C110: 1.16 | D110: 0.122 | E110: 0.4392
A111: 2016 | B111: Copeaux ou plaquettes de bois | C111: 1.11 | D111: 0.003 | E111: 0.0108
A112: 2016 | B112: Pellets | C112: 1.2 | D112: 0.008 | E112: 0.0288
A113: 2016 | B113: Biogaz | C113: 0.33 | D113: 0.036 | E113: 0.1296
A114: 2016 | B114: Chaleur à distance
A115: 2016 | B115: Centrale thermique pétrole | C115: 1.7 | D115: 0.113 | E115: =(D115*3.6) -> 0.4068
A116: 2016 | B116: Centrale thermique gaz | C116: 1.52 | D116: 0.087 | E116: 0.3132
A117: 2016 | B117: Centrale thermique à bois | C117: 1.72 | D117: 0.014 | E117: 0.0504
A118: 2016 | B118: Centrale de chauffage à bois | C118: 1.46 | D118: 0.012 | E118: 0.0432
A119: 2016 | B119: Centrale thermique PACE air/eau (COPA 2.8) | C119: 2.13 | D119: 0.022 | E119: 0.0792
A120: 2016 | B120: Centrale thermique PACE sonde géothermique (COPA 3.9) | C120: 1.9 | D120: 0.016 | E120: 0.0576
A121: 2016 | B121: Centrale thermique PACE eaux usées (COPA 3.4) | C121: 1.07 | D121: 0.011 | E121: 0.0396
A122: 2016 | B122: Centrale thermique PACE eaux souterraines (COPA 3.4) | C122: 1.99 | D122: 0.017 | E122: 0.0612
A123: 2016 | B123: Centrale géothermique | C123: 1.52 | D123: 0.006 | E123: 0.0216
A124: 2016 | B124: Centrale de chauffage géothermique | C124: 0.59 | D124: 0.004 | E124: 0.0144
A125: 2016 | B125: Incinération des ordures ménagères | C125: 0.06 | D125: 0.001 | E125: 0.0036
A126: 2016 | B126: Centrale à énergie totale équipée alimentée au diesel | C126: 0.63 | D126: 0.04 | E126: 0.144
A127: 2016 | B127: Centrale à énergie totale équipée alimentée au gaz | C127: 0.61 | D127: 0.035 | E127: 0.126
A128: 2016 | B128: Centrale à énergie totale équipée alimentée au biogaz | C128: 0.23 | D128: 0.022 | E128: 0.0792
A129: 2016 | B129: Chaleur à distance, moyenne réseaux CH | C129: 0.87 | D129: 0.03 | E129: 0.108
A130: 2016 | B130: Total transport chaleur à distance | C130: 0.061 | D130: 0.0009 | E130: 0.00324
A131: 2016 | B131: Chaleur de l'environnement/rejets de chaleur
A132: 2016 | B132: Solaire thermique | C132: 1.33 | D132: 0.037 | E132: =(D132*3.6) -> 0.1332
A133: 2016 | B133: Chaleur de l'environnement (air ambiant, eaux de surface, géothermie peu profonde) | C133: =1-(1/JAZ_WP_Zukunft) -> 0.75 | D133: 0.046 | E133: =(D133*3.6) -> 0.1656
A134: 2016 | B134: Rejets de chaleur Artisanat / Industrie et chaleur des eaux usées | C134: 0 | D134: 0 | E134: =(D134*3.6) -> 0
A135: 2016 | B135: Electricité provenant du réseau
A136: 2016 | B136: Centrale nucléaire | C136: 4.21 | D136: 0.006 | E136: =(D136*3.6) -> 0.0216
A137: 2016 | B137: Centrale à cycles combinés alimentée au gaz naturel (GuD) | C137: 2.22 | D137: 0.129 | E137: 0.4644
A138: 2016 | B138: Centrale à charbon (houille) | C138: 3.94 | D138: 0.344 | E138: 1.2384
A139: 2016 | B139: Centrale à mazout (lourd) | C139: 3.83 | D139: 0.281 | E139: 1.0116
A140: 2016 | B140: Incinération des ordures ménagères - Electricité | C140: 0.02 | D140: 0.002 | E140: 0.0072
A141: 2016 | B141: Centrale de chauffage à bois | C141: 3.88 | D141: 0.033 | E141: 0.1188
A142: 2016 | B142: Centrale à énergie totale équipée alimentée au diesel et à l'électricité | C142: 3.28 | D142: 0.229 | E142: 0.8244
A143: 2016 | B143: Centrale à énergie totale équipée alimentée au gaz et à l'électricité | C143: 2.94 | D143: 0.186 | E143: 0.6696
A144: 2016 | B144: Centrale à énergie totale équipée alimentée au biogaz et à l'électricité | C144: 0.91 | D144: 0.112 | E144: 0.4032
A145: 2016 | B145: Photovoltaïque | C145: 1.56 | D145: 0.027 | E145: 0.0972
A146: 2016 | B146: Energie éolienne | C146: 1.29 | D146: 0.007 | E146: 0.0252
A147: 2016 | B147: Énergie hydraulique | C147: 1.2 | D147: 0.003 | E147: 0.0108
A148: 2016 | B148: Centrale de chauffage géothermique à électricité | C148: 3.36 | D148: 0.009 | E148: 0.0324
A149: 2016 | B149: Mix d'électricité livré au consommateur CH | C149: 3 | D149: 0.028 | E149: 0.1008
A150: 2016 | B150: Mix ENTSO-E (anciennement mix UCTE) | C150: 3.18 | D150: 0.146 | E150: 0.5256
A151: 2016 | B151: Autres types de production d'électricité *
A152: 2016 | B152: Facteur RPC | C152: =IF(P_PEF_THGF!$A152<=MIN(P_PEF_THG_KEV!$A$3:$A$19),NoSpace,VLOOKUP(P_PEF_THGF!$A152,P_PEF_THG_KEV!$A$22:$D$29,2,FALSE)) -> 1.15961 | D152: =IFERROR(E152/3.6,NoSpace) -> 0.046323 | E152: =IF(P_PEF_THGF!$A152<=MIN(P_PEF_THG_KEV!$A$5:$A$19),NoSpace,VLOOKUP(P_PEF_THGF!$A152,P_PEF_THG_KEV!$A$22:$D$36,4,FALSE)) -> 0.1667628
B153: * Berechnungen/Annahmen Begleitgruppe Quelle: treeze Ltd (2017). Primärenergiefaktoren von Energiesystemen v. 2.22, Tab 2.1, Stand 2016; KBOB, eco-bau, IPB (2014). Ökobilanzdaten im Baubereich. 2009/1, 2016; Fachstelle 2000-Watt-Gesellschaft, Bilanzierungskonzept 2000-Watt-Gesellschaft, September 2014
A155: 2014 | B155: Combustibles
A156: =A155 -> 2014 | B156: Mazout | C156: 1.23 | D156: 0.0827 | E156: =(D156*3.6) -> 0.29772 | F156: EL (extra léger)
A157: =A156 -> 2014 | B157: Gaz naturel | C157: 1.07 | D157: 0.0633 | E157: =(D157*3.6) -> 0.22788
A158: =A157 -> 2014 | B158: Charbon / coke | C158: 1.67 | D158: 0.122 | E158: =(D158*3.6) -> 0.4392
A159: 2014 | B159: Copeaux ou plaquettes de bois | C159: 1.14 | D159: 0.00293 | E159: 0.010548
A160: 2014 | B160: Pellets | C160: 1.21 | D160: 0.00955 | E160: 0.03438
A161: 2014 | B161: Biogaz | C161: 0.338 | D161: 0.0366 | E161: 0.13176
A162: 2014 | B162: Chaleur à distance
A163: 2014 | B163: Centrale thermique pétrole | C163: 1.68 | D163: 0.112 | E163: 0.4032
A164: 2014 | B164: Centrale thermique gaz | C164: 1.53 | D164: 0.087 | E164: 0.3132
A165: 2014 | B165: Centrale thermique à bois | C165: 1.66 | D165: 0.012 | E165: 0.0432
A166: 2014 | B166: Centrale de chauffage à bois | C166: 1.41 | D166: 0.01 | E166: 0.036
A167: 2014 | B167: Centrale thermique PACE air/eau (COPA 2.8) | C167: 2.19 | D167: 0.026 | E167: 0.0936
A168: 2014 | B168: Centrale thermique PACE sonde géothermique (COPA 3.9) | C168: 1.94 | D168: 0.019 | E168: 0.0684
A169: 2014 | B169: Centrale thermique PACE eaux usées (COPA 3.4) | C169: 1.11 | D169: 0.015 | E169: 0.054
A170: 2014 | B170: Centrale thermique PACE eaux souterraines (COPA 3.4) | C170: 2.04 | D170: 0.021 | E170: 0.0756
A171: 2014 | B171: Centrale géothermique | C171: 1.53 | D171: 0.006 | E171: 0.0216
A172: 2014 | B172: Centrale de chauffage géothermique | C172: 0.59 | D172: 0.004 | E172: 0.0144
A173: 2014 | B173: Incinération des ordures ménagères | C173: 0.06 | D173: 0.001 | E173: 0.0036
A174: 2014 | B174: Centrale à énergie totale équipée alimentée au diesel | C174: 0.63 | D174: 0.04 | E174: 0.144
A175: 2014 | B175: Centrale à énergie totale équipée alimentée au gaz | C175: 0.61 | D175: 0.035 | E175: 0.126
A176: 2014 | B176: Centrale à énergie totale équipée alimentée au biogaz | C176: 0.24 | D176: 0.022 | E176: 0.0792
A177: 2014 | B177: Chaleur à distance, moyenne réseaux CH | C177: 0.87 | D177: 0.03 | E177: 0.108
A178: 2014 | B178: Total transport chaleur à distance | C178: 0.061 | D178: 0.0009 | E178: 0.00324
A179: 2014 | B179: Chaleur de l'environnement/rejets de chaleur
A180: 2014 | B180: Solaire thermique | C180: 1.62 | D180: 0.0116 | E180: =(D180*3.6) -> 0.04176
A181: 2014 | B181: Chaleur de l'environnement (air ambiant, eaux de surface, géothermie peu profonde) | C181: =1-(1/JAZ_WP_heute) -> 0.6666666667 | D181: 0.0153 | E181: 0.05508
A182: 2014 | B182: Rejets de chaleur Artisanat / Industrie et chaleur des eaux usées | C182: 0 | D182: 0 | E182: 0
A183: 2014 | B183: Electricité provenant du réseau
A184: 2014 | B184: Centrale nucléaire | C184: 4.22 | D184: 0.00655 | E184: 0.02358
A185: 2014 | B185: Centrale à cycles combinés alimentée au gaz naturel (GuD) | C185: 2.22 | D185: 0.13 | E185: 0.468
A186: 2014 | B186: Centrale à charbon (houille) | C186: 3.94 | D186: 0.344 | E186: 1.2384
A187: 2014 | B187: Centrale à mazout (lourd) | C187: 3.73 | D187: 0.272 | E187: 0.9792
A188: 2014 | B188: Incinération des ordures ménagères - Electricité | C188: 0.0189 | D188: 0.00202 | E188: 0.007272
A189: 2014 | B189: Centrale de chauffage à bois | C189: 3.73 | D189: 0.0285 | E189: 0.1026
A190: 2014 | B190: Centrale à énergie totale équipée alimentée au diesel et à l'électricité | C190: 3.27 | D190: 0.228 | E190: 0.8208
A191: 2014 | B191: Centrale à énergie totale équipée alimentée au gaz et à l'électricité | C191: 2.94 | D191: 0.186 | E191: 0.6696
A192: 2014 | B192: Centrale à énergie totale équipée alimentée au biogaz et à l'électricité | C192: 0.93 | D192: 0.114 | E192: 0.4104
A193: 2014 | B193: Photovoltaïque | C193: 1.58 | D193: 0.0264 | E193: 0.09504
A194: 2014 | B194: Energie éolienne | C194: 1.29 | D194: 0.00733 | E194: 0.026388
A195: 2014 | B195: Énergie hydraulique | C195: 1.2 | D195: 0.0035 | E195: 0.0126
A196: 2014 | B196: Centrale de chauffage géothermique à électricité | C196: 3.36 | D196: 0.00858 | E196: 0.030888
A197: 2014 | B197: Mix d'électricité livré au consommateur CH | C197: 3.14 | D197: 0.0385 | E197: 0.1386
A198: 2014 | B198: Mix ENTSO-E (anciennement mix UCTE) | C198: 3.18 | D198: 0.145 | E198: 0.522
A199: 2014 | B199: Autres types de production d'électricité *
A200: 2014 | B200: Facteur RPC | C200: =IF(P_PEF_THGF!$A200<=MIN(P_PEF_THG_KEV!$A$3:$A$19),NoSpace,VLOOKUP(P_PEF_THGF!$A200,P_PEF_THG_KEV!$A$22:$D$29,2,FALSE)) -> 1.14865 | D200: =IFERROR(E200/3.6,NoSpace) -> 0.04865426 | E200: =IF(P_PEF_THGF!$A200<=MIN(P_PEF_THG_KEV!$A$5:$A$19),NoSpace,VLOOKUP(P_PEF_THGF!$A200,P_PEF_THG_KEV!$A$22:$D$36,4,FALSE)) -> 0.175155336
B201: * Berechnungen/Annahmen Begleitgruppe Quelle: treeze Ltd (2014). Primärenergiefaktoren von Energiesystemen v. 2.2, Stand 2014; Fachstelle 2000-Watt-Gesellschaft, Bilanzierungskonzept 2000-Watt-Gesellschaft, September 2014; KBOB, eco-bau, IPB (2014). Ökobilanzdaten im Baubereich. 2009/1, 2014
A203: 2012 | B203: Combustibles
A204: =A203 -> 2012 | B204: Mazout | C204: 1.24 | D204: 0.08 | E204: =(D204*3.6) -> 0.288 | F204: EL (extra léger)
A205: =A204 -> 2012 | B205: Gaz naturel | C205: 1.12 | D205: 0.07 | E205: 0.252
... 92 more rows

Sheet P_PEF_THG_KEV
A1: =P_PEF_THGF!A1 -> Paramètres
A2: Energie primaire et gaz à effet de serre pour le courant RPC
A3: Courant subventionné | C3: Composition
A4: Année | B4: Part de courant exigé par rapport au mix électrique | C4: Eau | D4: Solaire | E4: Eolien | F4: Biomasse et biomasse issue de déchets | G4: Géothermie
A5: 2009 | B5: 0.007 | C5: 0.426 | D5: 0.038 | E5: 0.013 | F5: 0.523 | G5: 0
A6: 2010 | B6: 0.009 | C6: 0.516 | D6: 0.042 | E6: 0.026 | F6: 0.416 | G6: 0
A7: 2011 | B7: 0.013 | C7: 0.511 | D7: 0.047 | E7: 0.062 | F7: 0.38 | G7: 0
A8: 2012 | B8: 0.02 | C8: 0.493 | D8: 0.076 | E8: 0.042 | F8: 0.389 | G8: 0
A9: 2013 | B9: 0.024 | C9: 0.445 | D9: 0.1 | E9: 0.037 | F9: 0.418 | G9: 0
A10: 2014 | B10: 0.03 | C10: 0.459 | D10: 0.128 | E10: 0.032 | F10: 0.381 | G10: 0
A11: 2015 | B11: 0.035 | C11: 0.453 | D11: 0.2 | E11: 0.032 | F11: 0.315 | G11: 0
A12: 2016 | B12: 0.046 | C12: 0.443 | D12: 0.17 | E12: 0.028 | F12: 0.359 | G12: 0
A13: 2017 | B13: 0.052 | C13: 0.443 | D13: 0.182 | E13: 0.027 | F13: 0.348 | G13: 0
A14: 2018 | B14: 0.056 | C14: 0.463 | D14: 0.183 | E14: 0.027 | F14: 0.327 | G14: 0
A15: 2019 | B15: 0.063 | C15: 0.474 | D15: 0.176 | E15: 0.033 | F15: 0.317 | G15: 0
A16: 2020 | B16: 0.07 | C16: 0.487 | D16: 0.176 | E16: 0.03 | F16: 0.307 | G16: 0
A17: 2021 | B17: 0.067 | C17: 0.475 | D17: 0.164 | E17: 0.031 | F17: 0.33 | G17: 0
A18: 2022 | B18: 0.061 | C18: 0.471 | D18: 0.2 | E18: 0.036 | F18: 0.293 | G18: 0
B20: =P_PEF_THGF!C3 -> Facteur d'énergie primaire | C20: =P_PEF_THGF!D3 -> Coefficient d'émissions de gaz à effet de serre
A21: Année | B21: MJéq/MJ | C21: kg/MJ | D21: kg/kWh
A22: 2009 | B22: =SUMPRODUCT($C5:$G5,A43:E43) -> 0.70469 | C22: =D22/3.6 -> 0.02742 | D22: =SUMPRODUCT($C5:$G5,A60:E60) -> 0.098712
A23: 2010 | B23: 0.81702 | C23: =D23/3.6 -> 0.02232 | D23: 0.080352
A24: 2011 | B24: 0.8599 | C24: 0.02103 | D24: 0.075708
A25: 2012 | B25: 1.16124 | C25: 0.043572 | D25: 0.1568592
A26: 2013 | B26: 1.16338 | C26: 0.04695 | D26: 0.16902
A27: 2014 | B27: 1.14865 | C27: 0.04865426 | D27: 0.175155336
A28: 2015 | B28: 1.19383 | C28: 0.04301006 | D28: 0.154836216
A29: 2016 | B29: 1.15961 | C29: 0.046323 | D29: 0.1667628
A30: 2017 | B30: 1.16703 | C30: =D30/3.6 -> 0.045408 | D30: 0.1634688
A31: 2018 | B31: 1.05565595 | C31: =D31/3.6 -> 0.03304636 | D31: 0.118966896
A32: 2019 | B32: 1.06018765 | C32: =D32/3.6 -> 0.03213304 | D32: 0.115678944
A33: 2020 | B33: 1.06635205 | C33: 0.03134905 | D33: 0.11285658
A34: 2021 | B34: 1.1265234 | C34: 0.03741577778 | D34: 0.1346968
A35: 2022 | B35: 1.143894 | C35: 0.03417633333 | D35: 0.1230348
A37: Quelle: BFE: Stromkennzeichnung "Geförderter Strom", Stand 2023 (PE- und THG Faktoren 2022)
A41: =B20 -> Facteur d'énergie primaire
A42: =P_PEF_THGF!$B$147 -> Énergie hydraulique | B42: =P_PEF_THGF!$B$145 -> Photovoltaïque | C42: =P_PEF_THGF!$B$146 -> Energie éolienne | D42: =P_PEF_THGF!$B$144 -> Centrale à énergie totale équipée alimentée au biogaz et à l'électricité | E42: =P_PEF_THGF!$B$148 -> Centrale de chauffage géothermique à électricité
A43: =VLOOKUP(IF($A22<=MIN(P_PEF_THGF!$A$107:$A$299),MIN(P_PEF_THGF!$A$107:$A$299),IF(COUNTIF(P_PEF_THGF!$A$107:$A$299,$A22)>=1,$A22,MAX(IF(P_PEF_THGF!$A$107:$A$299<$A22,P_PEF_THGF!$A$107:$A$299)))),IF(P_PEF_THGF!$B$107:$B$299=A$42,P_PEF_THGF!$A$107:$E$299,NoSpace),3,FALSE) -> 1.22 | B43: =VLOOKUP(IF($A22<=MIN(P_PEF_THGF!$A$107:$A$299),MIN(P_PEF_THGF!$A$107:$A$299),IF(COUNTIF(P_PEF_THGF!$A$107:$A$299,$A22)>=1,$A22,MAX(IF(P_PEF_THGF!$A$107:$A$299<$A22,P_PEF_THGF!$A$107:$A$299)))),IF(P_PEF_THGF!$B$107:$B$299=B$42,P_PEF_THGF!$A$107:$E$299,NoSpace),3,FALSE) -> 1.66 | C43: =VLOOKUP(IF($A22<=MIN(P_PEF_THGF!$A$107:$A$299),MIN(P_PEF_THGF!$A$107:$A$299),IF(COUNTIF(P_PEF_THGF!$A$107:$A$299,$A22)>=1,$A22,MAX(IF(P_PEF_THGF!$A$107:$A$299<$A22,P_PEF_THGF!$A$107:$A$299)))),IF(P_PEF_THGF!$B$107:$B$299=C$42,P_PEF_THGF!$A$107:$E$299,NoSpace),3,FALSE) -> 1.33 | D43: =VLOOKUP(IF($A22<=MIN(P_PEF_THGF!$A$107:$A$299),MIN(P_PEF_THGF!$A$107:$A$299),IF(COUNTIF(P_PEF_THGF!$A$107:$A$299,$A22)>=1,$A22,MAX(IF(P_PEF_THGF!$A$107:$A$299<$A22,P_PEF_THGF!$A$107:$A$299)))),IF(P_PEF_THGF!$B$107:$B$299=D$42,P_PEF_THGF!$A$107:$E$299,NoSpace),3,FALSE) -> 0.2 | E43: =VLOOKUP(IF($A22<=MIN(P_PEF_THGF!$A$107:$A$299),MIN(P_PEF_THGF!$A$107:$A$299),IF(COUNTIF(P_PEF_THGF!$A$107:$A$299,$A22)>=1,$A22,MAX(IF(P_PEF_THGF!$A$107:$A$299<$A22,P_PEF_THGF!$A$107:$A$299)))),IF(P_PEF_THGF!$B$107:$B$299=E$42,P_PEF_THGF!$A$107:$E$299,NoSpace),3,FALSE) -> 3.36
A44: =VLOOKUP(IF($A23<=MIN(P_PEF_THGF!$A$107:$A$299),MIN(P_PEF_THGF!$A$107:$A$299),IF(COUNTIF(P_PEF_THGF!$A$107:$A$299,$A23)>=1,$A23,MAX(IF(P_PEF_THGF!$A$107:$A$299<$A23,P_PEF_THGF!$A$107:$A$299)))),IF(P_PEF_THGF!$B$107:$B$299=A$42,P_PEF_THGF!$A$107:$E$299,NoSpace),3,FALSE) -> 1.22 | B44: =VLOOKUP(IF($A23<=MIN(P_PEF_THGF!$A$107:$A$299),MIN(P_PEF_THGF!$A$107:$A$299),IF(COUNTIF(P_PEF_THGF!$A$107:$A$299,$A23)>=1,$A23,MAX(IF(P_PEF_THGF!$A$107:$A$299<$A23,P_PEF_THGF!$A$107:$A$299)))),IF(P_PEF_THGF!$B$107:$B$299=B$42,P_PEF_THGF!$A$107:$E$299,NoSpace),3,FALSE) -> 1.66 | C44: =VLOOKUP(IF($A23<=MIN(P_PEF_THGF!$A$107:$A$299),MIN(P_PEF_THGF!$A$107:$A$299),IF(COUNTIF(P_PEF_THGF!$A$107:$A$299,$A23)>=1,$A23,MAX(IF(P_PEF_THGF!$A$107:$A$299<$A23,P_PEF_THGF!$A$107:$A$299)))),IF(P_PEF_THGF!$B$107:$B$299=C$42,P_PEF_THGF!$A$107:$E$299,NoSpace),3,FALSE) -> 1.33 | D44: =VLOOKUP(IF($A23<=MIN(P_PEF_THGF!$A$107:$A$299),MIN(P_PEF_THGF!$A$107:$A$299),IF(COUNTIF(P_PEF_THGF!$A$107:$A$299,$A23)>=1,$A23,MAX(IF(P_PEF_THGF!$A$107:$A$299<$A23,P_PEF_THGF!$A$107:$A$299)))),IF(P_PEF_THGF!$B$107:$B$299=D$42,P_PEF_THGF!$A$107:$E$299,NoSpace),3,FALSE) -> 0.2 | E44: =VLOOKUP(IF($A23<=MIN(P_PEF_THGF!$A$107:$A$299),MIN(P_PEF_THGF!$A$107:$A$299),IF(COUNTIF(P_PEF_THGF!$A$107:$A$299,$A23)>=1,$A23,MAX(IF(P_PEF_THGF!$A$107:$A$299<$A23,P_PEF_THGF!$A$107:$A$299)))),IF(P_PEF_THGF!$B$107:$B$299=E$42,P_PEF_THGF!$A$107:$E$299,NoSpace),3,FALSE) -> 3.36
A45: =VLOOKUP(IF($A24<=MIN(P_PEF_THGF!$A$107:$A$299),MIN(P_PEF_THGF!$A$107:$A$299),IF(COUNTIF(P_PEF_THGF!$A$107:$A$299,$A24)>=1,$A24,MAX(IF(P_PEF_THGF!$A$107:$A$299<$A24,P_PEF_THGF!$A$107:$A$299)))),IF(P_PEF_THGF!$B$107:$B$299=A$42,P_PEF_THGF!$A$107:$E$299,NoSpace),3,FALSE) -> 1.22 | B45: =VLOOKUP(IF($A24<=MIN(P_PEF_THGF!$A$107:$A$299),MIN(P_PEF_THGF!$A$107:$A$299),IF(COUNTIF(P_PEF_THGF!$A$107:$A$299,$A24)>=1,$A24,MAX(IF(P_PEF_THGF!$A$107:$A$299<$A24,P_PEF_THGF!$A$107:$A$299)))),IF(P_PEF_THGF!$B$107:$B$299=B$42,P_PEF_THGF!$A$107:$E$299,NoSpace),3,FALSE) -> 1.66 | C45: =VLOOKUP(IF($A24<=MIN(P_PEF_THGF!$A$107:$A$299),MIN(P_PEF_THGF!$A$107:$A$299),IF(COUNTIF(P_PEF_THGF!$A$107:$A$299,$A24)>=1,$A24,MAX(IF(P_PEF_THGF!$A$107:$A$299<$A24,P_PEF_THGF!$A$107:$A$299)))),IF(P_PEF_THGF!$B$107:$B$299=C$42,P_PEF_THGF!$A$107:$E$299,NoSpace),3,FALSE) -> 1.33 | D45: =VLOOKUP(IF($A24<=MIN(P_PEF_THGF!$A$107:$A$299),MIN(P_PEF_THGF!$A$107:$A$299),IF(COUNTIF(P_PEF_THGF!$A$107:$A$299,$A24)>=1,$A24,MAX(IF(P_PEF_THGF!$A$107:$A$299<$A24,P_PEF_THGF!$A$107:$A$299)))),IF(P_PEF_THGF!$B$107:$B$299=D$42,P_PEF_THGF!$A$107:$E$299,NoSpace),3,FALSE) -> 0.2 | E45: =VLOOKUP(IF($A24<=MIN(P_PEF_THGF!$A$107:$A$299),MIN(P_PEF_THGF!$A$107:$A$299),IF(COUNTIF(P_PEF_THGF!$A$107:$A$299,$A24)>=1,$A24,MAX(IF(P_PEF_THGF!$A$107:$A$299<$A24,P_PEF_THGF!$A$107:$A$299)))),IF(P_PEF_THGF!$B$107:$B$299=E$42,P_PEF_THGF!$A$107:$E$299,NoSpace),3,FALSE) -> 3.36
A46: =VLOOKUP(IF($A25<=MIN(P_PEF_THGF!$A$107:$A$299),MIN(P_PEF_THGF!$A$107:$A$299),IF(COUNTIF(P_PEF_THGF!$A$107:$A$299,$A25)>=1,$A25,MAX(IF(P_PEF_THGF!$A$107:$A$299<$A25,P_PEF_THGF!$A$107:$A$299)))),IF(P_PEF_THGF!$B$107:$B$299=A$42,P_PEF_THGF!$A$107:$E$299,NoSpace),3,FALSE) -> 1.22 | B46: =VLOOKUP(IF($A25<=MIN(P_PEF_THGF!$A$107:$A$299),MIN(P_PEF_THGF!$A$107:$A$299),IF(COUNTIF(P_PEF_THGF!$A$107:$A$299,$A25)>=1,$A25,MAX(IF(P_PEF_THGF!$A$107:$A$299<$A25,P_PEF_THGF!$A$107:$A$299)))),IF(P_PEF_THGF!$B$107:$B$299=B$42,P_PEF_THGF!$A$107:$E$299,NoSpace),3,FALSE) -> 1.62 | C46: =VLOOKUP(IF($A25<=MIN(P_PEF_THGF!$A$107:$A$299),MIN(P_PEF_THGF!$A$107:$A$299),IF(COUNTIF(P_PEF_THGF!$A$107:$A$299,$A25)>=1,$A25,MAX(IF(P_PEF_THGF!$A$107:$A$299<$A25,P_PEF_THGF!$A$107:$A$299)))),IF(P_PEF_THGF!$B$107:$B$299=C$42,P_PEF_THGF!$A$107:$E$299,NoSpace),3,FALSE) -> 1.32 | D46: =VLOOKUP(IF($A25<=MIN(P_PEF_THGF!$A$107:$A$299),MIN(P_PEF_THGF!$A$107:$A$299),IF(COUNTIF(P_PEF_THGF!$A$107:$A$299,$A25)>=1,$A25,MAX(IF(P_PEF_THGF!$A$107:$A$299<$A25,P_PEF_THGF!$A$107:$A$299)))),IF(P_PEF_THGF!$B$107:$B$299=D$42,P_PEF_THGF!$A$107:$E$299,NoSpace),3,FALSE) -> 0.98 | E46: =VLOOKUP(IF($A25<=MIN(P_PEF_THGF!$A$107:$A$299),MIN(P_PEF_THGF!$A$107:$A$299),IF(COUNTIF(P_PEF_THGF!$A$107:$A$299,$A25)>=1,$A25,MAX(IF(P_PEF_THGF!$A$107:$A$299<$A25,P_PEF_THGF!$A$107:$A$299)))),IF(P_PEF_THGF!$B$107:$B$299=E$42,P_PEF_THGF!$A$107:$E$299,NoSpace),3,FALSE) -> 3.36
A47: =VLOOKUP(IF($A26<=MIN(P_PEF_THGF!$A$107:$A$299),MIN(P_PEF_THGF!$A$107:$A$299),IF(COUNTIF(P_PEF_THGF!$A$107:$A$299,$A26)>=1,$A26,MAX(IF(P_PEF_THGF!$A$107:$A$299<$A26,P_PEF_THGF!$A$107:$A$299)))),IF(P_PEF_THGF!$B$107:$B$299=A$42,P_PEF_THGF!$A$107:$E$299,NoSpace),3,FALSE) -> 1.22 | B47: =VLOOKUP(IF($A26<=MIN(P_PEF_THGF!$A$107:$A$299),MIN(P_PEF_THGF!$A$107:$A$299),IF(COUNTIF(P_PEF_THGF!$A$107:$A$299,$A26)>=1,$A26,MAX(IF(P_PEF_THGF!$A$107:$A$299<$A26,P_PEF_THGF!$A$107:$A$299)))),IF(P_PEF_THGF!$B$107:$B$299=B$42,P_PEF_THGF!$A$107:$E$299,NoSpace),3,FALSE) -> 1.62 | C47: =VLOOKUP(IF($A26<=MIN(P_PEF_THGF!$A$107:$A$299),MIN(P_PEF_THGF!$A$107:$A$299),IF(COUNTIF(P_PEF_THGF!$A$107:$A$299,$A26)>=1,$A26,MAX(IF(P_PEF_THGF!$A$107:$A$299<$A26,P_PEF_THGF!$A$107:$A$299)))),IF(P_PEF_THGF!$B$107:$B$299=C$42,P_PEF_THGF!$A$107:$E$299,NoSpace),3,FALSE) -> 1.32 | D47: =VLOOKUP(IF($A26<=MIN(P_PEF_THGF!$A$107:$A$299),MIN(P_PEF_THGF!$A$107:$A$299),IF(COUNTIF(P_PEF_THGF!$A$107:$A$299,$A26)>=1,$A26,MAX(IF(P_PEF_THGF!$A$107:$A$299<$A26,P_PEF_THGF!$A$107:$A$299)))),IF(P_PEF_THGF!$B$107:$B$299=D$42,P_PEF_THGF!$A$107:$E$299,NoSpace),3,FALSE) -> 0.98 | E47: =VLOOKUP(IF($A26<=MIN(P_PEF_THGF!$A$107:$A$299),MIN(P_PEF_THGF!$A$107:$A$299),IF(COUNTIF(P_PEF_THGF!$A$107:$A$299,$A26)>=1,$A26,MAX(IF(P_PEF_THGF!$A$107:$A$299<$A26,P_PEF_THGF!$A$107:$A$299)))),IF(P_PEF_THGF!$B$107:$B$299=E$42,P_PEF_THGF!$A$107:$E$299,NoSpace),3,FALSE) -> 3.36
A48: =VLOOKUP(IF($A27<=MIN(P_PEF_THGF!$A$107:$A$299),MIN(P_PEF_THGF!$A$107:$A$299),IF(COUNTIF(P_PEF_THGF!$A$107:$A$299,$A27)>=1,$A27,MAX(IF(P_PEF_THGF!$A$107:$A$299<$A27,P_PEF_THGF!$A$107:$A$299)))),IF(P_PEF_THGF!$B$107:$B$299=A$42,P_PEF_THGF!$A$107:$E$299,NoSpace),3,FALSE) -> 1.2 | B48: =VLOOKUP(IF($A27<=MIN(P_PEF_THGF!$A$107:$A$299),MIN(P_PEF_THGF!$A$107:$A$299),IF(COUNTIF(P_PEF_THGF!$A$107:$A$299,$A27)>=1,$A27,MAX(IF(P_PEF_THGF!$A$107:$A$299<$A27,P_PEF_THGF!$A$107:$A$299)))),IF(P_PEF_THGF!$B$107:$B$299=B$42,P_PEF_THGF!$A$107:$E$299,NoSpace),3,FALSE) -> 1.58 | C48: =VLOOKUP(IF($A27<=MIN(P_PEF_THGF!$A$107:$A$299),MIN(P_PEF_THGF!$A$107:$A$299),IF(COUNTIF(P_PEF_THGF!$A$107:$A$299,$A27)>=1,$A27,MAX(IF(P_PEF_THGF!$A$107:$A$299<$A27,P_PEF_THGF!$A$107:$A$299)))),IF(P_PEF_THGF!$B$107:$B$299=C$42,P_PEF_THGF!$A$107:$E$299,NoSpace),3,FALSE) -> 1.29 | D48: =VLOOKUP(IF($A27<=MIN(P_PEF_THGF!$A$107:$A$299),MIN(P_PEF_THGF!$A$107:$A$299),IF(COUNTIF(P_PEF_THGF!$A$107:$A$299,$A27)>=1,$A27,MAX(IF(P_PEF_THGF!$A$107:$A$299<$A27,P_PEF_THGF!$A$107:$A$299)))),IF(P_PEF_THGF!$B$107:$B$299=D$42,P_PEF_THGF!$A$107:$E$299,NoSpace),3,FALSE) -> 0.93 | E48: =VLOOKUP(IF($A27<=MIN(P_PEF_THGF!$A$107:$A$299),MIN(P_PEF_THGF!$A$107:$A$299),IF(COUNTIF(P_PEF_THGF!$A$107:$A$299,$A27)>=1,$A27,MAX(IF(P_PEF_THGF!$A$107:$A$299<$A27,P_PEF_THGF!$A$107:$A$299)))),IF(P_PEF_THGF!$B$107:$B$299=E$42,P_PEF_THGF!$A$107:$E$299,NoSpace),3,FALSE) -> 3.36
A49: =VLOOKUP(IF($A28<=MIN(P_PEF_THGF!$A$107:$A$299),MIN(P_PEF_THGF!$A$107:$A$299),IF(COUNTIF(P_PEF_THGF!$A$107:$A$299,$A28)>=1,$A28,MAX(IF(P_PEF_THGF!$A$107:$A$299<$A28,P_PEF_THGF!$A$107:$A$299)))),IF(P_PEF_THGF!$B$107:$B$299=A$42,P_PEF_THGF!$A$107:$E$299,NoSpace),3,FALSE) -> 1.2 | B49: =VLOOKUP(IF($A28<=MIN(P_PEF_THGF!$A$107:$A$299),MIN(P_PEF_THGF!$A$107:$A$299),IF(COUNTIF(P_PEF_THGF!$A$107:$A$299,$A28)>=1,$A28,MAX(IF(P_PEF_THGF!$A$107:$A$299<$A28,P_PEF_THGF!$A$107:$A$299)))),IF(P_PEF_THGF!$B$107:$B$299=B$42,P_PEF_THGF!$A$107:$E$299,NoSpace),3,FALSE) -> 1.58 | C49: =VLOOKUP(IF($A28<=MIN(P_PEF_THGF!$A$107:$A$299),MIN(P_PEF_THGF!$A$107:$A$299),IF(COUNTIF(P_PEF_THGF!$A$107:$A$299,$A28)>=1,$A28,MAX(IF(P_PEF_THGF!$A$107:$A$299<$A28,P_PEF_THGF!$A$107:$A$299)))),IF(P_PEF_THGF!$B$107:$B$299=C$42,P_PEF_THGF!$A$107:$E$299,NoSpace),3,FALSE) -> 1.29 | D49: =VLOOKUP(IF($A28<=MIN(P_PEF_THGF!$A$107:$A$299),MIN(P_PEF_THGF!$A$107:$A$299),IF(COUNTIF(P_PEF_THGF!$A$107:$A$299,$A28)>=1,$A28,MAX(IF(P_PEF_THGF!$A$107:$A$299<$A28,P_PEF_THGF!$A$107:$A$299)))),IF(P_PEF_THGF!$B$107:$B$299=D$42,P_PEF_THGF!$A$107:$E$299,NoSpace),3,FALSE) -> 0.93 | E49: =VLOOKUP(IF($A28<=MIN(P_PEF_THGF!$A$107:$A$299),MIN(P_PEF_THGF!$A$107:$A$299),IF(COUNTIF(P_PEF_THGF!$A$107:$A$299,$A28)>=1,$A28,MAX(IF(P_PEF_THGF!$A$107:$A$299<$A28,P_PEF_THGF!$A$107:$A$299)))),IF(P_PEF_THGF!$B$107:$B$299=E$42,P_PEF_THGF!$A$107:$E$299,NoSpace),3,FALSE) -> 3.36
A50: =VLOOKUP(IF($A29<=MIN(P_PEF_THGF!$A$107:$A$299),MIN(P_PEF_THGF!$A$107:$A$299),IF(COUNTIF(P_PEF_THGF!$A$107:$A$299,$A29)>=1,$A29,MAX(IF(P_PEF_THGF!$A$107:$A$299<$A29,P_PEF_THGF!$A$107:$A$299)))),IF(P_PEF_THGF!$B$107:$B$299=A$42,P_PEF_THGF!$A$107:$E$299,NoSpace),3,FALSE) -> 1.2 | B50: =VLOOKUP(IF($A29<=MIN(P_PEF_THGF!$A$107:$A$299),MIN(P_PEF_THGF!$A$107:$A$299),IF(COUNTIF(P_PEF_THGF!$A$107:$A$299,$A29)>=1,$A29,MAX(IF(P_PEF_THGF!$A$107:$A$299<$A29,P_PEF_THGF!$A$107:$A$299)))),IF(P_PEF_THGF!$B$107:$B$299=B$42,P_PEF_THGF!$A$107:$E$299,NoSpace),3,FALSE) -> 1.56 | C50: =VLOOKUP(IF($A29<=MIN(P_PEF_THGF!$A$107:$A$299),MIN(P_PEF_THGF!$A$107:$A$299),IF(COUNTIF(P_PEF_THGF!$A$107:$A$299,$A29)>=1,$A29,MAX(IF(P_PEF_THGF!$A$107:$A$299<$A29,P_PEF_THGF!$A$107:$A$299)))),IF(P_PEF_THGF!$B$107:$B$299=C$42,P_PEF_THGF!$A$107:$E$299,NoSpace),3,FALSE) -> 1.29 | D50: =VLOOKUP(IF($A29<=MIN(P_PEF_THGF!$A$107:$A$299),MIN(P_PEF_THGF!$A$107:$A$299),IF(COUNTIF(P_PEF_THGF!$A$107:$A$299,$A29)>=1,$A29,MAX(IF(P_PEF_THGF!$A$107:$A$299<$A29,P_PEF_THGF!$A$107:$A$299)))),IF(P_PEF_THGF!$B$107:$B$299=D$42,P_PEF_THGF!$A$107:$E$299,NoSpace),3,FALSE) -> 0.91 | E50: =VLOOKUP(IF($A29<=MIN(P_PEF_THGF!$A$107:$A$299),MIN(P_PEF_THGF!$A$107:$A$299),IF(COUNTIF(P_PEF_THGF!$A$107:$A$299,$A29)>=1,$A29,MAX(IF(P_PEF_THGF!$A$107:$A$299<$A29,P_PEF_THGF!$A$107:$A$299)))),IF(P_PEF_THGF!$B$107:$B$299=E$42,P_PEF_THGF!$A$107:$E$299,NoSpace),3,FALSE) -> 3.36
A51: =VLOOKUP(IF($A30<=MIN(P_PEF_THGF!$A$107:$A$299),MIN(P_PEF_THGF!$A$107:$A$299),IF(COUNTIF(P_PEF_THGF!$A$107:$A$299,$A30)>=1,$A30,MAX(IF(P_PEF_THGF!$A$107:$A$299<$A30,P_PEF_THGF!$A$107:$A$299)))),IF(P_PEF_THGF!$B$107:$B$299=A$42,P_PEF_THGF!$A$107:$E$299,NoSpace),3,FALSE) -> 1.2 | B51: =VLOOKUP(IF($A30<=MIN(P_PEF_THGF!$A$107:$A$299),MIN(P_PEF_THGF!$A$107:$A$299),IF(COUNTIF(P_PEF_THGF!$A$107:$A$299,$A30)>=1,$A30,MAX(IF(P_PEF_THGF!$A$107:$A$299<$A30,P_PEF_THGF!$A$107:$A$299)))),IF(P_PEF_THGF!$B$107:$B$299=B$42,P_PEF_THGF!$A$107:$E$299,NoSpace),3,FALSE) -> 1.56 | C51: =VLOOKUP(IF($A30<=MIN(P_PEF_THGF!$A$107:$A$299),MIN(P_PEF_THGF!$A$107:$A$299),IF(COUNTIF(P_PEF_THGF!$A$107:$A$299,$A30)>=1,$A30,MAX(IF(P_PEF_THGF!$A$107:$A$299<$A30,P_PEF_THGF!$A$107:$A$299)))),IF(P_PEF_THGF!$B$107:$B$299=C$42,P_PEF_THGF!$A$107:$E$299,NoSpace),3,FALSE) -> 1.29 | D51: =VLOOKUP(IF($A30<=MIN(P_PEF_THGF!$A$107:$A$299),MIN(P_PEF_THGF!$A$107:$A$299),IF(COUNTIF(P_PEF_THGF!$A$107:$A$299,$A30)>=1,$A30,MAX(IF(P_PEF_THGF!$A$107:$A$299<$A30,P_PEF_THGF!$A$107:$A$299)))),IF(P_PEF_THGF!$B$107:$B$299=D$42,P_PEF_THGF!$A$107:$E$299,NoSpace),3,FALSE) -> 0.91 | E51: =VLOOKUP(IF($A30<=MIN(P_PEF_THGF!$A$107:$A$299),MIN(P_PEF_THGF!$A$107:$A$299),IF(COUNTIF(P_PEF_THGF!$A$107:$A$299,$A30)>=1,$A30,MAX(IF(P_PEF_THGF!$A$107:$A$299<$A30,P_PEF_THGF!$A$107:$A$299)))),IF(P_PEF_THGF!$B$107:$B$299=E$42,P_PEF_THGF!$A$107:$E$299,NoSpace),3,FALSE) -> 3.36
A52: =VLOOKUP(IF($A31<=MIN(P_PEF_THGF!$A$9:$A$349),MIN(P_PEF_THGF!$A$9:$A$349),IF(COUNTIF(P_PEF_THGF!$A$9:$A$349,$A31)>=1,$A31,MAX(IF(P_PEF_THGF!$A$9:$A$349<$A31,P_PEF_THGF!$A$9:$A$349)))),IF(P_PEF_THGF!$B$9:$B$349=A$42,P_PEF_THGF!$A$9:$E$349,NoSpace),3,FALSE) -> 1.199 | B52: =VLOOKUP(IF($A31<=MIN(P_PEF_THGF!$A$9:$A$349),MIN(P_PEF_THGF!$A$9:$A$349),IF(COUNTIF(P_PEF_THGF!$A$9:$A$349,$A31)>=1,$A31,MAX(IF(P_PEF_THGF!$A$9:$A$349<$A31,P_PEF_THGF!$A$9:$A$349)))),IF(P_PEF_THGF!$B$9:$B$349=B$42,P_PEF_THGF!$A$9:$E$349,NoSpace),3,FALSE) -> 1.554 | C52: =VLOOKUP(IF($A31<=MIN(P_PEF_THGF!$A$9:$A$349),MIN(P_PEF_THGF!$A$9:$A$349),IF(COUNTIF(P_PEF_THGF!$A$9:$A$349,$A31)>=1,$A31,MAX(IF(P_PEF_THGF!$A$9:$A$349<$A31,P_PEF_THGF!$A$9:$A$349)))),IF(P_PEF_THGF!$B$9:$B$349=C$42,P_PEF_THGF!$A$9:$E$349,NoSpace),3,FALSE) -> 1.2937 | D52: =VLOOKUP(IF($A31<=MIN(P_PEF_THGF!$A$9:$A$349),MIN(P_PEF_THGF!$A$9:$A$349),IF(COUNTIF(P_PEF_THGF!$A$9:$A$349,$A31)>=1,$A31,MAX(IF(P_PEF_THGF!$A$9:$A$349<$A31,P_PEF_THGF!$A$9:$A$349)))),IF(P_PEF_THGF!$B$9:$B$349=D$42,P_PEF_THGF!$A$9:$E$349,NoSpace),3,FALSE) -> 0.55415 | E52: =VLOOKUP(IF($A31<=MIN(P_PEF_THGF!$A$9:$A$349),MIN(P_PEF_THGF!$A$9:$A$349),IF(COUNTIF(P_PEF_THGF!$A$9:$A$349,$A31)>=1,$A31,MAX(IF(P_PEF_THGF!$A$9:$A$349<$A31,P_PEF_THGF!$A$9:$A$349)))),IF(P_PEF_THGF!$B$9:$B$349=E$42,P_PEF_THGF!$A$9:$E$349,NoSpace),3,FALSE) -> 3.361
A53: =VLOOKUP(IF($A32<=MIN(P_PEF_THGF!$A$9:$A$349),MIN(P_PEF_THGF!$A$9:$A$349),IF(COUNTIF(P_PEF_THGF!$A$9:$A$349,$A32)>=1,$A32,MAX(IF(P_PEF_THGF!$A$9:$A$349<$A32,P_PEF_THGF!$A$9:$A$349)))),IF(P_PEF_THGF!$B$9:$B$349=A$42,P_PEF_THGF!$A$9:$E$349,NoSpace),3,FALSE) -> 1.199 | B53: =VLOOKUP(IF($A32<=MIN(P_PEF_THGF!$A$9:$A$349),MIN(P_PEF_THGF!$A$9:$A$349),IF(COUNTIF(P_PEF_THGF!$A$9:$A$349,$A32)>=1,$A32,MAX(IF(P_PEF_THGF!$A$9:$A$349<$A32,P_PEF_THGF!$A$9:$A$349)))),IF(P_PEF_THGF!$B$9:$B$349=B$42,P_PEF_THGF!$A$9:$E$349,NoSpace),3,FALSE) -> 1.554 | C53: =VLOOKUP(IF($A32<=MIN(P_PEF_THGF!$A$9:$A$349),MIN(P_PEF_THGF!$A$9:$A$349),IF(COUNTIF(P_PEF_THGF!$A$9:$A$349,$A32)>=1,$A32,MAX(IF(P_PEF_THGF!$A$9:$A$349<$A32,P_PEF_THGF!$A$9:$A$349)))),IF(P_PEF_THGF!$B$9:$B$349=C$42,P_PEF_THGF!$A$9:$E$349,NoSpace),3,FALSE) -> 1.2937 | D53: =VLOOKUP(IF($A32<=MIN(P_PEF_THGF!$A$9:$A$349),MIN(P_PEF_THGF!$A$9:$A$349),IF(COUNTIF(P_PEF_THGF!$A$9:$A$349,$A32)>=1,$A32,MAX(IF(P_PEF_THGF!$A$9:$A$349<$A32,P_PEF_THGF!$A$9:$A$349)))),IF(P_PEF_THGF!$B$9:$B$349=D$42,P_PEF_THGF!$A$9:$E$349,NoSpace),3,FALSE) -> 0.55415 | E53: =VLOOKUP(IF($A32<=MIN(P_PEF_THGF!$A$9:$A$349),MIN(P_PEF_THGF!$A$9:$A$349),IF(COUNTIF(P_PEF_THGF!$A$9:$A$349,$A32)>=1,$A32,MAX(IF(P_PEF_THGF!$A$9:$A$349<$A32,P_PEF_THGF!$A$9:$A$349)))),IF(P_PEF_THGF!$B$9:$B$349=E$42,P_PEF_THGF!$A$9:$E$349,NoSpace),3,FALSE) -> 3.361
A54: =VLOOKUP(IF($A33<=MIN(P_PEF_THGF!$A$9:$A$299),MIN(P_PEF_THGF!$A$9:$A$299),IF(COUNTIF(P_PEF_THGF!$A$9:$A$299,$A33)>=1,$A33,MAX(IF(P_PEF_THGF!$A$9:$A$299<$A33,P_PEF_THGF!$A$9:$A$299)))),IF(P_PEF_THGF!$B$9:$B$299=A$42,P_PEF_THGF!$A$9:$E$299,NoSpace),3,FALSE) -> 1.199 | B54: =VLOOKUP(IF($A33<=MIN(P_PEF_THGF!$A$9:$A$299),MIN(P_PEF_THGF!$A$9:$A$299),IF(COUNTIF(P_PEF_THGF!$A$9:$A$299,$A33)>=1,$A33,MAX(IF(P_PEF_THGF!$A$9:$A$299<$A33,P_PEF_THGF!$A$9:$A$299)))),IF(P_PEF_THGF!$B$9:$B$299=B$42,P_PEF_THGF!$A$9:$E$299,NoSpace),3,FALSE) -> 1.554 | C54: =VLOOKUP(IF($A33<=MIN(P_PEF_THGF!$A$9:$A$299),MIN(P_PEF_THGF!$A$9:$A$299),IF(COUNTIF(P_PEF_THGF!$A$9:$A$299,$A33)>=1,$A33,MAX(IF(P_PEF_THGF!$A$9:$A$299<$A33,P_PEF_THGF!$A$9:$A$299)))),IF(P_PEF_THGF!$B$9:$B$299=C$42,P_PEF_THGF!$A$9:$E$299,NoSpace),3,FALSE) -> 1.2937 | D54: =VLOOKUP(IF($A33<=MIN(P_PEF_THGF!$A$9:$A$299),MIN(P_PEF_THGF!$A$9:$A$299),IF(COUNTIF(P_PEF_THGF!$A$9:$A$299,$A33)>=1,$A33,MAX(IF(P_PEF_THGF!$A$9:$A$299<$A33,P_PEF_THGF!$A$9:$A$299)))),IF(P_PEF_THGF!$B$9:$B$299=D$42,P_PEF_THGF!$A$9:$E$299,NoSpace),3,FALSE) -> 0.55415 | E54: =VLOOKUP(IF($A33<=MIN(P_PEF_THGF!$A$9:$A$299),MIN(P_PEF_THGF!$A$9:$A$299),IF(COUNTIF(P_PEF_THGF!$A$9:$A$299,$A33)>=1,$A33,MAX(IF(P_PEF_THGF!$A$9:$A$299<$A33,P_PEF_THGF!$A$9:$A$299)))),IF(P_PEF_THGF!$B$9:$B$299=E$42,P_PEF_THGF!$A$9:$E$299,NoSpace),3,FALSE) -> 3.361
A55: =VLOOKUP(IF($A34<=MIN(P_PEF_THGF!$A$9:$A$299),MIN(P_PEF_THGF!$A$9:$A$299),IF(COUNTIF(P_PEF_THGF!$A$9:$A$299,$A34)>=1,$A34,MAX(IF(P_PEF_THGF!$A$9:$A$299<$A34,P_PEF_THGF!$A$9:$A$299)))),IF(P_PEF_THGF!$B$9:$B$299=A$42,P_PEF_THGF!$A$9:$E$299,NoSpace),3,FALSE) -> 1.1948 | B55: =VLOOKUP(IF($A34<=MIN(P_PEF_THGF!$A$9:$A$299),MIN(P_PEF_THGF!$A$9:$A$299),IF(COUNTIF(P_PEF_THGF!$A$9:$A$299,$A34)>=1,$A34,MAX(IF(P_PEF_THGF!$A$9:$A$299<$A34,P_PEF_THGF!$A$9:$A$299)))),IF(P_PEF_THGF!$B$9:$B$299=B$42,P_PEF_THGF!$A$9:$E$299,NoSpace),3,FALSE) -> 1.359 | C55: =VLOOKUP(IF($A34<=MIN(P_PEF_THGF!$A$9:$A$299),MIN(P_PEF_THGF!$A$9:$A$299),IF(COUNTIF(P_PEF_THGF!$A$9:$A$299,$A34)>=1,$A34,MAX(IF(P_PEF_THGF!$A$9:$A$299<$A34,P_PEF_THGF!$A$9:$A$299)))),IF(P_PEF_THGF!$B$9:$B$299=C$42,P_PEF_THGF!$A$9:$E$299,NoSpace),3,FALSE) -> 1.2874 | D55: =VLOOKUP(IF($A34<=MIN(P_PEF_THGF!$A$9:$A$299),MIN(P_PEF_THGF!$A$9:$A$299),IF(COUNTIF(P_PEF_THGF!$A$9:$A$299,$A34)>=1,$A34,MAX(IF(P_PEF_THGF!$A$9:$A$299<$A34,P_PEF_THGF!$A$9:$A$299)))),IF(P_PEF_THGF!$B$9:$B$299=D$42,P_PEF_THGF!$A$9:$E$299,NoSpace),3,FALSE) -> 0.8976 | E55: =VLOOKUP(IF($A34<=MIN(P_PEF_THGF!$A$9:$A$299),MIN(P_PEF_THGF!$A$9:$A$299),IF(COUNTIF(P_PEF_THGF!$A$9:$A$299,$A34)>=1,$A34,MAX(IF(P_PEF_THGF!$A$9:$A$299<$A34,P_PEF_THGF!$A$9:$A$299)))),IF(P_PEF_THGF!$B$9:$B$299=E$42,P_PEF_THGF!$A$9:$E$299,NoSpace),3,FALSE) -> 3.361
A56: =VLOOKUP(IF($A35<=MIN(P_PEF_THGF!$A$9:$A$299),MIN(P_PEF_THGF!$A$9:$A$299),IF(COUNTIF(P_PEF_THGF!$A$9:$A$299,$A35)>=1,$A35,MAX(IF(P_PEF_THGF!$A$9:$A$299<$A35,P_PEF_THGF!$A$9:$A$299)))),IF(P_PEF_THGF!$B$9:$B$299=A$42,P_PEF_THGF!$A$9:$E$299,NoSpace),3,FALSE) -> 1.1948 | B56: =VLOOKUP(IF($A35<=MIN(P_PEF_THGF!$A$9:$A$299),MIN(P_PEF_THGF!$A$9:$A$299),IF(COUNTIF(P_PEF_THGF!$A$9:$A$299,$A35)>=1,$A35,MAX(IF(P_PEF_THGF!$A$9:$A$299<$A35,P_PEF_THGF!$A$9:$A$299)))),IF(P_PEF_THGF!$B$9:$B$299=B$42,P_PEF_THGF!$A$9:$E$299,NoSpace),3,FALSE) -> 1.359 | C56: =VLOOKUP(IF($A35<=MIN(P_PEF_THGF!$A$9:$A$299),MIN(P_PEF_THGF!$A$9:$A$299),IF(COUNTIF(P_PEF_THGF!$A$9:$A$299,$A35)>=1,$A35,MAX(IF(P_PEF_THGF!$A$9:$A$299<$A35,P_PEF_THGF!$A$9:$A$299)))),IF(P_PEF_THGF!$B$9:$B$299=C$42,P_PEF_THGF!$A$9:$E$299,NoSpace),3,FALSE) -> 1.2874 | D56: =VLOOKUP(IF($A35<=MIN(P_PEF_THGF!$A$9:$A$299),MIN(P_PEF_THGF!$A$9:$A$299),IF(COUNTIF(P_PEF_THGF!$A$9:$A$299,$A35)>=1,$A35,MAX(IF(P_PEF_THGF!$A$9:$A$299<$A35,P_PEF_THGF!$A$9:$A$299)))),IF(P_PEF_THGF!$B$9:$B$299=D$42,P_PEF_THGF!$A$9:$E$299,NoSpace),3,FALSE) -> 0.8976 | E56: =VLOOKUP(IF($A35<=MIN(P_PEF_THGF!$A$9:$A$299),MIN(P_PEF_THGF!$A$9:$A$299),IF(COUNTIF(P_PEF_THGF!$A$9:$A$299,$A35)>=1,$A35,MAX(IF(P_PEF_THGF!$A$9:$A$299<$A35,P_PEF_THGF!$A$9:$A$299)))),IF(P_PEF_THGF!$B$9:$B$299=E$42,P_PEF_THGF!$A$9:$E$299,NoSpace),3,FALSE) -> 3.361
A58: =C20 -> Coefficient d'émissions de gaz à effet de serre
A59: =P_PEF_THGF!$B$147 -> Énergie hydraulique | B59: =P_PEF_THGF!$B$145 -> Photovoltaïque | C59: =P_PEF_THGF!$B$146 -> Energie éolienne | D59: =P_PEF_THGF!$B$144 -> Centrale à énergie totale équipée alimentée au biogaz et à l'électricité | E59: =P_PEF_THGF!$B$148 -> Centrale de chauffage géothermique à électricité
A60: =VLOOKUP(IF($A22<=MIN(P_PEF_THGF!$A$107:$A$299),MIN(P_PEF_THGF!$A$107:$A$299),IF(COUNTIF(P_PEF_THGF!$A$107:$A$299,$A22)>=1,$A22,MAX(IF(P_PEF_THGF!$A$107:$A$299<$A22,P_PEF_THGF!$A$107:$A$299)))),IF(P_PEF_THGF!$B$107:$B$299=A$59,P_PEF_THGF!$A$107:$E$299,NoSpace),5,FALSE) -> 0 | B60: =VLOOKUP(IF($A22<=MIN(P_PEF_THGF!$A$107:$A$299),MIN(P_PEF_THGF!$A$107:$A$299),IF(COUNTIF(P_PEF_THGF!$A$107:$A$299,$A22)>=1,$A22,MAX(IF(P_PEF_THGF!$A$107:$A$299<$A22,P_PEF_THGF!$A$107:$A$299)))),IF(P_PEF_THGF!$B$107:$B$299=B$59,P_PEF_THGF!$A$107:$E$299,NoSpace),5,FALSE) -> 0.108 | C60: =VLOOKUP(IF($A22<=MIN(P_PEF_THGF!$A$107:$A$299),MIN(P_PEF_THGF!$A$107:$A$299),IF(COUNTIF(P_PEF_THGF!$A$107:$A$299,$A22)>=1,$A22,MAX(IF(P_PEF_THGF!$A$107:$A$299<$A22,P_PEF_THGF!$A$107:$A$299)))),IF(P_PEF_THGF!$B$107:$B$299=C$59,P_PEF_THGF!$A$107:$E$299,NoSpace),5,FALSE) -> 0.036 | D60: =VLOOKUP(IF($A22<=MIN(P_PEF_THGF!$A$107:$A$299),MIN(P_PEF_THGF!$A$107:$A$299),IF(COUNTIF(P_PEF_THGF!$A$107:$A$299,$A22)>=1,$A22,MAX(IF(P_PEF_THGF!$A$107:$A$299<$A22,P_PEF_THGF!$A$107:$A$299)))),IF(P_PEF_THGF!$B$107:$B$299=D$59,P_PEF_THGF!$A$107:$E$299,NoSpace),5,FALSE) -> 0.18 | E60: =VLOOKUP(IF($A22<=MIN(P_PEF_THGF!$A$107:$A$299),MIN(P_PEF_THGF!$A$107:$A$299),IF(COUNTIF(P_PEF_THGF!$A$107:$A$299,$A22)>=1,$A22,MAX(IF(P_PEF_THGF!$A$107:$A$299<$A22,P_PEF_THGF!$A$107:$A$299)))),IF(P_PEF_THGF!$B$107:$B$299=E$59,P_PEF_THGF!$A$107:$E$299,NoSpace),5,FALSE) -> 0.036
A61: =VLOOKUP(IF($A23<=MIN(P_PEF_THGF!$A$107:$A$299),MIN(P_PEF_THGF!$A$107:$A$299),IF(COUNTIF(P_PEF_THGF!$A$107:$A$299,$A23)>=1,$A23,MAX(IF(P_PEF_THGF!$A$107:$A$299<$A23,P_PEF_THGF!$A$107:$A$299)))),IF(P_PEF_THGF!$B$107:$B$299=A$59,P_PEF_THGF!$A$107:$E$299,NoSpace),5,FALSE) -> 0 | B61: =VLOOKUP(IF($A23<=MIN(P_PEF_THGF!$A$107:$A$299),MIN(P_PEF_THGF!$A$107:$A$299),IF(COUNTIF(P_PEF_THGF!$A$107:$A$299,$A23)>=1,$A23,MAX(IF(P_PEF_THGF!$A$107:$A$299<$A23,P_PEF_THGF!$A$107:$A$299)))),IF(P_PEF_THGF!$B$107:$B$299=B$59,P_PEF_THGF!$A$107:$E$299,NoSpace),5,FALSE) -> 0.108 | C61: =VLOOKUP(IF($A23<=MIN(P_PEF_THGF!$A$107:$A$299),MIN(P_PEF_THGF!$A$107:$A$299),IF(COUNTIF(P_PEF_THGF!$A$107:$A$299,$A23)>=1,$A23,MAX(IF(P_PEF_THGF!$A$107:$A$299<$A23,P_PEF_THGF!$A$107:$A$299)))),IF(P_PEF_THGF!$B$107:$B$299=C$59,P_PEF_THGF!$A$107:$E$299,NoSpace),5,FALSE) -> 0.036 | D61: =VLOOKUP(IF($A23<=MIN(P_PEF_THGF!$A$107:$A$299),MIN(P_PEF_THGF!$A$107:$A$299),IF(COUNTIF(P_PEF_THGF!$A$107:$A$299,$A23)>=1,$A23,MAX(IF(P_PEF_THGF!$A$107:$A$299<$A23,P_PEF_THGF!$A$107:$A$299)))),IF(P_PEF_THGF!$B$107:$B$299=D$59,P_PEF_THGF!$A$107:$E$299,NoSpace),5,FALSE) -> 0.18 | E61: =VLOOKUP(IF($A23<=MIN(P_PEF_THGF!$A$107:$A$299),MIN(P_PEF_THGF!$A$107:$A$299),IF(COUNTIF(P_PEF_THGF!$A$107:$A$299,$A23)>=1,$A23,MAX(IF(P_PEF_THGF!$A$107:$A$299<$A23,P_PEF_THGF!$A$107:$A$299)))),IF(P_PEF_THGF!$B$107:$B$299=E$59,P_PEF_THGF!$A$107:$E$299,NoSpace),5,FALSE) -> 0.036
A62: =VLOOKUP(IF($A24<=MIN(P_PEF_THGF!$A$107:$A$299),MIN(P_PEF_THGF!$A$107:$A$299),IF(COUNTIF(P_PEF_THGF!$A$107:$A$299,$A24)>=1,$A24,MAX(IF(P_PEF_THGF!$A$107:$A$299<$A24,P_PEF_THGF!$A$107:$A$299)))),IF(P_PEF_THGF!$B$107:$B$299=A$59,P_PEF_THGF!$A$107:$E$299,NoSpace),5,FALSE) -> 0 | B62: =VLOOKUP(IF($A24<=MIN(P_PEF_THGF!$A$107:$A$299),MIN(P_PEF_THGF!$A$107:$A$299),IF(COUNTIF(P_PEF_THGF!$A$107:$A$299,$A24)>=1,$A24,MAX(IF(P_PEF_THGF!$A$107:$A$299<$A24,P_PEF_THGF!$A$107:$A$299)))),IF(P_PEF_THGF!$B$107:$B$299=B$59,P_PEF_THGF!$A$107:$E$299,NoSpace),5,FALSE) -> 0.108 | C62: =VLOOKUP(IF($A24<=MIN(P_PEF_THGF!$A$107:$A$299),MIN(P_PEF_THGF!$A$107:$A$299),IF(COUNTIF(P_PEF_THGF!$A$107:$A$299,$A24)>=1,$A24,MAX(IF(P_PEF_THGF!$A$107:$A$299<$A24,P_PEF_THGF!$A$107:$A$299)))),IF(P_PEF_THGF!$B$107:$B$299=C$59,P_PEF_THGF!$A$107:$E$299,NoSpace),5,FALSE) -> 0.036 | D62: =VLOOKUP(IF($A24<=MIN(P_PEF_THGF!$A$107:$A$299),MIN(P_PEF_THGF!$A$107:$A$299),IF(COUNTIF(P_PEF_THGF!$A$107:$A$299,$A24)>=1,$A24,MAX(IF(P_PEF_THGF!$A$107:$A$299<$A24,P_PEF_THGF!$A$107:$A$299)))),IF(P_PEF_THGF!$B$107:$B$299=D$59,P_PEF_THGF!$A$107:$E$299,NoSpace),5,FALSE) -> 0.18 | E62: =VLOOKUP(IF($A24<=MIN(P_PEF_THGF!$A$107:$A$299),MIN(P_PEF_THGF!$A$107:$A$299),IF(COUNTIF(P_PEF_THGF!$A$107:$A$299,$A24)>=1,$A24,MAX(IF(P_PEF_THGF!$A$107:$A$299<$A24,P_PEF_THGF!$A$107:$A$299)))),IF(P_PEF_THGF!$B$107:$B$299=E$59,P_PEF_THGF!$A$107:$E$299,NoSpace),5,FALSE) -> 0.036
A63: =VLOOKUP(IF($A25<=MIN(P_PEF_THGF!$A$107:$A$299),MIN(P_PEF_THGF!$A$107:$A$299),IF(COUNTIF(P_PEF_THGF!$A$107:$A$299,$A25)>=1,$A25,MAX(IF(P_PEF_THGF!$A$107:$A$299<$A25,P_PEF_THGF!$A$107:$A$299)))),IF(P_PEF_THGF!$B$107:$B$299=A$59,P_PEF_THGF!$A$107:$E$299,NoSpace),5,FALSE) -> 0.0144 | B63: =VLOOKUP(IF($A25<=MIN(P_PEF_THGF!$A$107:$A$299),MIN(P_PEF_THGF!$A$107:$A$299),IF(COUNTIF(P_PEF_THGF!$A$107:$A$299,$A25)>=1,$A25,MAX(IF(P_PEF_THGF!$A$107:$A$299<$A25,P_PEF_THGF!$A$107:$A$299)))),IF(P_PEF_THGF!$B$107:$B$299=B$59,P_PEF_THGF!$A$107:$E$299,NoSpace),5,FALSE) -> 0.108 | C63: =VLOOKUP(IF($A25<=MIN(P_PEF_THGF!$A$107:$A$299),MIN(P_PEF_THGF!$A$107:$A$299),IF(COUNTIF(P_PEF_THGF!$A$107:$A$299,$A25)>=1,$A25,MAX(IF(P_PEF_THGF!$A$107:$A$299<$A25,P_PEF_THGF!$A$107:$A$299)))),IF(P_PEF_THGF!$B$107:$B$299=C$59,P_PEF_THGF!$A$107:$E$299,NoSpace),5,FALSE) -> 0.036 | D63: =VLOOKUP(IF($A25<=MIN(P_PEF_THGF!$A$107:$A$299),MIN(P_PEF_THGF!$A$107:$A$299),IF(COUNTIF(P_PEF_THGF!$A$107:$A$299,$A25)>=1,$A25,MAX(IF(P_PEF_THGF!$A$107:$A$299<$A25,P_PEF_THGF!$A$107:$A$299)))),IF(P_PEF_THGF!$B$107:$B$299=D$59,P_PEF_THGF!$A$107:$E$299,NoSpace),5,FALSE) -> 0.36 | E63: =VLOOKUP(IF($A25<=MIN(P_PEF_THGF!$A$107:$A$299),MIN(P_PEF_THGF!$A$107:$A$299),IF(COUNTIF(P_PEF_THGF!$A$107:$A$299,$A25)>=1,$A25,MAX(IF(P_PEF_THGF!$A$107:$A$299<$A25,P_PEF_THGF!$A$107:$A$299)))),IF(P_PEF_THGF!$B$107:$B$299=E$59,P_PEF_THGF!$A$107:$E$299,NoSpace),5,FALSE) -> 0.036
A64: =VLOOKUP(IF($A26<=MIN(P_PEF_THGF!$A$107:$A$299),MIN(P_PEF_THGF!$A$107:$A$299),IF(COUNTIF(P_PEF_THGF!$A$107:$A$299,$A26)>=1,$A26,MAX(IF(P_PEF_THGF!$A$107:$A$299<$A26,P_PEF_THGF!$A$107:$A$299)))),IF(P_PEF_THGF!$B$107:$B$299=A$59,P_PEF_THGF!$A$107:$E$299,NoSpace),5,FALSE) -> 0.0144 | B64: =VLOOKUP(IF($A26<=MIN(P_PEF_THGF!$A$107:$A$299),MIN(P_PEF_THGF!$A$107:$A$299),IF(COUNTIF(P_PEF_THGF!$A$107:$A$299,$A26)>=1,$A26,MAX(IF(P_PEF_THGF!$A$107:$A$299<$A26,P_PEF_THGF!$A$107:$A$299)))),IF(P_PEF_THGF!$B$107:$B$299=B$59,P_PEF_THGF!$A$107:$E$299,NoSpace),5,FALSE) -> 0.108 | C64: =VLOOKUP(IF($A26<=MIN(P_PEF_THGF!$A$107:$A$299),MIN(P_PEF_THGF!$A$107:$A$299),IF(COUNTIF(P_PEF_THGF!$A$107:$A$299,$A26)>=1,$A26,MAX(IF(P_PEF_THGF!$A$107:$A$299<$A26,P_PEF_THGF!$A$107:$A$299)))),IF(P_PEF_THGF!$B$107:$B$299=C$59,P_PEF_THGF!$A$107:$E$299,NoSpace),5,FALSE) -> 0.036 | D64: =VLOOKUP(IF($A26<=MIN(P_PEF_THGF!$A$107:$A$299),MIN(P_PEF_THGF!$A$107:$A$299),IF(COUNTIF(P_PEF_THGF!$A$107:$A$299,$A26)>=1,$A26,MAX(IF(P_PEF_THGF!$A$107:$A$299<$A26,P_PEF_THGF!$A$107:$A$299)))),IF(P_PEF_THGF!$B$107:$B$299=D$59,P_PEF_THGF!$A$107:$E$299,NoSpace),5,FALSE) -> 0.36 | E64: =VLOOKUP(IF($A26<=MIN(P_PEF_THGF!$A$107:$A$299),MIN(P_PEF_THGF!$A$107:$A$299),IF(COUNTIF(P_PEF_THGF!$A$107:$A$299,$A26)>=1,$A26,MAX(IF(P_PEF_THGF!$A$107:$A$299<$A26,P_PEF_THGF!$A$107:$A$299)))),IF(P_PEF_THGF!$B$107:$B$299=E$59,P_PEF_THGF!$A$107:$E$299,NoSpace),5,FALSE) -> 0.036
A65: =VLOOKUP(IF($A27<=MIN(P_PEF_THGF!$A$107:$A$299),MIN(P_PEF_THGF!$A$107:$A$299),IF(COUNTIF(P_PEF_THGF!$A$107:$A$299,$A27)>=1,$A27,MAX(IF(P_PEF_THGF!$A$107:$A$299<$A27,P_PEF_THGF!$A$107:$A$299)))),IF(P_PEF_THGF!$B$107:$B$299=A$59,P_PEF_THGF!$A$107:$E$299,NoSpace),5,FALSE) -> 0.0126 | B65: =VLOOKUP(IF($A27<=MIN(P_PEF_THGF!$A$107:$A$299),MIN(P_PEF_THGF!$A$107:$A$299),IF(COUNTIF(P_PEF_THGF!$A$107:$A$299,$A27)>=1,$A27,MAX(IF(P_PEF_THGF!$A$107:$A$299<$A27,P_PEF_THGF!$A$107:$A$299)))),IF(P_PEF_THGF!$B$107:$B$299=B$59,P_PEF_THGF!$A$107:$E$299,NoSpace),5,FALSE) -> 0.09504 | C65: =VLOOKUP(IF($A27<=MIN(P_PEF_THGF!$A$107:$A$299),MIN(P_PEF_THGF!$A$107:$A$299),IF(COUNTIF(P_PEF_THGF!$A$107:$A$299,$A27)>=1,$A27,MAX(IF(P_PEF_THGF!$A$107:$A$299<$A27,P_PEF_THGF!$A$107:$A$299)))),IF(P_PEF_THGF!$B$107:$B$299=C$59,P_PEF_THGF!$A$107:$E$299,NoSpace),5,FALSE) -> 0.026388 | D65: =VLOOKUP(IF($A27<=MIN(P_PEF_THGF!$A$107:$A$299),MIN(P_PEF_THGF!$A$107:$A$299),IF(COUNTIF(P_PEF_THGF!$A$107:$A$299,$A27)>=1,$A27,MAX(IF(P_PEF_THGF!$A$107:$A$299<$A27,P_PEF_THGF!$A$107:$A$299)))),IF(P_PEF_THGF!$B$107:$B$299=D$59,P_PEF_THGF!$A$107:$E$299,NoSpace),5,FALSE) -> 0.4104 | E65: =VLOOKUP(IF($A27<=MIN(P_PEF_THGF!$A$107:$A$299),MIN(P_PEF_THGF!$A$107:$A$299),IF(COUNTIF(P_PEF_THGF!$A$107:$A$299,$A27)>=1,$A27,MAX(IF(P_PEF_THGF!$A$107:$A$299<$A27,P_PEF_THGF!$A$107:$A$299)))),IF(P_PEF_THGF!$B$107:$B$299=E$59,P_PEF_THGF!$A$107:$E$299,NoSpace),5,FALSE) -> 0.030888
A66: =VLOOKUP(IF($A28<=MIN(P_PEF_THGF!$A$107:$A$299),MIN(P_PEF_THGF!$A$107:$A$299),IF(COUNTIF(P_PEF_THGF!$A$107:$A$299,$A28)>=1,$A28,MAX(IF(P_PEF_THGF!$A$107:$A$299<$A28,P_PEF_THGF!$A$107:$A$299)))),IF(P_PEF_THGF!$B$107:$B$299=A$59,P_PEF_THGF!$A$107:$E$299,NoSpace),5,FALSE) -> 0.0126 | B66: =VLOOKUP(IF($A28<=MIN(P_PEF_THGF!$A$107:$A$299),MIN(P_PEF_THGF!$A$107:$A$299),IF(COUNTIF(P_PEF_THGF!$A$107:$A$299,$A28)>=1,$A28,MAX(IF(P_PEF_THGF!$A$107:$A$299<$A28,P_PEF_THGF!$A$107:$A$299)))),IF(P_PEF_THGF!$B$107:$B$299=B$59,P_PEF_THGF!$A$107:$E$299,NoSpace),5,FALSE) -> 0.09504 | C66: =VLOOKUP(IF($A28<=MIN(P_PEF_THGF!$A$107:$A$299),MIN(P_PEF_THGF!$A$107:$A$299),IF(COUNTIF(P_PEF_THGF!$A$107:$A$299,$A28)>=1,$A28,MAX(IF(P_PEF_THGF!$A$107:$A$299<$A28,P_PEF_THGF!$A$107:$A$299)))),IF(P_PEF_THGF!$B$107:$B$299=C$59,P_PEF_THGF!$A$107:$E$299,NoSpace),5,FALSE) -> 0.026388 | D66: =VLOOKUP(IF($A28<=MIN(P_PEF_THGF!$A$107:$A$299),MIN(P_PEF_THGF!$A$107:$A$299),IF(COUNTIF(P_PEF_THGF!$A$107:$A$299,$A28)>=1,$A28,MAX(IF(P_PEF_THGF!$A$107:$A$299<$A28,P_PEF_THGF!$A$107:$A$299)))),IF(P_PEF_THGF!$B$107:$B$299=D$59,P_PEF_THGF!$A$107:$E$299,NoSpace),5,FALSE) -> 0.4104 | E66: =VLOOKUP(IF($A28<=MIN(P_PEF_THGF!$A$107:$A$299),MIN(P_PEF_THGF!$A$107:$A$299),IF(COUNTIF(P_PEF_THGF!$A$107:$A$299,$A28)>=1,$A28,MAX(IF(P_PEF_THGF!$A$107:$A$299<$A28,P_PEF_THGF!$A$107:$A$299)))),IF(P_PEF_THGF!$B$107:$B$299=E$59,P_PEF_THGF!$A$107:$E$299,NoSpace),5,FALSE) -> 0.030888
A67: =VLOOKUP(IF($A29<=MIN(P_PEF_THGF!$A$107:$A$299),MIN(P_PEF_THGF!$A$107:$A$299),IF(COUNTIF(P_PEF_THGF!$A$107:$A$299,$A29)>=1,$A29,MAX(IF(P_PEF_THGF!$A$107:$A$299<$A29,P_PEF_THGF!$A$107:$A$299)))),IF(P_PEF_THGF!$B$107:$B$299=A$59,P_PEF_THGF!$A$107:$E$299,NoSpace),5,FALSE) -> 0.0108 | B67: =VLOOKUP(IF($A29<=MIN(P_PEF_THGF!$A$107:$A$299),MIN(P_PEF_THGF!$A$107:$A$299),IF(COUNTIF(P_PEF_THGF!$A$107:$A$299,$A29)>=1,$A29,MAX(IF(P_PEF_THGF!$A$107:$A$299<$A29,P_PEF_THGF!$A$107:$A$299)))),IF(P_PEF_THGF!$B$107:$B$299=B$59,P_PEF_THGF!$A$107:$E$299,NoSpace),5,FALSE) -> 0.0972 | C67: =VLOOKUP(IF($A29<=MIN(P_PEF_THGF!$A$107:$A$299),MIN(P_PEF_THGF!$A$107:$A$299),IF(COUNTIF(P_PEF_THGF!$A$107:$A$299,$A29)>=1,$A29,MAX(IF(P_PEF_THGF!$A$107:$A$299<$A29,P_PEF_THGF!$A$107:$A$299)))),IF(P_PEF_THGF!$B$107:$B$299=C$59,P_PEF_THGF!$A$107:$E$299,NoSpace),5,FALSE) -> 0.0252 | D67: =VLOOKUP(IF($A29<=MIN(P_PEF_THGF!$A$107:$A$299),MIN(P_PEF_THGF!$A$107:$A$299),IF(COUNTIF(P_PEF_THGF!$A$107:$A$299,$A29)>=1,$A29,MAX(IF(P_PEF_THGF!$A$107:$A$299<$A29,P_PEF_THGF!$A$107:$A$299)))),IF(P_PEF_THGF!$B$107:$B$299=D$59,P_PEF_THGF!$A$107:$E$299,NoSpace),5,FALSE) -> 0.4032 | E67: =VLOOKUP(IF($A29<=MIN(P_PEF_THGF!$A$107:$A$299),MIN(P_PEF_THGF!$A$107:$A$299),IF(COUNTIF(P_PEF_THGF!$A$107:$A$299,$A29)>=1,$A29,MAX(IF(P_PEF_THGF!$A$107:$A$299<$A29,P_PEF_THGF!$A$107:$A$299)))),IF(P_PEF_THGF!$B$107:$B$299=E$59,P_PEF_THGF!$A$107:$E$299,NoSpace),5,FALSE) -> 0.0324
A68: =VLOOKUP(IF($A30<=MIN(P_PEF_THGF!$A$107:$A$299),MIN(P_PEF_THGF!$A$107:$A$299),IF(COUNTIF(P_PEF_THGF!$A$107:$A$299,$A30)>=1,$A30,MAX(IF(P_PEF_THGF!$A$107:$A$299<$A30,P_PEF_THGF!$A$107:$A$299)))),IF(P_PEF_THGF!$B$107:$B$299=A$59,P_PEF_THGF!$A$107:$E$299,NoSpace),5,FALSE) -> 0.0108 | B68: =VLOOKUP(IF($A30<=MIN(P_PEF_THGF!$A$107:$A$299),MIN(P_PEF_THGF!$A$107:$A$299),IF(COUNTIF(P_PEF_THGF!$A$107:$A$299,$A30)>=1,$A30,MAX(IF(P_PEF_THGF!$A$107:$A$299<$A30,P_PEF_THGF!$A$107:$A$299)))),IF(P_PEF_THGF!$B$107:$B$299=B$59,P_PEF_THGF!$A$107:$E$299,NoSpace),5,FALSE) -> 0.0972 | C68: =VLOOKUP(IF($A30<=MIN(P_PEF_THGF!$A$107:$A$299),MIN(P_PEF_THGF!$A$107:$A$299),IF(COUNTIF(P_PEF_THGF!$A$107:$A$299,$A30)>=1,$A30,MAX(IF(P_PEF_THGF!$A$107:$A$299<$A30,P_PEF_THGF!$A$107:$A$299)))),IF(P_PEF_THGF!$B$107:$B$299=C$59,P_PEF_THGF!$A$107:$E$299,NoSpace),5,FALSE) -> 0.0252 | D68: =VLOOKUP(IF($A30<=MIN(P_PEF_THGF!$A$107:$A$299),MIN(P_PEF_THGF!$A$107:$A$299),IF(COUNTIF(P_PEF_THGF!$A$107:$A$299,$A30)>=1,$A30,MAX(IF(P_PEF_THGF!$A$107:$A$299<$A30,P_PEF_THGF!$A$107:$A$299)))),IF(P_PEF_THGF!$B$107:$B$299=D$59,P_PEF_THGF!$A$107:$E$299,NoSpace),5,FALSE) -> 0.4032 | E68: =VLOOKUP(IF($A30<=MIN(P_PEF_THGF!$A$107:$A$299),MIN(P_PEF_THGF!$A$107:$A$299),IF(COUNTIF(P_PEF_THGF!$A$107:$A$299,$A30)>=1,$A30,MAX(IF(P_PEF_THGF!$A$107:$A$299<$A30,P_PEF_THGF!$A$107:$A$299)))),IF(P_PEF_THGF!$B$107:$B$299=E$59,P_PEF_THGF!$A$107:$E$299,NoSpace),5,FALSE) -> 0.0324
A69: =VLOOKUP(IF($A31<=MIN(P_PEF_THGF!$A$9:$A$299),MIN(P_PEF_THGF!$A$9:$A$299),IF(COUNTIF(P_PEF_THGF!$A$9:$A$299,$A31)>=1,$A31,MAX(IF(P_PEF_THGF!$A$9:$A$299<$A31,P_PEF_THGF!$A$9:$A$299)))),IF(P_PEF_THGF!$B$9:$B$299=A$59,P_PEF_THGF!$A$9:$E$299,NoSpace),5,FALSE) -> 0.01224 | B69: =VLOOKUP(IF($A31<=MIN(P_PEF_THGF!$A$9:$A$299),MIN(P_PEF_THGF!$A$9:$A$299),IF(COUNTIF(P_PEF_THGF!$A$9:$A$299,$A31)>=1,$A31,MAX(IF(P_PEF_THGF!$A$9:$A$299<$A31,P_PEF_THGF!$A$9:$A$299)))),IF(P_PEF_THGF!$B$9:$B$299=B$59,P_PEF_THGF!$A$9:$E$299,NoSpace),5,FALSE) -> 0.09648 | C69: =VLOOKUP(IF($A31<=MIN(P_PEF_THGF!$A$9:$A$299),MIN(P_PEF_THGF!$A$9:$A$299),IF(COUNTIF(P_PEF_THGF!$A$9:$A$299,$A31)>=1,$A31,MAX(IF(P_PEF_THGF!$A$9:$A$299<$A31,P_PEF_THGF!$A$9:$A$299)))),IF(P_PEF_THGF!$B$9:$B$299=C$59,P_PEF_THGF!$A$9:$E$299,NoSpace),5,FALSE) -> 0.026028 | D69: =VLOOKUP(IF($A31<=MIN(P_PEF_THGF!$A$9:$A$299),MIN(P_PEF_THGF!$A$9:$A$299),IF(COUNTIF(P_PEF_THGF!$A$9:$A$299,$A31)>=1,$A31,MAX(IF(P_PEF_THGF!$A$9:$A$299<$A31,P_PEF_THGF!$A$9:$A$299)))),IF(P_PEF_THGF!$B$9:$B$299=D$59,P_PEF_THGF!$A$9:$E$299,NoSpace),5,FALSE) -> 0.29034 | E69: =VLOOKUP(IF($A31<=MIN(P_PEF_THGF!$A$9:$A$299),MIN(P_PEF_THGF!$A$9:$A$299),IF(COUNTIF(P_PEF_THGF!$A$9:$A$299,$A31)>=1,$A31,MAX(IF(P_PEF_THGF!$A$9:$A$299<$A31,P_PEF_THGF!$A$9:$A$299)))),IF(P_PEF_THGF!$B$9:$B$299=E$59,P_PEF_THGF!$A$9:$E$299,NoSpace),5,FALSE) -> 0.030888
A70: =VLOOKUP(IF($A32<=MIN(P_PEF_THGF!$A$9:$A$299),MIN(P_PEF_THGF!$A$9:$A$299),IF(COUNTIF(P_PEF_THGF!$A$9:$A$299,$A32)>=1,$A32,MAX(IF(P_PEF_THGF!$A$9:$A$299<$A32,P_PEF_THGF!$A$9:$A$299)))),IF(P_PEF_THGF!$B$9:$B$299=A$59,P_PEF_THGF!$A$9:$E$299,NoSpace),5,FALSE) -> 0.01224 | B70: =VLOOKUP(IF($A32<=MIN(P_PEF_THGF!$A$9:$A$299),MIN(P_PEF_THGF!$A$9:$A$299),IF(COUNTIF(P_PEF_THGF!$A$9:$A$299,$A32)>=1,$A32,MAX(IF(P_PEF_THGF!$A$9:$A$299<$A32,P_PEF_THGF!$A$9:$A$299)))),IF(P_PEF_THGF!$B$9:$B$299=B$59,P_PEF_THGF!$A$9:$E$299,NoSpace),5,FALSE) -> 0.09648 | C70: =VLOOKUP(IF($A32<=MIN(P_PEF_THGF!$A$9:$A$299),MIN(P_PEF_THGF!$A$9:$A$299),IF(COUNTIF(P_PEF_THGF!$A$9:$A$299,$A32)>=1,$A32,MAX(IF(P_PEF_THGF!$A$9:$A$299<$A32,P_PEF_THGF!$A$9:$A$299)))),IF(P_PEF_THGF!$B$9:$B$299=C$59,P_PEF_THGF!$A$9:$E$299,NoSpace),5,FALSE) -> 0.026028 | D70: =VLOOKUP(IF($A32<=MIN(P_PEF_THGF!$A$9:$A$299),MIN(P_PEF_THGF!$A$9:$A$299),IF(COUNTIF(P_PEF_THGF!$A$9:$A$299,$A32)>=1,$A32,MAX(IF(P_PEF_THGF!$A$9:$A$299<$A32,P_PEF_THGF!$A$9:$A$299)))),IF(P_PEF_THGF!$B$9:$B$299=D$59,P_PEF_THGF!$A$9:$E$299,NoSpace),5,FALSE) -> 0.29034 | E70: =VLOOKUP(IF($A32<=MIN(P_PEF_THGF!$A$9:$A$299),MIN(P_PEF_THGF!$A$9:$A$299),IF(COUNTIF(P_PEF_THGF!$A$9:$A$299,$A32)>=1,$A32,MAX(IF(P_PEF_THGF!$A$9:$A$299<$A32,P_PEF_THGF!$A$9:$A$299)))),IF(P_PEF_THGF!$B$9:$B$299=E$59,P_PEF_THGF!$A$9:$E$299,NoSpace),5,FALSE) -> 0.030888
A71: =VLOOKUP(IF($A33<=MIN(P_PEF_THGF!$A$9:$A$299),MIN(P_PEF_THGF!$A$9:$A$299),IF(COUNTIF(P_PEF_THGF!$A$9:$A$299,$A33)>=1,$A33,MAX(IF(P_PEF_THGF!$A$9:$A$299<$A33,P_PEF_THGF!$A$9:$A$299)))),IF(P_PEF_THGF!$B$9:$B$299=A$59,P_PEF_THGF!$A$9:$E$299,NoSpace),5,FALSE) -> 0.01224 | B71: =VLOOKUP(IF($A33<=MIN(P_PEF_THGF!$A$9:$A$299),MIN(P_PEF_THGF!$A$9:$A$299),IF(COUNTIF(P_PEF_THGF!$A$9:$A$299,$A33)>=1,$A33,MAX(IF(P_PEF_THGF!$A$9:$A$299<$A33,P_PEF_THGF!$A$9:$A$299)))),IF(P_PEF_THGF!$B$9:$B$299=B$59,P_PEF_THGF!$A$9:$E$299,NoSpace),5,FALSE) -> 0.09648 | C71: =VLOOKUP(IF($A33<=MIN(P_PEF_THGF!$A$9:$A$299),MIN(P_PEF_THGF!$A$9:$A$299),IF(COUNTIF(P_PEF_THGF!$A$9:$A$299,$A33)>=1,$A33,MAX(IF(P_PEF_THGF!$A$9:$A$299<$A33,P_PEF_THGF!$A$9:$A$299)))),IF(P_PEF_THGF!$B$9:$B$299=C$59,P_PEF_THGF!$A$9:$E$299,NoSpace),5,FALSE) -> 0.026028 | D71: =VLOOKUP(IF($A33<=MIN(P_PEF_THGF!$A$9:$A$299),MIN(P_PEF_THGF!$A$9:$A$299),IF(COUNTIF(P_PEF_THGF!$A$9:$A$299,$A33)>=1,$A33,MAX(IF(P_PEF_THGF!$A$9:$A$299<$A33,P_PEF_THGF!$A$9:$A$299)))),IF(P_PEF_THGF!$B$9:$B$299=D$59,P_PEF_THGF!$A$9:$E$299,NoSpace),5,FALSE) -> 0.29034 | E71: =VLOOKUP(IF($A33<=MIN(P_PEF_THGF!$A$9:$A$299),MIN(P_PEF_THGF!$A$9:$A$299),IF(COUNTIF(P_PEF_THGF!$A$9:$A$299,$A33)>=1,$A33,MAX(IF(P_PEF_THGF!$A$9:$A$299<$A33,P_PEF_THGF!$A$9:$A$299)))),IF(P_PEF_THGF!$B$9:$B$299=E$59,P_PEF_THGF!$A$9:$E$299,NoSpace),5,FALSE) -> 0.030888
A72: =VLOOKUP(IF($A34<=MIN(P_PEF_THGF!$A$9:$A$299),MIN(P_PEF_THGF!$A$9:$A$299),IF(COUNTIF(P_PEF_THGF!$A$9:$A$299,$A34)>=1,$A34,MAX(IF(P_PEF_THGF!$A$9:$A$299<$A34,P_PEF_THGF!$A$9:$A$299)))),IF(P_PEF_THGF!$B$9:$B$299=A$59,P_PEF_THGF!$A$9:$E$299,NoSpace),5,FALSE) -> 0.0124 | B72: =VLOOKUP(IF($A34<=MIN(P_PEF_THGF!$A$9:$A$299),MIN(P_PEF_THGF!$A$9:$A$299),IF(COUNTIF(P_PEF_THGF!$A$9:$A$299,$A34)>=1,$A34,MAX(IF(P_PEF_THGF!$A$9:$A$299<$A34,P_PEF_THGF!$A$9:$A$299)))),IF(P_PEF_THGF!$B$9:$B$299=B$59,P_PEF_THGF!$A$9:$E$299,NoSpace),5,FALSE) -> 0.0476 | C72: =VLOOKUP(IF($A34<=MIN(P_PEF_THGF!$A$9:$A$299),MIN(P_PEF_THGF!$A$9:$A$299),IF(COUNTIF(P_PEF_THGF!$A$9:$A$299,$A34)>=1,$A34,MAX(IF(P_PEF_THGF!$A$9:$A$299<$A34,P_PEF_THGF!$A$9:$A$299)))),IF(P_PEF_THGF!$B$9:$B$299=C$59,P_PEF_THGF!$A$9:$E$299,NoSpace),5,FALSE) -> 0.0284 | D72: =VLOOKUP(IF($A34<=MIN(P_PEF_THGF!$A$9:$A$299),MIN(P_PEF_THGF!$A$9:$A$299),IF(COUNTIF(P_PEF_THGF!$A$9:$A$299,$A34)>=1,$A34,MAX(IF(P_PEF_THGF!$A$9:$A$299<$A34,P_PEF_THGF!$A$9:$A$299)))),IF(P_PEF_THGF!$B$9:$B$299=D$59,P_PEF_THGF!$A$9:$E$299,NoSpace),5,FALSE) -> 0.364 | E72: =VLOOKUP(IF($A34<=MIN(P_PEF_THGF!$A$9:$A$299),MIN(P_PEF_THGF!$A$9:$A$299),IF(COUNTIF(P_PEF_THGF!$A$9:$A$299,$A34)>=1,$A34,MAX(IF(P_PEF_THGF!$A$9:$A$299<$A34,P_PEF_THGF!$A$9:$A$299)))),IF(P_PEF_THGF!$B$9:$B$299=E$59,P_PEF_THGF!$A$9:$E$299,NoSpace),5,FALSE) -> 0.0309
A73: =VLOOKUP(IF($A35<=MIN(P_PEF_THGF!$A$9:$A$299),MIN(P_PEF_THGF!$A$9:$A$299),IF(COUNTIF(P_PEF_THGF!$A$9:$A$299,$A35)>=1,$A35,MAX(IF(P_PEF_THGF!$A$9:$A$299<$A35,P_PEF_THGF!$A$9:$A$299)))),IF(P_PEF_THGF!$B$9:$B$299=A$59,P_PEF_THGF!$A$9:$E$299,NoSpace),5,FALSE) -> 0.0124 | B73: =VLOOKUP(IF($A35<=MIN(P_PEF_THGF!$A$9:$A$299),MIN(P_PEF_THGF!$A$9:$A$299),IF(COUNTIF(P_PEF_THGF!$A$9:$A$299,$A35)>=1,$A35,MAX(IF(P_PEF_THGF!$A$9:$A$299<$A35,P_PEF_THGF!$A$9:$A$299)))),IF(P_PEF_THGF!$B$9:$B$299=B$59,P_PEF_THGF!$A$9:$E$299,NoSpace),5,FALSE) -> 0.0476 | C73: =VLOOKUP(IF($A35<=MIN(P_PEF_THGF!$A$9:$A$299),MIN(P_PEF_THGF!$A$9:$A$299),IF(COUNTIF(P_PEF_THGF!$A$9:$A$299,$A35)>=1,$A35,MAX(IF(P_PEF_THGF!$A$9:$A$299<$A35,P_PEF_THGF!$A$9:$A$299)))),IF(P_PEF_THGF!$B$9:$B$299=C$59,P_PEF_THGF!$A$9:$E$299,NoSpace),5,FALSE) -> 0.0284 | D73: =VLOOKUP(IF($A35<=MIN(P_PEF_THGF!$A$9:$A$299),MIN(P_PEF_THGF!$A$9:$A$299),IF(COUNTIF(P_PEF_THGF!$A$9:$A$299,$A35)>=1,$A35,MAX(IF(P_PEF_THGF!$A$9:$A$299<$A35,P_PEF_THGF!$A$9:$A$299)))),IF(P_PEF_THGF!$B$9:$B$299=D$59,P_PEF_THGF!$A$9:$E$299,NoSpace),5,FALSE) -> 0.364 | E73: =VLOOKUP(IF($A35<=MIN(P_PEF_THGF!$A$9:$A$299),MIN(P_PEF_THGF!$A$9:$A$299),IF(COUNTIF(P_PEF_THGF!$A$9:$A$299,$A35)>=1,$A35,MAX(IF(P_PEF_THGF!$A$9:$A$299<$A35,P_PEF_THGF!$A$9:$A$299)))),IF(P_PEF_THGF!$B$9:$B$299=E$59,P_PEF_THGF!$A$9:$E$299,NoSpace),5,FALSE) -> 0.0309

Sheet P_Vergl_CH
A1: =P_Werts!A1 -> Paramètres
A2: Valeurs comparatives Suisse
A3: Energie finale (valeur du pouvoir calorifique)
A4: Agent énergétique | C4: 2022 | E4: 2021 | G4: 2020 | I4: 2019 | K4: 2018 | M4: 2017 | O4: 2016 | Q4: 2015 | S4: 2014 | U4: 2013 | W4: 2012 | Y4: 2011 | AA4: 2010 | AC4: 2009 | AE4: 2008 | AG4: 2007
B5: [TJ/a] | C5: [MWh/a] | D5: [TJ/a] | E5: [MWh/a] | F5: [TJ/a] | G5: [MWh/a] | H5: [TJ/a] | I5: [MWh/a] | J5: [TJ/a] | K5: [MWh/a] | L5: [TJ/a] | M5: [MWh/a] | N5: [TJ/a] | O5: [MWh/a] | P5: [TJ/a] | Q5: [MWh/a] | R5: [TJ/a] | S5: [MWh/a] | T5: [TJ/a] | U5: [MWh/a] | V5: [TJ/a] | W5: [MWh/a] | X5: [TJ/a] | Y5: [MWh/a] | Z5: [TJ/a] | AA5: [MWh/a] | AB5: [TJ/a] | AC5: [MWh/a] | AD5: [TJ/a] | AE5: [MWh/a] | AF5: [TJ/a] | AG5: [MWh/a]
A6: Agent énergétique fossile | B6: 452589 | D6: 470899.9 | F6: 444351.2 | H6: 525678.5 | J6: 526500.3 | L6: 541533.6 | N6: 551083 | P6: 542755.7 | R6: 538821.3 | T6: 595207.7 | V6: 581330.8 | X6: 558348.1 | Z6: 608614.6 | AB6: 587242.1 | AD6: 603139.7 | AF6: 580411.8
A7: Mazout_EL | B7: 86915.4 | C7: =B7*10^6/3600 -> 24143166.67 | D7: 107979.3 | E7: =D7*10^6/3600 -> 29994250 | F7: 97383 | G7: =F7*10^6/3600 -> 27050833.33 | H7: 108665.7 | I7: =H7*10^6/3600 -> 30184916.67 | J7: 111239.7 | K7: =J7*10^6/3600 -> 30899916.67 | L7: 123723.6 | M7: =L7*10^6/3600 -> 34367666.67 | N7: 132347 | O7: =N7/0.0036 -> 36763055.56 | P7: 129257.7 | Q7: =P7/0.0036 -> 35904916.67 | R7: 122393.7 | S7: =R7/0.0036 -> 33998250 | T7: 162548.1 | U7: =T7/0.0036 -> 45152250 | V7: 154354.2 | W7: =V7/0.0036 -> 42876166.67 | X7: 144101.1 | Y7: =X7/0.0036 -> 40028083.33 | Z7: 182754 | AA7: =Z7/0.0036 -> 50765000 | AB7: 173873.7 | AC7: =AB7/0.0036 -> 48298250 | AD7: 179536.5 | AE7: =AD7/0.0036 -> 49871250 | AF7: 171600 | AG7: =AF7/0.0036 -> 47666666.67
A8: Mazout_M_S | B8: 0 | C8: =B8*10^6/3600 -> 0 | D8: 0 | E8: =D8*10^6/3600 -> 0 | F8: 41.2 | G8: =F8*10^6/3600 -> 11444.44444 | H8: 41.2 | I8: =H8*10^6/3600 -> 11444.44444 | J8: 41.2 | K8: =J8*10^6/3600 -> 11444.44444 | L8: 82.4 | M8: =L8*10^6/3600 -> 22888.88889 | N8: 124 | O8: 34444.44444 | P8: 247.2 | Q8: =P8/0.0036 -> 68666.66667 | R8: 370.8 | S8: 103000 | T8: 865.2 | U8: 240333.3333 | V8: 1483.2 | W8: 412000 | X8: 1483.2 | Y8: 412000 | Z8: 2224.8 | AA8: 618000 | AB8: 2719.2 | AC8: 755333.3333 | AD8: 3749.2 | AE8: 1041444.444 | AF8: 3790.4 | AG8: 1052888.889
A9: Coke de pétrole | B9: 731.4 | C9: 203166.6667 | D9: 604.2 | E9: 167833.3333 | F9: 699.6 | G9: 194333.3333 | H9: 477 | I9: 132500 | J9: 1081.2 | K9: 300333.3333 | L9: 763.2 | M9: 212000 | N9: 1781 | O9: 494722.2222 | P9: 795 | Q9: 220833.3333 | R9: 1240.2 | S9: 344500 | T9: 1049.4 | U9: 291500 | V9: 1367.4 | W9: 379833.3333 | X9: 1272 | Y9: 353333.3333 | Z9: 1494.6 | AA9: 415166.6667 | AB9: 1208.4 | AC9: 335666.6667 | AD9: 1049.4 | AE9: 291500 | AF9: 1240.2 | AG9: 344500
A10: Autres_combustibles pétroliers | B10: 3128 | C10: 868888.8889 | D10: 3128 | E10: 868888.8889 | F10: 2990 | G10: 830555.5556 | H10: 3128 | I10: 868888.8889 | J10: 3266 | K10: 907222.2222 | L10: 3358 | M10: 932777.7778 | N10: 2990 | O10: 830555.5556 | P10: 3588 | Q10: 996666.6667 | R10: 3542 | S10: 983888.8889 | T10: 4002 | U10: 1111666.667 | V10: 4002 | W10: 1111666.667 | X10: 4140 | Y10: 1150000 | Z10: 4186 | AA10: 1162777.778 | AB10: 4600 | AC10: 1277777.778 | AD10: 4324 | AE10: 1201111.111 | AF10: 4554 | AG10: 1265000
A11: Gaz | B11: 101650 | C11: 28236111.11 | D11: 122280 | E11: 33966666.67 | F11: 112860 | G11: 31350000 | H11: 115200 | I11: 32000000 | J11: 112280 | K11: 31188888.89 | L11: 118900 | M11: 33027777.78 | N11: 117230 | O11: 32563888.89 | P11: 112930 | Q11: 31369444.44 | R11: 107100 | S11: 29750000 | T11: 120750 | U11: 33541666.67 | V11: 114330 | W11: 31758333.33 | X11: 104220 | Y11: 28950000 | Z11: 115940 | AA11: 32205555.56 | AB11: 104540 | AC11: 29038888.89 | AD11: 108890 | AE11: 30247222.22 | AF11: 102190 | AG11: 28386111.11
A12: Essence | B12: 85413 | C12: 23725833.33 | D12: 87969 | E12: 24435833.33 | F12: 86094.6 | G12: 23915166.67 | H12: 97213.2 | I12: 27003666.67 | J12: 98022.6 | K12: 27228500 | L12: 99598.8 | M12: 27666333.33 | N12: 102751 | O12: 28541944.44 | P12: 106074 | Q12: 29465000 | R12: 114466.2 | S12: 31796166.67 | T12: 119407.8 | U12: 33168833.33 | V12: 125116.2 | W12: 34754500 | X12: 129674.4 | Y12: 36020666.67 | Z12: 134871.6 | AA12: 37464333.33 | AB12: 139855.8 | AC12: 38848833.33 | AD12: 143775 | AE12: 39937500 | AF12: 146970 | AG12: 40825000
A13: Diesel | B13: 111026 | C13: 30840555.56 | D13: 111241 | E13: 30900277.78 | F13: 109994 | G13: 30553888.89 | H13: 116057 | I13: 32238055.56 | J13: 116014 | K13: 32226111.11 | L13: 114552 | M13: 31820000 | N13: 114896 | O13: 31915555.56 | P13: 113649 | Q13: 31569166.67 | R13: 115240 | S13: 32011111.11 | T13: 112832 | U13: 31342222.22 | V13: 108059 | W13: 30016388.89 | X13: 101867 | Y13: 28296388.89 | Z13: 99244 | AA13: 27567777.78 | AB13: 95503 | AC13: 26528611.11 | AD13: 93998 | AE13: 26110555.56 | AF13: 85484 | AG13: 23745555.56
A14: Carburant aérien | B14: 59875.2 | C14: 16632000 | D14: 33998.4 | E14: 9444000 | F14: 30628.8 | G14: 8508000 | H14: 81086.4 | I14: 22524000 | J14: 80265.6 | K14: 22296000 | L14: 75945.6 | M14: 21096000 | N14: 74174 | O14: 20603888.89 | P14: 70804.8 | Q14: 19668000 | R14: 68558.4 | S14: 19044000 | T14: 68083.2 | U14: 18912000 | V14: 67348.8 | W14: 18708000 | X14: 65750.4 | Y14: 18264000 | Z14: 61689.6 | AA14: 17136000 | AB14: 58752 | AC14: 16320000 | AD14: 61257.6 | AE14: 17016000 | AF14: 57283.2 | AG14: 15912000
A15: Charbon | B15: 3850 | C15: 1069444.444 | D15: 3700 | E15: 1027777.778 | F15: 3660 | G15: 1016666.667 | H15: 3810 | I15: 1058333.333 | J15: 4290 | K15: 1191666.667 | L15: 4610 | M15: 1280555.556 | N15: 4790 | O15: 1330555.556 | P15: 5410 | Q15: 1502777.778 | R15: 5910 | S15: 1641666.667 | T15: 5670 | U15: 1575000 | V15: 5270 | W15: 1463888.889 | X15: 5840 | Y15: 1622222.222 | Z15: 6210 | AA15: 1725000 | AB15: 6190 | AC15: 1719444.444 | AD15: 6560 | AE15: 1822222.222 | AF15: 7300 | AG15: 2027777.778
A16: Houille
A17: Briquettes de houille
A18: Lignite
A19: Coke de houille
A20: Biomasse | B20: 49900 | D20: 54850 | F20: 48580 | H20: 48730 | J20: 47670 | L20: 45990 | N20: 44790 | P20: 40670 | R20: 37140 | T20: 42670 | V20: 39050 | X20: 35420 | Z20: 40070 | AB20: 36750 | AD20: 35890 | AF20: 32470
A21: Bois | B21: 41270 | C21: =B21*10^6/3600 -> 11463888.89 | D21: 46390 | E21: =D21*10^6/3600 -> 12886111.11 | F21: 39480 | G21: =F21*10^6/3600 -> 10966666.67 | H21: 39040 | I21: =H21*10^6/3600 -> 10844444.44 | J21: 38310 | K21: 10641666.67 | L21: 38610 | M21: 10725000 | N21: 39480 | O21: =N21/0.0036 -> 10966666.67 | P21: 36850 | Q21: =P21/0.0036 -> 10236111.11 | R21: 34500 | S21: =R21/0.0036 -> 9583333.333 | T21: 40440 | U21: =T21/0.0036 -> 11233333.33 | V21: 36770 | W21: =V21/0.0036 -> 10213888.89 | X21: 33290 | Y21: =X21/0.0036 -> 9247222.222 | Z21: 38070 | AA21: =Z21/0.0036 -> 10575000 | AB21: 34900 | AC21: =AB21/0.0036 -> 9694444.444 | AD21: 33890 | AE21: =AD21/0.0036 -> 9413888.889 | AF21: 30530 | AG21: =AF21/0.0036 -> 8480555.556
A22: Bûches | O22: 0
A23: Copeaux ou plaquettes de bois | O23: 0
A24: Pellets | O24: 0
A25: Biocarburants | B25: 6730 | C25: =B25*10^6/3600 -> 1869444.444 | D25: 6570 | E25: =D25*10^6/3600 -> 1825000 | F25: 7260 | G25: =F25*10^6/3600 -> 2016666.667 | H25: 7800 | I25: =H25*10^6/3600 -> 2166666.667 | J25: 7520 | K25: 2088888.889 | L25: 5630 | M25: 1563888.889 | N25: 3560 | O25: 988888.8889 | P25: 2070 | Q25: =P25/0.0036 -> 575000 | R25: 870 | S25: =R25/0.0036 -> 241666.6667 | T25: 480 | U25: =T25/0.0036 -> 133333.3333 | V25: 520 | W25: =V25/0.0036 -> 144444.4444 | X25: 450 | Y25: =X25/0.0036 -> 125000 | Z25: 420 | AA25: =Z25/0.0036 -> 116666.6667 | AB25: 350 | AC25: =AB25/0.0036 -> 97222.22222 | AD25: 490 | AE25: =AD25/0.0036 -> 136111.1111 | AF25: 450 | AG25: =AF25/0.0036 -> 125000
A26: Biogaz | B26: 1900 | C26: 527777.7778 | D26: 1890 | E26: 525000 | F26: 1840 | G26: 511111.1111 | H26: 1890 | I26: 525000 | J26: 1840 | K26: 511111.1111 | L26: 1750 | M26: 486111.1111 | N26: 1750 | O26: 486111.1111 | P26: 1750 | Q26: =P26/0.0036 -> 486111.1111 | R26: 1770 | S26: =R26/0.0036 -> 491666.6667 | T26: 1750 | U26: =T26/0.0036 -> 486111.1111 | V26: 1760 | W26: =V26/0.0036 -> 488888.8889 | X26: 1680 | Y26: =X26/0.0036 -> 466666.6667 | Z26: 1580 | AA26: =Z26/0.0036 -> 438888.8889 | AB26: 1500 | AC26: =AB26/0.0036 -> 416666.6667 | AD26: 1510 | AE26: =AD26/0.0036 -> 419444.4444 | AF26: 1490 | AG26: =AF26/0.0036 -> 413888.8889
A27: Solaire/éolien/géothermie | B27: 23630 | D27: 24630 | F27: 21330 | H27: 20660 | J27: 18910 | L27: 19160 | N27: 18380 | P27: 16760 | R27: 14810 | T27: 15670 | V27: 14040 | X27: 12080 | Z27: 12300 | AB27: 10200 | AD27: 9200 | AF27: 7760
A28: Exploitation de l'énergie solaire | B28: 2650 | C28: =B28*10^6/3600 -> 736111.1111 | D28: 2660 | E28: =D28*10^6/3600 -> 738888.8889 | F28: 2660 | G28: =F28*10^6/3600 -> 738888.8889 | H28: 2640 | I28: =H28*10^6/3600 -> 733333.3333 | J28: 2560 | K28: 711111.1111 | L28: 2510 | M28: 697222.2222 | N28: 2450 | O28: =N28/0.0036 -> 680555.5556 | P28: 2360 | Q28: =P28/0.0036 -> 655555.5556 | R28: 2210 | S28: =R28/0.0036 -> 613888.8889 | T28: 2040 | U28: =T28/0.0036 -> 566666.6667 | V28: 1850 | W28: =V28/0.0036 -> 513888.8889 | X28: 1660 | Y28: =X28/0.0036 -> 461111.1111 | Z28: 1450 | AA28: =Z28/0.0036 -> 402777.7778 | AB28: 1240 | AC28: =AB28/0.0036 -> 344444.4444 | AD28: 1050 | AE28: =AD28/0.0036 -> 291666.6667 | AF28: 920 | AG28: =AF28/0.0036 -> 255555.5556
A29: Exploitation de la chaleur de l'environnement | B29: 20980 | C29: 5827777.778 | D29: 21970 | E29: 6102777.778 | F29: 18670 | G29: 5186111.111 | H29: 18020 | I29: 5005555.556 | J29: 16350 | K29: 4541666.667 | L29: 16650 | M29: 4625000 | N29: 15930 | O29: 4425000 | P29: 14400 | Q29: =P29/0.0036 -> 4000000 | R29: 12600 | S29: =R29/0.0036 -> 3500000 | T29: 13630 | U29: =T29/0.0036 -> 3786111.111 | V29: 12190 | W29: =V29/0.0036 -> 3386111.111 | X29: 10420 | Y29: =X29/0.0036 -> 2894444.444 | Z29: 10850 | AA29: =Z29/0.0036 -> 3013888.889 | AB29: 8960 | AC29: =AB29/0.0036 -> 2488888.889 | AD29: 8150 | AE29: =AD29/0.0036 -> 2263888.889 | AF29: 6840 | AG29: =AF29/0.0036 -> 1900000
A30: Source de chaleur: air | O30: 0
A31: Source de chaleur: saumure ou eau | O31: 0
A32: Déchets industriels | B32: 12280 | C32: =B32*10^6/3600 -> 3411111.111 | D32: 12030 | E32: =D32*10^6/3600 -> 3341666.667 | F32: 11510 | G32: =F32*10^6/3600 -> 3197222.222 | H32: 11670 | I32: =H32*10^6/3600 -> 3241666.667 | J32: 10870 | K32: 3019444.444 | L32: 12500 | M32: 3472222.222 | N32: 10790 | O32: 2997222.222 | P32: 10200 | Q32: =P32/0.0036 -> 2833333.333 | R32: 11830 | S32: =R32/0.0036 -> 3286111.111 | T32: 10450 | U32: =T32/0.0036 -> 2902777.778 | V32: 10300 | W32: =V32/0.0036 -> 2861111.111 | X32: 10510 | Y32: =X32/0.0036 -> 2919444.444 | Z32: 10040 | AA32: =Z32/0.0036 -> 2788888.889 | AB32: 9510 | AC32: =AB32/0.0036 -> 2641666.667 | AD32: 11130 | AE32: =AD32/0.0036 -> 3091666.667 | AF32: 10600 | AG32: =AF32/0.0036 -> 2944444.444
A33: Chaleur à distance | B33: 21360 | C33: 5933333.333 | D33: 23090 | E33: 6413888.889 | F33: 21070 | G33: 5852777.778 | H33: 21560 | I33: 5988888.889 | J33: 19400 | K33: 5388888.889 | L33: 20070 | M33: 5575000 | N33: 19600 | O33: 5444444.444 | P33: 18290 | Q33: 5080555.556 | R33: 16290 | S33: =R33/0.0036 -> 4525000 | T33: 17890 | U33: =T33/0.0036 -> 4969444.444 | V33: 16880 | W33: =V33/0.0036 -> 4688888.889 | X33: 15860 | Y33: =X33/0.0036 -> 4405555.556 | Z33: 17240 | AA33: =Z33/0.0036 -> 4788888.889 | AB33: 15320 | AC33: =AB33/0.0036 -> 4255555.556 | AD33: 15470 | AE33: =AD33/0.0036 -> 4297222.222 | AF33: 14670 | AG33: 4075000
A34: Moyenne CH | B34: 21360 | C34: 5933333.333 | D34: 23090 | E34: 6413888.889 | F34: 21070 | G34: 5852777.778 | H34: 21560 | I34: 5988888.889 | J34: 19400 | K34: 5388888.889 | L34: 20070 | M34: 5575000 | N34: 19600 | O34: 5444444.444 | P34: 18290 | Q34: 5080555.556 | R34: 16290 | S34: =R34/0.0036 -> 4525000 | T34: 17890 | U34: =T34/0.0036 -> 4969444.444 | V34: 16880 | W34: =V34/0.0036 -> 4688888.889 | X34: 15860 | Y34: =X34/0.0036 -> 4405555.556 | Z34: 17240 | AA34: =Z34/0.0036 -> 4788888.889 | AB34: 15320 | AC34: =AB34/0.0036 -> 4255555.556 | AD34: 15470 | AE34: 4297222.222 | AF34: 14670 | AG34: 4075000
A35: Electricité variante A | B35: 225351.2 | D35: 224132 | F35: 216622.4 | H35: 220789 | J35: 221883.2 | L35: 225516 | N35: 220179 | P35: 217955.6 | R35: 215358 | T35: 221235.2 | V35: 220979.6 | X35: 219837.6 | Z35: 224208.4 | AB35: 216062.8 | AD35: 221086 | AF35: 214334.4
A36: Centrale nucléaire | B36: 44101.22984 | C36: =B36*10^6/3600 -> 12250341.62 | D36: 41531.6596 | E36: =D36*10^6/3600 -> 11536572.11 | F36: 43086.19536 | G36: =F36*10^6/3600 -> 11968387.6 | H36: 38174.38352 | I36: =H36*10^6/3600 -> 10603995.42 | J36: 33459.98656 | K36: 9294440.711 | L36: 38270.0652 | M36: 10630573.67 | N36: 45599 | O36: =N36/0.0036 -> 12666388.89 | P36: 45138.60476 | Q36: 12538501.32 | R36: 56057.6874 | S36: =R36/0.0036 -> 15571579.83 | T36: 66591.7952 | U36: =T36/0.0036 -> 18497720.89 | V36: 79000.207 | W36: =V36/0.0036 -> 21944501.94 | X36: 91012.7664 | Y36: =X36/0.0036 -> 25281324 | Z36: 93158.5902 | AA36: =Z36/0.0036 -> 25877386.17 | AB36: 90098.1876 | AC36: =AB36/0.0036 -> 25027274.33 | AD36: 91750.69 | AE36: =AD36/0.0036 -> 25486302.78 | AF36: 88520.1072 | AG36: =AF36/0.0036 -> 24588918.67
A37: Aménagement hydro-électrique | B37: 152697.9731 | C37: 42416103.64 | D37: 160523.3384 | E37: 44589816.22 | F37: 150097.661 | G37: 41693794.71 | H37: 152211.7987 | I37: 42281055.2 | J37: 139875.1693 | K37: 38854213.69 | L37: 131408.1732 | M37: 36502270.33 | N37: 122133 | O37: 33925833.33 | P37: 119919.1711 | Q37: 33310880.87 | R37: 109466.4714 | S37: 30407353.17 | T37: 114533.463 | U37: 31814850.84 | V37: 103617.3344 | W37: 28782592.9 | X37: 91804.18176 | Y37: 25501161.6 | Z37: 87463.69684 | AA37: 24295471.34 | AB37: 78430.7964 | AC37: 21786332.33 | AD37: 79480.417 | AE37: 22077893.61 | AF37: 76731.7152 | AG37: 21314365.33
A38: Gaz naturel_GuD | B38: 0 | C38: 0 | D38: 0 | E38: 0 | F38: 0 | G38: 0 | H38: 0 | I38: 0 | J38: 0 | K38: 0 | L38: 0 | M38: 0 | N38: 0 | O38: 0 | P38: 0 | Q38: 0 | R38: 0 | S38: 0 | T38: 0 | U38: 0 | V38: 0 | W38: 0 | X38: 0 | Y38: 0 | Z38: 0 | AA38: 0 | AB38: 0 | AC38: 0 | AD38: 0 | AE38: 0 | AF38: 0 | AG38: 0
A39: Centrale au charbon | B39: 1487.31792 | C39: 413143.8667 | D39: 1748.2296 | E39: 485619.3333 | F39: 519.89376 | G39: 144414.9333 | H39: 2296.20352 | I39: 637834.3111 | J39: 0 | K39: 0 | L39: 0 | M39: 0 | N39: 22 | O39: 6111.111111 | P39: 21.79556 | Q39: 6054.322222 | R39: 43.0716 | S39: 11964.33333 | T39: 221.2352 | U39: 61454.22222 | V39: 220.9796 | W39: 61383.22222 | X39: 219.8376 | Y39: 61066 | Z39: 224.2084 | AA39: 62280.11111 | AB39: 216.0628 | AC39: 60017.44444 | AD39: 331.629 | AE39: 92119.16667 | AF39: 428.6688 | AG39: 119074.6667
A40: Centrale_mazout | B40: 45.07024 | C40: 12519.51111 | D40: 44.8264 | E40: 12451.77778 | F40: 21.66224 | G40: 6017.288889 | H40: 44.15776 | I40: 12266.04444 | J40: 0 | K40: 0 | L40: 0 | M40: 0 | N40: 22 | O40: 6111.111111 | P40: 21.79556 | Q40: 6054.322222 | R40: 43.0716 | S40: 11964.33333 | T40: 0 | U40: 0 | V40: 110.4898 | W40: 30691.61111 | X40: 219.8376 | Y40: 61066 | Z40: 224.2084 | AA40: 62280.11111 | AB40: 216.0628 | AC40: 60017.44444 | AD40: 663.258 | AE40: 184238.3333 | AF40: 1071.672 | AG40: 297686.6667
A41: Incinération des ordures ménagères | B41: 1645.06376 | C41: 456962.1556 | D41: 1389.6184 | E41: 386005.1111 | F41: 1494.69456 | G41: 415192.9333 | H41: 2097.4936 | I41: 582637.1111 | J41: 1752.87728 | K41: 486910.3556 | L41: 1894.3344 | M41: 526204 | N41: 2180 | O41: 605555.5556 | P41: 2157.76044 | Q41: 599377.9 | R41: 2907.333 | S41: 807592.5 | T41: 2654.8224 | U41: 737450.6667 | V41: 2983.2246 | W41: 828673.5 | X41: 3297.564 | Y41: 915990 | Z41: 3251.0218 | AA41: 903061.6111 | AB41: 3024.8792 | AC41: 840244.2222 | AD41: 3758.462 | AE41: 1044017.222 | AF41: 4286.688 | AG41: 1190746.667
A42: Centrale de chauffage_à bois | B42: 3673.22456 | C42: 1020340.156 | D42: 3025.782 | E42: 840495 | F42: 2902.74016 | G42: 806316.7111 | H42: 2539.0712 | I42: 705297.5556 | J42: 2351.96192 | K42: 653322.7556 | L42: 2345.3664 | M42: 651490.6667 | N42: 2268 | O42: 630000 | P42: 1645.56478 | Q42: 457101.3278 | R42: 1701.3282 | S42: 472591.1667 | T42: 1659.264 | U42: 460906.6667 | V42: 1248.53474 | W42: 346815.2056 | X42: 758.43972 | Y42: 210677.7 | Z42: 638.99394 | AA42: 177498.3167 | AB42: 615.77898 | AC42: 171049.7167 | AD42: 386.9005 | AE42: 107472.3611 | AF42: 107.1672 | AG42: 29768.66667
A43: Centrale à énergie totale équipée_alimentée au diesel | B43: 0 | C43: 0 | D43: 0 | E43: 0 | F43: 0 | G43: 0 | H43: 0 | I43: 0 | J43: 0 | K43: 0 | L43: 0 | M43: 0 | N43: 0 | O43: 0 | P43: 0 | Q43: 0 | R43: 0 | S43: 0 | T43: 0 | U43: 0 | V43: 0 | W43: 0 | X43: 0 | Y43: 0 | Z43: 0 | AA43: 0 | AB43: 0 | AC43: 0 | AD43: 0 | AE43: 0 | AF43: 0 | AG43: 0
A44: Centrale à énergie totale équipée_alimentée au gaz | B44: 1081.68576 | C44: =B44*10^6/3600 -> 300468.2667 | D44: 1008.594 | E44: =D44*10^6/3600 -> 280165 | F44: 1949.6016 | G44: =F44*10^6/3600 -> 541556 | H44: 1435.1272 | I44: =H44*10^6/3600 -> 398646.4444 | J44: 843.15616 | K44: =J44*10^6/3600 -> 234210.0444 | L44: 1916.886 | M44: 532468.3333 | N44: 1211 | O44: 336388.8889 | P44: 1198.7558 | Q44: 332987.7222 | R44: 818.3604 | S44: 227322.3333 | T44: 1548.6464 | U44: 430179.5556 | V44: 2762.245 | W44: 767290.2778 | X44: 3957.0768 | Y44: 1099188 | Z44: 3587.3344 | AA44: 996481.7778 | AB44: 3024.8792 | AC44: 840244.2222 | AD44: 2874.118 | AE44: 798366.1111 | AF44: 2572.0128 | AG44: 714448
A45: Centrale à énergie totale équipée_alimentée au biogaz | B45: 3673.22456 | C45: =B45*10^6/3600 -> 1020340.156 | D45: 3025.782 | E45: =D45*10^6/3600 -> 840495 | F45: 2902.74016 | G45: =F45*10^6/3600 -> 806316.7111 | H45: 2539.0712 | I45: =H45*10^6/3600 -> 705297.5556 | J45: 2351.96192 | K45: 653322.7556 | L45: 2345.3664 | M45: 651490.6667 | N45: 2268 | O45: 630000 | P45: 1645.56478 | Q45: 457101.3278 | R45: 1701.3282 | S45: 472591.1667 | T45: 1659.264 | U45: 460906.6667 | V45: 1248.53474 | W45: 346815.2056 | X45: 758.43972 | Y45: 210677.7 | Z45: 638.99394 | AA45: 177498.3167 | AB45: 615.77898 | AC45: 171049.7167 | AD45: 386.9005 | AE45: 107472.3611 | AF45: 107.1672 | AG45: 29768.66667
A46: Photovoltaïque | B46: 8067.57296 | C46: 2240992.489 | D46: 6432.5884 | E46: 1786830.111 | F46: 5805.48032 | G46: 1612633.422 | H46: 5122.30016 | I46: 1422861.156 | J46: 4526.41728 | K46: 1257338.133 | L46: 3946.53 | M46: 1096258.333 | N46: 3193 | O46: 886944.4444 | P46: 2985.99172 | Q46: 829442.1444 | R46: 1959.7578 | S46: 544377.1667 | T46: 1194.67008 | U46: 331852.8 | V46: 883.9184 | W46: 245532.8889 | X46: 571.57776 | Y46: 158771.6 | Z46: 313.89176 | AA46: 87192.15556 | AB46: 64.81884 | AC46: 18005.23333 | AD46: 110.543 | AE46: 30706.38889 | AF46: 214.3344 | AG46: 59537.33333
A47: Centrale éolienne | B47: 8608.41584 | C47: 2391226.622 | D47: 5401.5812 | E47: 1500439.222 | F47: 3400.97168 | G47: 944714.3556 | H47: 1435.1272 | I47: 398646.4444 | J47: 1863.81888 | K47: 517727.4667 | L47: 1014.822 | M47: 281895 | N47: 925 | O47: 256944.4444 | P47: 871.8224 | Q47: 242172.8889 | R47: 1744.3998 | S47: 484555.5 | T47: 1526.52288 | U47: 424034.1333 | V47: 1392.17148 | W47: 386714.3 | X47: 1275.05808 | Y47: 354182.8 | Z47: 829.57108 | AA47: 230436.4111 | AB47: 453.73188 | AC47: 126036.6333 | AD47: 331.629 | AE47: 92119.16667 | AF47: 214.3344 | AG47: 59537.33333
A48: Centrale géothermique | B48: 270.42144 | C48: 75117.06667 | D48: 0 | E48: 0 | F48: 0 | G48: 0 | H48: 662.3664 | I48: 183990.6667 | J48: 0 | K48: 0 | L48: 0 | M48: 0 | N48: 0 | O48: 0 | P48: 0 | Q48: 0 | R48: 0 | S48: 0 | T48: 0 | U48: 0 | V48: 0 | W48: 0 | X48: 0 | Y48: 0 | Z48: 0 | AA48: 0 | AB48: 0 | AC48: 0 | AD48: 110.543 | AE48: 30706.38889 | AF48: 214.3344 | AG48: 59537.33333
A49: Mix énergétique CH | B49: 0 | C49: 0 | D49: 0 | E49: 0 | F49: 0 | G49: 0 | H49: 0 | I49: 0 | J49: 0 | K49: 0 | L49: 0 | M49: 0 | O49: 0 | P49: 0 | Q49: 0 | R49: 0 | S49: 0 | T49: 0 | U49: 0 | V49: 0 | W49: 0 | X49: 0 | Y49: 0 | Z49: 0 | AA49: 0 | AB49: 0 | AC49: 0 | AD49: 0 | AE49: 0 | AF49: 0 | AG49: 0
A50: Mix de consommation CH | B50: 0 | C50: 0 | D50: 0 | E50: 0 | F50: 0 | G50: 0 | H50: 0 | I50: 0 | J50: 0 | K50: 0 | L50: 0 | M50: 0 | O50: 0 | P50: 0 | Q50: 0 | R50: 0 | S50: 0 | T50: 0 | U50: 0 | V50: 0 | W50: 0 | X50: 0 | Y50: 0 | Z50: 0 | AA50: 0 | AB50: 0 | AC50: 0 | AD50: 0 | AE50: 0 | AF50: 0 | AG50: 0
A51: Mix ENTSO | B51: 0 | C51: 0 | D51: 0 | E51: 0 | F51: 4440.7592 | G51: 1233544.222 | H51: 13799.3 | I51: 3833138.889 | J51: 34835.6624 | K51: 9676572.889 | L51: 42374.4564 | M51: 11770682.33 | N51: 42781 | O51: 11883611.11 | P51: 42348.77308 | Q51: 11763548.08 | R51: 38915.1906 | S51: 10809775.17 | T51: 29645.5168 | U51: 8234865.778 | V51: 27401.4704 | W51: 7611519.556 | X51: 25940.8368 | Y51: 7205788 | Z51: 33631.26 | AA51: 9342016.667 | AB51: 39323.4296 | AC51: 10923174.89 | AD51: 40679.824 | AE51: 11299951.11 | AF51: 39866.1984 | AG51: 11073944
A52: Source: OFEN, Statistique globale de l'énergie, T14, T20, T24, T26; état: 2022
A54: Energie primaire
A55: Agent énergétique | C55: 2022 | E55: 2021 | G55: 2020 | I55: 2019 | K55: 2018 | M55: 2017 | O55: 2016 | Q55: 2015 | S55: 2014 | U55: 2013 | W55: 2012 | Y55: 2011 | AA55: 2010 | AC55: 2009 | AE55: 2008 | AG55: 2007
B56: [TJ/a] | C56: [MWh/a] | D56: [TJ/a] | E56: [MWh/a] | F56: [TJ/a] | G56: [MWh/a] | H56: [TJ/a] | I56: [MWh/a] | J56: [TJ/a] | K56: [MWh/a] | L56: [TJ/a] | M56: [MWh/a] | N56: [TJ/a] | O56: [MWh/a] | P56: [TJ/a] | Q56: [MWh/a] | R56: [TJ/a] | S56: [MWh/a] | T56: [TJ/a] | U56: [MWh/a] | V56: [TJ/a] | W56: [MWh/a] | X56: [TJ/a] | Y56: [MWh/a] | Z56: [TJ/a] | AA56: [MWh/a] | AB56: [TJ/a] | AC56: [MWh/a] | AD56: [TJ/a] | AE56: [MWh/a] | AF56: [TJ/a] | AG56: [MWh/a]
A57: =A6 -> Agent énergétique fossile | B57: 583352.5384 | D57: 605460.9833 | F57: 570741.0191 | H57: 676035.7575 | J57: 677724.278 | L57: 692989.0874 | N57: 706425 | P57: 695991.9898 | R57: 692341.6127 | T57: 778646.1122 | V57: 761549.3938 | X57: 732419.4008 | Z57: 802222.3929 | AB57: 774998.002 | AD57: 795878.1771 | AF57: 766799.1512
A58: Mazout_EL | B58: 116836.4888 | C58: =B58*10^6/3600 -> 32454580.21 | D58: 145151.7484 | E58: =D58*10^6/3600 -> 40319930.11 | F58: 128361.1539 | G58: =F58*10^6/3600 -> 35655876.08 | H58: 143232.9528 | I58: =H58*10^6/3600 -> 39786931.33 | J58: 146625.7586 | K58: =J58*10^6/3600 -> 40729377.39 | L58: 161893.6468 | M58: =L58*10^6/3600 -> 44970457.45 | N58: 173177 | O58: =N58/0.0036 -> 48104722.22 | P58: 169135.0755 | Q58: =P58/0.0036 -> 46981965.43 | R58: 160153.4585 | S58: =R58/0.0036 -> 44487071.81 | T58: 214425.1532 | U58: =T58/0.0036 -> 59562542.55 | V58: 203616.1787 | W58: =V58/0.0036 -> 56560049.65 | X58: 190090.8128 | Y58: =X58/0.0036 -> 52803003.55 | Z58: 241079.7447 | AA58: =Z58/0.0036 -> 66966595.74 | AB58: 229365.3064 | AC58: =AB58/0.0036 -> 63712585.11 | AD58: 236835.383 | AE58: =AD58/0.0036 -> 65787606.38 | AF58: 226365.9574 | AG58: =AF58/0.0036 -> 62879432.62
A59: Mazout_M_S | B59: 0 | C59: =B59*10^6/3600 -> 0 | D59: 0 | E59: =D59*10^6/3600 -> 0 | F59: 54.30598298 | G59: =F59*10^6/3600 -> 15084.99527 | H59: 54.30598298 | I59: =H59*10^6/3600 -> 15084.99527 | J59: 54.30598298 | K59: =J59*10^6/3600 -> 15084.99527 | L59: 107.8212766 | M59: =L59*10^6/3600 -> 29950.35461 | N59: 162 | O59: 45000 | P59: 323.4638298 | Q59: =P59/0.0036 -> 89851.06383 | R59: 485.1957447 | S59: =R59/0.0036 -> 134776.5957 | T59: 1141.32766 | U59: =T59/0.0036 -> 317035.461 | V59: 1956.561702 | W59: =V59/0.0036 -> 543489.3617 | X59: 1956.561702 | Y59: =X59/0.0036 -> 543489.3617 | Z59: 2934.842553 | AA59: =Z59/0.0036 -> 815234.0426 | AB59: 3587.029787 | AC59: =AB59/0.0036 -> 996397.1631 | AD59: 4945.753191 | AE59: 1373820.331 | AF59: 5000.102128 | AG59: 1388917.258
A60: Coke de pétrole | B60: 1123.788319 | C60: 312163.422 | D60: 928.3468723 | E60: 257874.1312 | F60: 1088.994383 | G60: 302498.4397 | H60: 742.4961702 | I60: 206248.9362 | J60: 1682.991319 | K60: 467497.5887 | L60: 1355.897872 | M60: 376638.2979 | N60: 3164 | O60: 878888.8889 | P60: 1412.393617 | Q60: 392331.5603 | R60: 2203.334043 | S60: 612037.234 | T60: 1886.687234 | U60: 524079.7872 | V60: 2458.410638 | W60: 682891.844 | X60: 2286.893617 | Y60: 635248.227 | Z60: 2639.4 | AA60: 733166.6667 | AB60: 2133.982979 | AC60: 592773.0496 | AD60: 1853.195745 | AE60: 514776.5957 | AF60: 2190.140426 | AG60: 608372.3404
A61: Autres_combustibles pétroliers | B61: 4204.830638 | C61: 1168008.511 | D61: 4204.830638 | E61: 1168008.511 | F61: 3941.138085 | G61: 1094760.579 | H61: 4123.036766 | I61: 1145287.991 | J61: 4304.935447 | K61: 1195815.402 | L61: 4393.978723 | M61: 1220549.645 | N61: 3912 | O61: 1086666.667 | P61: 4694.93617 | Q61: 1304148.936 | R61: 4634.744681 | S61: 1287429.078 | T61: 5279.234043 | U61: 1466453.901 | V61: 5279.234043 | W61: 1466453.901 | X61: 5461.276596 | Y61: 1517021.277 | Z61: 5521.957447 | AA61: 1533877.069 | AB61: 6068.085106 | AC61: 1685579.196 | AD61: 5704 | AE61: 1584444.444 | AF61: 6007.404255 | AG61: 1668723.404
A62: Gaz | B62: 118919.2056 | C62: 33033112.65 | D62: 143054.0133 | E62: 39737225.93 | F62: 133484.538 | G62: 37079038.33 | H62: 136252.16 | I62: 37847822.22 | J62: 132798.5462 | K62: 36888485.06 | L62: 141358.8889 | M62: 39266358.02 | N62: 139373 | O62: 38714722.22 | P62: 134261.2222 | Q62: 37294783.95 | R62: 127330 | S62: 35369444.44 | T62: 150266.6667 | U62: 41740740.74 | V62: 142277.3333 | W62: 39521481.48 | X62: 129696 | Y62: 36026666.67 | Z62: 148145.5556 | AA62: 41151543.21 | AB62: 133578.8889 | AC62: 37105246.91 | AD62: 139137.2222 | AE62: 38649228.4 | AF62: 130576.1111 | AG62: 36271141.98
A63: Essence | B63: 116997.4416 | C63: 32499289.34 | D63: 120498.6119 | E63: 33471836.65 | F63: 117962.5625 | G63: 32767378.47 | H63: 133196.7182 | I63: 36999088.4 | J63: 134305.7181 | K63: 37307143.91 | L63: 136011.2645 | M63: 37780906.81 | N63: 140316 | O63: 38976666.67 | P63: 144853.7419 | Q63: 40237150.54 | R63: 156314.0581 | S63: 43420571.68 | T63: 165630.1742 | U63: 46008381.72 | V63: 173548.2774 | W63: 48207854.84 | X63: 179870.9419 | Y63: 49964150.54 | Z63: 187079.9613 | AA63: 51966655.91 | AB63: 193993.529 | AC63: 53887091.4 | AD63: 199429.8387 | AE63: 55397177.42 | AF63: 203861.6129 | AG63: 56628225.81
A64: Diesel | B64: 142355.4112 | C64: 39543169.77 | D64: 142631.0801 | E64: 39619744.46 | F64: 141955.448 | G64: 39432068.9 | H64: 149780.201 | I64: 41605611.4 | J64: 149724.7063 | K64: 41590196.21 | L64: 147455.234 | M64: 40959787.23 | N64: 147898 | O64: 41082777.78 | P64: 146292.8617 | Q64: 40636906.03 | R64: 148340.8511 | S64: 41205791.96 | T64: 146441.5319 | U64: 40678203.31 | V64: 140246.7872 | W64: 38957440.9 | X64: 132210.3617 | Y64: 36725100.47 | Z64: 128806.0426 | AA64: 35779456.26 | AB64: 123950.7021 | AC64: 34430750.59 | AD64: 121997.4043 | AE64: 33888167.85 | AF64: 110947.3191 | AG64: 30818699.76
A65: Carburant aérien | B65: 78049.23411 | C65: 21680342.81 | D65: 44317.99946 | E65: 12310555.4 | F65: 39200.30226 | G65: 10888972.85 | H65: 103778.5153 | I65: 28827365.36 | J65: 102728.0135 | K65: 28535559.32 | L65: 94528.03404 | M65: 26257787.23 | N65: 92323 | O65: 25645277.78 | P65: 88129.37872 | Q65: 24480382.98 | R65: 85333.32766 | S65: 23703702.13 | T65: 86190.43404 | U65: 23941787.23 | V65: 85260.71489 | W65: 23683531.91 | X65: 83237.20851 | Y65: 23121446.81 | Z65: 78096.40851 | AA65: 21693446.81 | AB65: 74377.53191 | AC65: 20660425.53 | AD65: 77549.51489 | AE65: 21541531.91 | AF65: 72518.09362 | AG65: 20143914.89
A66: Charbon | B66: 4866.138188 | C66: 1351705.052 | D66: 4674.352604 | E66: 1298431.279 | F66: 4692.575985 | G66: 1303493.329 | H66: 4875.37125 | I66: 1354269.792 | J66: 5499.302402 | K66: 1527584.001 | L66: 5884.321272 | M66: 1634533.687 | N66: 6099 | O66: =N66/0.0036 -> 1694166.667 | P66: 6888.916104 | Q66: 1913587.807 | R66: 7546.642894 | S66: 2096289.693 | T66: 7384.903208 | U66: 2051362.002 | V66: 6905.895833 | W66: 1918304.398 | X66: 7609.343972 | Y66: 2113706.659 | Z66: 7918.480343 | AA66: 2199577.873 | AB66: 7942.945766 | AC66: 2206373.824 | AD66: 8425.86514 | AE66: 2340518.094 | AF66: 9332.410201 | AG66: 2592336.167
A67: Houille | B67: 0 | C67: 0 | D67: 0 | E67: 0 | F67: 0 | G67: 0 | H67: 0 | I67: 0 | K67: 0 | M67: 0 | P67: 0 | R67: 0 | T67: 0 | V67: 0 | X67: 0 | Z67: 0 | AB67: 0 | AD67: 0 | AF67: 0
A68: Briquettes de houille | B68: 0 | C68: 0 | D68: 0 | E68: 0 | F68: 0 | G68: 0 | H68: 0 | I68: 0 | K68: 0 | M68: 0 | P68: 0 | R68: 0 | T68: 0 | V68: 0 | X68: 0 | Z68: 0 | AB68: 0 | AD68: 0 | AF68: 0
A69: Lignite | B69: 0 | C69: 0 | D69: 0 | E69: 0 | F69: 0 | G69: 0 | H69: 0 | I69: 0 | K69: 0 | M69: 0 | P69: 0 | R69: 0 | T69: 0 | V69: 0 | X69: 0 | Z69: 0 | AB69: 0 | AD69: 0 | AF69: 0
A70: Coke de houille | B70: 0 | C70: 0 | D70: 0 | E70: 0 | F70: 0 | G70: 0 | H70: 0 | I70: 0 | K70: 0 | M70: 0 | P70: 0 | R70: 0 | T70: 0 | V70: 0 | X70: 0 | Z70: 0 | AB70: 0 | AD70: 0 | AF70: 0
A71: Biomasse | B71: 52584.10525 | D71: 58613.87531 | F71: 52395.63496 | H71: 51968.13663 | J71: 50939.8791 | L71: 50390.15385 | N71: 50464 | P71: 46657.1156 | R71: 43318.17738 | T71: 50426.19103 | V71: 45853.6508 | X71: 41492.11334 | Z71: 47208.13669 | AB71: 43165.5581 | AD71: 41874.04807 | AF71: 37622.48182
A72: Bois | B72: 49132.4536 | C72: =B72*10^6/3600 -> 13647903.78 | D72: 55231.72773 | E72: =D72*10^6/3600 -> 15342146.59 | F72: 48951.94138 | G72: =F72*10^6/3600 -> 13597761.5 | H72: 48300.2552 | I72: =H72*10^6/3600 -> 13416737.56 | J72: 47397.09981 | K72: 13165861.06 | L72: 47536.61295 | M72: 13204614.71 | N72: 48418 | O72: =N72/0.0036 -> 13449444.44 | P72: 45192.3659 | Q72: =P72/0.0036 -> 12553434.97 | R72: 42314.04844 | S72: =R72/0.0036 -> 11753902.35 | T72: 49522.65867 | U72: =T72/0.0036 -> 13756294.08 | V72: 44930.66667 | W72: =V72/0.0036 -> 12480740.74 | X72: 40550.94557 | Y72: =X72/0.0036 -> 11264151.55 | Z72: 46165.63241 | AA72: =Z72/0.0036 -> 12823786.78 | AB72: 42200.04528 | AC72: =AB72/0.0036 -> 11722234.8 | AD72: 40833.71901 | AE72: =AD72/0.0036 -> 11342699.73 | AF72: 36612.57644 | AG72: =AF72/0.0036 -> 10170160.12
A73: Bûches | C73: 0 | E73: 0 | G73: 0 | I73: 0 | K73: 0 | M73: 0 | O73: =N73/0.0036 -> 0
A74: Copeaux ou plaquettes de bois | C74: 0 | E74: 0 | G74: 0 | I74: 0 | K74: 0 | M74: 0 | O74: =N74/0.0036 -> 0
A75: Pellets | C75: 0 | E75: 0 | G75: 0 | I75: 0 | K75: 0 | M75: 0 | O75: =N75/0.0036 -> 0
A76: Biocarburants | B76: 2773.351648 | C76: 770375.4579 | D76: 2707.417582 | E76: 752060.4396 | F76: 2766.778022 | G76: 768549.4505 | H76: 2972.571429 | I76: 825714.2857 | J76: 2865.863736 | K76: 796073.2601 | L76: 2196.318681 | M76: 610088.5226 | N76: 1389 | O76: =N76/0.0036 -> 385833.3333 | P76: 807.5274725 | Q76: =P76/0.0036 -> 224313.1868 | R76: 339.3956044 | S76: =R76/0.0036 -> 94276.55678 | T76: 184.0879121 | U76: =T76/0.0036 -> 51135.53114 | V76: 199.4285714 | W76: =V76/0.0036 -> 55396.8254 | X76: 188.9010989 | Y76: =X76/0.0036 -> 52472.52747 | Z76: 208.6153846 | AA76: =Z76/0.0036 -> 57948.71795 | AB76: 173.8461538 | AC76: =AB76/0.0036 -> 48290.59829 | AD76: 243.3846154 | AE76: =AD76/0.0036 -> 67606.83761 | AF76: 223.5164835 | AG76: =AF76/0.0036 -> 62087.91209
A77: Biogaz | B77: 678.3 | C77: 188416.6667 | D77: 674.73 | E77: 187425 | F77: 676.9155556 | G77: 188032.0988 | H77: 695.31 | I77: 193141.6667 | J77: 676.9155556 | K77: 188032.0988 | L77: 657.2222222 | M77: 182561.7284 | N77: 657 | O77: =N77/0.0036 -> 182500 | P77: 657.2222222 | Q77: =P77/0.0036 -> 182561.7284 | R77: 664.7333333 | S77: =R77/0.0036 -> 184648.1481 | T77: 719.4444444 | U77: =T77/0.0036 -> 199845.679 | V77: 723.5555556 | W77: =V77/0.0036 -> 200987.6543 | X77: 752.2666667 | Y77: =X77/0.0036 -> 208962.963 | Z77: 833.8888889 | AA77: =Z77/0.0036 -> 231635.8025 | AB77: 791.6666667 | AC77: =AB77/0.0036 -> 219907.4074 | AD77: 796.9444444 | AE77: =AD77/0.0036 -> 221373.4568 | AF77: 786.3888889 | AG77: =AF77/0.0036 -> 218441.358
A78: Solaire/éolien/géothermie | B78: 25167 | D78: 26172.8 | F78: 22919.35 | H78: 22237.4 | J78: 20439.6 | L78: 20697.375 | N78: 19881 | P78: 18205.5 | R78: 16163.625 | T78: 16919.5 | V78: 15173.125 | X78: 13096.75 | Z78: 12865.5 | AB78: 10683.6 | AD78: 9609.5 | AF78: 8118.8
A79: Exploitation de l'énergie solaire | B79: 4187 | C79: =B79*10^6/3600 -> 1163055.556 | D79: 4202.8 | E79: =D79*10^6/3600 -> 1167444.444 | F79: 4249.35 | G79: =F79*10^6/3600 -> 1180375 | H79: 4217.4 | I79: =H79*10^6/3600 -> 1171500 | J79: 4089.6 | K79: 1136000 | L79: 4047.375 | M79: 1124270.833 | N79: 3951 | O79: 1097500 | P79: 3805.5 | Q79: =P79/0.0036 -> 1057083.333 | R79: 3563.625 | S79: =R79/0.0036 -> 989895.8333 | T79: 3289.5 | U79: =T79/0.0036 -> 913750 | V79: 2983.125 | W79: =V79/0.0036 -> 828645.8333 | X79: 2676.75 | Y79: =X79/0.0036 -> 743541.6667 | Z79: 2015.5 | AA79: =Z79/0.0036 -> 559861.1111 | AB79: 1723.6 | AC79: =AB79/0.0036 -> 478777.7778 | AD79: 1459.5 | AE79: =AD79/0.0036 -> 405416.6667 | AF79: 1278.8 | AG79: =AF79/0.0036 -> 355222.2222
A80: Exploitation de la chaleur de l'environnement | B80: 20980 | C80: 5827777.778 | D80: 21970 | E80: 6102777.778 | F80: 18670 | G80: 5186111.111 | H80: 18020 | I80: 5005555.556 | J80: 16350 | K80: 4541666.667 | L80: 16650 | M80: 4625000 | N80: 15930 | O80: 4425000 | P80: 14400 | Q80: =P80/0.0036 -> 4000000 | R80: 12600 | S80: =R80/0.0036 -> 3500000 | T80: 13630 | U80: =T80/0.0036 -> 3786111.111 | V80: 12190 | W80: =V80/0.0036 -> 3386111.111 | X80: 10420 | Y80: =X80/0.0036 -> 2894444.444 | Z80: 10850 | AA80: =Z80/0.0036 -> 3013888.889 | AB80: 8960 | AC80: =AB80/0.0036 -> 2488888.889 | AD80: 8150 | AE80: =AD80/0.0036 -> 2263888.889 | AF80: 6840 | AG80: =AF80/0.0036 -> 1900000
A81: Source de chaleur: air | B81: 0 | C81: 0 | D81: 0 | E81: 0 | F81: 0 | G81: 0 | H81: 0 | I81: 0 | K81: 0 | L81: 0 | M81: 0 | O81: 0 | P81: 0 | R81: 0 | T81: 0 | V81: 0 | X81: 0 | Z81: 0 | AB81: 0 | AD81: 0 | AF81: 0
A82: Source de chaleur: saumure ou eau | B82: 0 | C82: 0 | D82: 0 | E82: 0 | F82: 0 | G82: 0 | H82: 0 | I82: 0 | K82: 0 | L82: 0 | M82: 0 | O82: 0 | P82: 0 | R82: 0 | T82: 0 | V82: 0 | X82: 0 | Z82: 0 | AB82: 0 | AD82: 0 | AF82: 0
A83: Déchets industriels | B83: 652.068 | C83: 181130 | D83: 638.793 | E83: 177442.5 | F83: 687.2621 | G83: 190906.1389 | H83: 696.8157 | I83: 193559.9167 | J83: 649.0477 | K83: 180291.0278 | L83: 777.5 | M83: 215972.2222 | N83: 671 | O83: 186388.8889 | P83: 634.44 | Q83: =P83/0.0036 -> 176233.3333 | R83: 735.826 | S83: =R83/0.0036 -> 204396.1111 | T83: 608.19 | U83: =T83/0.0036 -> 168941.6667 | V83: 599.46 | W83: =V83/0.0036 -> 166516.6667 | X83: 611.682 | Y83: =X83/0.0036 -> 169911.6667 | Z83: 564.248 | AA83: =Z83/0.0036 -> 156735.5556 | AB83: 534.462 | AC83: =AB83/0.0036 -> 148461.6667 | AD83: 625.506 | AE83: =AD83/0.0036 -> 173751.6667 | AF83: 595.72 | AG83: =AF83/0.0036 -> 165477.7778
A84: Chaleur à distance | B84: 17707.44 | C84: 4918733.333 | D84: 19141.61 | E84: 5317113.889 | F84: 18436.25 | G84: 5121180.556 | H84: 18865 | I84: 5240277.778 | J84: 16975 | K84: 4715277.778 | L84: 17440.83 | M84: 4844675 | N84: 17032 | O84: 4731111.111 | P84: 15894.01 | Q84: 4415002.778 | R84: 14156.01 | S84: =R84/0.0036 -> 3932225 | T84: 15278.06 | U84: =T84/0.0036 -> 4243905.556 | V84: 14415.52 | W84: =V84/0.0036 -> 4004311.111 | X84: 13544.44 | Y84: =X84/0.0036 -> 3762344.444 | Z84: 13998.88 | AA84: =Z84/0.0036 -> 3888577.778 | AB84: 12439.84 | AC84: =AB84/0.0036 -> 3455511.111 | AD84: 12561.64 | AE84: =AD84/0.0036 -> 3489344.444 | AF84: 11912.04 | AG84: =AF84/0.0036 -> 3308900
A85: Moyenne CH | B85: 0 | C85: 0 | D85: 0 | E85: 0 | F85: 0 | G85: 0 | H85: 0 | I85: 0 | K85: 0 | L85: 0 | M85: 0 | N85: 0 | O85: 0 | P85: 0 | Q85: 0 | R85: 0 | S85: =R85/0.0036 -> 0 | T85: 0 | U85: =T85/0.0036 -> 0 | V85: 0 | W85: =V85/0.0036 -> 0 | X85: 0 | Y85: =X85/0.0036 -> 0 | Z85: 0 | AA85: =Z85/0.0036 -> 0 | AB85: 0 | AC85: =AB85/0.0036 -> 0 | AD85: 0 | AE85: =AD85/0.0036 -> 0 | AF85: 0 | AG85: =AF85/0.0036 -> 0
A86: Electricité variante A | B86: 411261.0339 | D86: 401420.3215 | F86: 409942.2703 | H86: 424218.7169 | J86: 442228.8326 | L86: 477220.3071 | N86: 494770 | P86: 485693.0568 | R86: 507033.7174 | T86: 532983.749 | V86: 564165.3771 | X86: 595077.3607 | Z86: 623351.4356 | AB86: 617007.0702 | AD86: 630882.8626 | AF86: 611691.8377
A87: Centrale nucléaire | B87: 185905.2063 | C87: =B87*10^6/3600 -> 51640335.08 | D87: 175073.3885 | E87: =D87*10^6/3600 -> 48631496.81 | F87: 181611.7603 | G87: =F87*10^6/3600 -> 50447711.21 | H87: 160908.0805 | I87: =H87*10^6/3600 -> 44696689.02 | J87: 141036.5201 | K87: 39176811.15 | L87: 161499.6751 | M87: 44861020.87 | N87: 192428 | O87: 53452222.22 | P87: 190484.9121 | Q87: 52912475.58 | R87: 236563.4408 | S87: =R87/0.0036 -> 65712066.9 | T87: 271028.6065 | U87: =T87/0.0036 -> 75285724.02 | V87: 321530.8425 | W87: =V87/0.0036 -> 89314122.91 | X87: 370421.9592 | Y87: =X87/0.0036 -> 102894988.7 | Z87: 380087.048 | AA87: =Z87/0.0036 -> 105579735.6 | AB87: 367600.6054 | AC87: =AB87/0.0036 -> 102111279.3 | AD87: 374342.8152 | AE87: =AD87/0.0036 -> 103984115.3 | AF87: 361162.0374 | AG87: =AF87/0.0036 -> 100322788.2
A88: Aménagement hydro-électrique | B88: 182443.5383 | C88: 50678760.63 | D88: 191793.2847 | E88: 53275912.42 | F88: 179967.0955 | G88: 49990859.86 | H88: 182501.9467 | I88: 50694985.18 | J88: 167710.328 | K88: 46586202.21 | L88: 157689.8078 | M88: 43802724.4 | N88: 146560 | O88: 40711111.11 | P88: 143903.0053 | Q88: 39973057.04 | R88: 131359.7657 | S88: 36488823.8 | T88: 139730.8249 | U88: 38814118.03 | V88: 126413.148 | W88: 35114763.34 | X88: 112001.1017 | Y88: 31111417.15 | Z88: 106705.7101 | AA88: 29640475.04 | AB88: 95685.57161 | AC88: 26579325.45 | AD88: 96966.10874 | AE88: 26935030.21 | AF88: 93612.69254 | AG88: 26003525.71
A89: Gaz naturel_GuD | B89: 0 | C89: 0 | D89: 0 | E89: 0 | F89: 0 | G89: 0 | H89: 0 | I89: 0 | J89: 0 | K89: 0 | L89: 0 | M89: 0 | N89: 0 | O89: 0 | P89: 0 | Q89: 0 | R89: 0 | S89: 0 | T89: 0 | U89: 0 | V89: 0 | W89: 0 | X89: 0 | Y89: 0 | Z89: 0 | AA89: 0 | AB89: 0 | AC89: 0 | AD89: 0 | AE89: 0 | AF89: 0 | AG89: 0
A90: Centrale au charbon | B90: 5843.002815 | C90: 1623056.337 | D90: 6868.007395 | E90: 1907779.832 | F90: 2052.202634 | G90: 570056.2871 | H90: 9063.918965 | I90: 2517755.268 | J90: 0 | K90: 0 | L90: 0 | M90: 0 | N90: 87 | O90: 24166.66667 | P90: 85.9834842 | Q90: 23884.30117 | R90: 169.917462 | S90: 47199.295 | T90: 889.365504 | U90: 247045.9733 | V90: 888.337992 | W90: 246760.5533 | X90: 883.747152 | Y90: 245485.32 | Z90: 878.896928 | AA90: 244138.0356 | AB90: 846.966176 | AC90: 235268.3822 | AD90: 1299.98568 | AE90: 361107.1333 | AF90: 1680.381696 | AG90: 466772.6933
A91: Centrale_mazout | B91: 169.0539632 | C91: 46959.43423 | D91: 168.1393438 | E91: 46705.37327 | F91: 83.0291997 | G91: 23063.66658 | H91: 169.2522783 | I91: 47014.52175 | J91: 0 | K91: 0 | L91: 0 | M91: 0 | N91: 82 | O91: 22777.77778 | P91: 81.2974388 | Q91: 22582.62189 | R91: 160.657068 | S91: 44626.96333 | T91: 0 | U91: 0 | V91: 425.38573 | W91: 118162.7028 | X91: 846.37476 | Y91: 235104.1 | Z91: 863.20234 | AA91: 239778.4278 | AB91: 831.84178 | AC91: 231067.1611 | AD91: 2553.5433 | AE91: 709317.5833 | AF91: 4125.9372 | AG91: 1146093.667
A92: Incinération des ordures ménagères | B92: 26.7322861 | C92: 7425.635028 | D92: 22.581299 | E92: 6272.583056 | F92: 26.71019179 | G92: 7419.497719 | H92: 37.48221063 | I92: 10411.72518 | J92: 31.32391699 | K92: 8701.088054 | L92: 35.80292016 | M92: 9945.2556 | N92: 41 | O92: 11388.88889 | P92: 40.78167232 | Q92: 11328.24231 | R92: 54.9485937 | S92: 15263.49825 | T92: 61.0609152 | U92: 16961.36533 | V92: 68.6141658 | W92: 19059.4905 | X92: 75.843972 | Y92: 21067.77 | Z92: 80.30023846 | AA92: 22305.62179 | AB92: 74.71451624 | AC92: 20754.03229 | AD92: 92.8340114 | AE92: 25787.22539 | AF92: 105.8811936 | AG92: 29411.44267
A93: Centrale de chauffage_à bois | B93: 7548.476471 | C93: 2096799.02 | D93: 6217.98201 | E93: 1727217.225 | F93: 11262.63182 | G93: 3128508.839 | H93: 9851.596256 | I93: 2736554.516 | J93: 9125.61225 | K93: 2534892.292 | L93: 8748.216672 | M93: 2430060.187 | N93: 8459 | O93: 2349722.222 | P93: 6137.956629 | Q93: 1704987.953 | R93: 6345.954186 | S93: 1762765.052 | T93: 6305.2032 | U93: 1751445.333 | V93: 4744.432012 | W93: 1317897.781 | X93: 2882.070936 | Y93: 800575.26 | Z93: 2428.176972 | AA93: 674493.6033 | AB93: 2339.960124 | AC93: 649988.9233 | AD93: 1470.2219 | AE93: 408394.9722 | AF93: 407.23536 | AG93: 113120.9333
A94: Centrale à énergie totale équipée_alimentée au diesel | B94: 0 | C94: 0 | D94: 0 | E94: 0 | F94: 0 | G94: 0 | H94: 0 | I94: 0 | J94: 0 | K94: 0 | L94: 0 | M94: 0 | N94: 0 | O94: 0 | P94: 0 | Q94: 0 | R94: 0 | S94: 0 | T94: 0 | U94: 0 | V94: 0 | W94: 0 | X94: 0 | Y94: 0 | Z94: 0 | AA94: 0 | AB94: 0 | AC94: 0 | AD94: 0 | AE94: 0 | AF94: 0 | AG94: 0
A95: Centrale à énergie totale équipée_alimentée au gaz | B95: 3072.744738 | C95: 853540.2051 | D95: 2865.112976 | E95: 795864.7155 | F95: 5747.152573 | G95: 1596431.27 | H95: 4230.554068 | I95: 1175153.908 | J95: 2485.506318 | K95: 690418.4216 | L95: 5635.64484 | M95: 1565456.9 | N95: 3560 | O95: 988888.8889 | P95: 3524.342052 | Q95: 978983.9033 | R95: 2405.979576 | S95: 668327.66 | T95: 5095.046656 | U95: 1415290.738 | V95: 9087.78605 | W95: 2524385.014 | X95: 13018.78267 | Y95: 3616328.52 | Z95: 11838.20352 | AA95: 3288389.867 | AB95: 9982.10136 | AC95: 2772805.933 | AD95: 9484.5894 | AE95: 2634608.167 | AF95: 8487.64224 | AG95: 2357678.4
A96: Centrale à énergie totale équipée_alimentée au biogaz | B96: 3297.086365 | C96: 915857.3236 | D96: 2715.941923 | E96: 754428.312 | F96: 1608.55346 | G96: 446820.4055 | H96: 1407.026305 | I96: 390840.6404 | J96: 1303.339698 | K96: 362038.805 | L96: 1315.75055 | M96: 365486.264 | N96: 1272 | O96: 353333.3333 | P96: 923.1618416 | Q96: 256433.8449 | R96: 954.4451202 | S96: 265123.6445 | T96: 978.136128 | U96: 271704.48 | V96: 736.0112292 | W96: 204447.5637 | X96: 485.0222009 | Y96: 134728.3892 | Z96: 127.1597941 | AA96: 35322.16502 | AB96: 122.540017 | AC96: 34038.89362 | AD96: 76.9931995 | AE96: 21386.99986 | AF96: 21.3262728 | AG96: 5923.964667
A97: Photovoltaïque | B97: 10963.83165 | C97: 3045508.792 | D97: 8741.887636 | E97: 2428302.121 | F97: 9021.716417 | G97: 2506032.338 | H97: 7960.054449 | I97: 2211126.236 | J97: 7034.052453 | K97: 1953903.459 | L97: 6235.5174 | M97: 1732088.167 | N97: 5044 | O97: 1401111.111 | P97: 4717.866918 | Q97: 1310518.588 | R97: 3018.027012 | S97: 838340.8367 | T97: 1935.36553 | U97: 537601.536 | V97: 1431.947808 | W97: 397763.28 | X97: 948.8190816 | Y97: 263560.856 | Z97: 521.0603216 | AA97: 144738.9782 | AB97: 107.5992744 | AC97: 29888.68733 | AD97: 183.50138 | AE97: 50972.60556 | AF97: 355.795104 | AG97: 98831.97333
A98: Centrale éolienne | B98: 11082.47455 | C98: 3078465.153 | D98: 6953.995637 | E98: 1931665.455 | F98: 4399.837062 | G98: 1222176.962 | H98: 1856.624059 | I98: 515728.9052 | J98: 2411.222485 | K98: 669784.0236 | L98: 1309.12038 | M98: 363644.55 | N98: 1193 | O98: 331388.8889 | P98: 1124.650896 | Q98: 312403.0267 | R98: 2250.275742 | S98: 625076.595 | T98: 2015.010202 | U98: 559725.056 | V98: 1837.666354 | W98: 510462.876 | X98: 1683.076666 | Y98: 467521.296 | Z98: 1103.329536 | AA98: 306480.4268 | AB98: 603.4634004 | AC98: 167628.7223 | AD98: 441.06657 | AE98: 122518.4917 | AF98: 285.064752 | AG98: 79184.65333
A99: Centrale géothermique | B99: 908.8864598 | C99: 252468.4611 | D99: 0 | E99: 0 | F99: 0 | G99: 0 | H99: 2226.21347 | I99: 618392.6307 | J99: 0 | K99: 0 | L99: 0 | M99: 0 | N99: 0 | O99: 0 | P99: 0 | Q99: 0 | R99: 0 | S99: 0 | T99: 0 | U99: 0 | V99: 0 | W99: 0 | X99: 0 | Y99: 0 | Z99: 0 | AA99: 0 | AB99: 0 | AC99: 0 | AD99: 371.42448 | AE99: 103173.4667 | AF99: 720.163584 | AG99: 200045.44
A100: Mix énergétique CH | B100: 0 | C100: 0 | D100: 0 | E100: 0 | F100: 0 | G100: 0 | H100: 0 | I100: 0 | J100: 0 | K100: 0 | L100: 0 | M100: 0 | O100: 0 | P100: 0 | Q100: 0 | R100: 0 | S100: 0 | T100: 0 | U100: 0 | V100: 0 | W100: 0 | X100: 0 | Y100: 0 | Z100: 0 | AA100: 0 | AB100: 0 | AC100: 0 | AD100: 0 | AE100: 0 | AF100: 0 | AG100: 0
A101: Mix de consommation CH | B101: 0 | C101: 0 | D101: 0 | E101: 0 | F101: 0 | G101: 0 | H101: 0 | I101: 0 | J101: 0 | K101: 0 | L101: 0 | M101: 0 | O101: 0 | P101: 0 | Q101: 0 | R101: 0 | S101: 0 | T101: 0 | U101: 0 | V101: 0 | W101: 0 | X101: 0 | Y101: 0 | Z101: 0 | AA101: 0 | AB101: 0 | AC101: 0 | AD101: 0 | AE101: 0 | AF101: 0 | AG101: 0
A102: Mix ENTSO | B102: 0 | C102: 0 | D102: 0 | E102: 0 | F102: 14161.58109 | G102: 3933772.525 | H102: 44005.9677 | I102: 12223879.92 | J102: 111090.9274 | K102: 30858590.94 | L102: 134750.7714 | M102: 37430769.82 | N102: 136043 | O102: 37789722.22 | P102: 134669.0984 | Q102: 37408082.89 | R102: 123750.3061 | S102: 34375085.03 | T102: 104945.1295 | U102: 29151424.85 | V102: 97001.20522 | W102: 26944779.23 | X102: 91830.56227 | Y102: 25508489.52 | Z102: 118718.3478 | AA102: 32977318.83 | AB102: 138811.7065 | AC102: 38558807.36 | AD102: 143599.7787 | AE102: 39888827.42 | AF102: 140727.6804 | AG102: 39091022.32
A103: Source: OFEN, Statistique globale de l'énergie, T14, T20, T24, T26; état: 2022; KBOB, eco-bau, IPB (2022), 2009/1:2022; propres calculs des secrétariats régionaux de la société à 2000 watts
A105: Emissions de gaz à effet de serre (équivalent CO2)
A106: Agent énergétique | C106: 2022 | E106: 2021 | G106: 2020 | I106: 2019 | K106: 2018 | M106: 2017 | O106: 2016 | Q106: 2015 | S106: 2014 | U106: 2013 | W106: 2012 | Y106: 2011 | AA106: 2010 | AC106: 2009 | AE106: 2008 | AG106: 2007
C107: [t/a] | E107: [t/a] | G107: [t/a] | I107: [t/a] | K107: [t/a] | M107: [t/a] | O107: [t/a] | Q107: [t/a] | S107: [t/a] | U107: [t/a] | W107: [t/a] | Y107: [t/a] | AA107: [t/a] | AC107: [t/a] | AE107: [t/a] | AG107: [t/a]
A108: =A57 -> Agent énergétique fossile | C108: 47561739.66 | E108: 46202924.11 | G108: 38180422.51 | I108: 45420313.54 | K108: 45591461.18 | M108: 46407330.97 | O108: 47352027 | Q108: 46702470.08 | S108: 46561381.61 | U108: 51612175.92 | W108: 50527433.41 | Y108: 48694639.17 | AA108: 53042918.21 | AC108: 51347854.09 | AE108: 52708828.23 | AG108: 50850232.3
A109: Mazout_EL | C109: 8321687.234 | E109: 10338443.62 | G109: 8650511.17 | I109: 9652751.011 | K109: 9881398.883 | M109: 10885044.38 | O109: 11643676 | Q109: 11371927.44 | S109: 10768041.48 | U109: 14300774.33 | W109: 13579885.47 | Y109: 12677830.82 | AA109: 16039579.79 | AC109: 15260191.76 | AE109: 15757192.82 | AG109: 15060638.3
A110: Mazout_M_S | C110: 0 | E110: 0 | G110: 3659.787234 | I110: 3659.787234 | K110: 3659.787234 | M110: 7249.446809 | O110: 10874 | Q110: 21748.34043 | S110: 32622.51064 | U110: 76119.19149 | W110: 130490.0426 | Y110: 130490.0426 | AA110: 195261.7021 | AC110: 238653.1915 | AE110: 329052.1277 | AG110: 332668.0851
A111: Coke de pétrole | C111: 94018.61702 | E111: 77667.55319 | G111: 90799.14894 | I111: 61908.51064 | K111: 140325.9574 | M111: 99053.61702 | O111: 231125 | Q111: 103180.8511 | S111: 160962.1277 | U111: 133965.9574 | W111: 174561.7021 | Y111: 162382.9787 | AA111: 190800 | AC111: 154263.8298 | AE111: 133965.9574 | AG111: 158323.4043
A112: Autres_combustibles pétroliers | C112: 299489.3617 | E112: 299489.3617 | G112: 265601.0638 | I112: 277859.5745 | K112: 290118.0851 | M112: 295432.5532 | O112: 263056 | Q112: 315667.6596 | S112: 311620.6383 | U112: 352090.8511 | W112: 352090.8511 | Y112: 364231.9149 | AA112: 367388.2979 | AC112: 403723.4043 | AE112: 379500 | AG112: 399686.1702
A113: Gaz | C113: 7215895.062 | E113: 8680370.37 | G113: 7937820 | I113: 8102400 | K113: 7897026.667 | M113: 8362633.333 | O113: 8245177 | Q113: 7942743.333 | S113: 7532700 | U113: 8828166.667 | W113: 8358793.333 | Y113: 7619640 | AA113: 8618206.667 | AC113: 7770806.667 | AE113: 8094156.667 | AG113: 7596123.333
A114: Essence | C114: 8622937.276 | E114: 8880980.287 | G114: 8229903.161 | I114: 9292745.677 | K114: 9370117.355 | M114: 9488659.871 | O114: 9788985 | Q114: 10105544.52 | S114: 10905059.48 | U114: 11375839.87 | W114: 11919672.39 | Y114: 12353926.71 | AA114: 12820053.16 | AC114: 13293820.13 | AE114: 13666354.84 | AG114: 13970051.61
A115: Diesel | C115: 10794194.44 | E115: 10815097.22 | G115: 9864355.532 | I115: 10408090.53 | K115: 10404234.26 | M115: 10236561.7 | O115: 10267302 | Q115: 10155868.09 | S115: 10298042.55 | U115: 10070856.17 | W115: 9644840.532 | Y115: 9092171.596 | AA115: 8836939.149 | AC115: 8503830.957 | AE115: 8369821.915 | AG115: 7611713.617
A116: Carburant aérien | C116: 11766255.32 | E116: 6681127.66 | G116: 2710974.638 | I116: 7177009.021 | K116: 7104359.489 | M116: 6495772.596 | O116: 6344278 | Q116: 6056070.128 | S116: 5863931.234 | U116: 5830529.362 | W116: 5767636.596 | Y116: 5630752.34 | AA116: 5276429.617 | AC116: 5025171.064 | AE116: 5239479.83 | AG116: 4899541.787
A117: Charbon | C117: 447262.3493 | E117: 429748.0355 | G117: 426798.0132 | I117: 443889.4231 | K117: 500220.7031 | M117: 536923.4649 | O117: 557552 | Q117: 629719.7354 | S117: 688401.582 | U117: 643833.5177 | W117: 599462.5 | Y117: 663212.766 | AA117: 698259.8286 | AC117: 697393.0921 | AE117: 739304.0712 | AG117: 821485.9914
A118: Houille | C118: 0 | E118: 0 | G118: 0 | I118: 0 | K118: 0 | M118: 0 | Q118: 0 | S118: 0 | U118: 0 | W118: 0 | Y118: 0 | AA118: 0 | AC118: 0 | AE118: 0 | AG118: 0
A119: Briquettes de houille | C119: 0 | E119: 0 | G119: 0 | I119: 0 | K119: 0 | M119: 0 | Q119: 0 | S119: 0 | U119: 0 | W119: 0 | Y119: 0 | AA119: 0 | AC119: 0 | AE119: 0 | AG119: 0
A120: Lignite | C120: 0 | E120: 0 | G120: 0 | I120: 0 | K120: 0 | M120: 0 | Q120: 0 | S120: 0 | U120: 0 | W120: 0 | Y120: 0 | AA120: 0 | AC120: 0 | AE120: 0 | AG120: 0
A121: Coke de houille | C121: 0 | E121: 0 | G121: 0 | I121: 0 | K121: 0 | M121: 0 | Q121: 0 | S121: 0 | U121: 0 | W121: 0 | Y121: 0 | AA121: 0 | AC121: 0 | AE121: 0 | AG121: 0
A122: Biomasse | C122: 523570.4666 | E122: 542550.047 | G122: 551363.7965 | I122: 580041.2992 | K122: 563906.2606 | M122: 439500.9914 | O122: 370625 | Q122: 305793.8727 | S122: 249543.9787 | U122: 266035.1859 | W122: 249988.859 | Y122: 254177.3349 | AA122: 247464.2067 | AC122: 225511.2402 | AE122: 224483.122 | AG122: 206170.9594
A123: Bois | C123: 216413.7578 | E123: 241349.6807 | G123: 223264.8954 | I123: 231012.7278 | K123: 226693.0738 | M123: 166644.2148 | O123: 171924 | Q123: 160471.162 | S123: 146396.9458 | U123: 183144.2213 | W123: 165412.351 | Y123: 149216.529 | AA123: 166677.0272 | AC123: 150549.7017 | AE123: 144120.3015 | AG123: 128065.648
A124: Bûches
A125: Copeaux ou plaquettes de bois
A126: Pellets
A127: Biocarburants | C127: 234440.6593 | E127: 228867.033 | G127: 254498.9011 | I127: 273428.5714 | K127: 263613.1868 | M127: 201690.1099 | O127: 127534 | Q127: 74156.04396 | S127: 31167.03297 | U127: 15613.18681 | W127: 16914.28571 | Y127: 20027.47253 | AA127: 14953.84615 | AC127: 12461.53846 | AE127: 17446.15385 | AG127: 16021.97802
A128: Biogaz | C128: 72716.04938 | E128: 72333.33333 | G128: 73600 | I128: 75600 | K128: 73600 | M128: 71166.66667 | O128: 71167 | Q128: 71166.66667 | S128: 71980 | U128: 67277.77778 | W128: 67662.22222 | Y128: 84933.33333 | AA128: 65833.33333 | AC128: 62500 | AE128: 62916.66667 | AG128: 62083.33333
A129: Solaire/éolien/géothermie | C129: 23868.40278 | E129: 23958.47222 | G129: 21273.35 | I129: 21113.4 | K129: 20473.6 | M129: 22602.55 | O129: 22062 | Q129: 21251.8 | S129: 19901.05 | U129: 18987.3 | W129: 17218.875 | Y129: 15450.45 | AA129: 12854.25 | AC129: 10992.6 | AE129: 9308.25 | AG129: 8155.8
A130: Exploitation de l'énergie solaire | C130: 23868.40278 | E130: 23958.47222 | G130: 21273.35 | I130: 21113.4 | K130: 20473.6 | M130: 22602.55 | O130: 22062 | Q130: 21251.8 | S130: 19901.05 | U130: 18987.3 | W130: 17218.875 | Y130: 15450.45 | AA130: 12854.25 | AC130: 10992.6 | AE130: 9308.25 | AG130: 8155.8
A131: Exploitation de la chaleur de l'environnement | C131: 0 | E131: 0 | G131: 0 | I131: 0 | K131: 0 | M131: 0 | O131: 0 | Q131: 0 | S131: 0 | U131: 0 | W131: 0 | Y131: 0 | AA131: 0 | AC131: 0 | AE131: 0 | AG131: 0
A132: Source de chaleur: air | C132: 0 | E132: 0 | G132: 0 | I132: 0 | K132: 0 | M132: 0 | O132: 0 | Q132: 0 | S132: 0 | U132: 0 | W132: 0 | Y132: 0 | AA132: 0 | AC132: 0 | AE132: 0 | AG132: 0
A133: Source de chaleur: saumure ou eau | C133: 0 | E133: 0 | G133: 0 | I133: 0 | K133: 0 | M133: 0 | O133: 0 | Q133: 0 | S133: 0 | U133: 0 | W133: 0 | Y133: 0 | AA133: 0 | AC133: 0 | AE133: 0 | AG133: 0
A134: Déchets industriels | C134: 11393.11111 | E134: 11161.16667 | G134: 8620.99 | I134: 8740.83 | K134: 8141.63 | M134: 11750 | O134: 10143 | Q134: 9588 | S134: 11120.2 | U134: 10000.65 | W134: 9857.1 | Y134: 10058.07 | AA134: 8785 | AC134: 8321.25 | AE134: 9738.75 | AG134: 9275
A135: Chaleur à distance | C135: 396346.6667 | E135: 428447.7778 | G135: 632100 | I135: 646800 | K135: 582000 | M135: 604107 | O135: 589960 | Q135: 550529 | S135: 490329 | U135: 796105 | W135: 751160 | Y135: 705770 | AA135: 779248 | AC135: 692464 | AE135: 699244 | AG135: 663084
A136: Moyenne CH | C136: 0 | E136: 0 | G136: 0 | I136: 0 | K136: 0 | M136: 0 | O136: 0 | Q136: 0 | S136: 0 | U136: 0 | W136: 0 | Y136: 0 | AA136: 0 | AC136: 0 | AE136: 0 | AG136: 0
A137: Electricité variante A | C137: 2151663.962 | E137: 2120238.539 | G137: 2505656.57 | I137: 4331497.162 | K137: 6339639.246 | M137: 7585464.746 | O137: 7514026 | Q137: 7363704.16 | S137: 6830439.264 | U137: 6216434.125 | W137: 6089932.932 | Y137: 6086168.452 | AA137: 7222096.051 | AC137: 7984855.944 | AE137: 8336167.016 | AG137: 8242754.471
A138: Centrale nucléaire | C138: 292783.1648 | E138: 275724.0735 | G138: 278767.684 | I138: 246988.2614 | K138: 216486.113 | M138: 250668.9271 | O138: 298674 | Q138: 295657.8612 | S138: 367177.8525 | U138: 300328.9964 | W138: 356290.9336 | Y138: 410467.5765 | AA138: 430392.6867 | AC138: 416253.6267 | AE138: 423888.1878 | AG138: 408962.8953
A139: Aménagement hydro-électrique | C139: 525959.6852 | E139: 552913.7212 | G139: 510332.0473 | I139: 517520.1156 | K139: 475575.5756 | M139: 459928.6062 | O139: 427467 | Q139: 419717.0989 | S139: 383132.6499 | U139: 402012.4553 | W139: 363696.8439 | Y139: 322232.678 | AA139: 293003.3844 | AC139: 262743.1679 | AE139: 266259.397 | AG139: 257051.2459
A140: Gaz naturel_GuD | C140: 0 | E140: 0 | G140: 0 | I140: 0 | K140: 0 | M140: 0 | O140: 0 | Q140: 0 | S140: 0 | U140: 0 | W140: 0 | Y140: 0 | AA140: 0 | AC140: 0 | AE140: 0 | AG140: 0
A141: Centrale au charbon | C141: 535021.3073 | E141: 628877.0367 | G141: 187421.7005 | I141: 827781.369 | K141: 0 | M141: 0 | O141: 7937 | Q141: 7857.29938 | S141: 15527.3118 | U141: 76104.9088 | W141: 76016.9824 | Y141: 75624.1344 | AA141: 77127.6896 | AC141: 74325.6032 | AE141: 114080.376 | AG141: 147462.0672
A142: Centrale_mazout | C142: 13395.87689 | E142: 13323.40222 | G142: 6087.08944 | I142: 12408.33056 | K142: 0 | M142: 0 | O142: 5989 | Q142: 5928.39232 | S142: 11715.4752 | U142: 0 | W142: 30605.6746 | Y142: 60895.0152 | AA142: 62105.7268 | AC142: 59849.3956 | AE142: 183722.466 | AG142: 296853.144
A143: Incinération des ordures ménagères | C143: 3230.72244 | E143: 2729.056136 | G143: 2869.813555 | I143: 4027.187712 | K143: 3365.524378 | M143: 3826.555488 | O143: 4403 | Q143: 4358.676089 | S143: 5872.81266 | U143: 5601.675264 | W143: 6294.603906 | Y143: 6957.86004 | AA143: 7087.227524 | AC143: 6594.236656 | AE143: 8193.44716 | AG143: 9344.97984
A144: Centrale de chauffage_à bois | C144: 38262.75583 | E144: 31518.5625 | G144: 94919.60323 | I144: 83027.62824 | K144: 76909.15478 | M144: 66842.9424 | O144: 64634 | Q144: 46898.59623 | S144: 48487.8537 | U144: 52432.7424 | W144: 39453.69778 | Y144: 23966.69515 | AA144: 20192.2085 | AC144: 19458.61577 | AE144: 12226.0558 | AG144: 3386.48352
A145: Centrale à énergie totale équipée_alimentée au diesel | C145: 0 | E145: 0 | G145: 0 | I145: 0 | K145: 0 | M145: 0 | O145: 0 | Q145: 0 | S145: 0 | U145: 0 | W145: 0 | Y145: 0 | AA145: 0 | AC145: 0 | AE145: 0 | AG145: 0
A146: Centrale à énergie totale équipée_alimentée au gaz | C146: 194703.4368 | E146: 181546.92 | G146: 362625.8976 | I146: 266933.6592 | K146: 156827.0458 | M146: 356540.796 | O146: 225243 | Q146: 222968.5788 | S146: 152215.0344 | U146: 317472.512 | W146: 566260.225 | Y146: 811200.744 | AA146: 735403.552 | AC146: 620100.236 | AE146: 589194.19 | AG146: 527262.624
A147: Centrale à énergie totale équipée_alimentée au biogaz | C147: 371403.8166 | E147: 305940.18 | G147: 234105.9939 | I147: 204776.0923 | K147: 189685.7288 | M147: 191733.7032 | O147: 185396 | Q147: 134524.9208 | S147: 139083.5804 | U147: 126352.9536 | W147: 95075.92045 | Y147: 70269.44006 | AA147: 33163.78549 | AC147: 31958.92906 | AE147: 20080.13595 | AG147: 5561.97768
A148: Photovoltaïque | C148: 106671.2425 | E148: 85053.11329 | G148: 155586.8726 | I148: 137277.6443 | K148: 121307.9831 | M148: 104188.392 | O148: 84285 | Q148: 78830.18141 | S148: 51737.60592 | U148: 33092.36122 | W148: 24484.53968 | Y148: 14689.54843 | AA148: 7941.461528 | AC148: 1639.916652 | AE148: 2796.7379 | AG148: 5422.66032
A149: Centrale éolienne | C149: 67910.83607 | E149: 42612.47391 | G149: 24589.02525 | I149: 10375.96966 | K149: 13475.4105 | M149: 7438.64526 | O149: 6778 | Q149: 6390.458192 | S149: 12786.45053 | U149: 11525.24774 | W149: 10510.89467 | Y149: 9626.688504 | AA149: 6520.428689 | AC149: 3566.332577 | AE149: 2606.60394 | AG149: 1684.668384
A150: Centrale géothermique | C150: 2321.11736 | E150: 0 | G150: 0 | I150: 5683.103712 | K150: 0 | M150: 0 | O150: 0 | Q150: 0 | S150: 0 | U150: 0 | W150: 0 | Y150: 0 | AA150: 0 | AC150: 0 | AE150: 948.45894 | AG150: 1838.989152
A151: Mix énergétique CH | C151: 0 | E151: 0 | G151: 0 | I151: 0 | K151: 0 | M151: 0 | Q151: 0 | S151: 0 | U151: 0 | W151: 0 | Y151: 0 | AA151: 0 | AC151: 0 | AE151: 0 | AG151: 0
A152: Mix de consommation CH | C152: 0 | E152: 0 | G152: 0 | I152: 0 | K152: 0 | M152: 0 | Q152: 0 | S152: 0 | U152: 0 | W152: 0 | Y152: 0 | AA152: 0 | AC152: 0 | AE152: 0 | AG152: 0
A153: Mix ENTSO | C153: 0 | E153: 0 | G153: 648350.8432 | I153: 2014697.8 | K153: 5086006.71 | M153: 6144296.178 | O153: 6203219 | Q153: 6140572.097 | S153: 5642702.637 | U153: 4891510.272 | W153: 4521242.616 | Y153: 4280238.072 | AA153: 5549157.9 | AC153: 6488365.884 | AE153: 6712170.96 | AG153: 6577922.736
A154: Source: OFEN, Statistique globale de l'énergie, T14, T20, T24, T26; état: 2022; KBOB 2009/1:2022; propres calculs des secrétariats régionaux de la société à 2000 watts
A156: Chaleur à distance Utilisation de l'énergie
A157: Année | C157: Agent énergétique Répartition [%]
C158: Mazout_EL | E158: Mazout_M_S | G158: Gaz | I158: Charbon | K158: Déchets | M158: Bois | O158: Electricité | Q158: Combustibles nucléaires | S158: Divers
A159: 2007 | C159: 0.002 | E159: 0 | G159: 0.098 | I159: 0 | K159: 0.867 | M159: 0.006 | O159: 0.001 | Q159: 0.025 | S159: 0.002
A160: 2008 | C160: 0.002 | E160: 0 | G160: 0.113 | I160: 0 | K160: 0.846 | M160: 0.012 | O160: 0.001 | Q160: 0.026 | S160: 0.001
A161: 2009 | C161: 0.004 | E161: 0 | G161: 0.108 | I161: 0 | K161: 0.842 | M161: 0.019 | O161: 0.001 | Q161: 0.026 | S161: 0.002
A162: 2010 | C162: 0.004 | E162: 0 | G162: 0.116 | I162: 0 | K162: 0.831 | M162: 0.022 | O162: 0.001 | Q162: 0.025 | S162: 0.001
A163: 2011 | C163: 0.004 | E163: 0 | G163: 0.086 | I163: 0 | K163: 0.856 | M163: 0.024 | O163: 0.001 | Q163: 0.025 | S163: 0.004
A164: 2012 | C164: 0.011 | E164: 0 | G164: 0.103 | I164: 0 | K164: 0.824 | M164: 0.031 | O164: 0.001 | Q164: 0.025 | S164: 0.005
A165: 2013 | C165: 0.009 | E165: 0 | G165: 0.126 | I165: 0 | K165: 0.801 | M165: 0.036 | O165: 0.001 | Q165: 0.023 | S165: 0.003
A166: 2014 | C166: 0.012 | E166: 0 | G166: 0.086 | I166: 0 | K166: 0.838 | M166: 0.037 | O166: 0.001 | Q166: 0.022 | S166: 0.004
A167: 2015 | C167: 0.006 | E167: 0 | G167: 0.11 | I167: 0 | K167: 0.821 | M167: 0.039 | O167: 0.001 | Q167: 0.02 | S167: 0.004
A168: 2016 | C168: 0.005 | E168: 0 | G168: 0.126 | I168: 0 | K168: 0.804 | M168: 0.038 | O168: 0.001 | Q168: 0.022 | S168: 0.004
A169: 2017 | C169: 0.005557426743 | E169: 0 | G169: 0.1163691479 | I169: 0 | K169: 0.8118895251 | M169: 0.0389019872 | O169: 0.001010441226 | Q169: 0.02222970697 | S169: 0.004041764904
A170: 2018 | C170: 0.004236570073 | E170: 0 | G170: 0.1115065243 | I170: 0 | K170: 0.8205388917 | M170: 0.03609557702 | O170: 0.0005083884087 | Q170: 0.02287747839 | S170: 0.004236570073
A171: 2019 | C171: 0.004761904762 | E171: 0 | G171: 0.1136288998 | I171: 0 | K171: 0.7998357964 | M171: 0.05435139573 | O171: 0.0006568144499 | Q171: 0.02266009852 | S171: 0.004105090312
A172: 2020 | C172: 0.003602423449 | E172: 0 | G172: 0.112330113 | I172: 0 | K172: 0.8003929916 | M172: 0.05403635173 | O172: 0.001309972163 | Q172: 0.02325200589 | S172: 0.005076142132
A173: 2021 | C173: 0.006752411576 | E173: 0 | G173: 0.1353697749 | I173: 0 | K173: 0.770096463 | M173: 0.05836012862 | O173: 0.0008038585209 | Q173: 0.02443729904 | S173: 0.004180064309
A174: 2022 | C174: 0.007199177237 | E174: 0 | G174: 0.1107302023 | I174: 0 | K174: 0.7929379499 | M174: 0.06376414124 | O174: 0.0003428179637 | Q174: 0.02382584847 | S174: 0.001199862873
A175: Source: OFEN, Statistique globale de l'énergie, T26; état: 2022
A177: Consommation d'énergie finale par groupe de consommateurs
A178: Agent énergétique | C178: Ménages | U178: Industrie | AM178: Prestations | BE178: Transports
C179: 2014 | E179: 2015 | G179: 2016 | I179: 2017 | K179: 2018 | M179: 2019 | O179: 2020 | Q179: 2021 | S179: 2022 | U179: 2014 | W179: 2015 | Y179: 2016 | AA179: 2017 | AC179: 2018 | AE179: 2019 | AG179: 2020 | AI179: 2021 | AK179: 2022 | AM179: 2014 | AO179: 2015 | AQ179: 2016 | AS179: 2017 | AU179: 2018 | AW179: 2019 | AY179: 2020 | BA179: 2021 | BC179: 2022 | BE179: 2014 | BG179: 2015 | BI179: 2016 | BK179: 2017 | BM179: 2018 | BO179: 2019 | BQ179: 2020 | BS179: 2021 | BU179: 2022
B180: [TJ/a] | C180: [MWh/a] | D180: [TJ/a] | E180: [MWh/a] | F180: [TJ/a] | G180: [MWh/a] | H180: [TJ/a] | I180: [MWh/a] | J180: [TJ/a] | K180: [MWh/a] | L180: [TJ/a] | M180: [MWh/a] | N180: [TJ/a] | O180: [MWh/a] | P180: [TJ/a] | Q180: [MWh/a] | R180: [TJ/a] | S180: [MWh/a] | T180: [TJ/a] | U180: [MWh/a] | V180: [TJ/a] | W180: [MWh/a] | X180: [TJ/a] | Y180: [MWh/a] | Z180: [TJ/a] | AA180: [MWh/a] | AB180: [TJ/a] | AC180: [MWh/a] | AD180: [TJ/a] | AE180: [MWh/a] | AF180: [TJ/a] | AG180: [MWh/a] | AH180: [TJ/a] | AI180: [MWh/a] | AJ180: [TJ/a] | AK180: [MWh/a] | AL180: [TJ/a] | AM180: [MWh/a] | AN180: [TJ/a] | AO180: [MWh/a] | AP180: [TJ/a] | AQ180: [MWh/a] | AR180: [TJ/a] | AS180: [MWh/a] | AT180: [TJ/a] | AU180: [MWh/a] | AV180: [TJ/a] | AW180: [MWh/a] | AX180: [TJ/a] | AY180: [MWh/a] | AZ180: [TJ/a] | BA180: [MWh/a] | BB180: [TJ/a] | BC180: [MWh/a] | BD180: [TJ/a] | BE180: [MWh/a] | BF180: [TJ/a] | BG180: [MWh/a] | BH180: [TJ/a] | BI180: [MWh/a] | BJ180: [TJ/a] | BK180: [MWh/a] | BL180: [TJ/a] | BM180: [MWh/a] | BN180: [TJ/a] | BO180: [MWh/a] | BP180: [TJ/a] | BQ180: [MWh/a] | BR180: [TJ/a] | BS180: [MWh/a] | BT180: [TJ/a] | BU180: [MWh/a]
A181: Combustibles pétroliers | B181: 75230 | C181: =B181/0.0036 -> 20897222.22 | D181: 79520 | E181: =D181/0.0036 -> 22088888.89 | F181: 81430 | G181: =F181/0.0036 -> 22619444.44 | H181: 76210 | I181: =H181*10^6/3600 -> 21169444.44 | J181: 67980 | K181: =J181*10^6/3600 -> 18883333.33 | L181: 66740 | M181: =L181*10^6/3600 -> 18538888.89 | N181: 59470 | O181: =N181*10^6/3600 -> 16519444.44 | P181: 66130 | Q181: =P181*10^6/3600 -> 18369444.44 | R181: 51320 | S181: =R181*10^6/3600 -> 14255555.56 | T181: 16510 | U181: =T181/0.0036 -> 4586111.111 | V181: 16270 | W181: =V181/0.0036 -> 4519444.444 | X181: 16800 | Y181: =X181/0.0036 -> 4666666.667 | Z181: 14670 | AA181: =Z181*10^6/3600 -> 4075000 | AB181: 14250 | AC181: =AB181*10^6/3600 -> 3958333.333 | AD181: 12770 | AE181: =AD181*10^6/3600 -> 3547222.222 | AF181: 11680 | AG181: =AF181*10^6/3600 -> 3244444.444 | AH181: 11840 | AI181: =AH181*10^6/3600 -> 3288888.889 | AJ181: 11610 | AK181: =AJ181*10^6/3600 -> 3225000 | AL181: 32920 | AM181: =AL181/0.0036 -> 9144444.444 | AN181: 35030 | AO181: =AN181/0.0036 -> 9730555.556 | AP181: 33850 | AQ181: =AP181/0.0036 -> 9402777.778 | AR181: 34060 | AS181: =AR181*10^6/3600 -> 9461111.111 | AT181: 30670 | AU181: =AT181*10^6/3600 -> 8519444.444 | AV181: 30210 | AW181: =AV181*10^6/3600 -> 8391666.667 | AX181: 27600 | AY181: =AX181*10^6/3600 -> 7666666.667 | AZ181: 31070 | BA181: =AZ181*10^6/3600 -> 8630555.556 | BB181: 25730 | BC181: =BB181*10^6/3600 -> 7147222.222 | BE181: =BD181/0.0036 -> 0 | BG181: =BF181/0.0036 -> 0 | BI181: =BH181/0.0036 -> 0 | BK181: =BJ181/0.0036 -> 0 | BM181: =BL181/0.0036 -> 0 | BN181: 0 | BO181: =BN181/0.0036 -> 0 | BQ181: =BP181/0.0036 -> 0 | BS181: =BR181/0.0036 -> 0 | BU181: =BT181/0.0036 -> 0
A182: Carburants | C182: =B182/0.0036 -> 0 | E182: =D182/0.0036 -> 0 | G182: 0 | I182: =H182*10^6/3600 -> 0 | K182: =J182*10^6/3600 -> 0 | M182: =L182*10^6/3600 -> 0 | O182: =N182*10^6/3600 -> 0 | Q182: =P182*10^6/3600 -> 0 | S182: =R182*10^6/3600 -> 0 | U182: =T182/0.0036 -> 0 | W182: 0 | Y182: 0 | AA182: =Z182*10^6/3600 -> 0 | AC182: =AB182*10^6/3600 -> 0 | AE182: =AD182*10^6/3600 -> 0 | AG182: =AF182*10^6/3600 -> 0 | AI182: =AH182*10^6/3600 -> 0 | AK182: =AJ182*10^6/3600 -> 0 | AM182: 0 | AO182: 0 | AQ182: 0 | AS182: =AR182*10^6/3600 -> 0 | AU182: =AT182*10^6/3600 -> 0 | AW182: =AV182*10^6/3600 -> 0 | AY182: =AX182*10^6/3600 -> 0 | BA182: =AZ182*10^6/3600 -> 0 | BC182: =BB182*10^6/3600 -> 0 | BD182: 298260 | BE182: =BD182/0.0036 -> 82850000 | BF182: 290530 | BG182: 80702777.78 | BH182: 291820 | BI182: =BH182/0.0036 -> 81061111.11 | BJ182: 290100 | BK182: =BJ182*10^6/3600 -> 80583333.33 | BL182: 294300 | BM182: =BL182*10^6/3600 -> 81750000 | BN182: 294360 | BO182: =BN182*10^6/3600 -> 81766666.67 | BP182: 226720 | BQ182: =BP182*10^6/3600 -> 62977777.78 | BR182: 233210 | BS182: =BR182*10^6/3600 -> 64780555.56 | BT182: 256310 | BU182: =BT182*10^6/3600 -> 71197222.22
A183: Electricité | B183: 65830 | C183: 18286111.11 | D183: 67540 | E183: 18761111.11 | F183: 68680 | G183: 19077777.78 | H183: 69220 | I183: 19227777.78 | J183: 68710 | K183: 19086111.11 | L183: 68730 | M183: 19091666.67 | N183: 69470 | O183: 19297222.22 | P183: 72480 | Q183: 20133333.33 | R183: 69680 | S183: 19355555.56 | T183: 64870 | U183: 18019444.44 | V183: 64760 | W183: 17988888.89 | X183: 63940 | Y183: 17761111.11 | Z183: 64430 | AA183: 17897222.22 | AB183: 62320 | AC183: 17311111.11 | AD183: 62170 | AE183: 17269444.44 | AF183: 60070 | AG183: 16686111.11 | AH183: 62500 | AI183: 17361111.11 | AJ183: 62310 | AK183: 17308333.33 | AL183: 61630 | AM183: 17119444.44 | AN183: 62550 | AO183: 17375000 | AP183: 62010 | AQ183: 17225000 | AR183: 62060 | AS183: 17238888.89 | AT183: 61900 | AU183: 17194444.44 | AV183: 60660 | AW183: 16850000 | AX183: 57630 | AY183: 16008333.33 | AZ183: 58550 | BA183: 16263888.89 | BB183: 57040 | BC183: 15844444.44 | BD183: 11050 | BE183: 3069444.444 | BF183: 11290 | BG183: 3136111.111 | BH183: 11520 | BI183: 3200000 | BJ183: 11340 | BK183: =BJ183*10^6/3600 -> 3150000 | BL183: 11120 | BM183: =BL183*10^6/3600 -> 3088888.889 | BN183: 10950 | BO183: =BN183*10^6/3600 -> 3041666.667 | BP183: 10080 | BQ183: =BP183*10^6/3600 -> 2800000 | BR183: 12200 | BS183: =BR183*10^6/3600 -> 3388888.889 | BT183: 12850 | BU183: =BT183*10^6/3600 -> 3569444.444
A184: Gaz | B184: 42520 | C184: 11811111.11 | D184: 46260 | E184: 12850000 | F184: 48990 | G184: 13608333.33 | H184: 48490 | I184: 13469444.44 | J184: 46070 | K184: 12797222.22 | L184: 47730 | M184: 13258333.33 | N184: 47350 | O184: 13152777.78 | P184: 53240 | Q184: 14788888.89 | R184: 45550 | S184: 12652777.78 | T184: 40210 | U184: 11169444.44 | V184: 39370 | W184: 10936111.11 | X184: 39880 | Y184: 11077777.78 | Z184: 40910 | AA184: =Z184*10^6/3600 -> 11363888.89 | AB184: 39230 | AC184: =AB184*10^6/3600 -> 10897222.22 | AD184: 39470 | AE184: =AD184*10^6/3600 -> 10963888.89 | AF184: 38090 | AG184: =AF184*10^6/3600 -> 10580555.56 | AH184: 39620 | AI184: =AH184*10^6/3600 -> 11005555.56 | AJ184: 33100 | AK184: =AJ184*10^6/3600 -> 9194444.444 | AL184: 22630 | AM184: 6286111.111 | AN184: 25530 | AO184: 7091666.667 | AP184: 27060 | AQ184: 7516666.667 | AR184: 26460 | AS184: 7350000 | AT184: 24580 | AU184: =AT184*10^6/3600 -> 6827777.778 | AV184: 25810 | AW184: =AV184*10^6/3600 -> 7169444.444 | AX184: 25090 | AY184: =AX184*10^6/3600 -> 6969444.444 | AZ184: 26280 | BA184: =AZ184*10^6/3600 -> 7300000 | BB184: 20250 | BC184: =BB184*10^6/3600 -> 5625000 | BD184: 1500 | BE184: 416666.6667 | BF184: 1390 | BG184: 386111.1111 | BH184: 940 | BI184: 261111.1111 | BJ184: 1040 | BK184: 288888.8889 | BL184: 1080 | BM184: =BL184*10^6/3600 -> 300000 | BN184: 1180 | BO184: =BN184*10^6/3600 -> 327777.7778 | BP184: 1060 | BQ184: =BP184*10^6/3600 -> 294444.4444 | BR184: 660 | BS184: =BR184*10^6/3600 -> 183333.3333 | BT184: 920 | BU184: =BT184*10^6/3600 -> 255555.5556
A185: Charbon | B185: 400 | C185: 111111.1111 | D185: 400 | E185: 111111.1111 | F185: 200 | G185: 55555.55556 | H185: 100 | I185: 27777.77778 | J185: 100 | K185: 27777.77778 | L185: 100 | M185: 27777.77778 | N185: 100 | O185: 27777.77778 | P185: 100 | Q185: 27777.77778 | R185: 50 | S185: 13888.88889 | T185: 5500 | U185: 1527777.778 | V185: 5010 | W185: 1391666.667 | X185: 4590 | Y185: 1275000 | Z185: 4510 | AA185: 1252777.778 | AB185: 4190 | AC185: =AB185*10^6/3600 -> 1163888.889 | AD185: 3710 | AE185: 1030555.556 | AF185: 3560 | AG185: =AF185*10^6/3600 -> 988888.8889 | AH185: 3600 | AI185: =AH185*10^6/3600 -> 1000000 | AJ185: 3800 | AK185: =AJ185*10^6/3600 -> 1055555.556 | AM185: 0 | AO185: 0 | AQ185: 0 | AR185: 0 | AS185: 0 | AT185: 0 | AU185: =AT185*10^6/3600 -> 0 | AV185: 0 | AW185: 0 | AY185: =AX185*10^6/3600 -> 0 | BA185: =AZ185*10^6/3600 -> 0 | BC185: =BB185*10^6/3600 -> 0 | BE185: 0 | BG185: 0 | BI185: 0 | BK185: 0 | BM185: =BL185*10^6/3600 -> 0 | BO185: =BN185*10^6/3600 -> 0 | BP185: 0 | BQ185: =BP185*10^6/3600 -> 0 | BR185: 0 | BS185: =BR185*10^6/3600 -> 0 | BT185: 0 | BU185: 0
A186: Bois-énergie | B186: 16490 | C186: 4580555.556 | D186: 17970 | E186: 4991666.667 | F186: 19060 | G186: 5294444.444 | H186: 19580 | I186: 5438888.889 | J186: 18300 | K186: 5083333.333 | L186: 18340 | M186: 5094444.444 | N186: 17100 | O186: 4750000 | P186: 19760 | Q186: 5488888.889 | R186: 17140 | S186: 4761111.111 | T186: 10420 | U186: 2894444.444 | V186: 10430 | W186: 2897222.222 | X186: 11120 | Y186: 3088888.889 | Z186: 11670 | AA186: 3241666.667 | AB186: 10950 | AC186: 3041666.667 | AD186: 11330 | AE186: 3147222.222 | AF186: 11720 | AG186: 3255555.556 | AH186: 13900 | AI186: 3861111.111 | AJ186: 12920 | AK186: 3588888.889 | AL186: 7040 | AM186: 1955555.556 | AN186: 7860 | AO186: 2183333.333 | AP186: 8660 | AQ186: 2405555.556 | AR186: 8740 | AS186: 2427777.778 | AT186: 8240 | AU186: 2288888.889 | AV186: 8540 | AW186: 2372222.222 | AX186: 9700 | AY186: 2694444.444 | AZ186: 11610 | BA186: 3225000 | BB186: 10230 | BC186: 2841666.667 | BE186: 0 | BG186: 0 | BI186: 0 | BK186: 0 | BM186: 0 | BO186: 0 | BP186: 0 | BQ186: 0 | BR186: 0 | BS186: 0 | BT186: 0 | BU186: 0
A187: Chaleur à distance | B187: 6480 | C187: 1800000 | D187: 7200 | E187: 2000000 | F187: 7540 | G187: 2094444.444 | H187: 7740 | I187: 2150000 | J187: 7530 | K187: 2091666.667 | L187: 8580 | M187: 2383333.333 | N187: 8340 | O187: 2316666.667 | P187: 9600 | Q187: 2666666.667 | R187: 8520 | S187: 2366666.667 | T187: 6210 | U187: 1725000 | V187: 7080 | W187: 1966666.667 | X187: 7000 | Y187: 1944444.444 | Z187: 6850 | AA187: 1902777.778 | AB187: 6910 | AC187: 1919444.444 | AD187: 7390 | AE187: 2052777.778 | AF187: 7120 | AG187: 1977777.778 | AH187: 7860 | AI187: 2183333.333 | AJ187: 7770 | AK187: 2158333.333 | AL187: 3600 | AM187: 1000000 | AN187: 4010 | AO187: 1113888.889 | AP187: 5060 | AQ187: 1405555.556 | AR187: 5220 | AS187: 1450000 | AT187: 4960 | AU187: 1377777.778 | AV187: 5590 | AW187: 1552777.778 | AX187: 5610 | AY187: 1558333.333 | AZ187: 5630 | BA187: 1563888.889 | BB187: 5070 | BC187: 1408333.333 | BE187: 0 | BG187: 0 | BI187: 0 | BK187: 0 | BM187: 0 | BO187: 0 | BP187: 0 | BQ187: 0 | BR187: 0 | BS187: 0 | BT187: 0 | BU187: 0
A188: Déchets industriels | C188: 0 | E188: 0 | G188: 0 | I188: 0 | K188: 0 | M188: 0 | N188: 0 | O188: 0 | P188: 0 | Q188: 0 | R188: 0 | S188: 0 | T188: 11840 | U188: 3288888.889 | V188: 10200 | W188: 2833333.333 | X188: 10790 | Y188: 2997222.222 | Z188: 10670 | AA188: 2963888.889 | AB188: 10870 | AC188: 3019444.444 | AD188: 11670 | AE188: 3241666.667 | AF188: 11510 | AG188: 3197222.222 | AH188: 12030 | AI188: 3341666.667 | AJ188: 12010 | AK188: 3336111.111 | AM188: 0 | AO188: 0 | AQ188: 0 | AS188: 0 | AU188: 0 | AV188: 0 | AW188: 0 | AX188: 0 | AY188: 0 | AZ188: 0 | BA188: 0 | BB188: 270 | BC188: 75000 | BE188: 0 | BG188: 0 | BI188: 0 | BK188: 0 | BM188: 0 | BO188: 0 | BP188: 0 | BQ188: 0 | BR188: 0 | BS188: 0 | BT188: 0 | BU188: 0
A189: Autres énergies renouvelables | B189: 11950 | C189: 3319444.444 | D189: 13500 | E189: 3750000 | F189: 14810 | G189: 4113888.889 | H189: 15440 | I189: =H189*10^6/3600 -> 4288888.889 | J189: 15250 | K189: 4236111.111 | L189: 16650 | M189: 4625000 | N189: 17200 | O189: 4777777.778 | P189: 19850 | Q189: 5513888.889 | R189: 19050 | S189: 5291666.667 | T189: 1440 | U189: 400000 | V189: 1560 | W189: 433333.3333 | X189: 1700 | Y189: 472222.2222 | Z189: 1760 | AA189: 488888.8889 | AB189: 1690 | AC189: 469444.4444 | AD189: 1810 | AE189: 502777.7778 | AF189: 1850 | AG189: 513888.8889 | AH189: 2080 | AI189: 577777.7778 | AJ189: 2030 | AK189: 563888.8889 | AL189: 2990 | AM189: 830555.5556 | AN189: 3190 | AO189: 886111.1111 | AP189: 3360 | AQ189: 933333.3333 | AR189: 3430 | AS189: 952777.7778 | AT189: 3390 | AU189: 941666.6667 | AV189: 3590 | AW189: 997222.2222 | AX189: 3660 | AY189: 1016666.667 | AZ189: 4050 | BA189: 1125000 | BB189: 3920 | BC189: 1088888.889 | BD189: 870 | BE189: 241666.6667 | BF189: 2070 | BG189: 575000 | BH189: 3560 | BI189: 988888.8889 | BJ189: 5520 | BK189: 1533333.333 | BL189: 7520 | BM189: 2088888.889 | BN189: 7800 | BO189: 2166666.667 | BP189: 7260 | BQ189: 2016666.667 | BR189: 6570 | BS189: 1825000 | BT189: 6730 | BU189: 1869444.444
A190: Source: OFEN, Statistique globale de l'énergie, T17; état: 2022
A192: Indicateurs Cité de l'énergie (pour tout le territoire communal)
A193: Indicateur | I193: N° | K193: Unité | M193: 2022 | O193: 2021 | Q193: 2020 | S193: 2019 | U193: 2018 | W193: 2017 | Y193: 2016 | AA193: 2015 | AC193: 2014 | AE193: 2013
A194: Puissance photovoltaïque installée par hab. sur le territoire communal | I194: H6 | K194: kW/hab. | M194: 0.5365052122 | O194: 0.4175291525 | Q194: 0.3422142256 | S194: 0.2895643091 | U194: 0.2536828545 | W194: 0.2242186294 | Y194: 0.197 | AA194: 0.167 | AC194: 0.128 | AE194: 0.092
A195: Consommation chaleur par habitant et par année | I195: H7 | K195: kWh/(hab.·a) | M195: 10491 | O195: 12353 | Q195: 11016.99842 | S195: 11645.23037 | U195: 11536.11 | W195: 12331.30564 | Y195: 12718.94 | AA195: 12311.92 | AC195: 11720.15 | AE195: 14357.02
A196: selon la surface de référence énergétique certifiée par hab. | I196: H8 | K196: m²/hab. | M196: 5.64 | O196: 5.442254312 | Q196: 5.173873684 | S196: 4.892619979 | U196: 4.607516484 | W196: 4.260784429 | Y196: 3.89 | AA196: 3.46 | AC196: 2.99 | AE196: 2.57
A197: Part de chaleur issue des énergies renouvelables par rapport à la consommation finale de chaleur | I197: H9 | K197: % | M197: 36.4 | O197: 33.4 | Q197: 33.3 | S197: 33.74 | U197: 32.82 | W197: 30.02 | Y197: 27.8 | AA197: 26.7 | AC197: 25.8 | AE197: 23.4
A198: Consommation d'électricité par hab. et par année | I198: W9 | K198: kWh/(hab.·a) | M198: 6497.7 | O198: 6676.3 | Q198: 6449.7 | S198: 6670 | U198: 6770.6 | W198: 6919.6 | Y198: 6955.3 | AA198: 7032.5 | AC198: 7017.8 | AE198: 7333.5
A199: Part de la consommation de courant issu des énergies renouvelables par rapport à la consommation de courant totale | I199: W10 | K199: % | M199: 79.03 | O199: 79.91 | Q199: 76.57 | S199: 74.91 | U199: 74.28 | W199: 68.05 | AA199: 58.8 | AC199: 54.81 | AE199: 55.09
A200: Part de courant vert par rapport à la consommation de courant totale | I200: W11 | K200: % | O200: 4.13 | Q200: 4.57 | S200: 3.87 | U200: 3.63 | W200: 3.76 | Y200: 3.86 | AA200: 3.25 | AC200: 2.89 | AE200: 2.38
A201: Potentiel de production de courant utilisé issu des énergies renouvelables | I201: W12 | K201: % | M201: 64 | O201: 71.96 | Q201: 73.35 | S201: 72.41 | U201: 66.92 | W201: 65.35 | Y201: 63.98 | AA201: 68.51 | AC201: 67.84 | AE201: 67.61
A202: Nombre de CECB par bâtiment | I202: W13 | K202: Nombre/1000 Bât. | M202: 98.87465615 | O202: 82.05681446 | Q202: 70.14127601 | S202: 55.90215188 | U202: 44.98486397 | W202: 36.02827724 | Y202: 25.9 | AA202: 23.3 | AC202: 20.9 | AE202: 18
A203: Nombre d'utilisateurs de carsharing pour 1000 habitants | I203: W15 | K203: Nombre/1000 hab. | M203: 29.60732855 | O203: 27.72694758 | Q203: 28.2573844 | S203: 26.02825251 | U203: 23.1493212 | W203: 20.8742676 | Y203: 15.6 | AA203: 15.3 | AC203: 14.6 | AE203: 13.8
A204: Contributions financières aux transports publics | I204: W17 | K204: Fr./1000 hab. | S204: 134923 | U204: 123087 | W204: 138905 | Y204: 128623 | AA204: 123756 | AC204: 129325 | AE204: 129430
A205: Nombre de voitures particulières enregistrées pour 1000 habitants sur le territoire communal [unités] | I205: W18 | K205: Nombre/1000 hab. | M205: 535.5727515 | O205: 538.9036081 | Q205: 537.2749501 | S205: 537.2919207 | U205: 538.6708942 | W205: 538.7497598 | Y205: 537.3 | AA205: 535.4 | AC205: 532.3 | AE205: 530.9
... 8 more rows

Sheet P_HGT
A1: Degrés-jours suisses de chauffage
A2: DJC (20/12) selon station
A3: station | B3: valeurs annuels
B4: 2022 | C4: 2021 | D4: 2020 | E4: 2019 | F4: 2018 | G4: 2017 | H4: 2016 | I4: 2015 | J4: 2014 | K4: 2013 | L4: 2012 | M4: 2011 | N4: 2010 | O4: 2009 | P4: 2008 | Q4: 2007
A5: Adelboden | B5: 3785 | C5: 4486 | D5: 4083 | E5: 4290 | F5: 3953 | G5: 4444 | H5: 4451 | I5: 4351 | J5: 4281 | K5: 4812 | L5: 4502 | M5: 4209 | N5: 5074 | O5: 4570 | P5: 4703 | Q5: 4409 | AF5: 4444
A6: Aigle | B6: 2682 | C6: 3189 | D6: 2799 | E6: 2918 | F6: 2699 | G6: 3190 | H6: 3049 | I6: 2936 | J6: 2535 | K6: 3177 | L6: 2917 | M6: 2778 | N6: 3242 | O6: 2872 | P6: 3094 | Q6: 2932
A7: Altdorf | B7: 2793 | C7: 3289 | D7: 2896 | E7: 2918 | F7: 2635 | G7: 3169 | H7: 3029 | I7: 3059 | J7: 2601 | K7: 3302 | L7: 3132 | M7: 2766 | N7: 3310 | O7: 2974 | P7: 3049 | Q7: 2971
A8: Basel-Binningen | B8: 2503 | C8: 3058 | D8: 2507 | E8: 2708 | F8: 2619 | G8: 2870 | H8: 3024 | I8: 2678 | J8: 2399 | K8: 3112 | L8: 2927 | M8: 2604 | N8: 3275 | O8: 2825 | P8: 3005 | Q8: 2671
A9: Bern / Zollikofen | B9: 2969 | C9: 3535 | D9: 3114 | E9: 3297 | F9: 3083 | G9: 3491 | H9: 3472 | I9: 3307 | J9: 3000 | K9: 3670 | L9: 3524 | M9: 3036 | N9: 3722 | O9: 3364 | P9: 3539 | Q9: 3306
A10: Buchs-Aarau | B10: 2732 | C10: 3313 | D10: 2873 | E10: 2984 | F10: 2850 | G10: 3210 | H10: 3263 | I10: 3030 | J10: 2734 | K10: 3410 | L10: 3235 | M10: 2883 | N10: 3517 | O10: 3122 | P10: 3261 | Q10: 2980
A11: La Chaux-de-Fonds | B11: 3638 | C11: 4368 | D11: 3804 | E11: 4035 | F11: 3682 | G11: 4313 | H11: 4258 | I11: 4153 | J11: 3871 | K11: 4483 | L11: 4231 | M11: 3869 | N11: 4664 | O11: 4185 | P11: 4240 | Q11: 4142
A12: Chur | B12: 2680 | C12: 3186 | D12: 2811 | E12: 2891 | F12: 2655 | G12: 3078 | H12: 3034 | I12: 2991 | J12: 2511 | K12: 3242 | L12: 3160 | M12: 2822 | N12: 3315 | O12: 2963 | P12: 3101 | Q12: 3025
A13: Cimetta | B13: 4034 | C13: 4731 | D13: 4491 | E13: 4463 | F13: 4374 | G13: 4483 | H13: 4622 | I13: 4410 | J13: 4769 | K13: 4873 | M13: 4352 | N13: 5408 | O13: 4776 | P13: 4976 | Q13: 4690
A14: Davos | B14: 4871 | C14: 5622 | D14: 5171 | E14: 5275 | F14: 4985 | G14: 5414 | H14: 5358 | I14: 5233 | J14: 5321 | K14: 5671 | L14: 5517 | M14: 5239 | N14: 6058 | O14: 5565 | P14: 5585 | Q14: 5516
A15: Disentis / Sedrun | B15: 3664 | C15: 4343 | D15: 3881 | E15: 4065 | F15: 3689 | G15: 4325 | H15: 4189 | I15: 4071 | J15: 3909 | K15: 4445 | L15: 4347 | M15: 3799 | N15: 4771 | O15: 4229 | P15: 4341 | Q15: 4137
A16: La Dôle | B16: 4552 | C16: 5523 | D16: 5017 | E16: 5186 | F16: 4954 | G16: 5259 | H16: 5374 | I16: 5171 | J16: 5367 | K16: 5699 | L16: 5507 | M16: 5069 | N16: 6037 | O16: 5436 | P16: 5707 | Q16: 5455
A17: Engelberg | B17: 3724 | C17: 4419 | D17: 3951 | E17: 4070 | F17: 3773 | G17: 4320 | H17: 4175 | I17: 4147 | J17: 3989 | K17: 4561 | L17: 4347 | M17: 3996 | N17: 4866 | O17: 4281 | P17: 4409 | Q17: 4169
A18: Fahy | B18: 2866 | C18: 3480 | D18: 2906 | E18: 3198 | F18: 2997 | G18: 3343 | H18: 3448 | I18: 3123 | J18: 2863 | K18: 3753 | L18: 3470 | M18: 2968 | N18: 3798 | O18: 3261 | P18: 3509 | Q18: 3236
A19: Col du Gd-St-Bernard | B19: 6462 | C19: 7304 | D19: 6855 | E19: 6990 | F19: 6982 | G19: 6997 | H19: 7159 | I19: 6764 | J19: 7180 | K19: 7484 | L19: 7241 | M19: 6950 | N19: 7775 | O19: 7288 | P19: 7369 | Q19: 7179
A20: Genève-Cointrin | B20: 2449 | C20: 3042 | D20: 2620 | E20: 2718 | F20: 2571 | G20: 2902 | H20: 3008 | I20: 2795 | J20: 2428 | K20: 3162 | L20: 2936 | M20: 2673 | N20: 3217 | O20: 2827 | P20: 2965 | Q20: 2776
A21: Glarus | B21: 2996 | C21: 3588 | D21: 3072 | E21: 3210 | F21: 2965 | G21: 3467 | H21: 3340 | I21: 3303 | J21: 2858 | K21: 3648 | L21: 3458 | M21: 3099 | N21: 3724 | O21: 3301 | P21: 3451 | Q21: 3328
A22: Gütsch ob Andermatt | B22: 6215 | C22: 6931 | E22: 6558 | F22: 6531 | G22: 6634 | H22: 6767 | I22: 6372 | J22: 6732 | K22: 7031 | M22: 6445 | N22: 7377 | O22: 6954 | P22: 7015 | Q22: 6759
A23: Güttingen | B23: 2851 | C23: 3444 | D23: 2910 | E23: 3079 | F23: 2877 | G23: 3279 | H23: 3269 | I23: 3108 | J23: 2787 | K23: 3455 | L23: 3318 | M23: 3029 | N23: 3573 | O23: 3084 | P23: 3228 | Q23: 2960
A24: Interlaken | B24: 2981 | C24: 3597 | D24: 3139 | E24: 3225 | F24: 3025 | G24: 3523 | H24: 3407 | I24: 3309 | J24: 2904 | K24: 3566 | L24: 3476 | M24: 3040 | N24: 3675 | O24: 3265 | P24: 3413 | Q24: 3251
A25: Jungfraujoch Sphinx | B25: 9272 | C25: 9859 | D25: 9299 | E25: 9530 | F25: 9374 | G25: 9647 | H25: 9627 | I25: 9369 | J25: 9655 | K25: 9955 | L25: 9762 | M25: 9399 | N25: 10215 | O25: 9894 | P25: 9818 | Q25: 9669
A26: Locarno / Monti | B26: 2013 | C26: 2351 | D26: 2061 | E26: 2017 | F26: 2253 | G26: 2169 | H26: 2251 | I26: 2018 | J26: 1992 | K26: 2443 | L26: 2316 | M26: 2226 | N26: 2809 | O26: 2422 | P26: 2315 | Q26: 2054
A27: Lugano | B27: 1997 | C27: 2359 | D27: 2106 | E27: 2034 | F27: 2126 | G27: 2194 | H27: 2177 | I27: 2078 | J27: 1926 | K27: 2336 | L27: 2314 | M27: 2214 | N27: 2682 | O27: 2401 | P27: 2287 | Q27: 2077
A28: Luzern | B28: 2707 | C28: 3334 | D28: 2887 | E28: 2967 | F28: 2808 | G28: 3156 | H28: 3211 | I28: 2984 | J28: 2682 | K28: 3400 | L28: 3236 | M28: 2875 | N28: 3498 | O28: 3100 | P28: 3267 | Q28: 2997
A29: Le Moléson | B29: 5057 | C29: 5962 | D29: 5432 | E29: 5544 | F29: 5445 | G29: 5745 | H29: 5818 | I29: 5484 | J29: 5812 | K29: 6089 | L29: 5859 | M29: 5547 | N29: 6456 | O29: 5896 | P29: 6140 | Q29: 6037
A30: Montana | B30: 3899 | C30: 4625 | D30: 4190 | E30: 4384 | F30: 3977 | G30: 4502 | H30: 4548 | I30: 4302 | J30: 4294 | K30: 4739 | L30: 4545 | M30: 4122 | N30: 5083 | O30: 4533 | P30: 4751 | Q30: 4491
A31: Napf | B31: 4055 | C31: 4915 | D31: 4377 | E31: 4625 | F31: 4237 | G31: 4665 | H31: 4763 | I31: 4583 | J31: 4561 | K31: 5100 | L31: 4878 | M31: 4398 | N31: 5459 | O31: 4898 | P31: 5015
A32: Neuchâtel | B32: 2476 | C32: 3143 | D32: 2721 | E32: 2901 | F32: 2733 | G32: 2907 | H32: 3053 | I32: 2755 | J32: 2547 | K32: 3234 | L32: 3006 | M32: 2706 | N32: 3314 | O32: 2923 | P32: 3166 | Q32: 2805
A33: Payerne | B33: 2884 | C33: 3377 | D33: 2994 | E33: 3096 | F33: 2902 | G33: 3243 | H33: 3348 | I33: 3114 | J33: 2794 | K33: 3475 | L33: 3276 | M33: 2942 | N33: 3555 | O33: 3233 | P33: 3391 | Q33: 3091
A34: Pilatus | B34: 5580 | C34: 6381 | D34: 5865 | E34: 5944 | F34: 5845 | G34: 6096 | H34: 6210 | I34: 5863 | J34: 6139 | K34: 6483 | L34: 6290 | M34: 5914 | N34: 6841 | O34: 6338 | P34: 6426 | Q34: 6281
A35: Pully | B35: 2339 | C35: 2946 | D35: 2473 | E35: 2671 | F35: 2547 | G35: 2751 | H35: 2866 | I35: 2586 | J35: 2323 | K35: 3089 | L35: 2715 | M35: 2415 | N35: 3116 | O35: 2736 | P35: 2870 | Q35: 2581
A36: Poschiavo / Robbia | B36: 3592 | C36: 4138 | D36: 3868 | E36: 3789 | F36: 3634 | G36: 4011 | H36: 3917 | I36: 3723 | J36: 3673 | K36: 4105 | L36: 3925 | M36: 3599 | N36: 4362 | O36: 3897 | P36: 4109 | Q36: 3703
A37: Rünenberg | B37: 2809 | C37: 3450 | D37: 2931 | E37: 3180 | F37: 3026 | G37: 3303 | H37: 3397 | I37: 3052 | J37: 2791 | K37: 3672 | L37: 3350 | M37: 2913 | N37: 3778 | O37: 3279 | P37: 3490 | Q37: 3187
A38: Samedan-Flugplatz | B38: 5544 | C38: 6387 | D38: 5871 | E38: 5913 | F38: 5702 | G38: 5945 | H38: 5962 | I38: 5797 | J38: 5968 | K38: 6215 | L38: 6130 | M38: 5983 | N38: 6453 | O38: 6110 | P38: 6167 | Q38: 6024
A39: San Bernardino | B39: 4761 | C39: 5509 | D39: 5147 | E39: 5161 | F39: 4967 | G39: 5108 | H39: 5142 | I39: 5088 | J39: 5396 | K39: 5434 | L39: 5236 | M39: 4982 | N39: 5840 | O39: 5308 | P39: 5493 | Q39: 5265
A40: Säntis | B40: 6982 | C40: 7598 | D40: 7142 | E40: 7244 | F40: 7117 | G40: 7448 | H40: 7486 | I40: 7107 | J40: 7303 | K40: 7603 | L40: 7511 | M40: 7127 | N40: 8017 | O40: 7620 | P40: 7644 | Q40: 7465
A41: Schaffhausen | B41: 2826 | C41: 3445 | D41: 2977 | E41: 3070 | F41: 2843 | G41: 3271 | H41: 3289 | I41: 3023 | J41: 2745 | K41: 3491 | L41: 3326 | M41: 2956 | N41: 3614 | O41: 3175 | P41: 3368 | Q41: 3006
A42: Scuol | B42: 4250 | C42: 4800 | D42: 4476 | E42: 4701 | F42: 4190 | G42: 4728 | H42: 4666 | I42: 4494 | J42: 4388 | K42: 4851 | L42: 4736 | M42: 4317 | N42: 5060 | O42: 4587 | P42: 4795 | Q42: 4468
A43: Sion | B43: 2629 | C43: 3184 | E43: 2763 | F43: 2623 | G43: 2883 | H43: 2996 | I43: 2880 | J43: 2477 | K43: 3153 | L43: 2914 | M43: 2790 | N43: 3210 | O43: 3045 | P43: 3042 | Q43: 2916
A44: St. Gallen | B44: 3140 | C44: 3773 | D44: 3321 | E44: 3441 | F44: 3210 | G44: 3581 | H44: 3629 | I44: 3418 | J44: 3104 | K44: 3967 | L44: 3668 | M44: 3233 | N44: 4087 | O44: 3534 | P44: 3693 | Q44: 3475
A45: Stabio | B45: 2459 | C45: 2824 | D45: 2636 | E45: 2523 | F45: 2463 | G45: 2659 | H45: 2686 | I45: 2638 | J45: 2282 | K45: 2785 | L45: 2809 | M45: 2684 | N45: 3072 | O45: 2772 | P45: 2640 | Q45: 2456
A46: Aadorf / Tänikon | B46: 3018 | C46: 3578 | D46: 3115 | E46: 3275 | F46: 3058 | G46: 3495 | H46: 3492 | I46: 3328 | J46: 3022 | K46: 3727 | L46: 3514 | M46: 3170 | N46: 3860 | O46: 3350 | P46: 3579 | Q46: 3354
A47: Vaduz | B47: 2603 | C47: 3101 | D47: 2708 | E47: 2766 | F47: 2593 | G47: 2959 | H47: 2975 | I47: 2909 | J47: 2382 | K47: 3255 | L47: 2986 | M47: 2712 | N47: 3209 | O47: 2913 | P47: 3013 | Q47: 2964
A48: Visp | B48: 2888 | C48: 3349 | D48: 3051 | E48: 3014 | F48: 2831 | G48: 3238 | H48: 3269 | I48: 3164 | J48: 2683 | K48: 3362 | L48: 3217 | M48: 2979 | N48: 3392 | O48: 3245 | P48: 3242 | Q48: 3213
A49: Wädenswil | B49: 2737 | C49: 3339 | D49: 2865 | E49: 3024 | F49: 2806 | G49: 3143 | H49: 3200 | I49: 2994 | J49: 2694 | K49: 3404 | L49: 3222 | M49: 2876 | N49: 3549 | O49: 3125 | P49: 3300 | Q49: 3014
A50: Weissfluhjoch | C50: 7838 | D50: 7396 | E50: 7530 | F50: 7502 | G50: 7743 | H50: 7727 | I50: 7261 | K50: 7926 | L50: 7797 | M50: 7433 | N50: 8306 | O50: 7947 | P50: 7904
A51: Wynau | B51: 2887 | C51: 3482 | D51: 3017 | E51: 3204 | F51: 2982 | G51: 3402 | H51: 3375 | I51: 3221 | J51: 2907 | K51: 3566 | L51: 3494 | M51: 3070 | N51: 3730 | O51: 3299 | P51: 3425 | Q51: 3169
A52: Zermatt | B52: 4474 | C52: 5117 | D52: 4726 | E52: 4899 | F52: 4701 | G52: 5034 | H52: 5120 | I52: 4955 | J52: 5120 | K52: 5444 | L52: 5153 | M52: 4871 | N52: 5686 | O52: 5210 | P52: 5338 | Q52: 5212
A53: Zürich / Kloten | B53: 2835 | C53: 3402 | D53: 2934 | E53: 3061 | F53: 2897 | G53: 3267 | H53: 3329 | I53: 3064 | J53: 2790 | K53: 3436 | L53: 3248 | M53: 2955 | N53: 3602 | O53: 3216 | P53: 3299 | Q53: 3065
A54: Zürich / Fluntern | B54: 2776 | C54: 3401 | D54: 2933 | E54: 3112 | F54: 2935 | G54: 3233 | H54: 3335 | I54: 3060 | J54: 2784 | K54: 3586 | L54: 3321 | M54: 2950 | N54: 3663 | O54: 3186 | P54: 3382 | Q54: 3105
A55: Suisse | B55: 2796 | C55: 3378 | D55: 3067 | E55: 3067 | F55: 2891 | G55: 3233 | H55: 3281 | I55: 3075 | J55: 2782 | K55: 3471 | L55: 3281 | M55: 2938 | N55: 3586 | O55: 3182 | P55: 3347 | Q55: 3101
A57: Source: Société suisse des propriétaires fonciers (HEV), 2022; OFEN, Statistique globale de l'énergie, T43a, 2022

Sheet Cata_modif
A1: Catalogue des modifications
C2: =Ein_Texte!$T$12 -> Retour vers | D2: Aperçu
A5: Version | B5: Quoi ? | C5: Quand | D5: Qui

Sheet Repr_cmn
A1: Informations complémentaires
A2: Représentation communale | J2: =Ein_Texte!$T$12 -> Retour vers | K2: Aperçu
A5: Nom de la commune | B5: N° OFS | C5: Prénom | D5: Nom de famille | E5: Rôle | F5: Rue | G5: NPA | H5: Localité | I5: N° de téléphone | J5: Courriel | K5: Remarques
A6: =Aperçu!F28 -> 0 | B6: =IF(Aperçu!G28>0,Aperçu!G28,NoSpace) ->  | G6: 88888
A7: =Aperçu!F29 -> 0 | B7: =IF(Aperçu!G29>0,Aperçu!G29,NoSpace) -> 
A8: =Aperçu!F30 -> 0 | B8: =IF(Aperçu!G30>0,Aperçu!G30,NoSpace) -> 
A9: =Aperçu!F31 -> 0 | B9: =IF(Aperçu!G31>0,Aperçu!G31,NoSpace) -> 
A10: =Aperçu!F32 -> 0 | B10: =IF(Aperçu!G32>0,Aperçu!G32,NoSpace) -> 
A11: =Aperçu!F33 -> 0 | B11: =IF(Aperçu!G33>0,Aperçu!G33,NoSpace) -> 
A12: =Aperçu!F34 -> 0 | B12: =IF(Aperçu!G34>0,Aperçu!G34,NoSpace) -> 
A13: =Aperçu!F35 -> 0 | B13: =IF(Aperçu!G35>0,Aperçu!G35,NoSpace) -> 
A14: =Aperçu!F36 -> 0 | B14: =IF(Aperçu!G36>0,Aperçu!G36,NoSpace) -> 
A15: =Aperçu!F37 -> 0 | B15: =IF(Aperçu!G37>0,Aperçu!G37,NoSpace) -> 
A16: =Aperçu!F38 -> 0 | B16: =IF(Aperçu!G38>0,Aperçu!G38,NoSpace) -> 
A17: =Aperçu!F39 -> 0 | B17: =IF(Aperçu!G39>0,Aperçu!G39,NoSpace) -> 
A18: =Aperçu!F40 -> 0 | B18: =IF(Aperçu!G40>0,Aperçu!G40,NoSpace) -> 
A19: =Aperçu!F41 -> 0 | B19: =IF(Aperçu!G41>0,Aperçu!G41,NoSpace) -> 
A20: =Aperçu!F42 -> 0 | B20: =IF(Aperçu!G42>0,Aperçu!G42,NoSpace) -> 
A21: =Aperçu!F43 -> 0 | B21: =IF(Aperçu!G43>0,Aperçu!G43,NoSpace) -> 
A22: =Aperçu!F44 -> 0 | B22: =IF(Aperçu!G44>0,Aperçu!G44,NoSpace) -> 
A23: =Aperçu!F45 -> 0 | B23: =IF(Aperçu!G45>0,Aperçu!G45,NoSpace) -> 
A24: =Aperçu!F46 -> 0 | B24: =IF(Aperçu!G46>0,Aperçu!G46,NoSpace) -> 
A25: =Aperçu!F47 -> 0 | B25: =IF(Aperçu!G47>0,Aperçu!G47,NoSpace) -> 
A26: =Aperçu!F48 -> 0 | B26: =IF(Aperçu!G48>0,Aperçu!G48,NoSpace) -> 
A27: =Aperçu!F49 -> 0 | B27: =IF(Aperçu!G49>0,Aperçu!G49,NoSpace) -> 
A28: =Aperçu!F50 -> 0 | B28: =IF(Aperçu!G50>0,Aperçu!G50,NoSpace) -> 
A29: =Aperçu!F51 -> 0 | B29: =IF(Aperçu!G51>0,Aperçu!G51,NoSpace) -> 
A30: =Aperçu!F52 -> 0 | B30: =IF(Aperçu!G52>0,Aperçu!G52,NoSpace) -> 
A31: =Aperçu!F53 -> 0 | B31: =IF(Aperçu!G53>0,Aperçu!G53,NoSpace) -> 
A32: =Aperçu!F54 -> 0 | B32: =IF(Aperçu!G54>0,Aperçu!G54,NoSpace) -> 
A33: =Aperçu!F55 -> 0 | B33: =IF(Aperçu!G55>0,Aperçu!G55,NoSpace) -> 
A34: =Aperçu!F56 -> 0 | B34: =IF(Aperçu!G56>0,Aperçu!G56,NoSpace) -> 
A35: =Aperçu!F57 -> 0 | B35: =IF(Aperçu!G57>0,Aperçu!G57,NoSpace) -> 
A36: =Aperçu!F58 -> 0 | B36: =IF(Aperçu!G58>0,Aperçu!G58,NoSpace) -> 
A37: =Aperçu!F59 -> 0 | B37: =IF(Aperçu!G59>0,Aperçu!G59,NoSpace) -> 
A38: =Aperçu!F60 -> 0 | B38: =IF(Aperçu!G60>0,Aperçu!G60,NoSpace) -> 
A39: =Aperçu!F61 -> 0 | B39: =IF(Aperçu!G61>0,Aperçu!G61,NoSpace) -> 
A40: =Aperçu!F62 -> 0 | B40: =IF(Aperçu!G62>0,Aperçu!G62,NoSpace) -> 
A41: =Aperçu!F63 -> 0 | B41: =IF(Aperçu!G63>0,Aperçu!G63,NoSpace) -> 
A42: =Aperçu!F64 -> 0 | B42: =IF(Aperçu!G64>0,Aperçu!G64,NoSpace) -> 
A43: =Aperçu!F65 -> 0 | B43: =IF(Aperçu!G65>0,Aperçu!G65,NoSpace) -> 
A44: =Aperçu!F66 -> 0 | B44: =IF(Aperçu!G66>0,Aperçu!G66,NoSpace) -> 
A45: =Aperçu!F67 -> 0 | B45: =IF(Aperçu!G67>0,Aperçu!G67,NoSpace) -> 
A46: =Aperçu!F68 -> 0 | B46: =IF(Aperçu!G68>0,Aperçu!G68,NoSpace) -> 
A47: =Aperçu!F69 -> 0 | B47: =IF(Aperçu!G69>0,Aperçu!G69,NoSpace) -> 
A48: =Aperçu!F70 -> 0 | B48: =IF(Aperçu!G70>0,Aperçu!G70,NoSpace) -> 
A49: =Aperçu!F71 -> 0 | B49: =IF(Aperçu!G71>0,Aperçu!G71,NoSpace) -> 
A50: =Aperçu!F72 -> 0 | B50: =IF(Aperçu!G72>0,Aperçu!G72,NoSpace) -> 

Sheet Dtb_in
B1: =Ein_Texte!AD5 -> Base de données Informations saisies
B3: =SUBTOTAL(5,Bereich_Dtbin_Spalte_C) ->  | C3: =SUBTOTAL(2,Bereich_Dtbin_Spalte_C) -> 
A4: =Ein_Texte!A4 -> Idx | B4: =Ein_Texte!B4 -> Commune | C4: =Ein_Texte!C4 -> Année de bilan | D4: =Ein_Texte!D4 -> Objectif | E4: =Ein_Texte!E4 -> Catégorie | F4: =Ein_Texte!F4 -> Description | G4: =Ein_Texte!G4 -> Unité | H4: =Ein_Texte!H4 -> Valeur de saisie | I4: =Ein_Texte!I4 -> Année de la collecte | J4: =Ein_Texte!J4 -> Source des données | K4: =Ein_Texte!K4 -> Qualité des données | L4: =Ein_Texte!L4 -> Responsabilité | M4: =Ein_Texte!M4 -> Remarques

Sheet Dtb_out
C1: =Ein_Texte!AD6 -> Base de données Résultats
A2: 1 | B2: 2 | C2: 3 | D2: 4 | E2: 5 | F2: 6 | G2: 7 | H2: 8 | I2: 9 | J2: 10 | K2: 11 | L2: 12 | M2: 13 | N2: 14 | O2: 15 | P2: 16 | Q2: 17 | R2: 18 | S2: 19 | T2: 20 | U2: 21 | V2: 23 | W2: 25 | X2: 26 | Y2: 27 | Z2: 28 | AA2: 29 | AB2: 30 | AC2: 31
A4: Reihefolge | B4: Idx | C4: =Ein_Texte!B4 -> Commune | D4: =Ein_Texte!C4 -> Année de bilan | E4: =Calc_cmn!E4 -> Grandeur de calcul | F4: =Calc_cmn!F4 -> Utilisation | G4: =Calc_cmn!G4 -> Secteurs | H4: =Calc_cmn!H4 -> Producteur / consommateur | I4: =Calc_cmn!I4 -> Agent énergétique | J4: =Calc_cmn!J4 -> Pondération | K4: =Calc_cmn!K4 -> Divers | L4: =Calc_cmn!L4 -> Aides pour le tri | M4: =Calc_cmn!M4 -> Répartition spatiale | N4: =Calc_cmn!N4 -> EnFin [MWh/a] | O4: =Calc_cmn!O4 -> EP [MWh/a] | P4: =Calc_cmn!P4 -> GES [t/a] | Q4: =Calc_cmn!Q4 -> EnFin [%] | R4: =Calc_cmn!R4 -> EP [%] | S4: =Calc_cmn!S4 -> GES [%] | T4: =Calc_cmn!T4 -> [MWh/a] | U4: =Calc_cmn!U4 -> [MWh/(hab.·a)] | V4: =Calc_cmn!V4 -> [W/hab.] | W4: =Calc_cmn!W4 -> GES [t/(hab.·a)] | X4: =Calc_cmn!X4 -> mio. [CHF/a] | Y4: =Calc_cmn!Y4 -> FEP [MJéq/MJ] | Z4: =Calc_cmn!Z4 -> GES [kg/kWh] | AA4: =Calc_cmn!AA4 -> [%] | AB4: =Calc_cmn!AB4 -> [EW] | AC4: =Calc_cmn!AC4 -> Valeur
A5: =Calc_cmn!A5 ->  | B5: =Calc_cmn!B5 -> 1 | C5: =Calc_cmn!C5 -> 0 | D5: =Calc_cmn!D5 -> 0 | E5: Résultat intermédiaire | F5: Chaleur | H5: Chauffage au mazout < 70 kW
A6: =Calc_cmn!A6 ->  | B6: =Calc_cmn!B6 -> 2 | C6: =Calc_cmn!C6 -> 0 | D6: =Calc_cmn!D6 -> 0 | E6: Résultat intermédiaire | F6: Chaleur | H6: Chauffage au mazout > 70 kW
A7: =Calc_cmn!A7 ->  | B7: =Calc_cmn!B7 -> 3 | C7: =Calc_cmn!C7 -> 0 | D7: =Calc_cmn!D7 -> 0 | E7: Résultat intermédiaire | F7: Chaleur | H7: Chauffage au charbon < 70 kW
A8: =Calc_cmn!A8 ->  | B8: =Calc_cmn!B8 -> 4 | C8: =Calc_cmn!C8 -> 0 | D8: =Calc_cmn!D8 -> 0 | E8: Résultat intermédiaire | F8: Chaleur | H8: Chauffage au charbon > 70 kW
A9: =Calc_cmn!A9 ->  | B9: =Calc_cmn!B9 -> 5 | C9: =Calc_cmn!C9 -> 0 | D9: =Calc_cmn!D9 -> 0 | E9: Résultat intermédiaire | F9: Chaleur | H9: Chauffage au gaz naturel Ménages privés
A10: =Calc_cmn!A10 ->  | B10: =Calc_cmn!B10 -> 6 | C10: =Calc_cmn!C10 -> 0 | D10: =Calc_cmn!D10 -> 0 | E10: Résultat intermédiaire | F10: Chaleur | H10: Chauffage au gaz naturel Artisanat / Industrie
A11: =Calc_cmn!A11 ->  | B11: =Calc_cmn!B11 -> 7 | C11: =Calc_cmn!C11 -> 0 | D11: =Calc_cmn!D11 -> 0 | E11: Résultat intermédiaire | F11: Chaleur | H11: Chauffage à bois < 70 kW
A12: =Calc_cmn!A12 ->  | B12: =Calc_cmn!B12 -> 8 | C12: =Calc_cmn!C12 -> 0 | D12: =Calc_cmn!D12 -> 0 | E12: Résultat intermédiaire | F12: Chaleur | H12: Chauffage à bois > 70 kW
A13: =Calc_cmn!A13 ->  | B13: =Calc_cmn!B13 -> 9 | C13: =Calc_cmn!C13 -> 0 | D13: =Calc_cmn!D13 -> 0 | E13: Résultat intermédiaire | F13: Chaleur | H13: Chaleur à distance
A14: =Calc_cmn!A14 ->  | B14: =Calc_cmn!B14 -> 10 | C14: =Calc_cmn!C14 -> 0 | D14: =Calc_cmn!D14 -> 0 | E14: Résultat intermédiaire | F14: Chaleur | H14: Chaleur industrielle
A15: =Calc_cmn!A15 ->  | B15: =Calc_cmn!B15 -> 11 | C15: =Calc_cmn!C15 -> 0 | D15: =Calc_cmn!D15 -> 0 | E15: Résultat intermédiaire | F15: Chaleur | H15: CETE Biogaz/gaz de digestion
A16: =Calc_cmn!A16 ->  | B16: =Calc_cmn!B16 -> 12 | C16: =Calc_cmn!C16 -> 0 | D16: =Calc_cmn!D16 -> 0 | E16: Résultat intermédiaire | F16: Chaleur | H16: CETE Diesel
